Workbook

Sheet Общая информация
D1: Приложение А
A2: Общая информация о регулируемой организации
A4: Фирменное наименование регулируемой организации (согласно Уставу) | B4: муниципальное казенное учреждение "Новоивановское" Новоивановского сельского поселения Новопокровского района
A5: Сокращенное фирменное наименование | B5: МКУ "Новоивановское"
A6: Муниципальный район | B6: Новопокровский
A7: Муниципальное образование (основное) | B7: Новоивановское сельское поселение Новопокровского района
A8: Адрес | B8: Юридический | C8: 353024, Краснодарский край, Новопокровский район, станица Новоивановская, улица Красная,87
B9: Фактический | C9: 353024, Краснодарский край, Новопокровский район, станица Новоивановская, улица Школьная, 58а
B10: Почтовый | C10: 353024, Краснодарский край, Новопокровский район, станица Новоивановская, улица Школьная, 58а
A11: Телефон организации (с кодом) | B11: 8(86149)38241 | C11: Факс (с кодом) | D11: 8(86149)38247
A12: Адрес электронной почты (e-mail) | B12: novoivanovskay-1@mail.ru | C12: Адрес WEB-сайта (при наличии) | D12: http://novoivanovskoesp.ru/
A13: Реквизиты утверждения устава | B13: постановление администрации Новоивановского сельского поселения от 14.09.2011г. № 89 "Об изменении типа муниципального учреждения и утверждении Устава муниципального казенного учреждения «Новоивановское» Новоивановского сельского поселения Новопокровского района"
A14: ИНН | B14: 2344013996 | C14: КПП | D14: 234401001
A15: Код налогового органа | B15: 2360 | C15: Наименование налогового органа | D15: Межрайонная ИФНС России № 1 по Краснодарскому краю
A16: ОГРН (форма Р51001) | B16: 1062344000322 | C16: Дата присвоения ОГРН | D16: 2011-10-12
A17: Наименование регистрирующего органа, выдавшего свидетельство о государственной регистрации юридического лица | C17: Межрайонная инспекция Федеральной налоговой службы № 16 по Краснодарскому краю
A18: ФИО руководителя регулируемой организации (полностью) | B18: Велегура Владимир Леонидович
A19: Должность руководителя | B19: Директор | C19: Контактный телефон руководителя | D19: 8(86149)38241
A20: Банковские реквизиты | B20: Расчетный счет * | C20: № 40204810600000000277
B21: Кор. Счет * | C21: нет
B22: БИК | C22: № 040349001
B23: Наименование банка | C23: Южное ГУ Банка России по Краснодарскому краю г.Краснодар
A24: Доля участия государства (РФ, субъекта, МО) в уставном капитале | C24: нет
A25: Субъект предпринимательства | B25: малый | G25: малый
A26: * Перед номерами счетов ставим значок № для корректного отображения всех цифр | G26: средний
G27: крупный
A28: Руководитель организации | B28: ______________________________________
A30: Ответственный за составление формы | B30: ______________________________________

Sheet Информация для регулирования
E1: Приложение Б
A2: Информация для расчета тарифа
A4: Является ли организация гарантирующей | B4: да | C4: реквизиты документа | D4: постановление администрации Новоивановского сельского поселения от 02.07.2013г. № 72 "Об определении гарантирующей организации в сфере водоснабжения на территории Новоивановского сельского поселения Новопокровского района" | I4: да
A5: Утверждены ли схемы водоснабжения | B5: да | C5: реквизиты документа | D5: постановление администрации Новоивановского сельского поселения от 26.12.2016 года №206 "Об утверждении схемы водоснабжения и водоотведения Новоивановского сельского поселения Новопокровского района на период до 2030 года" | I5: нет
A6: Источник с размещением схем водоснабжения | B6: http://novoivanovskoesp.ru/tarify-zhku.html
A7: Основной вид деятельности организации с указанием ОКВЭД | B7: 36.00.2 Распределение воды для питьевых и промышленных нужд
A8: Количество видов деятельности (всех активных), ед. | B8: 2
A9: Применяемая система налогообложения | B9: ОСН (освобождение от уплаты НДС в соответствии с пп 4.1 п 2 ст. 146 НК РФ) | I9: Общая система налогообложения (ОСН)
A10: Право владения объектами водоснабжения | B10: оперативное управление | I10: ОСН (освобождение от уплаты НДС в соответствии со ст. 145 НК РФ)
A11: Реквизиты документов (наименование, № и дата), подтверждающие право владения объектами коммунальной инфраструктуры | B11: постановление администрации Новоивановского сельского поселения от 05.04.2013г. № 32 " О передаче имущества, находящегося в собственности муниципального образования Новоивановское сельское поселение, в оперативное управление муниципальному казенному учреждению "Новоивановское" | I11: ОСН (освобождение от уплаты НДС в соответствии с пп 4.1 п 2 ст. 146 НК РФ)
A12: Срок владения объектами (с-по) | B12: с 05.04.2013г. по 04.04.2035г. | I12: Упрощенная система налогообложения (доходы)
A13: Поверхностные источники водозабора, ед. | B13: 0 | I13: Упрощенная система налогообложения (доходы-расходы)
A14: Подземные источники водозабора (количество артезианских скважин), ед. | B14: 6 | C14: из них действующих | D14: 6 | I14: Единый сельскохозяйственный налог
A15: Суммарная установленная производственная мощность водозабора, куб.м/час | B15: 1.4 | I15: Единый налог на вмененный доход
A16: Количество водонапорных башен, ед. | B16: 6
A17: Протяженность всех сетей водоснабжения, км. | B17: 34
A18: Наличие бесхозных или не оформленных объектов и сетей | B18: нет
A19: Сети - бесхозные, км | B19: 0
A20: Объекты - бесхозные, ед | B20: 0
A21: Объекты без оформленных документов (кадастр, договор аренды и т.д.), ед | B21: 0
A22: Суммарная установленная производственная мощность транспортирования воды, куб.м/час | B22: 1.4
A23: Количество очистных сооружений для водоподготовки, ед. | B23: 0
A24: Суммарная установленная производственная мощность очистных сооружений водоподготовки, куб.м/час | B24: 0
A25: Наименование обслуживаемых МО (населенных пунктов) | B25: станица Новоивановская, станица Плоская
A26: Планируемый объем отпуска воды, тыс. куб.м | B26: 93.58
A27: в том числе населению, исполнителям коммунальных услуг (УК, ТСЖ и пр.) | B27: население - 73,92, бюджетные организации - 2,37, прочие - 17,29
A28: Наличие приборов учета у потребителей, % | B28: 84.8
A29: Наличие приборов учета у организации | B29: да
A30: Производство
A31: Стоимость основных средств, относимых на источники производства (подъём / добыча) | B31: тыс.руб. | C31: 656.5
A32: Износ основных средств | B32: % | C32: 24.9
A33: Очистка
A34: Стоимость основных средств, относимых на системы / сооружения для очистки | B34: тыс.руб. | C34: 0
A35: Износ основных средств | B35: % | C35: 0
A36: Транспортировка
A37: Стоимость основных средств, относимых на транспортировку | B37: тыс.руб. | C37: 2710
A38: Протяженность сетей | B38: км | C38: 34
A39: Протяженность сетей, подлежащих замене (износ 100%) | B39: км | C39: 0
A40: Сбыт
A41: Полезный отпуск наиболее крупному единичному потребителю | B41: тыс.куб.м | C41: 1.8
A42: Численность обслуживаемого населения | B42: чел. | C42: 2398
A43: Количество абонентов | B43: ед. | C43: 117
A44: Высота подъёма воды | B44: м | C44: 25
A45: Действующие тарифы без НДС, руб./куб.м. | B45: с 01.01.18 по 30.06.18 | C45: 18.26 | D45: с НДС
B46: с 01.07.18 по 31.12.18 | C46: 18.97
A47: Реквизиты нормативного акта по установлению тарифов на 2018 год | B47: приказ РЭК - департамента цен и тарифов Краснодарского края от 18.12.2017 №154/2017-вк
A48: Заявленный метод регулирования | B48: метод индексации | I48: метод экономическм обоснованных расходов (затрат)
A49: Заявленные тарифы, руб./куб.м. | B49: на 2019 | C49: ='Расчет тарифа методом индексаци'!M42 -> 19.49170343 | I49: метод индексации
B50: на 2020 | C50: ='Расчет тарифа методом индексаци'!O42 -> 25.61915681 | I50: метод сравнения аналогов
B51: на 2021 | C51: ='Расчет тарифа методом индексаци'!Q42 -> 26.09927158 | I51: метод доходности инвестированного капитала
B52: на 2022 | C52: ='Расчет тарифа методом индексаци'!S42 -> 27.17285959
B53: на 2023 | C53: ='Расчет тарифа методом индексаци'!U42 -> 28.29168268
A54: Наличие инвестиционной программы (период действия) | B54: нет
A55: Наличие тарифов на подключение с указанием периода действия | B55: нет
A56: Реквизиты нормативного акта по установлению тарифов на подключение | B56: нет
A57: Финансирование (субсидии, целевые программы и пр.) | B57: муниципальная программа Новоивановского сельского поселения Новопокровского района "Развитие жилищно-коммунального хозяйства", утверждена постановлением администрации Новоивановского сельского поселения от 05.11.2014 года №106, бюджетная смета
A58: Ответственный за работу с РЭК | B58: главный бухгалтер Донскова Ирина Дмитриевна
A59: Контактный телефон ответственного | B59: 8(86149)38241
A62: Руководитель организации | B62: ______________________________________
A64: Ответственный за составление формы | B64: ______________________________________

Sheet Сведения
A1: Краткие сведения об организации
A3: Наименование организации: | C3: МКУ "Новоивановское"
A5: Перечень населенных пунктов, в которых организация осуществляет деятельность по водоснабжению
A7: Наименование МО | E7: Наименование населенного пункта
A8: Новоивановское сельское поселение Новопокровского района | E8: 1 | F8: станица Новоивановская
A9: Новоивановское сельское поселение Новопокровского района | E9: 2 | F9: станица Плоская
E10: 3
E11: 4
E12: 5
E13: 6
E14: 7
E15: 8
E16: 9
E17: 10
E18: 11
E19: 12
E20: 13
E21: 14
E22: 15
A24: Налогообложение | F24: Сведения об установленных тарифах на 2018 год
A26: система налогообложения | B26: объект налогообложения | D26: налоговая ставка | F26: № приказа РЭК | G26: дата приказа | H26: срок действия тарифа | I26: величина тарифа, руб/куб.м. | J26: НДС
A28: ОСН (освобождение от уплаты НДС в соответствии с пп 4.1 п 2 ст. 146 НК РФ) | B28: =IF(A28="Упрощенная система налогообложения (доходы)","доходы",IF(A28="Упрощенная система налогообложения (доходы-расходы)","доходы-расходы",IF(OR(A28="Единый сельскохозяйственный налог",A28="Единый налог на вмененный доход"),"-","прибыль"))) -> прибыль | D28: =IF(B28="доходы",6,IF(B28="доходы-расходы",15,IF(B28="-","-",20))) -> 20 | F28: 154/2017-вк | G28: 2017-12-18 | H28: 2018-01-01 | I28: ='Информация для регулирования'!C45 -> 18.26 | J28: =IF(A28="Общая система налогообложения (ОСН)","без учета НДС","НДС не предусмотрен") -> НДС не предусмотрен
H29: 2018-06-30
H30: 2018-07-01 | I30: ='Информация для регулирования'!C46 -> 18.97 | J30: =IF(A28="Общая система налогообложения (ОСН)","без учета НДС","НДС не предусмотрен") -> НДС не предусмотрен
H31: 2018-12-31
A33: Размер страховых взносов | F33: Сведения о компенсации до установленного тарифа на 2018 год
A35: год | B35: размер страховых взносов в % от ФОТ | F35: Наименование документа | G35: № и дата документа | H35: срок действия компенсации | I35: разница в тарифах, руб/куб.м. | J35: НДС
B36: всего | C36: в том числе:
C37: ПФ, ФСС,ОМС | D37: страхование от несчастных случаев на производстве и профессиональных заболеваний
A39: 2017 | B39: =C39+D39 -> 30.2 | C39: 30 | D39: 0.2 | F39: нет | G39: нет | H39: 2018-01-01 | I39: нет | J39: =J28 -> НДС не предусмотрен
A40: 2018 | B40: 30.2 | C40: =C39 -> 30 | D40: 0.2 | H40: 2018-06-30
A41: 2019 | B41: 30.2 | C41: 30 | D41: =D40 -> 0.2 | H41: 2018-07-01 | I41: нет | J41: =J30 -> НДС не предусмотрен
A42: 2020 | B42: 30.2 | C42: 30 | D42: =D41 -> 0.2 | H42: 2018-12-31
A43: 2021 | B43: 30.2 | C43: 30 | D43: =D42 -> 0.2
A44: 2022 | B44: 30.2 | C44: 30 | D44: =D43 -> 0.2
A45: 2023 | B45: 30.2 | C45: 30 | D45: =D44 -> 0.2
A47: Руководитель организации _____________________________________
A49: Ответственный за составление формы ________________________________________________

Sheet Тех характеристики
B2: Имущество, переданное по договору аренды (концессионному соглашению) и (или) принадлежащее на праве собственности
A4: № | B4: Наименование объектов | C4: адрес объектов | D4: Количество оборудования, находящегося одновременно в работе | E4: Наличие прибора учета воды | F4: Наличие прибора учета электроэнергии | G4: Фактическая | K4: Проектная | O4: Отопление (обогрев) объектов
G5: Марка оборудования (насоса) | H5: Производительность оборудования (насоса), куб.м./час | I5: Продолжительность работы в году, час | J5: Мощность оборудования (насоса), кВт | K5: Марка оборудования (насоса) | L5: Производительность оборудования (насоса), куб.м./час | M5: Продолжительность работы в году, час | N5: Мощность оборудования (насоса), кВт | O5: ТЭН | Q5: Наименование организации-поставщика тепловой энергии
O6: количество, шт | P6: Суммарная мощность, кВт
B7: Артезианские скважины
A8: 1 | B8: Артезианская скважина №6676 | C8: ул.Северная ст-ца Плоская | D8: 1 | E8: нет | F8: Счетчик ВАТТ-часов активной энергии переменного тока статистический ПСЧ-3ТА.07 | G8: ЭЦВ 6-10-140 | H8: 10 | I8: 2515.6 | J8: 0.945 | K8: ЭЦВ 6-16-110 | L8: 16 | M8: 8760 | N8: 0.95
A9: 2 | B9: Артезианская скважина №4422 | C9: ул.Красная ст-ца Плоская | D9: 1 | E9: нет | F9: Счетчик ВАТТ-часов активной энергии переменного тока статистический ПСЧ-3ТА.07 | G9: ЭЦВ 6-10-110 | H9: 10 | I9: 0 | J9: 0 | K9: ЭЦВ 6-16-110 | L9: 14 | M9: 8760 | N9: 0.95
A10: 3 | B10: Артезианская скважина №6690 | C10: ул.Бударова ст-ца Плоская | D10: 1 | E10: нет | F10: Счетчик ВАТТ-часов активной энергии переменного тока статистический ПСЧ-3ТА.07 | G10: ЭЦВ 6-10-140 | H10: 10 | I10: 3387.5 | J10: 0.953 | K10: ЭЦВ 6-16-110 | L10: 15 | M10: 8760 | N10: 0.95
A11: 4 | B11: Артезианская скважина №7853 | C11: ул.Степная ст-ца Новоивановская | D11: 1 | E11: нет | F11: Счетчик ВАТТ-часов активной энергии переменного тока статистический ПСЧ-3ТА.07 | G11: ЭЦВ 6-10-140 | H11: 10 | I11: 5004.8 | J11: 0.937 | K11: ЭЦВ 6-16-110 | L11: 15 | M11: 8760 | N11: 0.95
A12: 5 | B12: Артезианская скважина №7047 | C12: ул.Степная ст-ца Новоивановская | D12: 1 | E12: нет | F12: Счетчик электрический трехфазный индукционный САЗ-И677 | G12: ЭЦВ 6-10-140 | H12: 10 | I12: 2648.9 | J12: 0.943 | K12: ЭЦВ 6-16-110 | L12: 15 | M12: 8760 | N12: 0.95
A13: 6 | B13: Артезианская скважина №5607 | C13: ул.Полевая ст-ца Новоивановская | D13: 1 | E13: нет | F13: Счетчик электрический трехфазный ЦЭ6803ВШ | G13: ЭЦВ 8-25-100 | H13: 25 | I13: 3078.2 | J13: 0.957 | K13: ЭЦВ 6-16-110 | L13: 12 | M13: 8760 | N13: 0.95
B15: Насосные станции 2-ого подъема
A16: 1
A17: 2
B19: Насосные станции 3-ого подъема
A20: 1
A21: 2
B23: Насосные станции 4-ого подъема
A24: 1
A25: 2
B27: Насосные станции 5-ого подъема
A28: 1
A29: 2
B31: Водонапорные башни
A32: 1 | B32: Водонапорная башня | C32: ул.Северная ст-ца Плоская
A33: 2 | B33: Водонапорная башня | C33: ул.Красная ст-ца Плоская
A34: 3 | B34: Водонапорная башня | C34: ул.Бударова ст-ца Плоская
A35: 4 | B35: Водонапорная башня | C35: ул.Степная ст-ца Новоивановская
A36: 5 | B36: Водонапорная башня | C36: ул.Степная ст-ца Новоивановская
A37: 6 | B37: Водонапорная башня | C37: ул.Полевая ст-ца Новоивановская
B38: Водоразборные колонки (шт.)
A39: 1
A40: 2
B41: Водоочистные сооружения
A42: 1
A43: 2
B47: СЕТИ | C47: преобладающий материал труб | D47: период регулирования, год
D48: 2017 | E48: =D48+1 -> 2018 | F48: =E48+1 -> 2019 | G48: 2020 | H48: 2021 | I48: 2022 | J48: 2023
D49: факт организации | E49: план организации | F49: план организации | G49: план организации | H49: план организации | I49: план организации | J49: план организации
B50: Протяженность водопроводных сетей всего, м | D50: =SUM(D51:D65) -> 34000 | E50: 34000 | F50: 34000 | G50: 34000 | H50: 34000 | I50: 34000 | J50: 34000
B51: в том числе диаметром
B52: диаметр до 50 мм
B53: диаметр от 50 до 100 мм | C53: пластик | D53: 14520 | E53: 14720 | F53: 15020 | G53: 15220 | H53: 15220 | I53: 15220 | J53: 15220
B54: диаметр от 100 до 150 мм | C54: пластик | D54: 3716 | E54: 3716 | F54: 4216 | G54: 3916 | H54: 4116 | I54: 4116 | J54: 4116
B55: диаметр от 150 до 200 мм | C55: асбест | D55: 15764 | E55: 15564 | F55: 14764 | G55: 14864 | H55: 14664 | I55: 14664 | J55: 14664
B56: диаметр от 200 до 300 мм
B57: диаметр от 300 до 400 мм
B58: диаметр от 400 до 500 мм
B59: диаметр от 500 до 600 мм
B60: диаметр от 600 до 700 мм
B61: диаметр от 700 до 800 мм
B62: диаметр от 800 до 900 мм
B63: диаметр от 900 до 1000 мм
B64: диаметр от 1000 до 1200 мм
B65: диаметр свыше 1200 мм
B66: Протяженность водопроводных сетей, нуждающихся в замене всего, м | D66: =SUM(D67:D81) -> 18200 | E66: 18000 | F66: 17200 | G66: 17300 | H66: 17100 | I66: 16600 | J66: 16204
B67: в том числе диаметром
B68: диаметр до 50 мм
B69: диаметр от 50 до 100 мм | C69: сталь | D69: 820 | E69: 820 | F69: 820 | G69: 820 | H69: 820 | I69: 320 | J69: 0
B70: диаметр от 100 до 150 мм | C70: сталь | D70: 1616 | E70: 1616 | F70: 1616 | G70: 1616 | H70: 1616 | I70: 1616 | J70: 1540
B71: диаметр от 150 до 200 мм | C71: асбест | D71: 15764 | E71: 15564 | F71: 14764 | G71: 14864 | H71: 14664 | I71: 14664 | J71: 14664
B72: диаметр от 200 до 300 мм
B73: диаметр от 300 до 400 мм
B74: диаметр от 400 до 500 мм
B75: диаметр от 500 до 600 мм
B76: диаметр от 600 до 700 мм
B77: диаметр от 700 до 800 мм
B78: диаметр от 800 до 900 мм
B79: диаметр от 900 до 1000 мм
B80: диаметр от 1000 до 1200 мм
B81: диаметр свыше 1200 мм
B82: Удельный вес сетей, нуждающихся в замене, % | D82: =IF(D50=0,0,D66/D50*100) -> 53.52941176 | E82: 52.94117647 | F82: 50.58823529 | G82: 50.88235294 | H82: 50.29411765 | I82: 48.82352941 | J82: 47.65882353
A84: Руководитель организации _____________________________________
A86: Ответственный за составление формы ________________________________________________

Sheet Целевые показатели
A2: Целевые показатели
A4: № п/п | B4: Наименование показателей | C4: 2017 | F4: 2018 | I4: =2019&" год" -> 2019 год | J4: 2019 | K4: =2020&" год" -> 2020 год | L4: 2020 | M4: =2021& " год" -> 2021 год | N4: 2021 | O4: =2022& " год" -> 2022 год | P4: 2022 | Q4: =2023& " год" -> 2023 год | R4: 2023
C5: Утверждено | D5: Факт | E5: Факт РЭК | F5: Утверждено | G5: Ожидаемое значение | H5: Ожидаемое РЭК | J5: план РЭК | L5: план РЭК | N5: план РЭК | P5: план РЭК | R5: план РЭК
A6: 1 | B6: 2 | C6: 3 | D6: 4 | F6: 5 | G6: 6 | I6: 7 | K6: 8 | M6: 9 | O6: 10 | Q6: 11
A7: 1.1 | B7: Обеспечение объемов производства товаров (оказания услуг)
A8: 1.1.1 | B8: Объем производства товаров и услуг (куб. м) | C8: ='Смета расходов'!H128*1000 -> 207950 | D8: ='Смета расходов'!I128*1000 -> 212520 | E8: ='Смета расходов'!J128*1000 -> 0 | F8: ='Смета расходов'!L128*1000 -> 207950 | G8: ='Смета расходов'!M128*1000 -> 256620 | H8: ='Смета расходов'!N128*1000 -> 0 | I8: ='Смета расходов'!O128*1000 -> 186410 | J8: ='Смета расходов'!P128*1000 -> 0 | K8: ='Смета расходов'!R128*1000 -> 207950 | L8: ='Смета расходов'!S128*1000 -> 0 | M8: ='Смета расходов'!T128*1000 -> 207950 | N8: ='Смета расходов'!U128*1000 -> 0 | O8: ='Смета расходов'!V128*1000 -> 207950 | P8: ='Смета расходов'!W128*1000 -> 0 | Q8: ='Смета расходов'!X128*1000 -> 207950 | R8: ='Смета расходов'!Y128*1000 -> 0
A9: 1.1.2 | B9: Объем воды, отпущенной всем потребителям (куб.м) | C9: ='Смета расходов'!H135*1000 -> 137163.82 | D9: ='Смета расходов'!I135*1000 -> 65031.12 | E9: ='Смета расходов'!J135*1000 -> 0 | F9: ='Смета расходов'!L135*1000 -> 137163.82 | G9: ='Смета расходов'!M135*1000 -> 73639.6752 | H9: ='Смета расходов'!N135*1000 -> 0 | I9: ='Смета расходов'!O135*1000 -> 137160.478 | J9: ='Смета расходов'!P135*1000 -> 0 | K9: ='Смета расходов'!R135*1000 -> 137163.82 | L9: ='Смета расходов'!S135*1000 -> 0 | M9: ='Смета расходов'!T135*1000 -> 137163.82 | N9: ='Смета расходов'!U135*1000 -> 0 | O9: ='Смета расходов'!V135*1000 -> 137163.82 | P9: ='Смета расходов'!W135*1000 -> 0 | Q9: ='Смета расходов'!X135*1000 -> 137163.82 | R9: ='Смета расходов'!Y135*1000 -> 0
B10: в т.ч. - населению | C10: ='Смета расходов'!H136*1000 -> 115680 | D10: ='Смета расходов'!I136*1000 -> 54670 | E10: ='Смета расходов'!J136*1000 -> 0 | F10: ='Смета расходов'!L136*1000 -> 115680 | G10: ='Смета расходов'!M136*1000 -> 61560 | H10: ='Смета расходов'!N136*1000 -> 0 | I10: ='Смета расходов'!O136*1000 -> 115680 | J10: ='Смета расходов'!P136*1000 -> 0 | K10: ='Смета расходов'!R136*1000 -> 115680 | L10: ='Смета расходов'!S136*1000 -> 0 | M10: ='Смета расходов'!T136*1000 -> 115680 | N10: ='Смета расходов'!U136*1000 -> 0 | O10: ='Смета расходов'!V136*1000 -> 115680 | P10: ='Смета расходов'!W136*1000 -> 0 | Q10: ='Смета расходов'!X136*1000 -> 115680 | R10: ='Смета расходов'!Y136*1000 -> 0
B11: - бюджетным организациям | C11: ='Смета расходов'!H140*1000 -> 1530 | D11: ='Смета расходов'!I140*1000 -> 1800 | E11: ='Смета расходов'!J140*1000 -> 0 | F11: ='Смета расходов'!L140*1000 -> 1530 | G11: ='Смета расходов'!M140*1000 -> 2220 | H11: ='Смета расходов'!N140*1000 -> 0 | I11: ='Смета расходов'!O140*1000 -> 1530 | J11: ='Смета расходов'!P140*1000 -> 0 | K11: ='Смета расходов'!R140*1000 -> 1530 | L11: ='Смета расходов'!S140*1000 -> 0 | M11: ='Смета расходов'!T140*1000 -> 1530 | N11: ='Смета расходов'!U140*1000 -> 0 | O11: ='Смета расходов'!V140*1000 -> 1530 | P11: ='Смета расходов'!W140*1000 -> 0 | Q11: ='Смета расходов'!X140*1000 -> 1530 | R11: ='Смета расходов'!Y140*1000 -> 0
B12: - прочим потребителям | C12: =('Смета расходов'!H137+'Смета расходов'!H144)*1000 -> 19950 | D12: =('Смета расходов'!I137+'Смета расходов'!I144)*1000 -> 8561.12 | E12: =('Смета расходов'!J137+'Смета расходов'!J144)*1000 -> 0 | F12: =('Смета расходов'!L137+'Смета расходов'!L144)*1000 -> 19950 | G12: =('Смета расходов'!M137+'Смета расходов'!M144)*1000 -> 9859.6752 | H12: =('Смета расходов'!N137+'Смета расходов'!N144)*1000 -> 0 | I12: =('Смета расходов'!O137+'Смета расходов'!O144)*1000 -> 19950.478 | J12: =('Смета расходов'!P137+'Смета расходов'!P144)*1000 -> 0 | K12: =('Смета расходов'!R137+'Смета расходов'!R144)*1000 -> 19953.82 | L12: =('Смета расходов'!S137+'Смета расходов'!S144)*1000 -> 0 | M12: =('Смета расходов'!T137+'Смета расходов'!T144)*1000 -> 19953.82 | N12: =('Смета расходов'!U137+'Смета расходов'!U144)*1000 -> 0 | O12: =('Смета расходов'!V137+'Смета расходов'!V144)*1000 -> 19953.82 | P12: =('Смета расходов'!W137+'Смета расходов'!W144)*1000 -> 0 | Q12: =('Смета расходов'!X137+'Смета расходов'!X144)*1000 -> 19953.82 | R12: =('Смета расходов'!Y137+'Смета расходов'!Y144)*1000 -> 0
B13: Справочно: отпуск воды "технического качества", не прошедшей очистку (по всем группам потребителей)
A14: 1.1.3 | B14: Объем потерь (куб.м) | C14: ='Смета расходов'!H131*1000 -> 70786.18 | D14: ='Смета расходов'!I131*1000 -> 147488.88 | E14: ='Смета расходов'!J131*1000 -> 0 | F14: ='Смета расходов'!L131*1000 -> 70786.18 | G14: ='Смета расходов'!M131*1000 -> 182980.3248 | H14: ='Смета расходов'!N131*1000 -> 0 | I14: ='Смета расходов'!O131*1000 -> 49249.522 | J14: ='Смета расходов'!P131*1000 -> 0 | K14: ='Смета расходов'!R131*1000 -> 70786.18 | L14: ='Смета расходов'!S131*1000 -> 0 | M14: ='Смета расходов'!T131*1000 -> 70786.18 | N14: ='Смета расходов'!U131*1000 -> 0 | O14: ='Смета расходов'!V131*1000 -> 70786.18 | P14: ='Смета расходов'!W131*1000 -> 0 | Q14: ='Смета расходов'!X131*1000 -> 70786.18 | R14: ='Смета расходов'!Y131*1000 -> 0
B15: Объем отпуска в сеть (куб.м) | C15: ='Смета расходов'!H130*1000 -> 207950 | D15: ='Смета расходов'!I130*1000 -> 212520 | E15: ='Смета расходов'!J130*1000 -> 0 | F15: ='Смета расходов'!L130*1000 -> 207950 | G15: ='Смета расходов'!M130*1000 -> 256620 | H15: ='Смета расходов'!N130*1000 -> 0 | I15: ='Смета расходов'!O130*1000 -> 186410 | J15: ='Смета расходов'!P130*1000 -> 0 | K15: ='Смета расходов'!R130*1000 -> 207950 | L15: ='Смета расходов'!S130*1000 -> 0 | M15: ='Смета расходов'!T130*1000 -> 207950 | N15: ='Смета расходов'!U130*1000 -> 0 | O15: ='Смета расходов'!V130*1000 -> 207950 | P15: ='Смета расходов'!W130*1000 -> 0 | Q15: ='Смета расходов'!X130*1000 -> 207950 | R15: ='Смета расходов'!Y130*1000 -> 0
B16: Уровень потерь (%) | C16: =(IF(C15=0,0,C14/C15))*100 -> 34.04 | D16: 69.4 | E16: 0 | F16: 34.04 | G16: 71.304 | H16: 0 | I16: 26.42 | J16: 0 | K16: 34.04 | L16: 0 | M16: 34.04 | N16: 0 | O16: 34.04 | P16: 0 | Q16: 34.04 | R16: 0
B17: Справочно: расходы на собственные технологические нужды системы водоснабжения (куб. м)
B18: расходы воды на хозяйственно-бытовые нужды (куб.м)
A19: 1.1.4 | B19: Протяженность сетей (всех видов в однотрубном представлении), (км) | C19: 34 | D19: 34 | F19: 34 | G19: 34 | I19: 34 | K19: 34 | M19: 34 | O19: 34 | Q19: 34
B20: количество колодцев/автономных водоразборных колонок (для нецентрализованного водоснабжения)
B21: Коэффициент потерь (куб. м/км) | C21: =IF(C19=0,0,C14/C19) -> 2081.946471 | D21: 4337.908235 | E21: 0 | F21: 2081.946471 | G21: 5381.774259 | H21: 0 | I21: 1448.515353 | J21: 0 | K21: 2081.946471 | L21: =IF(L19=0,0,L14/L19) -> 0 | M21: 2081.946471 | N21: 0 | O21: 2081.946471 | P21: 0 | Q21: 2081.946471 | R21: 0
A22: 1.1.5 | B22: Удельное водопотребление (куб.м/чел) | C22: =IF(C23=0,0,C10/C23) -> 0 | D22: 0 | E22: 0 | F22: 0 | G22: 0 | H22: 0 | I22: 0 | J22: 0 | K22: 0 | L22: =IF(L23=0,0,L10/L23) -> 0 | M22: 0 | N22: 0 | O22: 0 | P22: 0 | Q22: 0 | R22: 0
B23: Численность населения, пользующихся услугами данной организации (чел.)
A24: 1.2 | B24: Качество производимых товаров (оказываемых услуг)
A25: 1.2.1 | B25: Наличие контроля качества товаров и услуг (%) | C25: =(IF((T25*(IF(C32=0,0,C27/C32)))+(T25*(IF(C33=0,0,C28/C33)))+(T25*(IF(C34=0,0,C29/C34)))+(T25*(IF(C35=0,0,C30/C35)))>100%,100%,(T25*(IF(C32=0,0,C27/C32)))+(T25*(IF(C33=0,0,C28/C33)))+(T25*(IF(C34=0,0,C29/C34)))+(T25*(IF(C35=0,0,C30/C35)))))*100 -> 0 | D25: =(IF((U25*(IF(D32=0,0,D27/D32)))+(U25*(IF(D33=0,0,D28/D33)))+(U25*(IF(D34=0,0,D29/D34)))+(U25*(IF(D35=0,0,D30/D35)))>100%,100%,(U25*(IF(D32=0,0,D27/D32)))+(U25*(IF(D33=0,0,D28/D33)))+(U25*(IF(D34=0,0,D29/D34)))+(U25*(IF(D35=0,0,D30/D35)))))*100 -> 100 | E25: 0 | F25: 0 | G25: 100 | H25: 0 | I25: 100 | J25: 0 | K25: 100 | L25: 0 | M25: 100 | N25: 0 | O25: 100 | P25: 0 | Q25: 100 | R25: 0 | T25: =IF(SUM(T27:T30)>0,1/SUM(T27:T30),0) -> 0 | U25: =IF(SUM(U27:U30)>0,1/SUM(U27:U30),0) -> 0.5 | V25: 0 | W25: 0 | X25: 0.5 | Y25: 0 | Z25: 0.5 | AA25: 0 | AB25: 0.5 | AC25: 0 | AD25: 0.5 | AE25: 0 | AF25: 0.5 | AG25: 0 | AH25: 0.5 | AI25: 0
B26: Фактическое количество произведенных анализов проб на системах коммунальной инфраструктуры водоснабжения (ед.), в том числе:
B27: -в местах водозабора (ед.) | D27: 5 | G27: 5 | I27: 5 | K27: 5 | M27: 5 | O27: 5 | Q27: 5 | T27: =IF(C27=0,0,1) -> 0 | U27: =IF(D27=0,0,1) -> 1 | V27: 0 | W27: 0 | X27: 1 | Y27: 0 | Z27: 1 | AA27: 0 | AB27: 1 | AC27: 0 | AD27: 1 | AE27: 0 | AF27: 1 | AG27: 0 | AH27: 1 | AI27: 0
B28: -перед поступлением в распределительную сеть (ед.) | D28: 36 | G28: 36 | I28: 36 | K28: 36 | M28: 36 | O28: 36 | Q28: 36 | T28: =IF(C28=0,0,1) -> 0 | U28: 1 | V28: 0 | W28: 0 | X28: 1 | Y28: 0 | Z28: 1 | AA28: 0 | AB28: 1 | AC28: 0 | AD28: 1 | AE28: 0 | AF28: 1 | AG28: 0 | AH28: 1 | AI28: 0
B29: -в точках водоразбора наружной сети (ед.) | T29: =IF(C29=0,0,1) -> 0 | U29: 0 | V29: 0 | W29: 0 | X29: 0 | Y29: 0 | Z29: 0 | AA29: 0 | AB29: 0 | AC29: 0 | AD29: 0 | AE29: 0 | AF29: 0 | AG29: 0 | AH29: 0 | AI29: 0
B30: -в точках водоразбора внутренней сети (ед.) | T30: =IF(C30=0,0,1) -> 0 | U30: 0 | V30: 0 | W30: 0 | X30: 0 | Y30: 0 | Z30: 0 | AA30: 0 | AB30: 0 | AC30: 0 | AD30: 0 | AE30: 0 | AF30: 0 | AG30: 0 | AH30: 0 | AI30: 0
B31: Нормативное количество произведенных анализов проб на системах коммунальной инфраструктуры водоснабжения (ед.), в том числе:
B32: -в местах водозабора (ед.) | D32: 5 | G32: 5 | I32: 5 | K32: 5 | M32: 5 | O32: 5 | Q32: 5
B33: -перед поступлением в распределительную сеть (ед.) | D33: 36 | G33: 36 | I33: 36 | K33: 36 | M33: 36 | O33: 36 | Q33: 36
B34: -в точках водоразбора наружной сети (ед.)
B35: -в точках водоразбора внутренней сети (ед.)
A36: 1.2.2 | B36: Соответствие качества товаров и услуг установленным требованиям (%) | C36: =(IF((T36*(IF(C27=0,0,C38/C27)))+(T36*(IF(C28=0,0,C39/C28)))+(T36*(IF(C29=0,0,C40/C29)))+(T36*(IF(C30=0,0,C41/C30)))>100%,100%,(T36*(IF(C27=0,0,C38/C27)))+(T36*(IF(C28=0,0,C39/C28)))+(T36*(IF(C29=0,0,C40/C29)))+(T36*(IF(C30=0,0,C41/C30)))))*100 -> 0 | D36: =(IF((U36*(IF(D27=0,0,D38/D27)))+(U36*(IF(D28=0,0,D39/D28)))+(U36*(IF(D29=0,0,D40/D29)))+(U36*(IF(D30=0,0,D41/D30)))>100%,100%,(U36*(IF(D27=0,0,D38/D27)))+(U36*(IF(D28=0,0,D39/D28)))+(U36*(IF(D29=0,0,D40/D29)))+(U36*(IF(D30=0,0,D41/D30)))))*100 -> 100 | E36: 0 | F36: 0 | G36: 100 | H36: 0 | I36: 100 | J36: 0 | K36: 100 | L36: 0 | M36: 100 | N36: 0 | O36: 100 | P36: 0 | Q36: 100 | R36: 0 | T36: =IF(SUM(T38:T41)>0,1/SUM(T38:T41),0) -> 0 | U36: =IF(SUM(U38:U41)>0,1/SUM(U38:U41),0) -> 0.5 | V36: 0 | W36: 0 | X36: 0.5 | Y36: 0 | Z36: 0.5 | AA36: 0 | AB36: 0.5 | AC36: 0 | AD36: 0.5 | AE36: 0 | AF36: 0.5 | AG36: 0 | AH36: 0.5 | AI36: 0
B37: Количество проб, соответствующих нормативам (ед.), в том числе:
B38: -в местах водозабора (ед.) | D38: 5 | G38: 5 | I38: 5 | K38: 5 | M38: 5 | O38: 5 | Q38: 5 | T38: =IF(C38=0,0,1) -> 0 | U38: =IF(D38=0,0,1) -> 1 | V38: 0 | W38: 0 | X38: 1 | Y38: 0 | Z38: 1 | AA38: 0 | AB38: 1 | AC38: 0 | AD38: 1 | AE38: 0 | AF38: 1 | AG38: 0 | AH38: 1 | AI38: 0
B39: -перед поступлением в распределительную сеть (ед.) | D39: 36 | G39: 36 | I39: 36 | K39: 36 | M39: 36 | O39: 36 | Q39: 36 | T39: =IF(C39=0,0,1) -> 0 | U39: 1 | V39: 0 | W39: 0 | X39: 1 | Y39: 0 | Z39: 1 | AA39: 0 | AB39: 1 | AC39: 0 | AD39: 1 | AE39: 0 | AF39: 1 | AG39: 0 | AH39: 1 | AI39: 0
B40: -в точках водоразбора наружной сети (ед.) | T40: =IF(C40=0,0,1) -> 0 | U40: 0 | V40: 0 | W40: 0 | X40: 0 | Y40: 0 | Z40: 0 | AA40: 0 | AB40: 0 | AC40: 0 | AD40: 0 | AE40: 0 | AF40: 0 | AG40: 0 | AH40: 0 | AI40: 0
B41: -в точках водоразбора внутренней сети (ед.) | T41: =IF(C41=0,0,1) -> 0 | U41: 0 | V41: 0 | W41: 0 | X41: 0 | Y41: 0 | Z41: 0 | AA41: 0 | AB41: 0 | AC41: 0 | AD41: 0 | AE41: 0 | AF41: 0 | AG41: 0 | AH41: 0 | AI41: 0
A42: 1.2.3 | B42: Перебои в снабжении потребителей (часов на потребителя) | C42: =IF(C23=0,0,(C43*C44)/C23) -> 0 | D42: 0 | E42: 0 | F42: 0 | G42: 0 | H42: 0 | I42: 0 | J42: 0 | K42: 0 | L42: 0 | M42: 0 | N42: 0 | O42: 0 | P42: 0 | Q42: 0 | R42: 0
B43: Продолжительность отключений потребителей от предоставления товаров/услуг (часов) | D43: 0
B44: Количество потребителей, страдающих от отключений (человек) | D44: 0
A45: 1.2.4 | B45: Продолжительность (бесперебойность) поставки товаров и услуг (час./день) | C45: =IF(C47=0,0,C46/C47) -> 0 | D45: 24 | E45: 0 | F45: 0 | G45: 24 | H45: 0 | I45: 24 | J45: 0 | K45: 24 | L45: 0 | M45: 24 | N45: 0 | O45: 24 | P45: 0 | Q45: 24 | R45: 0
B46: Количество часов предоставления услуг в отчетном периоде (часов) | D46: 8760 | G46: 8760 | I46: 8760 | K46: 8760 | M46: 8760 | O46: 8760 | Q46: 8760
B47: Количество дней предоставления услуг в отчетном периоде (день) | D47: 365 | G47: 365 | I47: 365 | K47: 365 | M47: 365 | O47: 365 | Q47: 365
B48: Годовая продолжительность работы водозаборов в отчетном периоде (часов)
B49: Годовая продолжительность работы системы очистки воды в отчетном периоде (часов)
B50: Годовая продолжительность работы системы транспортирования воды в отчетном периоде (часов)
A51: 1.3 | B51: Надежность снабжения потребителей товарами (услугами)
A52: 1.3.1 | B52: Аварийность систем коммунальной инфраструктуры (ед./км) | C52: =IF(C19=0,0,C53/C19) -> 0 | D52: =IF(D19=0,0,D53/D19) -> 0.08823529412 | E52: 0 | F52: 0 | G52: 0.08823529412 | H52: 0 | I52: 0.08823529412 | J52: 0 | K52: 0.08823529412 | L52: 0 | M52: 0.08823529412 | N52: 0 | O52: 0.08823529412 | P52: 0 | Q52: 0.08823529412 | R52: 0
B53: Количество аварий на системах коммунальной инфраструктуры (ед.) | D53: 3 | G53: 3 | I53: 3 | K53: 3 | M53: 3 | O53: 3 | Q53: 3
A54: 1.3.2 | B54: Износ систем коммунальной инфраструктуры (%), в том числе: | C54: =IF(SUM(T55:T57)=0,0,AVERAGE((T55:T57))) -> 0 | D54: =IF(SUM(U55:U57)=0,0,AVERAGE((U55:U57))) -> 0 | E54: 0 | F54: 0 | G54: 0 | H54: 0 | I54: 0 | J54: 0 | K54: 0 | L54: 0 | M54: 0 | N54: 0 | O54: 0 | P54: 0 | Q54: 0 | R54: 0
B55: -оборудование водозаборов | C55: =(IF((C67+C63)=0,0,C59/(C67+C63)))*100 -> 0 | D55: =(IF((D67+D63)=0,0,D59/(D67+D63)))*100 -> 0 | E55: 0 | F55: 0 | G55: 0 | H55: 0 | I55: 0 | J55: 0 | K55: 0 | L55: 0 | M55: 0 | N55: 0 | O55: 0 | P55: 0 | Q55: 0 | R55: 0 | T55: =IF(C55>0,C55,"") ->  | U55: =IF(D55>0,D55,"") -> 
B56: -оборудование системы очистки воды | C56: =(IF((C68+C64)=0,0,C60/(C68+C64)))*100 -> 0 | D56: =(IF((D68+D64)=0,0,D60/(D68+D64)))*100 -> 0 | E56: 0 | F56: 0 | G56: 0 | H56: 0 | I56: 0 | J56: 0 | K56: 0 | L56: 0 | M56: 0 | N56: 0 | O56: 0 | P56: 0 | Q56: 0 | R56: 0 | T56: =IF(C56>0,C56,"") -> 
B57: -оборудование системы транспортирования воды | C57: =(IF((C69+C65)=0,0,C61/(C69+C65)))*100 -> 0 | D57: =(IF((D69+D65)=0,0,D61/(D69+D65)))*100 -> 0 | E57: 0 | F57: 0 | G57: 0 | H57: 0 | I57: 0 | J57: 0 | K57: 0 | L57: 0 | M57: 0 | N57: 0 | O57: 0 | P57: 0 | Q57: 0 | R57: 0 | T57: =IF(C57>0,C57,"") -> 
B58: Фактический срок службы оборудования (лет), в том числе:
B59: -оборудование водозаборов
B60: -оборудование системы очистки воды
B61: -оборудование системы транспортирования воды
B62: Нормативный срок службы оборудования (лет), в том числе:
B63: -оборудование водозаборов
B64: -оборудование системы очистки воды
B65: -оборудование системы транспортирования воды
B66: Возможный остаточный срок службы оборудования (лет), в том числе:
B67: -оборудование водозаборов
B68: -оборудование системы очистки воды
B69: -оборудование системы транспортирования воды
A70: 1.3.3 | B70: Удельный вес сетей, нуждающихся в замене (%) | C70: =(IF(C19=0,0,C71/C19))*100 -> 0 | D70: =(IF(D19=0,0,D71/D19))*100 -> 0 | E70: 0 | F70: 0 | G70: 0 | H70: 0 | I70: 0 | J70: 0 | K70: 0 | L70: 0 | M70: 0 | N70: 0 | O70: 0 | P70: 0 | Q70: 0 | R70: 0
B71: Протяженность сетей, нуждающихся в замене (км)
A72: 1.3.4 | B72: Уровень загрузки производственных мощностей (%) | C72: =IF(SUM(T73:T75)=0,0,AVERAGE((T73:T75))) -> 0 | D72: =IF(SUM(U73:U75)=0,0,AVERAGE((U73:U75))) -> 0 | E72: 0 | F72: 0 | G72: 0 | H72: 0 | I72: 0 | J72: 0 | K72: 0 | L72: 0 | M72: 0 | N72: 0 | O72: 0 | P72: 0 | Q72: 0 | R72: 0
B73: -оборудование водозаборов | C73: =(IF(C84=0,0,C77/C84))*100 -> 0 | D73: =(IF(D84=0,0,D77/D84))*100 -> 0 | E73: 0 | F73: 0 | G73: 0 | H73: 0 | I73: 0 | J73: 0 | K73: 0 | L73: 0 | M73: 0 | N73: 0 | O73: 0 | P73: 0 | Q73: 0 | R73: 0 | T73: =IF(C73>0,C73,"") ->  | U73: =IF(D73>0,D73,"") -> 
B74: -оборудование системы очистки воды | C74: =(IF(C85=0,0,C78/C85))*100 -> 0 | D74: =(IF(D85=0,0,D78/D85))*100 -> 0 | E74: 0 | F74: 0 | G74: 0 | H74: 0 | I74: 0 | J74: 0 | K74: 0 | L74: 0 | M74: 0 | N74: 0 | O74: 0 | P74: 0 | Q74: 0 | R74: 0 | T74: =IF(C74>0,C74,"") -> 
B75: -оборудование системы транспортирования воды | C75: =(IF(C86=0,0,C79/C86))*100 -> 0 | D75: =(IF(D86=0,0,D79/D86))*100 -> 0 | E75: 0 | F75: 0 | G75: 0 | H75: 0 | I75: 0 | J75: 0 | K75: 0 | L75: 0 | M75: 0 | N75: 0 | O75: 0 | P75: 0 | Q75: 0 | R75: 0 | T75: =IF(C75>0,C75,"") -> 
B76: Фактическая производительность оборудования (куб. м/ч)
B77: -оборудование водозаборов
B78: -оборудование системы очистки воды
B79: -оборудование системы транспортирования воды | C79: =SUM(C80:C82) -> 0 | D79: =SUM(D80:D82) -> 0 | E79: 0 | F79: 0 | G79: 0 | H79: 0 | I79: 0 | J79: 0 | K79: 0 | L79: 0 | M79: 0 | N79: 0 | O79: 0 | P79: 0 | Q79: 0 | R79: 0
B80: система 1
B81: система 2
B82: система 3
B83: Установленная производительность оборудования (куб. м/ч)
B84: -оборудование водозаборов
B85: -оборудование системы очистки воды
B86: -оборудование системы транспортирования воды | C86: =SUM(C87:C89) -> 0 | D86: =SUM(D87:D89) -> 0 | E86: 0 | F86: 0 | G86: 0 | H86: 0 | I86: 0 | J86: 0 | K86: 0 | L86: 0 | M86: 0 | N86: 0 | O86: 0 | P86: 0 | Q86: 0 | R86: 0
B87: система 1
B88: система 2
B89: система 3
A90: 1.4 | B90: Удельный расход электрической энергии (кВт/куб.м) | C90: ='Смета расходов'!H27 -> 0.9480644386 | D90: ='Смета расходов'!I27 -> 0.9484189723 | E90: ='Смета расходов'!J27 ->  | F90: ='Смета расходов'!L27 -> 0.9480644386 | G90: ='Смета расходов'!M27 -> 0.9484178942 | H90: ='Смета расходов'!N27 ->  | I90: ='Смета расходов'!O27 -> 0.6305026554 | J90: ='Смета расходов'!P27 ->  | K90: ='Смета расходов'!R27 -> 0.9580158692 | L90: ='Смета расходов'!S27 ->  | M90: ='Смета расходов'!T27 -> 0.9580158692 | N90: ='Смета расходов'!U27 ->  | O90: ='Смета расходов'!V27 -> 0.9580158692 | P90: ='Смета расходов'!W27 ->  | Q90: ='Смета расходов'!X27 -> 0.9580158692 | R90: ='Смета расходов'!Y27 -> 
A92: Руководитель организации _____________________________________
A94: Ответственный за составление формы ________________________________________________

Sheet Расчет тарифа методом индексаци
L1: Приложение 1
A2: Расчет тарифа методом индексации на питьевую воду | D2: МКУ "Новоивановское"
A4: № п/п | B4: Наименование | C4: Ед. изм. | D4: 2016 | F4: 2016 факт РЭК | G4: 2017 | I4: 2017 факт РЭК | J4: 2018 | L4: 2018 ожид РЭК | M4: 2019 | N4: 2019 план РЭК | O4: 2020 | P4: 2020 план РЭК | Q4: 2021 | R4: 2021 план РЭК | S4: 2022 | T4: 2022 план РЭК | U4: 2023 | V4: 2023 план РЭК
D5: утверждено | E5: факт | G5: утверждено | H5: факт | J5: утверждено | K5: ожид | M5: план | O5: план | Q5: план | S5: план | U5: план
A6: 1 | B6: 2 | C6: 3 | G6: 4 | H6: 5 | I6: 5* | J6: 6 | K6: 7 | L6: 7* | M6: 8 | N6: 8* | O6: 9 | P6: 9* | Q6: 10 | R6: 10*
A7: 1 | B7: Необходимая валовая выручка | C7: тыс. руб. | D7: =D8+D17+D18+D21 -> 2361.235 | E7: =E8+E17+E18+E21 -> 2052.69 | F7: =F8+F17+F18+F21 ->  | G7: =G8+G17+G18+G21 -> 2584.36639 | H7: 3093.054183 | J7: 2707.216348 | K7: 3990.618044 | M7: 2673.491359 | O7: 3514.021413 | Q7: 3579.87579 | S7: 3727.133221 | U7: 3880.59527
A8: 1.1 | B8: Текущие расходы | C8: тыс. руб. | D8: =D9+D13+D14 -> 2336.935 | E8: =E9+E13+E14 -> 2052.69 | F8: =F9+F13+F14 ->  | G8: =G9+G13+G14 -> 2560.06639 | H8: 3053.854183 | J8: 2707.216348 | K8: 3990.618044 | M8: =M9+M13+M14 -> 2673.491359 | O8: 3514.021413 | Q8: 3579.87579 | S8: 3727.133221 | U8: 3880.59527
A9: 1.1.1 | B9: Операционные расходы | C9: тыс. руб. | D9: ='Текущие расходы'!D6 -> 856.135 | E9: ='Текущие расходы'!E6 -> 508.72 | F9: ='Текущие расходы'!F6 ->  | G9: =D9*(1-G10)*(1+G11%)*(1+G12) -> 887.4096115 | H9: ='Текущие расходы'!I6 -> 1352.856183 | I9: ='Текущие расходы'!J6 ->  | J9: =G9*(1-J10)*(1+J11%)*(1+J12) -> 911.0413295 | K9: ='Текущие расходы'!M6 -> 1773.219044 | L9: ='Текущие расходы'!N6 ->  | M9: ='Текущие расходы'!O6 -> 1495.826359 | N9: ='Текущие расходы'!P6 ->  | O9: =M9*(1-O10)*(1+O11%)*(1+O12) -> 1555.659413 | Q9: 1617.88579 | S9: 1682.601221 | U9: 1749.90527
A10: 1.1.1.1 | B10: индекс эффективности расходов | G10: 0.01 | J10: 0.01 | M10: 0 | O10: 0 | P10: 0 | Q10: 0 | R10: 0 | S10: 0 | T10: 0 | U10: 0 | V10: 0
A11: 1.1.1.2 | B11: индекс потребительских цен | G11: 4.7 | J11: 3.7 | M11: 4 | O11: 4 | Q11: 4 | S11: 4 | U11: 4
A12: 1.1.1.3 | B12: индекс количества активов | G12: 0 | J12: 0 | M12: 0 | O12: 0 | P12: 0 | Q12: 0 | R12: 0 | S12: 0 | T12: 0 | U12: 0 | V12: 0
A13: 1.1.2 | B13: Расходы на электрическую энергию | C13: тыс. руб. | D13: ='Текущие расходы'!D7 -> 1425.85 | E13: ='Текущие расходы'!E7 -> 1543.97 | F13: ='Текущие расходы'!F7 ->  | G13: ='Текущие расходы'!H7 -> 1621.52 | H13: ='Текущие расходы'!I7 -> 1644.16 | I13: ='Текущие расходы'!J7 ->  | J13: ='Текущие расходы'!L7 -> 1737.49 | K13: ='Текущие расходы'!M7 -> 2135.21 | L13: ='Текущие расходы'!N7 ->  | M13: ='Текущие расходы'!O7 -> 1117.11 | N13: ='Текущие расходы'!P7 ->  | O13: ='Текущие расходы'!Q7 -> 1890.39 | P13: ='Текущие расходы'!R7 ->  | Q13: ='Текущие расходы'!S7 -> 1884.62 | R13: ='Текущие расходы'!T7 ->  | S13: ='Текущие расходы'!U7 -> 1956.33 | T13: ='Текущие расходы'!V7 ->  | U13: ='Текущие расходы'!W7 -> 2030.05 | V13: ='Текущие расходы'!X7 -> 
A14: 1.1.3 | B14: Неподконтрольные расходы, в том числе | C14: тыс. руб. | D14: ='Текущие расходы'!D8 -> 54.95 | E14: ='Текущие расходы'!E8 -> 0 | F14: ='Текущие расходы'!F8 ->  | G14: ='Текущие расходы'!H8 -> 51.13677892 | H14: ='Текущие расходы'!I8 -> 56.838 | I14: ='Текущие расходы'!J8 ->  | J14: ='Текущие расходы'!L8 -> 58.68501824 | K14: ='Текущие расходы'!M8 -> 82.189 | L14: ='Текущие расходы'!N8 ->  | M14: ='Текущие расходы'!O8 -> 60.555 | N14: ='Текущие расходы'!P8 ->  | O14: ='Текущие расходы'!Q8 -> 67.972 | P14: ='Текущие расходы'!R8 ->  | Q14: ='Текущие расходы'!S8 -> 77.37 | R14: ='Текущие расходы'!T8 ->  | S14: ='Текущие расходы'!U8 -> 88.202 | T14: ='Текущие расходы'!V8 ->  | U14: ='Текущие расходы'!W8 -> 100.64 | V14: ='Текущие расходы'!X8 -> 
A15: 1.1.3.1 | B15: возврат займов и кредитов | C15: тыс. руб. | D15: ='Текущие расходы'!D60 -> 0 | E15: ='Текущие расходы'!E60 -> 0 | F15: ='Текущие расходы'!F60 ->  | G15: ='Текущие расходы'!H60 -> 0 | H15: ='Текущие расходы'!I60 -> 0 | I15: ='Текущие расходы'!J60 ->  | J15: ='Текущие расходы'!L60 -> 0 | K15: ='Текущие расходы'!M60 -> 0 | L15: ='Текущие расходы'!N60 ->  | M15: ='Текущие расходы'!O60 -> 0 | N15: ='Текущие расходы'!P60 ->  | O15: ='Текущие расходы'!Q60 -> 0 | P15: ='Текущие расходы'!R60 ->  | Q15: ='Текущие расходы'!S60 -> 0 | R15: ='Текущие расходы'!T60 ->  | S15: ='Текущие расходы'!U60 -> 0 | T15: ='Текущие расходы'!V60 ->  | U15: ='Текущие расходы'!W60 -> 0 | V15: ='Текущие расходы'!X60 -> 
A16: 1.1.3.2 | B16: проценты по займам и кредитам | C16: тыс. руб. | D16: ='Текущие расходы'!D61 -> 0 | E16: ='Текущие расходы'!E61 -> 0 | F16: ='Текущие расходы'!F61 ->  | G16: ='Текущие расходы'!H61 -> 0 | H16: ='Текущие расходы'!I61 -> 0 | I16: ='Текущие расходы'!J61 ->  | J16: ='Текущие расходы'!L61 -> 0 | K16: ='Текущие расходы'!M61 -> 0 | L16: ='Текущие расходы'!N61 ->  | M16: ='Текущие расходы'!O61 -> 0 | N16: ='Текущие расходы'!P61 ->  | O16: ='Текущие расходы'!Q61 -> 0 | P16: ='Текущие расходы'!R61 ->  | Q16: ='Текущие расходы'!S61 -> 0 | R16: ='Текущие расходы'!T61 ->  | S16: ='Текущие расходы'!U61 -> 0 | T16: ='Текущие расходы'!V61 ->  | U16: ='Текущие расходы'!W61 -> 0 | V16: ='Текущие расходы'!X61 -> 
A17: 1.2 | B17: Амортизация | C17: тыс. руб. | D17: ='Смета расходов'!D86*'Текущие расходы'!$D$70 -> 24.3 | E17: ='Смета расходов'!E86*'Текущие расходы'!$E$70 -> 0 | F17: ='Смета расходов'!F86*'Текущие расходы'!$F$70 ->  | G17: ='Смета расходов'!H86*'Текущие расходы'!$H$70 -> 24.3 | H17: ='Смета расходов'!I86*'Текущие расходы'!$I$70 -> 39.2 | I17: ='Смета расходов'!J86*'Текущие расходы'!$I$70 -> 0 | J17: ='Смета расходов'!L86*'Текущие расходы'!$L$70 -> 0 | K17: ='Смета расходов'!M86*'Текущие расходы'!$M$70 -> 0 | L17: ='Смета расходов'!N86*'Текущие расходы'!$N$70 ->  | M17: ='Смета расходов'!O86*'Текущие расходы'!$O$70 -> 0 | N17: ='Смета расходов'!P86*'Текущие расходы'!$P$70 ->  | O17: ='Смета расходов'!R86*'Текущие расходы'!$Q$70 -> 0 | P17: ='Смета расходов'!S86*'Текущие расходы'!$R$70 ->  | Q17: ='Смета расходов'!T86*'Текущие расходы'!$S$70 -> 0 | R17: ='Смета расходов'!U86*'Текущие расходы'!$T$70 ->  | S17: ='Смета расходов'!V86*'Текущие расходы'!$U$70 -> 0 | T17: ='Смета расходов'!W86*'Текущие расходы'!$V$70 ->  | U17: ='Смета расходов'!X86*'Текущие расходы'!$W$70 -> 0 | V17: ='Смета расходов'!Y86*'Текущие расходы'!$X$70 -> 
A18: 1.3 | B18: Нормативная прибыль | C18: тыс. руб. | D18: =D19+D20 -> 0 | E18: =E19+E20 -> 0 | F18: =F19+F20 -> 0 | G18: =G19+G20 -> 0 | H18: =H19+H20 -> 0 | I18: 0 | J18: 0 | K18: 0 | L18: 0 | M18: 0 | N18: 0 | O18: 0 | P18: 0 | Q18: 0 | R18: 0 | S18: 0 | T18: 0 | U18: 0 | V18: 0
A19: 1.3.1 | B19: Капитальные расходы | C19: тыс. руб. | D19: ='Смета расходов'!D107 -> 0 | E19: ='Смета расходов'!E107 -> 0 | F19: ='Смета расходов'!F107 -> 0 | G19: ='Смета расходов'!H107 -> 0 | H19: ='Смета расходов'!I107 -> 0 | I19: ='Смета расходов'!J107 -> 0 | J19: ='Смета расходов'!L107 -> 0 | K19: ='Смета расходов'!M107 -> 0 | L19: ='Смета расходов'!N107 -> 0 | M19: ='Смета расходов'!O107 -> 0 | N19: ='Смета расходов'!P107 -> 0 | O19: ='Смета расходов'!R107 -> 0 | P19: ='Смета расходов'!S107 -> 0 | Q19: ='Смета расходов'!T107 -> 0 | R19: ='Смета расходов'!U107 -> 0 | S19: ='Смета расходов'!V107 -> 0 | T19: ='Смета расходов'!W107 -> 0 | U19: ='Смета расходов'!X107 -> 0 | V19: ='Смета расходов'!Y107 -> 0
A20: 1.3.2 | B20: Иные экономически обоснованные расходы на социальные нужды, в соответствии с пунктом 86 методических указаний | C20: тыс. руб. | D20: ='Смета расходов'!D108 -> 0 | E20: ='Смета расходов'!E108 -> 0 | F20: ='Смета расходов'!F108 -> 0 | G20: ='Смета расходов'!H108 -> 0 | H20: ='Смета расходов'!I108 -> 0 | I20: ='Смета расходов'!J108 -> 0 | J20: ='Смета расходов'!L108 -> 0 | K20: ='Смета расходов'!M108 -> 0 | L20: ='Смета расходов'!N108 -> 0 | M20: ='Смета расходов'!O108 -> 0 | N20: ='Смета расходов'!P108 -> 0 | O20: ='Смета расходов'!R108 -> 0 | P20: ='Смета расходов'!S108 -> 0 | Q20: ='Смета расходов'!T108 -> 0 | R20: ='Смета расходов'!U108 -> 0 | S20: ='Смета расходов'!V108 -> 0 | T20: ='Смета расходов'!W108 -> 0 | U20: ='Смета расходов'!X108 -> 0 | V20: ='Смета расходов'!Y108 -> 0
A21: 1.4 | B21: Расчетная предпринимательская прибыль гарантирующей организации | C21: тыс. руб. | D21: ='Смета расходов'!D109 -> 0 | E21: ='Смета расходов'!E109 -> 0 | F21: ='Смета расходов'!F109 -> 0 | G21: ='Смета расходов'!H109 -> 0 | H21: ='Смета расходов'!I109 -> 0 | I21: ='Смета расходов'!J109 -> 0 | J21: ='Смета расходов'!L109 -> 0 | K21: ='Смета расходов'!M109 -> 0 | L21: ='Смета расходов'!N109 -> 0 | M21: ='Смета расходов'!O109 -> 0 | N21: =Z21%*(N8-N15-N16+N17) ->  | O21: ='Смета расходов'!R109 -> 0 | P21: =Z21%*(P8-P15-P16+P17) ->  | Q21: ='Смета расходов'!T109 -> 0 | R21: =Z21%*(R8-R15-R16+R17) ->  | S21: ='Смета расходов'!V109 -> 0 | T21: =Z21%*(T8-T15-T16+T17) ->  | U21: ='Смета расходов'!X109 -> 0 | V21: =Z21%*(V8-V15-V16+V17) ->  | Y21: процент прибыли ГО, %
A22: 2 | B22: Корректировка НВВ | C22: тыс. руб. | D22: =D23+D24+D25+D26+D27+D28+D29+D33+D34+D35-D36 -> 0 | E22: =E23+E24+E25+E26+E27+E28+E29+E33+E34+E35-E36 -> 0 | F22: =F23+F24+F25+F26+F27+F28+F29+F33+F34+F35-F36 -> 0 | G22: =G23+G24+G25+G26+G27+G28+G29+G33+G34+G35-G36 -> 0 | H22: 0 | I22: 0 | J22: -281.724 | K22: 0 | L22: 0 | M22: =M23+M24+M25+M26+M27+M28+M29+M33+M34+M35-M36 -> 0 | N22: 0 | O22: 0 | P22: 0 | Q22: 0 | R22: 0 | S22: 0 | T22: 0 | U22: 0 | V22: 0
A23: 2.1 | B23: Отклонение фактически достигнутого объема поданной воды (выпадающие доходы за отчетные периоды регулирования, связанные с изменением объемов реализации)
A24: 2.2 | B24: Отклонение фактических значений индекса потребительских цен и других индексов, предусмотренных прогнозом социально-экономического развития РФ
A25: 2.3 | B25: Отклонение фактически достигнутого уровня неподконтрольных расходов | J25: -3.484
A26: 2.4 | B26: Ввод объектов системы водоснабжения в эксплуатацию и изменение утвержденной инвестиционной программы
A27: 2.5 | B27: Степень исполнения регулируемой организацией обязательств по созданию и (или) реконструкции объектов концессионного соглашения, по эксплуатации объектов по договору аренды централизованных систем холодного водоснабжения, отдельных объектов таких систем, находящихся в государственной или муниципальной собственности, по реализации инвестиционной программы, производственной программы при недостижении регулируемой организацией утвержденных плановых значений показателей надежности и качества объектов централизованных систем водоснабжения
A28: 2.6 | B28: Изменение доходности долгосрочных государственных обязательств
A29: 2.7 | B29: Экономически обоснованные расходы, не учтенные органом регулирования тарифов при установлении тарифов на ее товары (работы, услуги) в прошлом периоде | C29: тыс. руб. | D29: =SUM(D30:D32) -> 0 | E29: =SUM(E30:E32) -> 0 | F29: =SUM(F30:F32) -> 0 | G29: =SUM(G30:G32) -> 0 | H29: =SUM(H30:H32) -> 0 | I29: 0 | J29: 0 | K29: 0 | L29: 0 | M29: 0 | N29: 0 | O29: 0 | P29: 0 | Q29: 0 | R29: 0 | S29: 0 | T29: 0 | U29: 0 | V29: 0
A30: 2.7.1 | B30: экономически обоснованные расходы, понесенные за отчетные периоды | C30: тыс. руб.
A31: 2.7.2 | B31: по результатам рассмотрения ФСТ | C31: тыс. руб.
A32: 2.7.3 | B32: по решению суда | C32: тыс. руб.
A33: 2.8 | B33: Недополученные доходы прошлых периодов регулирования | C33: тыс. руб.
A34: 2.9 | B34: Экономически не обоснованные доходы прошлых периодов регулирования, включая доходы, связанные с нарушениями законодательства РФ при установлении и применении регулируемых тарифов | C34: тыс. руб.
A35: 2.10 | B35: Расходы, связанные с приобретением регулируемой организацией товаров (работ, услуг), используемых при осуществлении регулируемых видов деятельности, по завышенным ценам и в завышенных объемах | C35: тыс. руб. | D35: ='Смета расходов'!D113 -> 0 | E35: ='Смета расходов'!E113 -> 0 | F35: ='Смета расходов'!F113 -> 0 | G35: ='Смета расходов'!H113 -> 0 | H35: ='Смета расходов'!I113 -> 0 | I35: ='Смета расходов'!J113 -> 0 | J35: ='Смета расходов'!L113 -> -278.24 | K35: ='Смета расходов'!M113 -> 0 | L35: ='Смета расходов'!N113 -> 0 | M35: ='Смета расходов'!O113 -> 0 | N35: ='Смета расходов'!P113 -> 0 | O35: 0 | Q35: 0 | S35: 0 | U35: 0
A36: 2.11 | B36: Субсидии из бюджета | C36: тыс. руб. | D36: ='Смета расходов'!D114 -> 0 | E36: ='Смета расходов'!E114 -> 0 | F36: ='Смета расходов'!F114 -> 0 | G36: ='Смета расходов'!H114 -> 0 | H36: ='Смета расходов'!I114 -> 0 | I36: ='Смета расходов'!J114 -> 0 | J36: ='Смета расходов'!L114 -> 0 | K36: ='Смета расходов'!M114 -> 0 | L36: ='Смета расходов'!N114 -> 0 | M36: ='Смета расходов'!O114 -> 0 | N36: ='Смета расходов'!P114 -> 0 | O36: ='Смета расходов'!R114 -> 0 | P36: ='Смета расходов'!S114 -> 0 | Q36: ='Смета расходов'!T114 -> 0 | R36: ='Смета расходов'!U114 -> 0 | S36: ='Смета расходов'!V114 -> 0 | T36: ='Смета расходов'!W114 -> 0 | U36: ='Смета расходов'!X114 -> 0 | V36: ='Смета расходов'!Y114 -> 0
A37: 3 | B37: Налог на прибыль | C37: тыс. руб. | D37: ='Смета расходов'!D111 -> 0 | G37: ='Смета расходов'!H111 -> 0 | J37: ='Смета расходов'!L111 -> 0 | M37: ='Смета расходов'!O111 -> 0 | N37: ='Смета расходов'!P111 -> 0 | O37: 0 | Q37: 0 | S37: 0 | U37: 0
A38: 4 | B38: Налог, уплачиваемый в связи с применением упрощенной системы налогообложения | C38: тыс. руб. | D38: ='Смета расходов'!D112 -> 0 | G38: ='Смета расходов'!H112 -> 0 | J38: ='Смета расходов'!L112 -> 0 | M38: ='Смета расходов'!O112 -> 0 | N38: ='Смета расходов'!P112 -> 0 | O38: 0 | Q38: 0 | S38: 0 | U38: 0
A39: 5 | B39: Итого НВВ | D39: =D7+D22+D37+D38 -> 2361.235 | E39: =E7+E22+E37+E38+'Смета расходов'!E110 -> 1152 | F39: =F7+F22+F37+F38+'Смета расходов'!F110 ->  | G39: 2584.36639 | H39: =H7+H22+H37+H38+'Смета расходов'!I110 -> 1169.4 | I39: =I7+I22+I37+I38+'Смета расходов'!J110 ->  | J39: 2425.492348 | K39: 3990.618044 | M39: 2673.491359 | N39: =N7+N22+N37+N38 ->  | O39: 3514.021413 | Q39: 3579.87579 | S39: 3727.133221 | U39: 3880.59527
A40: 6 | B40: ΔНВВ | G40: -127.7 | J40: 127.7
A41: 7 | B41: Итого НВВ для расчета тарифа | C41: тыс. руб. | D41: =D39+D40 -> 2361.235 | E41: 1152 | G41: 2456.66639 | H41: 1169.4 | J41: 2553.192348 | K41: 3990.618044 | M41: =M39+M40 -> 2673.491359 | O41: 3514.021413 | Q41: 3579.87579 | S41: 3727.133221 | U41: 3880.59527 | Z41: 2019 средний | AA41: с 01.01.19 | AB41: с 01.07.19 | AC41: 2020 средний | AD41: с 01.01.20 | AE41: с 01.07.20 | AF41: 2021 средний | AG41: с 01.01.21 | AH41: с 01.07.21 | AI41: 2022 средний | AJ41: с 01.01.22 | AK41: с 01.07.22 | AL41: 2023 средний | AM41: с 01.01.23 | AN41: с 01.07.23
A42: 8 | B42: Тариф на водоснабжение | C42: руб. /куб. м | D42: =D41/D45 -> 17.2147072 | E42: 17.21852359 | G42: 17.91045474 | H42: 17.98215993 | J42: 18.61418228 | K42: 54.19114131 | M42: =M41/M45 -> 19.49170343 | O42: 25.61915681 | Q42: 26.09927158 | S42: 27.17285959 | U42: 28.29168268 | Y42: Объем реализации | Z42: =N45 -> 0 | AA42: =Z42/2 -> 0 | AB42: =Z42-AA42 -> 0 | AC42: =P45 -> 0 | AD42: =AC42/2 -> 0 | AE42: =AC42-AD42 -> 0 | AF42: =R45 -> 0 | AG42: =AF42/2 -> 0 | AH42: =AF42-AG42 -> 0 | AI42: =T45 -> 0 | AJ42: =AI42/2 -> 0 | AK42: =AI42-AJ42 -> 0 | AL42: =V45 -> 0 | AM42: =AL42/2 -> 0 | AN42: =AL42-AM42 -> 0
B43: с 01.01.ХХ до 30.06.ХХ | C43: руб. /куб. м | N43: =AA44 -> 0 | P43: =AD44 ->  | R43: =AG44 ->  | T43: =AJ44 ->  | V43: =AM44 ->  | Y43: НВВ | Z43: =N41 ->  | AA43: =AA44*AA42 -> 0 | AB43: =Z43-AA43 ->  | AC43: =P41 ->  | AD43: =AD44*AD42 ->  | AE43: =AC43-AD43 ->  | AF43: =R41 ->  | AG43: =AG44*AG42 ->  | AH43: =AF43-AG43 ->  | AI43: =T41 ->  | AJ43: =AJ44*AJ42 ->  | AK43: =AI43-AJ43 ->  | AL43: =V41 ->  | AM43: =AM44*AM42 ->  | AN43: =AL43-AM43 -> 
B44: с 01.07.ХХ до 31.12.ХХ | C44: руб. /куб. м | N44: =AB44 ->  | P44: =AE44 ->  | R44: =AH44 ->  | T44: =AK44 ->  | V44: =AN44 ->  | Y44: тариф | Z44: =N42 ->  | AB44: =AB43/AB42 ->  | AC44: =P42 ->  | AD44: =IF(P42>N44,N44,P42) ->  | AE44: =AE43/AE42 ->  | AF44: =R42 ->  | AG44: =IF(R42>P44,P44,R42) ->  | AH44: =AH43/AH42 ->  | AI44: =T42 ->  | AJ44: =IF(T42>R44,R44,T42) ->  | AK44: =AK43/AK42 ->  | AL44: =V42 ->  | AM44: =IF(V42>T44,T44,V42) ->  | AN44: =AN43/AN42 -> 
A45: 9 | B45: Объем водоснабжения (реализация) | C45: тыс. куб. м. | D45: ='Смета расходов'!D135 -> 137.16382 | E45: ='Смета расходов'!E135 -> 66.904691 | F45: ='Смета расходов'!F135 -> 0 | G45: ='Смета расходов'!H135 -> 137.16382 | H45: ='Смета расходов'!I135 -> 65.03112 | I45: ='Смета расходов'!J135 -> 0 | J45: ='Смета расходов'!L135 -> 137.16382 | K45: ='Смета расходов'!M135 -> 73.6396752 | L45: ='Смета расходов'!N135 -> 0 | M45: ='Смета расходов'!O135 -> 137.160478 | N45: ='Смета расходов'!P135 -> 0 | O45: ='Смета расходов'!R135 -> 137.16382 | P45: ='Смета расходов'!S135 -> 0 | Q45: ='Смета расходов'!T135 -> 137.16382 | R45: ='Смета расходов'!U135 -> 0 | S45: ='Смета расходов'!V135 -> 137.16382 | T45: ='Смета расходов'!W135 -> 0 | U45: ='Смета расходов'!X135 -> 137.16382 | V45: ='Смета расходов'!Y135 -> 0 | Y45: тариф с НДС | AA45: =AA44*1.18 -> 0 | AB45: =AB44*1.18 ->  | AD45: =AD44*1.18 ->  | AE45: =AE44*1.18 ->  | AG45: =AG44*1.18 ->  | AH45: =AH44*1.18 ->  | AJ45: =AJ44*1.18 ->  | AK45: =AK44*1.18 ->  | AM45: =AM44*1.18 ->  | AN45: =AN44*1.18 -> 
A46: 10 | B46: Темп роста тарифа | C46: % | D46: =D44/D43*100 ->  | G46: =G44/D44*100 ->  | J46: =J44/G44*100 ->  | N46: =N44/J44*100 ->  | P46: =P44/N44*100 ->  | R46: =R44/P44*100 ->  | T46: =T44/R44*100 ->  | V46: =V44/T44*100 ->  | Y46: Рост,%
A48: Руководитель организации ____________________________________
A50: Ответственный за составление формы ______________________________________
B51: МП

Sheet Текущие расходы (hidden)
C1: Приложение В
A2: Составляющие текущих расходов
A4: № п/п | B4: Виды расходов | C4: ед. изм. | D4: утверждено на 2016 | E4: факт 2016 | F4: факт РЭК 2016 | G4: Отклонение | H4: утверждено на 2017 | I4: факт 2017 | J4: факт РЭК 2017 | K4: Отклонение | L4: утверждено на 2018 | M4: ожид | N4: ожид РЭК 2018 | O4: план ОКК на 2019 | P4: план РЭК на 2019 | Q4: план ОКК на 2020 | R4: план РЭК на 2020 | S4: план ОКК на 2021 | T4: план РЭК на 2021 | U4: план ОКК на 2022 | V4: план РЭК на 2022 | W4: план ОКК на 2023 | X4: план РЭК на 2023
A5: 1 | B5: Текущие расходы | C5: тыс. руб. | D5: =SUM(D6:D8) -> 2336.935 | E5: =SUM(E6:E8) -> 2052.69 | F5: =SUM(F6:F8) ->  | G5: =F5-D5 ->  | H5: =SUM(H6:H8) -> 2560.06639 | I5: =SUM(I6:I8) -> 3053.854183 | J5: =SUM(J6:J8) ->  | K5: =J5-H5 ->  | L5: =SUM(L6:L8) -> 2707.216348 | M5: =SUM(M6:M8) -> 3990.618044 | N5: =SUM(N6:N8) ->  | O5: =SUM(O6:O8) -> 2673.491359 | Q5: 3514.021413 | S5: 3579.87579 | U5: =SUM(U6:U8) -> 3727.133221 | V5: =SUM(V6:V8) ->  | W5: =SUM(W6:W8) -> 3880.59527 | X5: =SUM(X6:X8) -> 
A6: 1.1 | B6: Операционные расходы | C6: тыс. руб. | D6: =D15 -> 856.135 | E6: =E15 -> 508.72 | F6: =F15 ->  | G6: =F6-D6 ->  | H6: =H15 -> 887.4096115 | I6: =I15 -> 1352.856183 | J6: =J15 ->  | K6: =J6-H6 ->  | L6: =L15 -> 911.0413295 | M6: =M15 -> 1773.219044 | N6: =N15 ->  | O6: =O15 -> 1495.826359 | P6: =P15 ->  | Q6: ='Расчет тарифа методом индексаци'!O9 -> 1555.659413 | R6: ='Расчет тарифа методом индексаци'!P9 ->  | S6: ='Расчет тарифа методом индексаци'!Q9 -> 1617.88579 | T6: ='Расчет тарифа методом индексаци'!R9 ->  | U6: ='Расчет тарифа методом индексаци'!S9 -> 1682.601221 | V6: ='Расчет тарифа методом индексаци'!T9 ->  | W6: ='Расчет тарифа методом индексаци'!U9 -> 1749.90527 | X6: ='Расчет тарифа методом индексаци'!V9 -> 
A7: 1.2 | B7: Расходы на электрическую энергию | C7: тыс. руб. | D7: ='Смета расходов'!D26*'Текущие расходы'!$D$70 -> 1425.85 | E7: ='Смета расходов'!E26*'Текущие расходы'!$E$70 -> 1543.97 | F7: ='Смета расходов'!F26*'Текущие расходы'!$F$70 ->  | G7: =F7-D7 ->  | H7: ='Смета расходов'!H26*'Текущие расходы'!$H$70 -> 1621.52 | I7: ='Смета расходов'!I26*'Текущие расходы'!$I$70 -> 1644.16 | J7: ='Смета расходов'!J26*'Текущие расходы'!$J$70 ->  | K7: =J7-H7 ->  | L7: ='Смета расходов'!L26*'Текущие расходы'!$L$70 -> 1737.49 | M7: ='Смета расходов'!M26*'Текущие расходы'!$M$70 -> 2135.21 | N7: ='Смета расходов'!N26*'Текущие расходы'!$N$70 ->  | O7: ='Смета расходов'!O26*'Текущие расходы'!$O$70 -> 1117.11 | P7: ='Смета расходов'!P26*'Текущие расходы'!$P$70 ->  | Q7: ='Смета расходов'!R26*'Текущие расходы'!$Q$70 -> 1890.39 | R7: ='Смета расходов'!S26*'Текущие расходы'!$R$70 ->  | S7: ='Смета расходов'!T26*'Текущие расходы'!$S$70 -> 1884.62 | T7: ='Смета расходов'!U26*'Текущие расходы'!$T$70 ->  | U7: ='Смета расходов'!V26*'Текущие расходы'!$S$70 -> 1956.33 | V7: ='Смета расходов'!W26*'Текущие расходы'!$T$70 ->  | W7: ='Смета расходов'!X26*'Текущие расходы'!$S$70 -> 2030.05 | X7: ='Смета расходов'!Y26*'Текущие расходы'!$T$70 -> 
A8: 1.3 | B8: Неподконтрольные расходы | C8: тыс. руб. | D8: =D39 -> 54.95 | E8: =E39 -> 0 | F8: =F39 ->  | G8: =F8-D8 ->  | H8: =H39 -> 51.13677892 | I8: =I39 -> 56.838 | J8: =J39 ->  | K8: =J8-H8 ->  | L8: =L39 -> 58.68501824 | M8: =M39 -> 82.189 | N8: =N39 ->  | O8: =O39 -> 60.555 | Q8: 67.972 | S8: 77.37 | U8: =U39 -> 88.202 | V8: =V39 ->  | W8: =W39 -> 100.64 | X8: =X39 -> 
A10: 1.1 Базовый уровень операционных расходов
A12: № п/п | B12: Наименование | C12: Ед. изм. | D12: 2016 | F12: 2016 факт РЭК | G12: Отклонение | H12: 2017 | J12: 2017 факт РЭК | K12: Отклонение | L12: 2018 | N12: 2018 ожид РЭК | O12: 2019 | P12: 2019 план РЭК
D13: утверждено | E13: факт | H13: утверждено | I13: факт | L13: утверждено | M13: ожид | O13: план
A14: 1 | B14: 2 | C14: 3 | H14: 4 | I14: 5 | J14: 5* | L14: 6 | M14: 7 | N14: 7* | O14: 8 | P14: 8*
B15: Операционные расходы | C15: тыс. руб. | D15: =D16+D31+D32 -> 856.135 | E15: =E16+E31+E32 -> 508.72 | F15: =F16+F31+F32 ->  | G15: =F15-D15 ->  | H15: =H16+H31+H32 -> 887.4096115 | I15: =I16+I31+I32 -> 1352.856183 | K15: =J15-H15 ->  | L15: 911.0413295 | M15: 1773.219044 | O15: 1495.826359
A16: 1 | B16: Производственные расходы | C16: тыс. руб. | D16: =SUM(D17:D19,D22:D23) -> 527.8 | E16: =SUM(E17:E19,E22:E23) -> 508.72 | F16: =SUM(F17:F19,F22:F23) ->  | G16: =F16-D16 ->  | H16: =SUM(H17:H19,H22:H23) -> 547.080534 | I16: 477.827171 | K16: =J16-H16 ->  | L16: 561.6492886 | M16: 678.11329 | O16: 676.5817397
A17: 1.1 | B17: Расходы на приобретение сырья и материалов и их хранение | C17: тыс. руб. | D17: ='Смета расходов'!D8*'Текущие расходы'!D70 -> 6.83 | E17: ='Смета расходов'!E8*'Текущие расходы'!E70 -> 13.87 | F17: ='Смета расходов'!F8*'Текущие расходы'!F70 ->  | H17: ='Смета расходов'!H8*'Текущие расходы'!$H$70 -> 7.0794999 | I17: ='Смета расходов'!I8*'Текущие расходы'!$I$70 -> 20.623725 | J17: ='Смета расходов'!J8*'Текущие расходы'!$J$70 ->  | L17: ='Смета расходов'!L8*'Текущие расходы'!$L$70 -> 7.268026982 | M17: ='Смета расходов'!M8*'Текущие расходы'!$M$70 -> 33.05145 | N17: ='Смета расходов'!N8*'Текущие расходы'!$N$70 ->  | O17: ='Смета расходов'!O8*'Текущие расходы'!$O$70 -> 22.1616 | P17: ='Смета расходов'!P8*'Текущие расходы'!$P$70 -> 
A18: 1.2 | B18: Расходы на оплату регулируемыми организациями выполняемых сторонними организациями работ и (или) услуг | C18: тыс. руб. | D18: ='Смета расходов'!D33*'Текущие расходы'!D70 -> 0 | E18: ='Смета расходов'!E33*'Текущие расходы'!E70 -> 0 | F18: ='Смета расходов'!F33*'Текущие расходы'!F70 ->  | H18: ='Смета расходов'!H33*'Текущие расходы'!$H$70 -> 0 | I18: ='Смета расходов'!I33*'Текущие расходы'!$I$70 -> 0 | J18: ='Смета расходов'!J33*'Текущие расходы'!$J$70 ->  | L18: ='Смета расходов'!L33*'Текущие расходы'!$L$70 -> 0 | M18: ='Смета расходов'!M33*'Текущие расходы'!$M$70 -> 0 | N18: ='Смета расходов'!N33*'Текущие расходы'!$N$70 ->  | O18: ='Смета расходов'!O33*'Текущие расходы'!$O$70 -> 0 | P18: ='Смета расходов'!P33*'Текущие расходы'!$P$70 -> 
A19: 1.3 | B19: Расходы на оплату труда и отчисления на социальные нужды основного производственного персонала, в том числе : | C19: тыс. руб. | D19: =D20+D21 -> 425.04 | E19: =E20+E21 -> 494.85 | F19: =F20+F21 ->  | H19: =H20+H21 -> 440.5667112 | I19: =I20+I21 -> 302.812446 | L19: 452.2990027 | M19: 562.06184 | O19: 544.3781397
A20: 1.3.1 | B20: расходы на оплату труда основного производственного персонала | C20: тыс. руб. | D20: ='Смета расходов'!D35*'Текущие расходы'!D70 -> 326.45 | E20: ='Смета расходов'!E35*'Текущие расходы'!E70 -> 380.08 | F20: ='Смета расходов'!F35*'Текущие расходы'!F70 ->  | H20: ='Смета расходов'!H35*'Текущие расходы'!$H$70 -> 338.3752185 | I20: ='Смета расходов'!I35*'Текущие расходы'!$I$70 -> 232.5748433 | J20: ='Смета расходов'!J35*'Текущие расходы'!$J$70 ->  | L20: ='Смета расходов'!L35*'Текущие расходы'!$L$70 -> 347.3861506 | M20: ='Смета расходов'!M35*'Текущие расходы'!$M$70 -> 434.36 | N20: ='Смета расходов'!N35*'Текущие расходы'!$N$70 ->  | O20: ='Смета расходов'!O35*'Текущие расходы'!$O$70 -> 418.1091703 | P20: ='Смета расходов'!P35*'Текущие расходы'!$P$70 -> 
A21: 1.3.2 | B21: налоги и сборы с ФОТ | C21: тыс. руб. | D21: ='Смета расходов'!D36*'Текущие расходы'!D70 -> 98.59 | E21: ='Смета расходов'!E36*'Текущие расходы'!E70 -> 114.77 | F21: ='Смета расходов'!F36*'Текущие расходы'!F70 ->  | H21: ='Смета расходов'!H36*'Текущие расходы'!$H$70 -> 102.1914927 | I21: ='Смета расходов'!I36*'Текущие расходы'!$I$70 -> 70.23760267 | J21: ='Смета расходов'!J36*'Текущие расходы'!$J$70 ->  | L21: ='Смета расходов'!L36*'Текущие расходы'!$L$70 -> 104.9128522 | M21: ='Смета расходов'!M36*'Текущие расходы'!$M$70 -> 127.70184 | N21: ='Смета расходов'!N36*'Текущие расходы'!$N$70 ->  | O21: ='Смета расходов'!O36*'Текущие расходы'!$O$70 -> 126.2689694 | P21: ='Смета расходов'!P36*'Текущие расходы'!$P$70 -> 
A22: 1.4 | B22: Общехозяйственные расходы | C22: тыс. руб. | D22: ='Смета расходов'!D39*'Текущие расходы'!D70 -> 0 | E22: ='Смета расходов'!E39*'Текущие расходы'!E70 -> 0 | F22: ='Смета расходов'!F39*'Текущие расходы'!F70 ->  | H22: ='Смета расходов'!H39*'Текущие расходы'!$H$70 -> 0 | I22: ='Смета расходов'!I39*'Текущие расходы'!$I$70 -> 0 | J22: ='Смета расходов'!J39*'Текущие расходы'!$J$70 ->  | L22: ='Смета расходов'!L39*'Текущие расходы'!$L$70 -> 0 | M22: ='Смета расходов'!M39*'Текущие расходы'!$M$70 -> 0 | N22: ='Смета расходов'!N39*'Текущие расходы'!$N$70 ->  | O22: ='Смета расходов'!O39*'Текущие расходы'!$O$70 -> 0 | P22: ='Смета расходов'!P39*'Текущие расходы'!$P$70 -> 
A23: 1.5 | B23: Прочие производственные расходы | C23: тыс. руб. | D23: =SUM(D24:D30) -> 95.93 | E23: =SUM(E24:E30) -> 0 | F23: =SUM(F24:F30) ->  | H23: =SUM(H24:H30) -> 99.4343229 | I23: =SUM(I24:I30) -> 154.391 | L23: 102.0822589 | M23: 83 | O23: 110.042
A24: 1.5.1 | B24: расходы на амортизацию автотранспорта | C24: тыс. руб. | D24: ='Смета расходов'!D45*'Текущие расходы'!$D$70 -> 0 | E24: ='Смета расходов'!E45*'Текущие расходы'!$E$70 -> 0 | F24: ='Смета расходов'!F45*'Текущие расходы'!$F$70 ->  | H24: ='Смета расходов'!H45*'Текущие расходы'!$H$70 -> 0 | I24: ='Смета расходов'!I45*'Текущие расходы'!$I$70 -> 0 | J24: ='Смета расходов'!J45*'Текущие расходы'!$J$70 ->  | L24: ='Смета расходов'!L45*'Текущие расходы'!$L$70 -> 0 | M24: ='Смета расходов'!M45*'Текущие расходы'!$M$70 -> 0 | N24: ='Смета расходов'!N45*'Текущие расходы'!$N$70 ->  | O24: ='Смета расходов'!O45*'Текущие расходы'!$O$70 -> 0 | P24: ='Смета расходов'!P45*'Текущие расходы'!$P$70 -> 
A25: 1.5.2 | B25: контроль качества воды | C25: тыс. руб. | D25: ='Смета расходов'!D46*'Текущие расходы'!$D$70 -> 78.71 | E25: ='Смета расходов'!E46*'Текущие расходы'!$E$70 -> 0 | F25: ='Смета расходов'!F46*'Текущие расходы'!$F$70 ->  | H25: ='Смета расходов'!H46*'Текущие расходы'!$H$70 -> 81.5852763 | I25: ='Смета расходов'!I46*'Текущие расходы'!$I$70 -> 85.44 | J25: ='Смета расходов'!J46*'Текущие расходы'!$J$70 ->  | L25: ='Смета расходов'!L46*'Текущие расходы'!$L$70 -> 83.75789221 | M25: ='Смета расходов'!M46*'Текущие расходы'!$M$70 -> 81.5 | N25: ='Смета расходов'!N46*'Текущие расходы'!$N$70 ->  | O25: ='Смета расходов'!O46*'Текущие расходы'!$O$70 -> 91.78 | P25: ='Смета расходов'!P46*'Текущие расходы'!$P$70 -> 
A26: 1.5.3 | B26: расходы на аварийно-диспетчерское обслуживание | C26: тыс. руб. | D26: ='Смета расходов'!D47*'Текущие расходы'!$D$70 -> 0 | E26: ='Смета расходов'!E47*'Текущие расходы'!$E$70 -> 0 | F26: ='Смета расходов'!F47*'Текущие расходы'!$F$70 ->  | H26: ='Смета расходов'!H47*'Текущие расходы'!$H$70 -> 0 | I26: ='Смета расходов'!I47*'Текущие расходы'!$I$70 -> 0 | J26: ='Смета расходов'!J47*'Текущие расходы'!$J$70 ->  | L26: ='Смета расходов'!L47*'Текущие расходы'!$L$70 -> 0 | M26: ='Смета расходов'!M47*'Текущие расходы'!$M$70 -> 0 | N26: ='Смета расходов'!N47*'Текущие расходы'!$N$70 ->  | O26: ='Смета расходов'!O47*'Текущие расходы'!$O$70 -> 0 | P26: ='Смета расходов'!P47*'Текущие расходы'!$P$70 -> 
A27: 1.5.4 | B27: расходы на приобретение (использование) вспомогательных материалов, запасных частей | C27: тыс. руб. | D27: ='Смета расходов'!D48*'Текущие расходы'!$D$70 -> 0 | E27: ='Смета расходов'!E48*'Текущие расходы'!$E$70 -> 0 | F27: ='Смета расходов'!F48*'Текущие расходы'!$F$70 ->  | H27: ='Смета расходов'!H48*'Текущие расходы'!$H$70 -> 0 | I27: ='Смета расходов'!I48*'Текущие расходы'!$I$70 -> 0 | J27: ='Смета расходов'!J48*'Текущие расходы'!$J$70 ->  | L27: ='Смета расходов'!L48*'Текущие расходы'!$L$70 -> 0 | M27: ='Смета расходов'!M48*'Текущие расходы'!$M$70 -> 0 | N27: ='Смета расходов'!N48*'Текущие расходы'!$N$70 ->  | O27: ='Смета расходов'!O48*'Текущие расходы'!$O$70 -> 0 | P27: ='Смета расходов'!P48*'Текущие расходы'!$P$70 -> 
A28: 1.5.5 | B28: расходы на эксплуатацию, техническое обслуживание и ремонт автотранспорта | C28: тыс. руб. | D28: ='Смета расходов'!D49*'Текущие расходы'!$D$70 -> 0 | E28: ='Смета расходов'!E49*'Текущие расходы'!$E$70 -> 0 | F28: ='Смета расходов'!F49*'Текущие расходы'!$F$70 ->  | H28: ='Смета расходов'!H49*'Текущие расходы'!$H$70 -> 0 | I28: ='Смета расходов'!I49*'Текущие расходы'!$I$70 -> 48.071 | J28: ='Смета расходов'!J49*'Текущие расходы'!$J$70 ->  | L28: ='Смета расходов'!L49*'Текущие расходы'!$L$70 -> 0 | M28: ='Смета расходов'!M49*'Текущие расходы'!$M$70 -> 1.5 | N28: ='Смета расходов'!N49*'Текущие расходы'!$N$70 ->  | O28: ='Смета расходов'!O49*'Текущие расходы'!$O$70 -> 0 | P28: ='Смета расходов'!P49*'Текущие расходы'!$P$70 -> 
A29: 1.5.6 | B29: расходы на охрану труда ОПП | C29: тыс. руб. | D29: ='Смета расходов'!D50*'Текущие расходы'!$D$70 -> 17.22 | E29: ='Смета расходов'!E50*'Текущие расходы'!$E$70 -> 0 | F29: ='Смета расходов'!F50*'Текущие расходы'!$F$70 ->  | H29: ='Смета расходов'!H50*'Текущие расходы'!$H$70 -> 17.8490466 | I29: ='Смета расходов'!I50*'Текущие расходы'!$I$70 -> 20.88 | J29: ='Смета расходов'!J50*'Текущие расходы'!$J$70 ->  | L29: ='Смета расходов'!L50*'Текущие расходы'!$L$70 -> 18.32436671 | M29: ='Смета расходов'!M50*'Текущие расходы'!$M$70 -> 0 | N29: ='Смета расходов'!N50*'Текущие расходы'!$N$70 ->  | O29: ='Смета расходов'!O50*'Текущие расходы'!$O$70 -> 18.262 | P29: ='Смета расходов'!P50*'Текущие расходы'!$P$70 -> 
A30: 1.5.7 | B30: расходы головной организации | C30: тыс. руб. | D30: ='Смета расходов'!D55*'Текущие расходы'!D70 -> 0 | E30: ='Смета расходов'!E55*'Текущие расходы'!E70 -> 0 | F30: ='Смета расходов'!F55*'Текущие расходы'!F70 ->  | H30: ='Смета расходов'!H54*'Текущие расходы'!$H$70 -> 0 | I30: ='Смета расходов'!I54*'Текущие расходы'!$I$70 -> 0 | J30: ='Смета расходов'!J54*'Текущие расходы'!$J$70 ->  | L30: ='Смета расходов'!L54*'Текущие расходы'!$L$70 -> 0 | M30: ='Смета расходов'!M54*'Текущие расходы'!$M$70 -> 0 | N30: ='Смета расходов'!N54*'Текущие расходы'!$N$70 ->  | O30: ='Смета расходов'!O54*'Текущие расходы'!$O$70 -> 0 | P30: ='Смета расходов'!P54*'Текущие расходы'!$P$70 -> 
A31: 2 | B31: Административные расходы | C31: тыс. руб. | D31: ='Смета расходов'!D66*'Текущие расходы'!D70 -> 220.84 | E31: ='Смета расходов'!E66*'Текущие расходы'!E70 -> 0 | F31: ='Смета расходов'!F66*'Текущие расходы'!F70 ->  | H31: ='Смета расходов'!H66*'Текущие расходы'!$H$70 -> 228.9072852 | I31: ='Смета расходов'!I66*'Текущие расходы'!$I$70 -> 652.0290124 | J31: ='Смета расходов'!J66*'Текущие расходы'!$J$70 ->  | L31: ='Смета расходов'!L66*'Текущие расходы'!$L$70 -> 235.0030862 | M31: ='Смета расходов'!M66*'Текущие расходы'!$M$70 -> 774.2257545 | N31: ='Смета расходов'!N66*'Текущие расходы'!$N$70 ->  | O31: ='Смета расходов'!O66*'Текущие расходы'!$O$70 -> 589.4446192 | P31: ='Смета расходов'!P66*'Текущие расходы'!$P$70 -> 
A32: 3 | B32: Ремонтные расходы | C32: тыс. руб. | D32: ='Смета расходов'!D56*'Текущие расходы'!D70 -> 107.495 | E32: ='Смета расходов'!E56*'Текущие расходы'!E70 -> 0 | F32: ='Смета расходов'!F56*'Текущие расходы'!F70 ->  | H32: ='Смета расходов'!H56*'Текущие расходы'!$H$70 -> 111.4217923 | I32: ='Смета расходов'!I56*'Текущие расходы'!$I$70 -> 223 | J32: ='Смета расходов'!J56*'Текущие расходы'!$J$70 ->  | L32: ='Смета расходов'!L56*'Текущие расходы'!$L$70 -> 114.3889547 | M32: ='Смета расходов'!M56*'Текущие расходы'!$M$70 -> 320.88 | N32: ='Смета расходов'!N56*'Текущие расходы'!$N$70 ->  | O32: ='Смета расходов'!O56*'Текущие расходы'!$O$70 -> 229.8 | P32: ='Смета расходов'!P56*'Текущие расходы'!$P$70 -> 
A34: 1.3 Неподконтрольные расходы
A36: № п/п | B36: Наименование | C36: Ед. изм. | D36: 2016 | F36: 2016 факт РЭК | G36: Отклонение | H36: 2017 | J36: 2017 факт РЭК | K36: Отклонение | L36: 2018 | N36: 2018 ожид РЭК | O36: 2019 | P36: 2019 план РЭК | Q36: 2020 | R36: 2020 план РЭК | S36: 2021 | T36: 2021 план РЭК | U36: 2022 | V36: 2022 план РЭК | W36: 2023 | X36: 2023 план РЭК
D37: утверждено | E37: факт | H37: утверждено | I37: факт | L37: утверждено | M37: ожид | O37: план | Q37: план | S37: план | U37: план | W37: план
A38: 1 | B38: 2 | C38: 3
B39: Неподконтрольные расходы | C39: тыс. руб. | D39: =D40+D46+D53+D54+D55+D57+D58+D59+D62 -> 54.95 | E39: =E40+E46+E53+E54+E55+E57+E58+E59+E62 -> 0 | G39: =F39-D39 ->  | H39: 51.13677892 | I39: 56.838 | K39: =J39-H39 ->  | L39: 58.68501824 | M39: 82.189 | O39: 60.555 | Q39: 67.972 | S39: 77.37 | U39: 88.202 | W39: 100.64
A40: 1 | B40: Расходы на оплату товаров (услуг, работ), приобретаемых у других организаций | C40: тыс. руб. | D40: =SUM(D41:D45) -> 0 | E40: =SUM(E41:E45) -> 0 | F40: =SUM(F41:F45) ->  | G40: =F40-D40 ->  | H40: =SUM(H41:H45) -> 0 | I40: 0 | K40: =J40-H40 ->  | L40: 0 | M40: 0 | O40: 0 | Q40: 0 | S40: 0 | U40: =SUM(U41:U45) -> 0 | V40: =SUM(V41:V45) ->  | W40: =SUM(W41:W45) -> 0 | X40: =SUM(X41:X45) -> 
A41: 1.1 | B41: Расходы на тепловую энергию | C41: тыс. руб. | D41: ='Смета расходов'!D29*'Текущие расходы'!D70 -> 0 | E41: ='Смета расходов'!E29*'Текущие расходы'!E70 -> 0 | F41: ='Смета расходов'!F29*'Текущие расходы'!F70 ->  | H41: ='Смета расходов'!H29*'Текущие расходы'!H70 -> 0 | I41: ='Смета расходов'!I29*'Текущие расходы'!I70 -> 0 | J41: ='Смета расходов'!J29*'Текущие расходы'!J70 ->  | L41: ='Смета расходов'!L29*'Текущие расходы'!L70 -> 0 | M41: ='Смета расходов'!M29*'Текущие расходы'!M70 -> 0 | N41: ='Смета расходов'!N29*'Текущие расходы'!N70 ->  | O41: ='Смета расходов'!O29*'Текущие расходы'!$O$70 -> 0 | P41: ='Смета расходов'!P29*'Текущие расходы'!$P$70 ->  | Q41: ='Смета расходов'!R29*'Текущие расходы'!$Q$70 -> 0 | R41: ='Смета расходов'!S29*'Текущие расходы'!$R$70 ->  | S41: ='Смета расходов'!T29*'Текущие расходы'!$S$70 -> 0 | T41: ='Смета расходов'!U29*'Текущие расходы'!$T$70 ->  | U41: ='Смета расходов'!V29*'Текущие расходы'!$U$70 -> 0 | V41: ='Смета расходов'!W29*'Текущие расходы'!$V$70 ->  | W41: ='Смета расходов'!X29*'Текущие расходы'!$W$70 -> 0 | X41: ='Смета расходов'!Y29*'Текущие расходы'!$X$70 -> 
A42: 1.2 | B42: Расходы на теплоноситель | C42: тыс. руб. | D42: ='Смета расходов'!D30*'Текущие расходы'!D70 -> 0 | E42: ='Смета расходов'!E30*'Текущие расходы'!E70 -> 0 | F42: ='Смета расходов'!F30*'Текущие расходы'!F70 ->  | H42: ='Смета расходов'!H30*'Текущие расходы'!H70 -> 0 | I42: ='Смета расходов'!I30*'Текущие расходы'!I70 -> 0 | J42: ='Смета расходов'!J30*'Текущие расходы'!J70 ->  | L42: ='Смета расходов'!L30*'Текущие расходы'!L70 -> 0 | M42: ='Смета расходов'!M30*'Текущие расходы'!M70 -> 0 | N42: ='Смета расходов'!N30*'Текущие расходы'!N70 ->  | O42: ='Смета расходов'!O30*'Текущие расходы'!$O$70 -> 0 | P42: ='Смета расходов'!P30*'Текущие расходы'!$P$70 ->  | Q42: ='Смета расходов'!R30*'Текущие расходы'!$Q$70 -> 0 | R42: ='Смета расходов'!S30*'Текущие расходы'!$R$70 ->  | S42: ='Смета расходов'!T30*'Текущие расходы'!$S$70 -> 0 | T42: ='Смета расходов'!U30*'Текущие расходы'!$T$70 ->  | U42: ='Смета расходов'!V30*'Текущие расходы'!$U$70 -> 0 | V42: ='Смета расходов'!W30*'Текущие расходы'!$V$70 ->  | W42: ='Смета расходов'!X30*'Текущие расходы'!$W$70 -> 0 | X42: ='Смета расходов'!Y30*'Текущие расходы'!$X$70 -> 
A43: 1.3 | B43: Расходы на топливо | C43: тыс. руб. | D43: ='Смета расходов'!D31*'Текущие расходы'!D70 -> 0 | E43: ='Смета расходов'!E31*'Текущие расходы'!E70 -> 0 | F43: ='Смета расходов'!F31*'Текущие расходы'!F70 ->  | H43: ='Смета расходов'!H31*'Текущие расходы'!H70 -> 0 | I43: ='Смета расходов'!I31*'Текущие расходы'!I70 -> 0 | J43: ='Смета расходов'!J31*'Текущие расходы'!J70 ->  | L43: ='Смета расходов'!L31*'Текущие расходы'!L70 -> 0 | M43: ='Смета расходов'!M31*'Текущие расходы'!M70 -> 0 | N43: ='Смета расходов'!N31*'Текущие расходы'!N70 ->  | O43: ='Смета расходов'!O31*'Текущие расходы'!$O$70 -> 0 | P43: ='Смета расходов'!P31*'Текущие расходы'!$P$70 ->  | Q43: ='Смета расходов'!R31*'Текущие расходы'!$Q$70 -> 0 | R43: ='Смета расходов'!S31*'Текущие расходы'!$R$70 ->  | S43: ='Смета расходов'!T31*'Текущие расходы'!$S$70 -> 0 | T43: ='Смета расходов'!U31*'Текущие расходы'!$T$70 ->  | U43: ='Смета расходов'!V31*'Текущие расходы'!$U$70 -> 0 | V43: ='Смета расходов'!W31*'Текущие расходы'!$V$70 ->  | W43: ='Смета расходов'!X31*'Текущие расходы'!$W$70 -> 0 | X43: ='Смета расходов'!Y31*'Текущие расходы'!$X$70 -> 
A44: 1.4 | B44: Расходы на покупку воды | C44: тыс. руб. | D44: ='Смета расходов'!D32*'Текущие расходы'!D70 -> 0 | E44: ='Смета расходов'!E32*'Текущие расходы'!E70 -> 0 | F44: ='Смета расходов'!F32*'Текущие расходы'!F70 ->  | H44: ='Смета расходов'!H32*'Текущие расходы'!H70 -> 0 | I44: ='Смета расходов'!I32*'Текущие расходы'!I70 -> 0 | J44: ='Смета расходов'!J32*'Текущие расходы'!J70 ->  | L44: ='Смета расходов'!L32*'Текущие расходы'!L70 -> 0 | M44: ='Смета расходов'!M32*'Текущие расходы'!M70 -> 0 | N44: ='Смета расходов'!N32*'Текущие расходы'!N70 ->  | O44: ='Смета расходов'!O32*'Текущие расходы'!$O$70 -> 0 | P44: ='Смета расходов'!P32*'Текущие расходы'!$P$70 ->  | Q44: ='Смета расходов'!R32*'Текущие расходы'!$Q$70 -> 0 | R44: ='Смета расходов'!S32*'Текущие расходы'!$R$70 ->  | S44: ='Смета расходов'!T32*'Текущие расходы'!$S$70 -> 0 | T44: ='Смета расходов'!U32*'Текущие расходы'!$T$70 ->  | U44: ='Смета расходов'!V32*'Текущие расходы'!$U$70 -> 0 | V44: ='Смета расходов'!W32*'Текущие расходы'!$V$70 ->  | W44: ='Смета расходов'!X32*'Текущие расходы'!$W$70 -> 0 | X44: ='Смета расходов'!Y32*'Текущие расходы'!$X$70 -> 
A45: 1.5 | B45: Расходы на транспортировку воды | C45: тыс. руб. | D45: ='Смета расходов'!D52*'Текущие расходы'!D70 -> 0 | E45: ='Смета расходов'!E52*'Текущие расходы'!E70 -> 0 | F45: ='Смета расходов'!F52*'Текущие расходы'!F70 ->  | H45: ='Смета расходов'!H52*'Текущие расходы'!H70 -> 0 | I45: ='Смета расходов'!I52*'Текущие расходы'!I70 -> 0 | J45: ='Смета расходов'!J52*'Текущие расходы'!J70 ->  | L45: ='Смета расходов'!L52*'Текущие расходы'!L70 -> 0 | M45: ='Смета расходов'!M52*'Текущие расходы'!M70 -> 0 | N45: ='Смета расходов'!N52*'Текущие расходы'!N70 ->  | O45: ='Смета расходов'!O52*'Текущие расходы'!$O$70 -> 0 | P45: ='Смета расходов'!P52*'Текущие расходы'!$P$70 ->  | Q45: ='Смета расходов'!R52*'Текущие расходы'!$Q$70 -> 0 | R45: ='Смета расходов'!S52*'Текущие расходы'!$R$70 ->  | S45: ='Смета расходов'!T52*'Текущие расходы'!$S$70 -> 0 | T45: ='Смета расходов'!U52*'Текущие расходы'!$T$70 ->  | U45: ='Смета расходов'!V52*'Текущие расходы'!$U$70 -> 0 | V45: ='Смета расходов'!W52*'Текущие расходы'!$V$70 ->  | W45: ='Смета расходов'!X52*'Текущие расходы'!$W$70 -> 0 | X45: ='Смета расходов'!Y52*'Текущие расходы'!$X$70 -> 
A46: 2 | B46: Налоги и сборы | C46: тыс. руб. | D46: =SUM(D47:D52) -> 54.95 | E46: =SUM(E47:E52) -> 0 | F46: =SUM(F47:F52) ->  | H46: =SUM(H47:H52) -> 51.13677892 | I46: 56.838 | L46: 58.68501824 | M46: 82.189 | O46: 60.555 | Q46: 67.972 | S46: 77.37 | U46: =SUM(U47:U52) -> 88.202 | V46: =SUM(V47:V52) ->  | W46: =SUM(W47:W52) -> 100.64 | X46: =SUM(X47:X52) -> 
A47: 2.1 | B47: Налог на имущество организаций | C47: тыс. руб. | D47: ='Смета расходов'!D94*'Текущие расходы'!D70 -> 10.53 | E47: ='Смета расходов'!E94*'Текущие расходы'!E70 -> 0 | F47: ='Смета расходов'!F94*'Текущие расходы'!F70 ->  | H47: ='Смета расходов'!H94*'Текущие расходы'!H70 -> 0 | I47: ='Смета расходов'!I94*'Текущие расходы'!I70 -> 25.27 | J47: ='Смета расходов'!J94*'Текущие расходы'!J70 ->  | L47: ='Смета расходов'!L94*'Текущие расходы'!L70 -> 0 | M47: ='Смета расходов'!M94*'Текущие расходы'!M70 -> 20.071 | N47: ='Смета расходов'!N94*'Текущие расходы'!N70 ->  | O47: ='Смета расходов'!O94*'Текущие расходы'!$O$70 -> 0 | P47: ='Смета расходов'!P94*'Текущие расходы'!$P$70 ->  | Q47: ='Смета расходов'!R94*'Текущие расходы'!$Q$70 -> 0 | R47: ='Смета расходов'!S94*'Текущие расходы'!$R$70 ->  | S47: ='Смета расходов'!T94*'Текущие расходы'!$S$70 -> 0 | T47: ='Смета расходов'!U94*'Текущие расходы'!$T$70 ->  | U47: ='Смета расходов'!V94*'Текущие расходы'!$U$70 -> 0 | V47: ='Смета расходов'!W94*'Текущие расходы'!$V$70 ->  | W47: ='Смета расходов'!X94*'Текущие расходы'!$W$70 -> 0 | X47: ='Смета расходов'!Y94*'Текущие расходы'!$X$70 -> 
A48: 2.2 | B48: Земельный налог и арендная плата за землю | C48: тыс. руб. | D48: ='Смета расходов'!D97*'Текущие расходы'!D70 -> 0 | E48: ='Смета расходов'!E97*'Текущие расходы'!E70 -> 0 | F48: ='Смета расходов'!F97*'Текущие расходы'!F70 ->  | H48: ='Смета расходов'!H97*'Текущие расходы'!H70 -> 0 | I48: ='Смета расходов'!I97*'Текущие расходы'!I70 -> 0 | J48: ='Смета расходов'!J97*'Текущие расходы'!J70 ->  | L48: ='Смета расходов'!L97*'Текущие расходы'!L70 -> 0 | M48: ='Смета расходов'!M97*'Текущие расходы'!M70 -> 0 | N48: ='Смета расходов'!N97*'Текущие расходы'!N70 ->  | O48: ='Смета расходов'!O97*'Текущие расходы'!$O$70 -> 0 | P48: ='Смета расходов'!P97*'Текущие расходы'!$P$70 ->  | Q48: ='Смета расходов'!R97*'Текущие расходы'!$Q$70 -> 0 | R48: ='Смета расходов'!S97*'Текущие расходы'!$R$70 ->  | S48: ='Смета расходов'!T97*'Текущие расходы'!$S$70 -> 0 | T48: ='Смета расходов'!U97*'Текущие расходы'!$T$70 ->  | U48: ='Смета расходов'!V97*'Текущие расходы'!$U$70 -> 0 | V48: ='Смета расходов'!W97*'Текущие расходы'!$V$70 ->  | W48: ='Смета расходов'!X97*'Текущие расходы'!$W$70 -> 0 | X48: ='Смета расходов'!Y97*'Текущие расходы'!$X$70 -> 
A49: 2.3 | B49: Водный налог и плата за пользование водным объектом | C49: тыс. руб. | D49: ='Смета расходов'!D96*'Текущие расходы'!D70 -> 44.42 | E49: ='Смета расходов'!E96*'Текущие расходы'!E70 -> 0 | F49: ='Смета расходов'!F96*'Текущие расходы'!F70 ->  | H49: ='Смета расходов'!H96*'Текущие расходы'!H70 -> 51.13677892 | I49: ='Смета расходов'!I96*'Текущие расходы'!I70 -> 26.288 | J49: ='Смета расходов'!J96*'Текущие расходы'!J70 ->  | L49: ='Смета расходов'!L96*'Текущие расходы'!L70 -> 58.68501824 | M49: ='Смета расходов'!M96*'Текущие расходы'!M70 -> 60.666 | N49: ='Смета расходов'!N96*'Текущие расходы'!N70 ->  | O49: ='Смета расходов'!O96*'Текущие расходы'!$O$70 -> 60.555 | P49: ='Смета расходов'!P96*'Текущие расходы'!$P$70 ->  | Q49: ='Смета расходов'!R96*'Текущие расходы'!$Q$70 -> 62.692 | R49: ='Смета расходов'!S96*'Текущие расходы'!$R$70 ->  | S49: ='Смета расходов'!T96*'Текущие расходы'!$S$70 -> 72.09 | T49: ='Смета расходов'!U96*'Текущие расходы'!$T$70 ->  | U49: ='Смета расходов'!V96*'Текущие расходы'!$U$70 -> 82.922 | V49: ='Смета расходов'!W96*'Текущие расходы'!$V$70 ->  | W49: ='Смета расходов'!X96*'Текущие расходы'!$W$70 -> 95.36 | X49: ='Смета расходов'!Y96*'Текущие расходы'!$X$70 -> 
A50: 2.4 | B50: Транспортный налог | C50: тыс. руб. | D50: ='Смета расходов'!D98*'Текущие расходы'!D70 -> 0 | E50: ='Смета расходов'!E98*'Текущие расходы'!E70 -> 0 | F50: ='Смета расходов'!F98*'Текущие расходы'!F70 ->  | H50: ='Смета расходов'!H98*'Текущие расходы'!H70 -> 0 | I50: ='Смета расходов'!I98*'Текущие расходы'!I70 -> 0 | J50: ='Смета расходов'!J98*'Текущие расходы'!J70 ->  | L50: ='Смета расходов'!L98*'Текущие расходы'!L70 -> 0 | M50: ='Смета расходов'!M98*'Текущие расходы'!M70 -> 0 | N50: ='Смета расходов'!N98*'Текущие расходы'!N70 ->  | O50: ='Смета расходов'!O98*'Текущие расходы'!$O$70 -> 0 | P50: ='Смета расходов'!P98*'Текущие расходы'!$P$70 ->  | Q50: ='Смета расходов'!R98*'Текущие расходы'!$Q$70 -> 0 | R50: ='Смета расходов'!S98*'Текущие расходы'!$R$70 ->  | S50: ='Смета расходов'!T98*'Текущие расходы'!$S$70 -> 0 | T50: ='Смета расходов'!U98*'Текущие расходы'!$T$70 ->  | U50: ='Смета расходов'!V98*'Текущие расходы'!$U$70 -> 0 | V50: ='Смета расходов'!W98*'Текущие расходы'!$V$70 ->  | W50: ='Смета расходов'!X98*'Текущие расходы'!$W$70 -> 0 | X50: ='Смета расходов'!Y98*'Текущие расходы'!$X$70 -> 
A51: 2.5 | B51: Плата за негативное воздействие на окружающую среду | C51: тыс. руб. | D51: ='Смета расходов'!D95*'Текущие расходы'!D70 -> 0 | E51: ='Смета расходов'!E95*'Текущие расходы'!E70 -> 0 | F51: ='Смета расходов'!F95*'Текущие расходы'!F70 ->  | H51: ='Смета расходов'!H95*'Текущие расходы'!H70 -> 0 | I51: ='Смета расходов'!I95*'Текущие расходы'!I70 -> 5.28 | J51: ='Смета расходов'!J95*'Текущие расходы'!J70 ->  | L51: ='Смета расходов'!L95*'Текущие расходы'!L70 -> 0 | M51: ='Смета расходов'!M95*'Текущие расходы'!M70 -> 1.452 | N51: ='Смета расходов'!N95*'Текущие расходы'!N70 ->  | O51: ='Смета расходов'!O95*'Текущие расходы'!$O$70 -> 0 | P51: ='Смета расходов'!P95*'Текущие расходы'!$P$70 ->  | Q51: ='Смета расходов'!R95*'Текущие расходы'!$Q$70 -> 5.28 | R51: ='Смета расходов'!S95*'Текущие расходы'!$R$70 ->  | S51: ='Смета расходов'!T95*'Текущие расходы'!$S$70 -> 5.28 | T51: ='Смета расходов'!U95*'Текущие расходы'!$T$70 ->  | U51: ='Смета расходов'!V95*'Текущие расходы'!$U$70 -> 5.28 | V51: ='Смета расходов'!W95*'Текущие расходы'!$V$70 ->  | W51: ='Смета расходов'!X95*'Текущие расходы'!$W$70 -> 5.28 | X51: ='Смета расходов'!Y95*'Текущие расходы'!$X$70 -> 
A52: 2.6 | B52: Прочие налоги и сборы | C52: тыс. руб. | D52: ='Смета расходов'!D99*'Текущие расходы'!D70 -> 0 | E52: ='Смета расходов'!E99*'Текущие расходы'!E70 -> 0 | F52: ='Смета расходов'!F99*'Текущие расходы'!F70 ->  | H52: ='Смета расходов'!H99*'Текущие расходы'!H70 -> 0 | I52: ='Смета расходов'!I99*'Текущие расходы'!I70 -> 0 | J52: ='Смета расходов'!J99*'Текущие расходы'!J70 ->  | L52: ='Смета расходов'!L99*'Текущие расходы'!L70 -> 0 | M52: ='Смета расходов'!M99*'Текущие расходы'!M70 -> 0 | N52: ='Смета расходов'!N99*'Текущие расходы'!N70 ->  | O52: ='Смета расходов'!O99*'Текущие расходы'!$O$70 -> 0 | P52: ='Смета расходов'!P99*'Текущие расходы'!$P$70 ->  | Q52: ='Смета расходов'!R99*'Текущие расходы'!$Q$70 -> 0 | R52: ='Смета расходов'!S99*'Текущие расходы'!$R$70 ->  | S52: ='Смета расходов'!T99*'Текущие расходы'!$S$70 -> 0 | T52: ='Смета расходов'!U99*'Текущие расходы'!$T$70 ->  | U52: ='Смета расходов'!V99*'Текущие расходы'!$U$70 -> 0 | V52: ='Смета расходов'!W99*'Текущие расходы'!$V$70 ->  | W52: ='Смета расходов'!X99*'Текущие расходы'!$W$70 -> 0 | X52: ='Смета расходов'!Y99*'Текущие расходы'!$X$70 -> 
A53: 3 | B53: Обязательное страхование объектов ВКХ | C53: тыс. руб. | D53: ='Смета расходов'!D51*'Текущие расходы'!D70 -> 0 | E53: ='Смета расходов'!E51*'Текущие расходы'!E70 -> 0 | F53: ='Смета расходов'!F51*'Текущие расходы'!F70 ->  | H53: ='Смета расходов'!H51*'Текущие расходы'!H70 -> 0 | I53: ='Смета расходов'!I51*'Текущие расходы'!I70 -> 0 | J53: ='Смета расходов'!J51*'Текущие расходы'!J70 ->  | L53: ='Смета расходов'!L51*'Текущие расходы'!L70 -> 0 | M53: ='Смета расходов'!M51*'Текущие расходы'!M70 -> 0 | N53: ='Смета расходов'!N51*'Текущие расходы'!N70 ->  | O53: ='Смета расходов'!O51*'Текущие расходы'!$O$70 -> 0 | P53: ='Смета расходов'!P51*'Текущие расходы'!$P$70 ->  | Q53: ='Смета расходов'!R51*'Текущие расходы'!$Q$70 -> 0 | R53: ='Смета расходов'!S51*'Текущие расходы'!$R$70 ->  | S53: ='Смета расходов'!T51*'Текущие расходы'!$S$70 -> 0 | T53: ='Смета расходов'!U51*'Текущие расходы'!$T$70 ->  | U53: ='Смета расходов'!V51*'Текущие расходы'!$U$70 -> 0 | V53: ='Смета расходов'!W51*'Текущие расходы'!$V$70 ->  | W53: ='Смета расходов'!X51*'Текущие расходы'!$W$70 -> 0 | X53: ='Смета расходов'!Y51*'Текущие расходы'!$X$70 -> 
A54: 4 | B54: Арендная и концессионная плата, лизинговые платежи | C54: тыс. руб. | D54: ='Смета расходов'!D88*'Текущие расходы'!D70 -> 0 | E54: ='Смета расходов'!E88*'Текущие расходы'!E70 -> 0 | F54: ='Смета расходов'!F88*'Текущие расходы'!F70 ->  | H54: ='Смета расходов'!H88*'Текущие расходы'!H70 -> 0 | I54: ='Смета расходов'!I88*'Текущие расходы'!I70 -> 0 | J54: ='Смета расходов'!J88*'Текущие расходы'!J70 ->  | L54: ='Смета расходов'!L88*'Текущие расходы'!L70 -> 0 | M54: ='Смета расходов'!M88*'Текущие расходы'!M70 -> 0 | N54: ='Смета расходов'!N88*'Текущие расходы'!N70 ->  | O54: ='Смета расходов'!O88*'Текущие расходы'!$O$70 -> 0 | P54: ='Смета расходов'!P88*'Текущие расходы'!$P$70 ->  | Q54: ='Смета расходов'!R88*'Текущие расходы'!$Q$70 -> 0 | R54: ='Смета расходов'!S88*'Текущие расходы'!$R$70 ->  | S54: ='Смета расходов'!T88*'Текущие расходы'!$S$70 -> 0 | T54: ='Смета расходов'!U88*'Текущие расходы'!$T$70 ->  | U54: ='Смета расходов'!V88*'Текущие расходы'!$U$70 -> 0 | V54: ='Смета расходов'!W88*'Текущие расходы'!$V$70 ->  | W54: ='Смета расходов'!X88*'Текущие расходы'!$W$70 -> 0 | X54: ='Смета расходов'!Y88*'Текущие расходы'!$X$70 -> 
A55: 5 | B55: Резерв по сомнительным долгам гарантирующей организации | C55: тыс. руб. | D55: =D56 -> 0 | E55: =E56 -> 0 | F55: =F56 ->  | H55: =H56 -> 0 | I55: 0 | L55: 0 | M55: 0 | O55: =O56 -> 0 | Q55: 0 | S55: 0 | U55: 0 | W55: 0
A56: 5.1 | B56: Сбытовые расходы гарантирующей организации | C56: тыс. руб. | D56: ='Смета расходов'!D85*'Текущие расходы'!D70 -> 0 | E56: ='Смета расходов'!E85*'Текущие расходы'!E70 -> 0 | F56: ='Смета расходов'!F85*'Текущие расходы'!F70 ->  | H56: ='Смета расходов'!H85*'Текущие расходы'!H70 -> 0 | I56: ='Смета расходов'!I85*'Текущие расходы'!I70 -> 0 | J56: ='Смета расходов'!J85*'Текущие расходы'!J70 ->  | L56: ='Смета расходов'!L85*'Текущие расходы'!L70 -> 0 | M56: ='Смета расходов'!M85*'Текущие расходы'!M70 -> 0 | N56: ='Смета расходов'!N85*'Текущие расходы'!N70 ->  | O56: ='Смета расходов'!O85*'Текущие расходы'!$O$70 -> 0 | P56: ='Смета расходов'!P85*'Текущие расходы'!$P$70 ->  | Q56: ='Смета расходов'!R85*'Текущие расходы'!$Q$70 -> 0 | R56: ='Смета расходов'!S85*'Текущие расходы'!$R$70 ->  | S56: ='Смета расходов'!T85*'Текущие расходы'!$S$70 -> 0 | T56: ='Смета расходов'!U85*'Текущие расходы'!$T$70 ->  | U56: ='Смета расходов'!V85*'Текущие расходы'!$U$70 -> 0 | V56: ='Смета расходов'!W85*'Текущие расходы'!$V$70 ->  | W56: ='Смета расходов'!X85*'Текущие расходы'!$W$70 -> 0 | X56: ='Смета расходов'!Y85*'Текущие расходы'!$X$70 -> 
A57: 6 | B57: Экономия расходов | C57: тыс. руб. | G57: 0 | K57: 0
A58: 7 | B58: Расходы на обслуживание бесхозяйных сетей | C58: тыс. руб. | D58: ='Смета расходов'!D53*'Текущие расходы'!D70 -> 0 | E58: ='Смета расходов'!E53*'Текущие расходы'!E70 -> 0 | F58: ='Смета расходов'!F53*'Текущие расходы'!F70 ->  | H58: ='Смета расходов'!H53*'Текущие расходы'!H70 -> 0 | I58: ='Смета расходов'!I53*'Текущие расходы'!I70 -> 0 | J58: ='Смета расходов'!J53*'Текущие расходы'!J70 ->  | L58: ='Смета расходов'!L53*'Текущие расходы'!L70 -> 0 | M58: ='Смета расходов'!M53*'Текущие расходы'!M70 -> 0 | N58: ='Смета расходов'!N53*'Текущие расходы'!N70 ->  | O58: ='Смета расходов'!O53*'Текущие расходы'!$O$70 -> 0 | P58: ='Смета расходов'!P53*'Текущие расходы'!$P$70 ->  | Q58: ='Смета расходов'!R53*'Текущие расходы'!$Q$70 -> 0 | R58: ='Смета расходов'!S53*'Текущие расходы'!$R$70 ->  | S58: ='Смета расходов'!T53*'Текущие расходы'!$S$70 -> 0 | T58: ='Смета расходов'!U53*'Текущие расходы'!$T$70 ->  | U58: ='Смета расходов'!V53*'Текущие расходы'!$U$70 -> 0 | V58: ='Смета расходов'!W53*'Текущие расходы'!$V$70 ->  | W58: ='Смета расходов'!X53*'Текущие расходы'!$W$70 -> 0 | X58: ='Смета расходов'!Y53*'Текущие расходы'!$X$70 -> 
A59: 8 | B59: Займы и кредиты (для метода индексации) | C59: тыс. руб. | D59: =D60+D61 -> 0 | E59: =E60+E61 -> 0 | F59: =F60+F61 ->  | H59: =H60+H61 -> 0 | I59: 0 | L59: 0 | M59: 0 | O59: =O60+O61 -> 0 | Q59: 0 | S59: 0 | U59: =U60+U61 -> 0 | V59: =V60+V61 ->  | W59: =W60+W61 -> 0 | X59: =X60+X61 -> 
A60: 8.1 | B60: Возврат займов и кредитов | C60: тыс. руб. | D60: ='Смета расходов'!D105*'Текущие расходы'!D70 -> 0 | E60: ='Смета расходов'!E105*'Текущие расходы'!E70 -> 0 | F60: ='Смета расходов'!F105*'Текущие расходы'!F70 ->  | H60: ='Смета расходов'!H105*'Текущие расходы'!H70 -> 0 | I60: ='Смета расходов'!I105*'Текущие расходы'!I70 -> 0 | J60: ='Смета расходов'!J105*'Текущие расходы'!J70 ->  | L60: ='Смета расходов'!L105*'Текущие расходы'!L70 -> 0 | M60: ='Смета расходов'!M105*'Текущие расходы'!M70 -> 0 | N60: ='Смета расходов'!N105*'Текущие расходы'!N70 ->  | O60: ='Смета расходов'!O105*'Текущие расходы'!$O$70 -> 0 | P60: ='Смета расходов'!P105*'Текущие расходы'!$P$70 ->  | Q60: ='Смета расходов'!R105*'Текущие расходы'!$Q$70 -> 0 | R60: ='Смета расходов'!S105*'Текущие расходы'!$R$70 ->  | S60: ='Смета расходов'!T105*'Текущие расходы'!$S$70 -> 0 | T60: ='Смета расходов'!U105*'Текущие расходы'!$T$70 ->  | U60: ='Смета расходов'!V105*'Текущие расходы'!$U$70 -> 0 | V60: ='Смета расходов'!W105*'Текущие расходы'!$V$70 ->  | W60: ='Смета расходов'!X105*'Текущие расходы'!$W$70 -> 0 | X60: ='Смета расходов'!Y105*'Текущие расходы'!$X$70 -> 
A61: 8.2 | B61: Проценты по займам и кредитам | C61: тыс. руб. | D61: ='Смета расходов'!D106*'Текущие расходы'!D70 -> 0 | E61: ='Смета расходов'!E106*'Текущие расходы'!E70 -> 0 | F61: ='Смета расходов'!F106*'Текущие расходы'!F70 ->  | H61: ='Смета расходов'!H106*'Текущие расходы'!H70 -> 0 | I61: ='Смета расходов'!I106*'Текущие расходы'!I70 -> 0 | J61: ='Смета расходов'!J106*'Текущие расходы'!J70 ->  | L61: ='Смета расходов'!L106*'Текущие расходы'!L70 -> 0 | M61: ='Смета расходов'!M106*'Текущие расходы'!M70 -> 0 | N61: ='Смета расходов'!N106*'Текущие расходы'!N70 ->  | O61: ='Смета расходов'!O106*'Текущие расходы'!$O$70 -> 0 | P61: ='Смета расходов'!P106*'Текущие расходы'!$P$70 ->  | Q61: ='Смета расходов'!R106*'Текущие расходы'!$Q$70 -> 0 | R61: ='Смета расходов'!S106*'Текущие расходы'!$R$70 ->  | S61: ='Смета расходов'!T106*'Текущие расходы'!$S$70 -> 0 | T61: ='Смета расходов'!U106*'Текущие расходы'!$T$70 ->  | U61: ='Смета расходов'!V106*'Текущие расходы'!$U$70 -> 0 | V61: ='Смета расходов'!W106*'Текущие расходы'!$V$70 ->  | W61: ='Смета расходов'!X106*'Текущие расходы'!$W$70 -> 0 | X61: ='Смета расходов'!Y106*'Текущие расходы'!$X$70 -> 
A62: 9 | B62: Расходы концессионера на осуществление государственного кадастрового учета и (или) государственной регистрации права собственности концедента | C62: тыс. руб. | D62: ='Смета расходов'!D54*'Текущие расходы'!D70 -> 0 | E62: ='Смета расходов'!E54*'Текущие расходы'!E70 -> 0 | F62: ='Смета расходов'!F54*'Текущие расходы'!F70 ->  | H62: ='Смета расходов'!H54*'Текущие расходы'!H70 -> 0 | I62: ='Смета расходов'!I54*'Текущие расходы'!I70 -> 0 | J62: ='Смета расходов'!J54*'Текущие расходы'!J70 ->  | L62: ='Смета расходов'!L54*'Текущие расходы'!L70 -> 0 | M62: ='Смета расходов'!M54*'Текущие расходы'!M70 -> 0 | N62: ='Смета расходов'!N54*'Текущие расходы'!N70 ->  | O62: ='Смета расходов'!O54*'Текущие расходы'!O70 -> 0 | P62: ='Смета расходов'!P54*'Текущие расходы'!P70 ->  | Q62: ='Смета расходов'!R54*'Текущие расходы'!Q70 -> 0 | R62: ='Смета расходов'!S54*'Текущие расходы'!R70 ->  | S62: ='Смета расходов'!T54*'Текущие расходы'!S70 -> 0 | T62: ='Смета расходов'!U54*'Текущие расходы'!T70 ->  | U62: ='Смета расходов'!V54*'Текущие расходы'!U70 -> 0 | V62: ='Смета расходов'!W54*'Текущие расходы'!V70 ->  | W62: ='Смета расходов'!X54*'Текущие расходы'!W70 -> 0 | X62: ='Смета расходов'!Y54*'Текущие расходы'!X70 -> 
D64: утверждено на 2016 | E64: факт 2016 | F64: факт РЭК 2016 | G64: Отклонение | H64: утверждено на 2017 | I64: факт 2017 | J64: факт РЭК 2017 | K64: Отклонение | L64: утверждено на 2018 | M64: ожид | N64: ожид РЭК 2018 | O64: план ОКК на 2019 | P64: план РЭК на 2019 | Q64: план ОКК на 2020 | R64: план РЭК на 2020 | S64: план ОКК на 2021 | T64: план РЭК на 2021 | U64: план ОКК на 2022 | V64: план РЭК на 2022 | W64: план ОКК на 2023 | X64: план РЭК на 2023
A65: полезный отпуск | D65: ='Смета расходов'!D133 -> 137.16382 | E65: ='Смета расходов'!E133 -> 66.904691 | F65: ='Смета расходов'!F133 -> 0 | G65: =F65-D65 -> -137.16382 | H65: ='Смета расходов'!H133 -> 137.16382 | I65: ='Смета расходов'!I133 -> 65.03112 | J65: ='Смета расходов'!J133 -> 0 | K65: =J65-H65 -> -137.16382 | L65: ='Смета расходов'!L133 -> 137.16382 | M65: ='Смета расходов'!M133 -> 73.6396752 | N65: ='Смета расходов'!N133 -> 0 | O65: ='Смета расходов'!O133 -> 137.160478 | P65: ='Смета расходов'!P133 -> 0 | Q65: ='Смета расходов'!R133 -> 137.16382 | R65: ='Смета расходов'!S133 -> 0 | S65: ='Смета расходов'!T133 -> 137.16382 | T65: ='Смета расходов'!U133 -> 0 | U65: ='Смета расходов'!V133 -> 137.16382 | V65: ='Смета расходов'!W133 -> 0 | W65: ='Смета расходов'!X133 -> 137.16382 | X65: ='Смета расходов'!Y133 -> 0
A66: внутрихозяйственный оборот | D66: ='Смета расходов'!D134 -> 0 | E66: ='Смета расходов'!E134 -> 0 | F66: ='Смета расходов'!F134 -> 0 | G66: =F66-D66 -> 0 | H66: ='Смета расходов'!H134 -> 0 | I66: ='Смета расходов'!I134 -> 0 | J66: ='Смета расходов'!J134 -> 0 | K66: =J66-H66 -> 0 | L66: ='Смета расходов'!L134 -> 0 | M66: ='Смета расходов'!M134 -> 0 | N66: ='Смета расходов'!N134 -> 0 | O66: ='Смета расходов'!O134 -> 0 | P66: ='Смета расходов'!P134 -> 0 | Q66: ='Смета расходов'!R134 -> 0 | R66: ='Смета расходов'!S134 -> 0 | S66: ='Смета расходов'!T134 -> 0 | T66: ='Смета расходов'!U134 -> 0 | U66: ='Смета расходов'!V134 -> 0 | V66: ='Смета расходов'!W134 -> 0 | W66: ='Смета расходов'!X134 -> 0 | X66: ='Смета расходов'!Y134 -> 0
A67: реализация | D67: ='Смета расходов'!D135 -> 137.16382 | E67: ='Смета расходов'!E135 -> 66.904691 | F67: ='Смета расходов'!F135 -> 0 | G67: =F67-D67 -> -137.16382 | H67: ='Смета расходов'!H135 -> 137.16382 | I67: ='Смета расходов'!I135 -> 65.03112 | J67: ='Смета расходов'!J135 -> 0 | K67: =J67-H67 -> -137.16382 | L67: ='Смета расходов'!L135 -> 137.16382 | M67: ='Смета расходов'!M135 -> 73.6396752 | N67: ='Смета расходов'!N135 -> 0 | O67: ='Смета расходов'!O135 -> 137.160478 | P67: ='Смета расходов'!P135 -> 0 | Q67: ='Смета расходов'!R135 -> 137.16382 | R67: ='Смета расходов'!S135 -> 0 | S67: ='Смета расходов'!T135 -> 137.16382 | T67: ='Смета расходов'!U135 -> 0 | U67: ='Смета расходов'!V135 -> 137.16382 | V67: ='Смета расходов'!W135 -> 0 | W67: ='Смета расходов'!X135 -> 137.16382 | X67: ='Смета расходов'!Y135 -> 0
D68: коэф. распр. | E68: коэф. распр. | F68: коэф. распр. | G68: коэф. распр. | H68: коэф. распр. | I68: коэф. распр. | J68: коэф. распр. | K68: коэф. распр. | L68: коэф. распр. | M68: коэф. распр. | N68: коэф. распр. | O68: коэф. распр. | P68: коэф. распр. | Q68: коэф. распр. | R68: коэф. распр. | S68: коэф. распр. | T68: коэф. распр. | U68: коэф. распр. | V68: коэф. распр. | W68: коэф. распр. | X68: коэф. распр.
A69: внутрихозяйственный оборот | D69: =D66/D65 -> 0 | E69: =E66/E65 -> 0 | F69: =F66/F65 ->  | G69: =F69-D69 ->  | H69: =H66/H65 -> 0 | I69: =I66/I65 -> 0 | J69: =J66/J65 ->  | K69: =J69-H69 ->  | L69: =L66/L65 -> 0 | M69: =M66/M65 -> 0 | N69: =N66/N65 ->  | O69: =O66/O65 -> 0 | Q69: 0 | S69: 0 | U69: =U66/U65 -> 0 | V69: =V66/V65 ->  | W69: =W66/W65 -> 0 | X69: =X66/X65 -> 
A70: реализация | D70: =D67/D65 -> 1 | E70: =E67/E65 -> 1 | F70: =F67/F65 ->  | G70: =F70-D70 ->  | H70: =H67/H65 -> 1 | I70: =I67/I65 -> 1 | J70: =J67/J65 ->  | K70: =J70-H70 ->  | L70: =L67/L65 -> 1 | M70: =M67/M65 -> 1 | N70: =N67/N65 ->  | O70: =O67/O65 -> 1 | Q70: 1 | S70: 1 | U70: =U67/U65 -> 1 | V70: =V67/V65 ->  | W70: =W67/W65 -> 1 | X70: =X67/X65 -> 
A72: Руководитель организации ____________________________________
A74: Ответственный за составление формы ______________________________________
B78: Водоснабжение (формула корректировки)
B79: расчет корректировки | D79: План 2017 | E79: факт ОКК 2017 | F79: По данным регулятора 2017 | G79: Отклонение
B80: Итого НВВ | C80: тыс. руб. | D80: =SUM(D81:D86) -> 2584.36639 | E80: =SUM(E81:E86) -> 3093.054183 | F80: =SUM(F81:F86) -> 
B81: Операционные | C81: тыс. руб. | D81: =H15 -> 887.4096115 | E81: =I15 -> 1352.856183 | F81: =J15 ->  | G81: =F81-D81 -> 
B82: Неподконтрольные | C82: тыс. руб. | D82: =H39 -> 51.13677892 | E82: =I39 -> 56.838 | F82: =J39 -> 
B83: Расходы на энергоресурсы | C83: тыс. руб. | D83: =H7 -> 1621.52 | E83: =I7 -> 1644.16 | F83: =J7 -> 
B84: Амортизация | C84: тыс. руб. | D84: ='Расчет тарифа методом индексаци'!G17 -> 24.3 | E84: ='Расчет тарифа методом индексаци'!H17 -> 39.2 | F84: ='Расчет тарифа методом индексаци'!I17 -> 0 | G84: -24.3
B85: Нормативная прибыль | C85: тыс. руб. | D85: ='Расчет тарифа методом индексаци'!G18 -> 0 | E85: ='Расчет тарифа методом индексаци'!H18 -> 0 | F85: =D85 -> 0 | G85: 0
B86: Предпринимательская прибыль | C86: тыс. руб. | D86: ='Расчет тарифа методом индексаци'!G21 -> 0 | E86: ='Расчет тарифа методом индексаци'!H21 -> 0 | F86: =D86 -> 0 | G86: 0 | I86: товарная выручка
B87: Полезный отпуск (реализация) | C87: тыс. куб.м | D87: ='Расчет тарифа методом индексаци'!G45 -> 137.16382 | E87: ='Расчет тарифа методом индексаци'!H45 -> 65.03112 | F87: ='Расчет тарифа методом индексаци'!I45 -> 0 | G87: -137.16382 | I87: по сред тарифу
B88: Товарная выручка | C88: тыс. руб. | D88: ='Расчет тарифа методом индексаци'!G41 -> 2456.66639 | E88: ='Смета расходов'!I115 -> 1169.4 | F88: ='Смета расходов'!J115 -> 0 | G88: -2456.66639 | I88: ='Расчет тарифа методом индексаци'!I45*'Расчет тарифа методом индексаци'!G42 -> 0 | K88: плановый
B89: разница НВВ по 2017 | C89: тыс. руб. | F89: =F80-F88 ->  | J89: инд на 2018
A90: в расчете НВВ 2019 | B90: разница НВВ с индексами на 2018 и на 2019 | F90: =F89*K89*K90 ->  | G90: разница цены | H90: корр ЭЭ тех отдел | J90: инд на 2019
B91: корр ЭЭ | D91: 0 | F91: ='Расчет тарифа методом индексаци'!N35 -> 0 | G91: =H91-F91 -> 0
B92: налог на прибыль/УСН (по 2017) | D92: ='Расчет тарифа методом индексаци'!G37+'Расчет тарифа методом индексаци'!G38 -> 0 | E92: ='Расчет тарифа методом индексаци'!H37+'Расчет тарифа методом индексаци'!H38 -> 0 | F92: ='Расчет тарифа методом индексаци'!I37+'Расчет тарифа методом индексаци'!I38 -> 0 | G92: =F92-D92 -> 0
B93: корректировка ПиИП | F93: ='Расчет тарифа методом индексаци'!N27 -> 0
B94: проверка НВВ | D94: =D80+D91+D92 -> 2584.36639
F95: =F90+F91+F92+F93 -> 
D97: план 2017 | F97: факт РЭК 2017 | G97: отклонение | H97: откл с план ИПЦ на 18 и на 19
A98: 2.1. | B98: Отклонение фактически достигнутого объема поданной воды (выпадающие доходы за отчетные периоды регулирования, связанные с изменением объемов реализации) | C98: тыс. руб. | D98: ='Расчет тарифа методом индексаци'!G45*'Расчет тарифа методом индексаци'!G42 -> 2456.66639 | E98: план-факт | F98: =J98*'Расчет тарифа методом индексаци'!G43+'Текущие расходы'!L98*'Расчет тарифа методом индексаци'!G44 -> 0 | G98: =D98-F98 -> 2456.66639 | H98: =G98*K89*K90 -> 0 | I98: объем реал-ции 1 полугодия, тыс. куб.м. | J98: =Реализация!X12 -> 0 | K98: объем реал-ции 2 полугодия, тыс. куб. м. | L98: =Реализация!X19 -> 0
A99: 2.2. | B99: Отклонение фактических значений индекса потребительских цен и других индексов, предусмотренных прогнозом социально-экономического развития РФ | C99: тыс. руб. | D99: ='Расчет тарифа методом индексаци'!G9 -> 887.4096115 | E99: факт-план | F99: =J99*'Расчет тарифа методом индексаци'!D9 -> 0 | G99: =F99-D99 -> -887.4096115 | H99: =G99*K89*K90 -> 0 | I99: факт ИПЦ на 2017 год
A100: 2.3. | B100: Отклонение фактически достигнутого уровня неподконтрольных расходов | C100: тыс. руб. | D100: =D82+D92 -> 51.13677892 | E100: факт-план | F100: =F82+F92 ->  | G100: =F100-D100 ->  | H100: =G100*K89*K90 -> 

Sheet Расчет тарифа методом ЭОТ (hidden)
G1: Приложение 4
A2: Расчет тарифа на услуги холодного водоснабжения методом экономически обоснованных расходов (затрат)
A4: № п/п | B4: Наименование | C4: Ед. изм. | D4: 2017 | F4: 2017 факт РЭК | G4: 2018 | I4: 2018 ожид РЭК | J4: 2019 | K4: 2019 план РЭК | L4: Отклонение
D5: план | E5: факт | G5: план | H5: ожид | J5: план
A6: 1 | B6: 2 | C6: 3 | D6: 4 | E6: 5 | F6: 5* | G6: 6 | H6: 7 | I6: 7* | J6: 8 | K6: 8* | L6: 8**
A7: 1 | B7: Необходимая валовая выручка | C7: тыс. руб. | D7: =SUM(D8:D16) -> 2584.36639 | E7: 1169.4 | G7: 2707.216348 | H7: 3990.618044 | J7: 2673.491359 | L7: =K7-J7 -> 
A8: 1.1 | B8: Производственные расходы | C8: тыс. руб. | D8: ='Смета расходов'!H7*'Смета расходов'!H145% -> 2168.600534 | E8: ='Смета расходов'!I7*'Смета расходов'!I145% -> 2121.987171 | F8: ='Смета расходов'!J7*'Смета расходов'!J145% ->  | G8: ='Смета расходов'!L7*'Смета расходов'!L145% -> 2299.139289 | H8: ='Смета расходов'!M7*'Смета расходов'!M145% -> 2813.32329 | I8: ='Смета расходов'!N7*'Смета расходов'!N145% ->  | J8: ='Смета расходов'!O7*'Смета расходов'!O145% -> 1793.69174 | K8: ='Смета расходов'!P7*'Смета расходов'!P145% ->  | L8: =K8-J8 -> 
A9: 1.2 | B9: Ремонтные расходы | C9: тыс. руб. | D9: ='Смета расходов'!H56*'Смета расходов'!H145% -> 111.4217923 | E9: ='Смета расходов'!I56*'Смета расходов'!I145% -> 223 | F9: ='Смета расходов'!J56*'Смета расходов'!J145% ->  | G9: ='Смета расходов'!L56*'Смета расходов'!L145% -> 114.3889547 | H9: ='Смета расходов'!M56*'Смета расходов'!M145% -> 320.88 | I9: ='Смета расходов'!N56*'Смета расходов'!N145% ->  | J9: ='Смета расходов'!O56*'Смета расходов'!O145% -> 229.8 | K9: ='Смета расходов'!P56*'Смета расходов'!P145% -> 
A10: 1.3 | B10: Административные расходы | C10: тыс. руб. | D10: ='Смета расходов'!H66*'Смета расходов'!H145% -> 228.9072852 | E10: ='Смета расходов'!I66*'Смета расходов'!I145% -> 652.0290124 | F10: ='Смета расходов'!J66*'Смета расходов'!J145% ->  | G10: ='Смета расходов'!L66*'Смета расходов'!L145% -> 235.0030862 | H10: ='Смета расходов'!M66*'Смета расходов'!M145% -> 774.2257545 | I10: ='Смета расходов'!N66*'Смета расходов'!N145% ->  | J10: ='Смета расходов'!O66*'Смета расходов'!O145% -> 589.4446192 | K10: ='Смета расходов'!P66*'Смета расходов'!P145% -> 
A11: 1.4 | B11: Сбытовые расходы | C11: тыс. руб. | D11: ='Смета расходов'!H84*'Смета расходов'!H145% -> 0 | E11: ='Смета расходов'!I84*'Смета расходов'!I145% -> 0 | F11: ='Смета расходов'!J84*'Смета расходов'!J145% ->  | G11: ='Смета расходов'!L84*'Смета расходов'!L145% -> 0 | H11: ='Смета расходов'!M84*'Смета расходов'!M145% -> 0 | I11: ='Смета расходов'!N84*'Смета расходов'!N145% ->  | J11: ='Смета расходов'!O84*'Смета расходов'!O145% -> 0 | K11: ='Смета расходов'!P84*'Смета расходов'!P145% -> 
A12: 1.5 | B12: Амортизация | C12: тыс. руб. | D12: ='Смета расходов'!H86*'Смета расходов'!H145% -> 24.3 | E12: ='Смета расходов'!I86*'Смета расходов'!I145% -> 39.2 | F12: ='Смета расходов'!J86*'Смета расходов'!J145% ->  | G12: ='Смета расходов'!L86*'Смета расходов'!L145% -> 0 | H12: ='Смета расходов'!M86*'Смета расходов'!M145% -> 0 | I12: ='Смета расходов'!N86*'Смета расходов'!N145% ->  | J12: ='Смета расходов'!O86*'Смета расходов'!O145% -> 0 | K12: ='Смета расходов'!P86*'Смета расходов'!P145% -> 
A13: 1.6 | B13: Арендная и концессионная плата, лизинговые платежи | C13: тыс. руб. | D13: ='Смета расходов'!H88*'Смета расходов'!H145% -> 0 | E13: ='Смета расходов'!I88*'Смета расходов'!I145% -> 0 | F13: ='Смета расходов'!J88*'Смета расходов'!J145% ->  | G13: ='Смета расходов'!L88*'Смета расходов'!L145% -> 0 | H13: ='Смета расходов'!M88*'Смета расходов'!M145% -> 0 | I13: ='Смета расходов'!N88*'Смета расходов'!N145% ->  | J13: ='Смета расходов'!O88*'Смета расходов'!O145% -> 0 | K13: ='Смета расходов'!P88*'Смета расходов'!P145% -> 
A14: 1.7 | B14: Налоги и сборы | C14: тыс. руб. | D14: ='Смета расходов'!H93*'Смета расходов'!H145%+'Смета расходов'!H111+'Смета расходов'!H112 -> 51.13677892 | E14: ='Смета расходов'!I93*'Смета расходов'!I145%+'Смета расходов'!I111+'Смета расходов'!I112 -> 56.838 | F14: ='Смета расходов'!J93*'Смета расходов'!J145%+'Смета расходов'!J111+'Смета расходов'!J112 ->  | G14: ='Смета расходов'!L93*'Смета расходов'!L145%+'Смета расходов'!L111+'Смета расходов'!L112 -> 58.68501824 | H14: ='Смета расходов'!M93*'Смета расходов'!M145%+'Смета расходов'!M111+'Смета расходов'!M112 -> 82.189 | I14: ='Смета расходов'!N93*'Смета расходов'!N145%+'Смета расходов'!N111+'Смета расходов'!N112 ->  | J14: ='Смета расходов'!O93*'Смета расходов'!O145%+'Смета расходов'!O111+'Смета расходов'!O112 -> 60.555 | K14: ='Смета расходов'!P93*'Смета расходов'!P145%+'Смета расходов'!P111+'Смета расходов'!P112 -> 
A15: 1.8 | B15: Нормативная прибыль | C15: тыс. руб. | D15: ='Смета расходов'!H103 -> 0 | E15: ='Смета расходов'!I110 -> -1923.654183 | F15: ='Смета расходов'!J110 ->  | G15: ='Смета расходов'!L103 -> 0 | H15: ='Смета расходов'!M110 -> 0 | I15: ='Смета расходов'!N110 -> 0 | J15: ='Смета расходов'!O103 -> 0 | K15: ='Смета расходов'!P103 -> 0 | L15: 0
A16: 1.9 | B16: Расчетная предпринимательская прибыль гарантирующей организации | C16: тыс. руб. | D16: ='Смета расходов'!H109 -> 0 | E16: ='Смета расходов'!I109 -> 0 | F16: ='Смета расходов'!J109 -> 0 | G16: ='Смета расходов'!L109 -> 0 | H16: ='Смета расходов'!M109 -> 0 | I16: ='Смета расходов'!N109 -> 0 | J16: ='Смета расходов'!O109 -> 0 | K16: ='Смета расходов'!P109 -> 0 | L16: 0
A17: 2 | B17: Недополученные доходы/ расходы прошлых периодов | C17: тыс. руб. | D17: =SUM(D18:D20) -> 0 | E17: =SUM(E18:E20) -> 0 | F17: 0 | G17: 0 | H17: 0 | I17: 0 | J17: 0 | K17: 0 | L17: 0
A18: 2.1 | B18: Экономически обоснованные расходы, не учтенные органом регулирования тарифов при установлении тарифов на ее товары (работы, услуги) в прошлом периоде | C18: тыс. руб. | L18: 0
A19: 2.2 | B19: Недополученные доходы прошлых периодов регулирования | C19: тыс. руб. | L19: 0
A20: 2.3 | B20: Расходы, связанные с обслуживанием заемных средств и собственных средств, направляемых на покрытие недостатка средств | C20: тыс. руб. | L20: 0
A21: 3 | B21: Экономически не обоснованные доходы прошлых периодов регулирования, включая доходы, связанные с нарушениями законодательства РФ при установлении и применении регулируемых тарифов | C21: тыс. руб. | L21: 0
A22: 4 | B22: Расходы, связанные с приобретением регулируемой организацией товаров (работ, услуг), используемых при осуществлении регулируемых видов деятельности, по завышенным ценам и в завышенных объемах | C22: тыс. руб. | D22: ='Смета расходов'!H113 -> 0 | E22: ='Смета расходов'!I113 -> 0 | F22: ='Смета расходов'!J113 -> 0 | G22: ='Смета расходов'!L113 -> -278.24 | H22: ='Смета расходов'!M113 -> 0 | I22: ='Смета расходов'!N113 -> 0 | J22: ='Смета расходов'!O113 -> 0 | K22: ='Смета расходов'!P113 -> 0 | L22: 0
A23: 5 | B23: Субсидии из бюджета | C23: тыс. руб. | D23: ='Смета расходов'!H114 -> 0 | E23: ='Смета расходов'!I114 -> 0 | F23: ='Смета расходов'!J114 -> 0 | G23: ='Смета расходов'!L114 -> 0 | H23: ='Смета расходов'!M114 -> 0 | I23: ='Смета расходов'!N114 -> 0 | J23: ='Смета расходов'!O114 -> 0 | K23: ='Смета расходов'!P114 -> 0 | L23: 0
A24: 6 | B24: Итого НВВ | C24: тыс. руб. | D24: =D7+D17+D21+D22-D23 -> 2584.36639 | E24: =E7+E17+E21+E22-E23 -> 1169.4 | G24: 2428.976348 | H24: 3990.618044 | J24: 2673.491359 | O24: 2019 средний | P24: с 01.01.19 | Q24: с 01.07.19
A25: 7 | B25: Объем реализации водоснабжения | C25: тыс. куб.м | D25: ='Смета расходов'!H135 -> 137.16382 | E25: ='Смета расходов'!I135 -> 65.03112 | F25: ='Смета расходов'!J135 -> 0 | G25: ='Смета расходов'!L135 -> 137.16382 | H25: ='Смета расходов'!M135 -> 73.6396752 | I25: ='Смета расходов'!N135 -> 0 | J25: ='Смета расходов'!O135 -> 137.160478 | K25: ='Смета расходов'!P135 -> 0 | L25: -137.160478 | N25: Объем реализации | O25: =K25 -> 0 | P25: =O25/2 -> 0 | Q25: =O25-P25 -> 0
A26: 8 | B26: Тариф на водоснабжение среднегодовой | C26: руб./куб.м. | D26: =D24/D25 -> 18.84145827 | E26: =E24/E25 -> 17.98215993 | G26: 17.70857904 | H26: 54.19114131 | J26: 19.49170343 | L26: =K26-J26 ->  | N26: НВВ | O26: =K24 ->  | P26: =P27*P25 -> 0 | Q26: =O26-P26 -> 
A27: 8.1 | B27: с 01.01.ХХ по 30.06.ХХ | C27: руб./куб.м. | K27: =P27 -> 0 | N27: тариф | O27: =K26 ->  | Q27: =Q26/Q25 -> 
A28: 8.2 | B28: с 01.07.ХХ по 31.12.ХХ | C28: руб./куб.м. | K28: =Q27 ->  | N28: тариф с НДС | P28: =P27*1.18 -> 0 | Q28: =Q27*1.18 -> 
A29: 8.3 | B29: Темп роста тарифа | C29: % | D29: =D28/D27*100 ->  | G29: =G26/D26*100 -> 93.98730601 | J29: =J26/G26*100 -> 110.0692686 | K29: =K28/G28*100 ->  | N29: Рост,% | Q29: =Q27/P27*100 -> 
B32: Руководитель организации | C32: ______________________________________
B34: Ответственный за составление формы | C34: ______________________________________
C35: МП

Sheet Смета расходов
L1: Приложение 2
A2: Смета расходов на услуги холодного водоснабжения | D2: МКУ "Новоивановское" | AB2: ИПЦ
AA3: 17/16
A4: № п/п | B4: Наименование | C4: Ед. изм. | D4: 2016 | F4: 2016 факт РЭК | G4: Отклонение | H4: 2017 | J4: 2017 факт РЭК | K4: Отклонение | L4: 2018 | N4: 2018 ожид РЭК | O4: 2019 | P4: 2019 план РЭК | Q4: Отклонение | R4: 2020 | S4: 2020 план РЭК | T4: 2021 | U4: 2021 план РЭК | V4: 2022 | W4: 2022 план РЭК | X4: 2023 | Y4: 2023 план РЭК | AA4: 18/17
D5: утверждено РЭК | E5: факт ОКК | H5: утверждено РЭК | I5: факт ОКК | L5: утверждено РЭК | M5: ожид ОКК | O5: план ОКК | R5: план ОКК | T5: план ОКК | V5: план ОКК | X5: план ОКК | AA5: 19/18
A6: 1 | B6: 2 | C6: 3 | AA6: 20/19
A7: 1 | B7: Производственные расходы | C7: тыс. руб. | D7: =D8+D12+D33+D34+D39+D44 -> 1953.65 | E7: =E8+E12+E33+E34+E39+E44 -> 2052.69 | F7: =F8+F12+F33+F34+F39+F44 -> 0 | G7: =F7-D7 -> -1953.65 | H7: =H8+H12+H33+H34+H39+H44 -> 2168.600534 | I7: =I8+I12+I33+I34+I39+I44 -> 2121.987171 | J7: =J8+J12+J33+J34+J39+J44 -> 0 | K7: =J7-H7 -> -2168.600534 | L7: =L8+L12+L33+L34+L39+L44 -> 2299.139289 | M7: =M8+M12+M33+M34+M39+M44 -> 2813.32329 | N7: =N8+N12+N33+N34+N39+N44 -> 0 | O7: =O8+O12+O33+O34+O39+O44 -> 1793.69174 | P7: =P8+P12+P33+P34+P39+P44 ->  | Q7: =P7-O7 ->  | AA7: 21/20
A8: 1.1 | B8: Расходы на приобретение сырья и материалов и их хранение | C8: тыс. руб. | D8: =D9+D10+D11 -> 6.83 | E8: =E9+E10+E11 -> 13.87 | F8: =F9+F10+F11 -> 0 | G8: =F8-D8 -> -6.83 | H8: =H9+H10+H11 -> 7.0794999 | I8: =I9+I10+I11 -> 20.623725 | J8: 0 | K8: =J8-H8 -> -7.0794999 | L8: 7.268026982 | M8: 33.05145 | N8: 0 | O8: 22.1616 | P8: 0 | Q8: -22.1616 | AA8: 22/21
A9: 1.1.1 | B9: Реагенты | C9: тыс. руб. | D9: 6.83 | G9: -6.83 | H9: =D9*'Текущие расходы'!$D$70*(1-'Расчет тарифа методом индексаци'!$G$10)*(1+'Расчет тарифа методом индексаци'!$G$11%)*(1+'Расчет тарифа методом индексаци'!$G$12)/'Текущие расходы'!$H$70 -> 7.0794999 | I9: ='Сырье и материалы'!E7 -> 0 | J9: ='Сырье и материалы'!F7 -> 0 | K9: -7.0794999 | L9: =H9*'Текущие расходы'!$H$70*(1-'Расчет тарифа методом индексаци'!$J$10)*(1+'Расчет тарифа методом индексаци'!$J$11%)*(1+'Расчет тарифа методом индексаци'!$J$12)/'Текущие расходы'!$L$70 -> 7.268026982 | M9: ='Сырье и материалы'!H7 -> 4.37 | N9: ='Сырье и материалы'!I7 -> 0 | O9: ='Сырье и материалы'!K7 -> 0 | P9: ='Сырье и материалы'!L7 -> 0 | Q9: 0 | AA9: 23/22
A10: 1.1.2 | B10: ГСМ | C10: тыс. руб. | E10: 13.87 | G10: 0 | H10: =D10*'Текущие расходы'!$D$70*(1-'Расчет тарифа методом индексаци'!$G$10)*(1+'Расчет тарифа методом индексаци'!$G$11%)*(1+'Расчет тарифа методом индексаци'!$G$12)/'Текущие расходы'!$H$70 -> 0 | I10: ='Сырье и материалы'!E8 -> 20.623725 | J10: ='Сырье и материалы'!F8 -> 0 | K10: 0 | L10: =H10*'Текущие расходы'!$H$70*(1-'Расчет тарифа методом индексаци'!$J$10)*(1+'Расчет тарифа методом индексаци'!$J$11%)*(1+'Расчет тарифа методом индексаци'!$J$12)/'Текущие расходы'!$L$70 -> 0 | M10: ='Сырье и материалы'!H8 -> 28.68145 | N10: ='Сырье и материалы'!I8 -> 0 | O10: ='Сырье и материалы'!K8 -> 22.1616 | P10: ='Сырье и материалы'!L8 -> 0 | Q10: -22.1616
A11: 1.1.3 | B11: Материалы и малоценные основные средства | C11: тыс. руб. | G11: 0 | H11: =D11*'Текущие расходы'!$D$70*(1-'Расчет тарифа методом индексаци'!$G$10)*(1+'Расчет тарифа методом индексаци'!$G$11%)*(1+'Расчет тарифа методом индексаци'!$G$12)/'Текущие расходы'!$H$70 -> 0 | I11: ='Сырье и материалы'!E9 -> 0 | J11: ='Сырье и материалы'!F9 -> 0 | K11: 0 | L11: =H11*'Текущие расходы'!$H$70*(1-'Расчет тарифа методом индексаци'!$J$10)*(1+'Расчет тарифа методом индексаци'!$J$11%)*(1+'Расчет тарифа методом индексаци'!$J$12)/'Текущие расходы'!$L$70 -> 0 | M11: ='Сырье и материалы'!H9 -> 0 | N11: ='Сырье и материалы'!I9 -> 0 | O11: ='Сырье и материалы'!K9 -> 0 | P11: ='Сырье и материалы'!L9 -> 0 | Q11: 0
A12: 1.2 | B12: Расходы на энергетические ресурсы и холодную воду | C12: тыс. руб. | D12: =D26+D29+D30+D31+D32 -> 1425.85 | E12: =E26+E29+E30+E31+E32 -> 1543.97 | F12: =F26+F29+F30+F31+F32 -> 0 | G12: -1425.85 | H12: =H26+H29+H30+H31+H32 -> 1621.52 | I12: =I26+I29+I30+I31+I32 -> 1644.16 | J12: 0 | K12: -1621.52 | L12: 1737.49 | M12: 2135.21 | N12: 0 | O12: 1117.11 | P12: 0 | Q12: -1117.11 | R12: 1890.39 | S12: 0 | T12: 1884.62 | U12: 0 | V12: =V26+V29+V30+V31+V32 -> 1956.33 | W12: =W26+W29+W30+W31+W32 -> 0 | X12: =X26+X29+X30+X31+X32 -> 2030.05 | Y12: =Y26+Y29+Y30+Y31+Y32 -> 0
A13: заполняется в соответствии с шаблоном TECH.PARAMS.3.23 | B13: по уровню ВН количество | C13: кВтч | G13: 0 | K13: 0 | Q13: 0
B14: тариф ВН | C14: руб./кВт | G14: 0 | K14: 0 | Q14: 0
B15: сумма | C15: тыс.руб. | D15: =ROUND(D13*D14/1000,2) -> 0 | E15: =ROUND(E13*E14/1000,2) -> 0 | F15: =ROUND(F13*F14/1000,2) -> 0 | G15: 0 | H15: =ROUND(H13*H14/1000,2) -> 0 | I15: =ROUND(I13*I14/1000,2) -> 0 | J15: =ROUND(J13*J14/1000,2) -> 0 | K15: 0 | L15: =ROUND(L13*L14/1000,2) -> 0 | M15: =ROUND(M13*M14/1000,2) -> 0 | N15: =ROUND(N13*N14/1000,2) -> 0 | O15: =ROUND(O13*O14/1000,2) -> 0 | P15: =ROUND(P13*P14/1000,2) -> 0 | Q15: 0 | R15: =ROUND(R13*R14/1000,2) -> 0 | S15: 0 | T15: 0 | U15: 0 | V15: 0 | W15: 0 | X15: 0 | Y15: 0
B16: по уровню СН1 количество | C16: кВтч | G16: 0 | K16: 0 | Q16: 0
B17: тариф СН1 | C17: руб./кВт | G17: 0 | K17: 0 | Q17: 0
B18: сумма | C18: тыс.руб. | D18: =ROUND(D16*D17/1000,2) -> 0 | E18: =ROUND(E16*E17/1000,2) -> 0 | F18: =ROUND(F16*F17/1000,2) -> 0 | G18: 0 | H18: =ROUND(H16*H17/1000,2) -> 0 | I18: =ROUND(I16*I17/1000,2) -> 0 | J18: =ROUND(J16*J17/1000,2) -> 0 | K18: 0 | L18: =ROUND(L16*L17/1000,2) -> 0 | M18: =ROUND(M16*M17/1000,2) -> 0 | N18: =ROUND(N16*N17/1000,2) -> 0 | O18: =ROUND(O16*O17/1000,2) -> 0 | P18: =ROUND(P16*P17/1000,2) -> 0 | Q18: 0 | R18: =ROUND(R16*R17/1000,2) -> 0 | S18: 0 | T18: 0 | U18: 0 | V18: 0 | W18: 0 | X18: 0 | Y18: 0
B19: по уровню СН2 количество | C19: кВтч | G19: 0 | K19: 0 | Q19: 0
B20: тариф СН2 | C20: руб./кВт | G20: 0 | K20: 0 | Q20: 0
B21: сумма | C21: тыс.руб. | D21: =ROUND(D19*D20/1000,2) -> 0 | E21: =ROUND(E19*E20/1000,2) -> 0 | F21: =ROUND(F19*F20/1000,2) -> 0 | G21: 0 | H21: =ROUND(H19*H20/1000,2) -> 0 | I21: =ROUND(I19*I20/1000,2) -> 0 | J21: =ROUND(J19*J20/1000,2) -> 0 | K21: 0 | L21: =ROUND(L19*L20/1000,2) -> 0 | M21: =ROUND(M19*M20/1000,2) -> 0 | N21: =ROUND(N19*N20/1000,2) -> 0 | O21: =ROUND(O19*O20/1000,2) -> 0 | P21: =ROUND(P19*P20/1000,2) -> 0 | Q21: 0 | R21: =ROUND(R19*R20/1000,2) -> 0 | S21: 0 | T21: 0 | U21: 0 | V21: 0 | W21: 0 | X21: 0 | Y21: 0
B22: по уровню НН количество | C22: кВтч | D22: 197150 | E22: 199119 | G22: -197150 | H22: 197150 | I22: 201558 | K22: -197150 | L22: 197150 | M22: 243383 | O22: 117532 | Q22: -117532 | R22: 199219.4 | T22: 199219.4 | U22: 199219.4 | V22: 199219.4 | W22: 199219.4 | X22: 199219.4
B23: тариф НН | C23: руб./кВт | D23: 7.23231 | E23: 7.754 | G23: -7.23231 | H23: 8.224803 | I23: 8.15725 | K23: -8.224803 | L23: 8.813035 | M23: 8.77305 | O23: 9.5047 | Q23: -9.5047 | R23: 9.489 | T23: 9.46 | V23: 9.82 | X23: 10.19
B24: сумма | C24: тыс.руб. | D24: =ROUND(D22*D23/1000,2) -> 1425.85 | E24: =ROUND(E22*E23/1000,2) -> 1543.97 | F24: =ROUND(F22*F23/1000,2) -> 0 | G24: -1425.85 | H24: =ROUND(H22*H23/1000,2) -> 1621.52 | I24: =ROUND(I22*I23/1000,2) -> 1644.16 | J24: =ROUND(J22*J23/1000,2) -> 0 | K24: -1621.52 | L24: =ROUND(L22*L23/1000,2) -> 1737.49 | M24: =ROUND(M22*M23/1000,2) -> 2135.21 | N24: =ROUND(N22*N23/1000,2) -> 0 | O24: =ROUND(O22*O23/1000,2) -> 1117.11 | P24: =ROUND(P22*P23/1000,2) -> 0 | Q24: -1117.11 | R24: =ROUND(R22*R23/1000,2) -> 1890.39 | S24: 0 | T24: 1884.62 | U24: 0 | V24: 1956.33 | W24: 0 | X24: 2030.05 | Y24: 0
A25: 1.2.1 | B25: электроэнергия | C25: тыс. кВтч | D25: =(D13+D16+D19+D22)/1000 -> 197.15 | E25: =(E13+E16+E19+E22)/1000 -> 199.119 | F25: =(F13+F16+F19+F22)/1000 -> 0 | G25: -197.15 | H25: =(H13+H16+H19+H22)/1000 -> 197.15 | I25: =(I13+I16+I19+I22)/1000 -> 201.558 | J25: =(J13+J16+J19+J22)/1000 -> 0 | K25: -197.15 | L25: =(L13+L16+L19+L22)/1000 -> 197.15 | M25: =(M13+M16+M19+M22)/1000 -> 243.383 | N25: =(N13+N16+N19+N22)/1000 -> 0 | O25: =(O13+O16+O19+O22)/1000 -> 117.532 | P25: =(P13+P16+P19+P22)/1000 -> 0 | Q25: -117.532 | R25: =(R13+R16+R19+R22)/1000 -> 199.2194 | S25: 0 | T25: 199.2194 | U25: 199.2194 | V25: 199.2194 | W25: 199.2194 | X25: 199.2194 | Y25: 0
C26: тыс. руб. | D26: =D15+D18+D21+D24 -> 1425.85 | E26: =E15+E18+E21+E24 -> 1543.97 | F26: =F15+F18+F21+F24 -> 0 | G26: -1425.85 | H26: =H15+H18+H21+H24 -> 1621.52 | I26: =I15+I18+I21+I24 -> 1644.16 | J26: =J15+J18+J21+J24 -> 0 | K26: -1621.52 | L26: =L15+L18+L21+L24 -> 1737.49 | M26: =M15+M18+M21+M24 -> 2135.21 | N26: =N15+N18+N21+N24 -> 0 | O26: =O15+O18+O21+O24 -> 1117.11 | P26: =P15+P18+P21+P24 -> 0 | Q26: -1117.11 | R26: =R15+R18+R21+R24 -> 1890.39 | S26: 0 | T26: 1884.62 | U26: 0 | V26: 1956.33 | W26: 0 | X26: 2030.05 | Y26: 0
B27: удельная | C27: тыс. кВтч/тыс. куб. м | D27: =D25/D128 -> 0.9480644386 | E27: =E25/E128 -> 0.9485018816 | H27: 0.9480644386 | I27: 0.9484189723 | L27: 0.9480644386 | M27: 0.9484178942 | O27: 0.6305026554 | R27: 0.9580158692 | T27: 0.9580158692 | V27: 0.9580158692 | X27: 0.9580158692
B28: средняя цена на ЭЭ | C28: тыс. руб./тыс. кВтч | D28: =D26/D25 -> 7.232310424 | E28: =E26/E25 -> 7.754006398 | H28: 8.224803449 | I28: 8.157254984 | L28: 8.81303576 | M28: 8.773044954 | O28: 9.504730627 | R28: 9.48898551 | T28: 9.460022468 | U28: 0 | V28: 9.819977372 | W28: 0 | X28: 10.19002165
A29: 1.2.2 | B29: теплоэнергия | C29: тыс. руб. | G29: 0 | H29: =ТЭ!D16 -> 0 | I29: =ТЭ!E16 -> 0 | J29: =ТЭ!F16 -> 0 | K29: 0 | L29: =ТЭ!G16 -> 0 | M29: =ТЭ!H16 -> 0 | N29: =ТЭ!I16 -> 0 | O29: =ТЭ!K16 -> 0 | P29: =ТЭ!L16 -> 0 | Q29: 0
A30: 1.2.3 | B30: теплоноситель | C30: тыс. руб. | G30: 0 | H30: =ТН!D12 -> 0 | I30: =ТН!E12 -> 0 | J30: =ТН!F12 -> 0 | K30: 0 | L30: =ТН!G12 -> 0 | M30: =ТН!H12 -> 0 | N30: =ТН!I12 -> 0 | O30: =ТН!K12 -> 0 | P30: =ТН!L12 -> 0 | Q30: 0
A31: 1.2.4 | B31: топливо | C31: тыс. руб. | G31: 0 | H31: =Топливо!D20 -> 0 | I31: =Топливо!E20 -> 0 | J31: =Топливо!F20 -> 0 | K31: 0 | L31: =Топливо!G20 -> 0 | M31: =Топливо!H20 -> 0 | N31: =Топливо!I20 -> 0 | O31: =Топливо!K20 -> 0 | P31: =Топливо!L20 -> 0 | Q31: 0
A32: 1.2.5 | B32: холодная вода | C32: тыс. руб. | G32: 0 | H32: ='Покупная вода'!D12 -> 0 | I32: ='Покупная вода'!E12 -> 0 | J32: ='Покупная вода'!F12 -> 0 | K32: 0 | L32: ='Покупная вода'!G12 -> 0 | M32: ='Покупная вода'!H12 -> 0 | N32: ='Покупная вода'!I12 -> 0 | O32: ='Покупная вода'!K12 -> 0 | P32: ='Покупная вода'!L12 -> 0 | Q32: 0
A33: 1.3 | B33: Расходы на оплату работ и услуг, выполняемых сторонними организациями и ИП, связанные с эксплуатацией централизованных систем, либо объектов в составе таких систем | C33: тыс. руб. | G33: 0 | H33: =D33*'Текущие расходы'!$D$70*(1-'Расчет тарифа методом индексаци'!$G$10)*(1+'Расчет тарифа методом индексаци'!$G$11%)*(1+'Расчет тарифа методом индексаци'!$G$12)/'Текущие расходы'!$H$70 -> 0 | I33: ='Услуги сторонних организаций'!G9 -> 0 | J33: ='Услуги сторонних организаций'!H9 -> 0 | K33: 0 | L33: =H33*'Текущие расходы'!$H$70*(1-'Расчет тарифа методом индексаци'!$J$10)*(1+'Расчет тарифа методом индексаци'!$J$11%)*(1+'Расчет тарифа методом индексаци'!$J$12)/'Текущие расходы'!$L$70 -> 0 | M33: ='Услуги сторонних организаций'!J9 -> 0 | N33: ='Услуги сторонних организаций'!K9 -> 0 | O33: ='Услуги сторонних организаций'!L9 -> 0 | P33: ='Услуги сторонних организаций'!M9 -> 0 | Q33: 0
A34: 1.4 | B34: Расходы на оплату труда и отчисления на социальные нужды основного производственного персонала, в том числе налоги и сборы: | C34: тыс. руб. | D34: =D35+D36 -> 425.04 | E34: =E35+E36 -> 494.85 | F34: =F35+F36 -> 0 | G34: -425.04 | H34: =H35+H36 -> 440.5667112 | I34: =I35+I36 -> 302.812446 | J34: 0 | K34: -440.5667112 | L34: 452.2990027 | M34: 562.06184 | N34: 0 | O34: 544.3781397 | P34: 0 | Q34: -544.3781397 | R34: =N34*'Текущие расходы'!$H$70*(1-'Расчет тарифа методом индексаци'!$J$10)*(1+'Расчет тарифа методом индексаци'!$J$11%)*(1+'Расчет тарифа методом индексаци'!$J$12)/'Текущие расходы'!$L$70 -> 0
A35: 1.4.1 | B35: расходы на оплату труда основного производственного персонала | C35: тыс. руб. | D35: 326.45 | E35: 380.08 | G35: -326.45 | H35: =D35*'Текущие расходы'!$D$70*(1-'Расчет тарифа методом индексаци'!$G$10)*(1+'Расчет тарифа методом индексаци'!$G$11%)*(1+'Расчет тарифа методом индексаци'!$G$12)/'Текущие расходы'!$H$70 -> 338.3752185 | I35: ='Оплата труда'!E8 -> 232.5748433 | J35: ='Оплата труда'!F8 -> 0 | K35: -338.3752185 | L35: =H35*'Текущие расходы'!$H$70*(1-'Расчет тарифа методом индексаци'!$J$10)*(1+'Расчет тарифа методом индексаци'!$J$11%)*(1+'Расчет тарифа методом индексаци'!$J$12)/'Текущие расходы'!$L$70 -> 347.3861506 | M35: ='Оплата труда'!H8 -> 434.36 | N35: ='Оплата труда'!I8 -> 0 | O35: ='Оплата труда'!J8 -> 418.1091703 | P35: ='Оплата труда'!K8 -> 0 | Q35: -418.1091703
A36: 1.4.2 | B36: отчисления на социальные нужды основного производственного персонала, в том числе налоги и сборы | C36: тыс. руб. | D36: 98.59 | E36: 114.77 | G36: -98.59 | H36: =D36*'Текущие расходы'!$D$70*(1-'Расчет тарифа методом индексаци'!$G$10)*(1+'Расчет тарифа методом индексаци'!$G$11%)*(1+'Расчет тарифа методом индексаци'!$G$12)/'Текущие расходы'!$H$70 -> 102.1914927 | I36: =I35*'Оплата труда'!E58% -> 70.23760267 | J36: =J35*'Оплата труда'!F58% -> 0 | K36: -102.1914927 | L36: =H36*'Текущие расходы'!$H$70*(1-'Расчет тарифа методом индексаци'!$J$10)*(1+'Расчет тарифа методом индексаци'!$J$11%)*(1+'Расчет тарифа методом индексаци'!$J$12)/'Текущие расходы'!$L$70 -> 104.9128522 | M36: =M35*'Оплата труда'!H58% -> 127.70184 | N36: =N35*'Оплата труда'!I58% -> 0 | O36: =O35*'Оплата труда'!J58% -> 126.2689694 | P36: =P35*'Оплата труда'!K58% -> 0 | Q36: -126.2689694
A37: 1.4.3 | B37: численность основного производственного персонала, распределяемого на регулируемый вид деятельности | C37: чел. | D37: 4 | E37: 4 | G37: -4 | H37: =D37 -> 4 | I37: ='Оплата труда'!E32 -> 3 | J37: ='Оплата труда'!F32 -> 0 | K37: -4 | L37: ='Оплата труда'!G32 -> 4 | M37: ='Оплата труда'!H32 -> 3 | N37: ='Оплата труда'!I32 -> 0 | O37: ='Оплата труда'!J32 -> 2 | P37: ='Оплата труда'!K32 -> 0 | Q37: -2
A38: 1.4.4 | B38: среднемесячная оплата труда ОПП | C38: руб./чел. в мес. | D38: =D35/D37/12*1000 -> 6801.041667 | E38: =E35/E37/12*1000 -> 7918.333333 | F38: =F35/F37/12*1000 ->  | H38: =H35/H37/12*1000 -> 7049.483719 | I38: =I35/I37/12*1000 -> 6460.412314 | L38: 7237.21147 | M38: 12065.55556 | O38: 17421.21543
A39: 1.5 | B39: Общехозяйственные расходы | C39: тыс. руб. | G39: 0 | H39: =D39*'Текущие расходы'!$D$70*(1-'Расчет тарифа методом индексаци'!$G$10)*(1+'Расчет тарифа методом индексаци'!$G$11%)*(1+'Расчет тарифа методом индексаци'!$G$12)/'Текущие расходы'!$H$70 -> 0 | I39: ='Цех и Администр расх'!E15*'Цех и Администр расх'!I63% -> 0 | K39: 0 | L39: =H39*'Текущие расходы'!$H$70*(1-'Расчет тарифа методом индексаци'!$J$10)*(1+'Расчет тарифа методом индексаци'!$J$11%)*(1+'Расчет тарифа методом индексаци'!$J$12)/'Текущие расходы'!$L$70 -> 0 | M39: ='Цех и Администр расх'!H15*'Цех и Администр расх'!L63% -> 0 | O39: ='Цех и Администр расх'!I15*'Цех и Администр расх'!N63% -> 0 | P39: ='Цех и Администр расх'!M15 -> 
A40: 1.5.1 | B40: расходы на оплату труда цех. персонала | C40: тыс. руб. | G40: 0 | H40: =D40*'Текущие расходы'!$D$70*(1-'Расчет тарифа методом индексаци'!$G$10)*(1+'Расчет тарифа методом индексаци'!$G$11%)*(1+'Расчет тарифа методом индексаци'!$G$12)/'Текущие расходы'!$H$70 -> 0 | I40: ='Цех и Администр расх'!E7*'Цех и Администр расх'!$I$63% -> 0 | K40: 0 | L40: =H40*'Текущие расходы'!$H$70*(1-'Расчет тарифа методом индексаци'!$J$10)*(1+'Расчет тарифа методом индексаци'!$J$11%)*(1+'Расчет тарифа методом индексаци'!$J$12)/'Текущие расходы'!$L$70 -> 0 | M40: ='Цех и Администр расх'!H7*'Цех и Администр расх'!$L$63% -> 0 | O40: ='Цех и Администр расх'!I7*'Цех и Администр расх'!$N$63% -> 0 | P40: ='Цех и Администр расх'!M7 -> 
A41: 1.5.2 | B41: отчисления на социальные нужды цех. персонала, в том числе налоги и сборы | C41: тыс. руб. | G41: 0 | H41: =D41*'Текущие расходы'!$D$70*(1-'Расчет тарифа методом индексаци'!$G$10)*(1+'Расчет тарифа методом индексаци'!$G$11%)*(1+'Расчет тарифа методом индексаци'!$G$12)/'Текущие расходы'!$H$70 -> 0 | I41: ='Цех и Администр расх'!E8*'Цех и Администр расх'!$I$63% -> 0 | K41: 0 | L41: =H41*'Текущие расходы'!$H$70*(1-'Расчет тарифа методом индексаци'!$J$10)*(1+'Расчет тарифа методом индексаци'!$J$11%)*(1+'Расчет тарифа методом индексаци'!$J$12)/'Текущие расходы'!$L$70 -> 0 | M41: ='Цех и Администр расх'!H8*'Цех и Администр расх'!$L$63% -> 0 | O41: ='Цех и Администр расх'!I8*'Цех и Администр расх'!$N$63% -> 0 | P41: ='Цех и Администр расх'!M8 -> 
A42: 1.5.3 | B42: численность цех. персонала, распределяемого на регулируемый вид деятельности | C42: чел. | G42: 0 | H42: ='Цех и Администр расх'!D9*'Цех и Администр расх'!H63% -> 0 | I42: ='Цех и Администр расх'!E9*'Цех и Администр расх'!$I$63% -> 0 | K42: 0 | L42: ='Цех и Администр расх'!G9*'Цех и Администр расх'!$K$63% -> 0 | M42: ='Цех и Администр расх'!H9*'Цех и Администр расх'!$L$63% -> 0 | O42: ='Цех и Администр расх'!I9*'Цех и Администр расх'!$N$63% -> 0 | P42: ='Цех и Администр расх'!M9 -> 
A43: 1.5.4 | B43: среднемесячная оплата труда цех. персонала | C43: руб./чел. в мес. | D43: =D40/D42/12*1000 ->  | E43: =E40/E42/12*1000 ->  | F43: =F40/F42/12*1000 ->  | H43: =H40/H42/12*1000 ->  | I43: =I40/I42/12*1000 ->  | L43: =L40/L42/12*1000 ->  | M43: =M40/M42/12*1000 ->  | O43: =O40/O42/12*1000 ->  | P43: =P40/P42/12*1000 -> 
A44: 1.6 | B44: Прочие производственные расходы | C44: тыс. руб. | D44: =SUM(D45:D55) -> 95.93 | E44: =SUM(E45:E55) -> 0 | F44: =SUM(F45:F55) -> 0 | G44: -95.93 | H44: =SUM(H45:H55) -> 99.4343229 | I44: =SUM(I45:I55) -> 154.391 | J44: =SUM(J45:J55) -> 0 | K44: -99.4343229 | L44: =SUM(L45:L55) -> 102.0822589 | M44: =SUM(M45:M55) -> 83 | N44: =SUM(N45:N55) -> 0 | O44: =SUM(O45:O55) -> 110.042 | P44: =SUM(P45:P55) -> 0 | Q44: -110.042
A45: 1.6.1 | B45: расходы на амортизацию автотранспорта | C45: тыс. руб. | G45: 0 | H45: =D45*'Текущие расходы'!$D$70*(1-'Расчет тарифа методом индексаци'!$G$10)*(1+'Расчет тарифа методом индексаци'!$G$11%)*(1+'Расчет тарифа методом индексаци'!$G$12)/'Текущие расходы'!$H$70 -> 0 | K45: 0 | L45: =H45*'Текущие расходы'!$H$70*(1-'Расчет тарифа методом индексаци'!$J$10)*(1+'Расчет тарифа методом индексаци'!$J$11%)*(1+'Расчет тарифа методом индексаци'!$J$12)/'Текущие расходы'!$L$70 -> 0 | O45: ='Амор-ция и налог на им-во'!V70 -> 0 | P45: ='Амор-ция и налог на им-во'!AU70 -> 0 | Q45: 0
A46: 1.6.2 | B46: контроль качества воды | C46: тыс. руб. | D46: 78.71 | G46: -78.71 | H46: =D46*'Текущие расходы'!$D$70*(1-'Расчет тарифа методом индексаци'!$G$10)*(1+'Расчет тарифа методом индексаци'!$G$11%)*(1+'Расчет тарифа методом индексаци'!$G$12)/'Текущие расходы'!$H$70 -> 81.5852763 | I46: 85.44 | K46: -81.5852763 | L46: =H46*'Текущие расходы'!$H$70*(1-'Расчет тарифа методом индексаци'!$J$10)*(1+'Расчет тарифа методом индексаци'!$J$11%)*(1+'Расчет тарифа методом индексаци'!$J$12)/'Текущие расходы'!$L$70 -> 83.75789221 | M46: 81.5 | O46: 91.78 | Q46: -91.78
A47: 1.6.3 | B47: расходы на аварийно-диспетчерское обслуживание | C47: тыс. руб. | G47: 0 | H47: =D47*'Текущие расходы'!$D$70*(1-'Расчет тарифа методом индексаци'!$G$10)*(1+'Расчет тарифа методом индексаци'!$G$11%)*(1+'Расчет тарифа методом индексаци'!$G$12)/'Текущие расходы'!$H$70 -> 0 | K47: 0 | L47: =H47*'Текущие расходы'!$H$70*(1-'Расчет тарифа методом индексаци'!$J$10)*(1+'Расчет тарифа методом индексаци'!$J$11%)*(1+'Расчет тарифа методом индексаци'!$J$12)/'Текущие расходы'!$L$70 -> 0 | Q47: 0
A48: 1.6.4 | B48: расходы на приобретение (использование) вспомогательных материалов, запасных частей | C48: тыс. руб. | G48: 0 | H48: =D48*'Текущие расходы'!$D$70*(1-'Расчет тарифа методом индексаци'!$G$10)*(1+'Расчет тарифа методом индексаци'!$G$11%)*(1+'Расчет тарифа методом индексаци'!$G$12)/'Текущие расходы'!$H$70 -> 0 | K48: 0 | L48: =H48*'Текущие расходы'!$H$70*(1-'Расчет тарифа методом индексаци'!$J$10)*(1+'Расчет тарифа методом индексаци'!$J$11%)*(1+'Расчет тарифа методом индексаци'!$J$12)/'Текущие расходы'!$L$70 -> 0 | Q48: 0
A49: 1.6.5 | B49: расходы на эксплуатацию, техническое обслуживание и ремонт автотранспорта | C49: тыс. руб. | G49: 0 | H49: =D49*'Текущие расходы'!$D$70*(1-'Расчет тарифа методом индексаци'!$G$10)*(1+'Расчет тарифа методом индексаци'!$G$11%)*(1+'Расчет тарифа методом индексаци'!$G$12)/'Текущие расходы'!$H$70 -> 0 | I49: ='Охр.труда и Авто'!E30 -> 48.071 | J49: ='Охр.труда и Авто'!F30 -> 0 | K49: 0 | L49: =H49*'Текущие расходы'!$H$70*(1-'Расчет тарифа методом индексаци'!$J$10)*(1+'Расчет тарифа методом индексаци'!$J$11%)*(1+'Расчет тарифа методом индексаци'!$J$12)/'Текущие расходы'!$L$70 -> 0 | M49: ='Охр.труда и Авто'!H30 -> 1.5 | N49: ='Охр.труда и Авто'!I30 -> 0 | O49: ='Охр.труда и Авто'!J30 -> 0 | P49: ='Охр.труда и Авто'!K30 -> 0 | Q49: 0
A50: 1.6.6 | B50: расходы на охрану труда ОПП | C50: тыс. руб. | D50: 17.22 | G50: -17.22 | H50: =D50*'Текущие расходы'!$D$70*(1-'Расчет тарифа методом индексаци'!$G$10)*(1+'Расчет тарифа методом индексаци'!$G$11%)*(1+'Расчет тарифа методом индексаци'!$G$12)/'Текущие расходы'!$H$70 -> 17.8490466 | I50: ='Охр.труда и Авто'!E13 -> 20.88 | J50: ='Охр.труда и Авто'!F13 -> 0 | K50: -17.8490466 | L50: =H50*'Текущие расходы'!$H$70*(1-'Расчет тарифа методом индексаци'!$J$10)*(1+'Расчет тарифа методом индексаци'!$J$11%)*(1+'Расчет тарифа методом индексаци'!$J$12)/'Текущие расходы'!$L$70 -> 18.32436671 | M50: ='Охр.труда и Авто'!H13 -> 0 | N50: ='Охр.труда и Авто'!I13 -> 0 | O50: ='Охр.труда и Авто'!J13 -> 18.262 | P50: ='Охр.труда и Авто'!K13 -> 0 | Q50: -18.262
A51: 1.6.7 | B51: обязательное страхование объектов ВКХ | C51: тыс. руб. | G51: 0 | K51: 0 | Q51: 0
A52: 1.6.8 | B52: расходы на транспортировку воды | C52: тыс. руб. | G52: 0 | K52: 0 | Q52: 0
A53: 1.6.9 | B53: расходы на обслуживание бесхозяйных сетей | C53: тыс. руб. | G53: 0 | K53: 0 | Q53: 0
A54: 1.6.10 | B54: расходы концессионера на осуществление государственного учета и (или) государственной регистрации права собственности концедента | C54: тыс. руб. | G54: 0 | K54: 0 | Q54: 0
A55: 1.6.11 | B55: расходы головной организации | C55: тыс. руб. | G55: 0 | H55: =D55*'Текущие расходы'!$D$70*(1-'Расчет тарифа методом индексаци'!$G$10)*(1+'Расчет тарифа методом индексаци'!$G$11%)*(1+'Расчет тарифа методом индексаци'!$G$12)/'Текущие расходы'!$H$70 -> 0 | K55: 0 | L55: =H55*'Текущие расходы'!$H$70*(1-'Расчет тарифа методом индексаци'!$J$10)*(1+'Расчет тарифа методом индексаци'!$J$11%)*(1+'Расчет тарифа методом индексаци'!$J$12)/'Текущие расходы'!$L$70 -> 0 | Q55: 0
A56: 2 | B56: Ремонтные расходы | C56: тыс. руб. | D56: =D57+D58+D59+D60+D65 -> 107.495 | E56: =E57+E58+E59+E60+E65 -> 0 | F56: =F57+F58+F59+F60+F65 -> 0 | G56: -107.495 | H56: =H57+H58+H59+H60+H65 -> 111.4217923 | I56: =I57+I58+I59+I60+I65 -> 223 | J56: 0 | K56: -111.4217923 | L56: 114.3889547 | M56: 320.88 | N56: 0 | O56: 229.8 | P56: 0 | Q56: -229.8 | R56: =R57+R58+R59+R65 -> 259.07 | S56: 0 | T56: 268.91 | U56: 0 | V56: 415.36 | W56: 0 | X56: 382.11 | Y56: 0
A57: 2.1 | B57: Расходы на текущий ремонт централизованных систем водоснабжения либо объектов, входящих в состав таких систем | C57: тыс. руб. | D57: 107.495 | G57: -107.495 | H57: =D57*'Текущие расходы'!$D$70*(1-'Расчет тарифа методом индексаци'!$G$10)*(1+'Расчет тарифа методом индексаци'!$G$11%)*(1+'Расчет тарифа методом индексаци'!$G$12)/'Текущие расходы'!$H$70 -> 111.4217923 | I57: 223 | K57: -111.4217923 | L57: =H57*'Текущие расходы'!$H$70*(1-'Расчет тарифа методом индексаци'!$J$10)*(1+'Расчет тарифа методом индексаци'!$J$11%)*(1+'Расчет тарифа методом индексаци'!$J$12)/'Текущие расходы'!$L$70 -> 114.3889547 | M57: 320.88 | O57: 119.44 | Q57: -119.44 | R57: 212.33 | T57: 220.39 | V57: 365 | X57: 329.84
A58: 2.2 | B58: Расходы на капитальный ремонт централизованных систем водоснабжения либо объектов, входящих в состав таких систем | C58: тыс. руб. | G58: 0 | H58: =D58*'Текущие расходы'!$D$70*(1-'Расчет тарифа методом индексаци'!$G$10)*(1+'Расчет тарифа методом индексаци'!$G$11%)*(1+'Расчет тарифа методом индексаци'!$G$12)/'Текущие расходы'!$H$70 -> 0 | K58: 0 | L58: =H58*'Текущие расходы'!$H$70*(1-'Расчет тарифа методом индексаци'!$J$10)*(1+'Расчет тарифа методом индексаци'!$J$11%)*(1+'Расчет тарифа методом индексаци'!$J$12)/'Текущие расходы'!$L$70 -> 0 | Q58: 0
A59: 2.3 | B59: Расходы на выполнение мероприятий по энергосбережению и повышению энергетической эффективности | C59: тыс. руб. | G59: 0 | H59: =D59*'Текущие расходы'!$D$70*(1-'Расчет тарифа методом индексаци'!$G$10)*(1+'Расчет тарифа методом индексаци'!$G$11%)*(1+'Расчет тарифа методом индексаци'!$G$12)/'Текущие расходы'!$H$70 -> 0 | K59: 0 | L59: =H59*'Текущие расходы'!$H$70*(1-'Расчет тарифа методом индексаци'!$J$10)*(1+'Расчет тарифа методом индексаци'!$J$11%)*(1+'Расчет тарифа методом индексаци'!$J$12)/'Текущие расходы'!$L$70 -> 0 | Q59: 0 | R59: 46.74 | T59: 48.52 | V59: 50.36 | X59: 52.27
A60: 2.4 | B60: Расходы на оплату труда и отчисления на социальные нужды ремонтного персонала, в том числе налоги и сборы | C60: тыс. руб. | D60: =D61+D62 -> 0 | E60: =E61+E62 -> 0 | F60: =F61+F62 -> 0 | G60: 0 | H60: =H61+H62 -> 0 | I60: =I61+I62 -> 0 | J60: 0 | K60: 0 | L60: 0 | M60: 0 | N60: 0 | O60: 0 | P60: 0 | Q60: 0
A61: 2.4.1 | B61: расходы на оплату труда ремонтного персонала | C61: тыс. руб. | G61: 0 | H61: =D61*'Текущие расходы'!$D$70*(1-'Расчет тарифа методом индексаци'!$G$10)*(1+'Расчет тарифа методом индексаци'!$G$11%)*(1+'Расчет тарифа методом индексаци'!$G$12)/'Текущие расходы'!$H$70 -> 0 | I61: ='Оплата труда'!E12 -> 0 | J61: ='Оплата труда'!F12 -> 0 | K61: 0 | L61: =H61*'Текущие расходы'!$H$70*(1-'Расчет тарифа методом индексаци'!$J$10)*(1+'Расчет тарифа методом индексаци'!$J$11%)*(1+'Расчет тарифа методом индексаци'!$J$12)/'Текущие расходы'!$L$70 -> 0 | M61: ='Оплата труда'!H12 -> 0 | N61: ='Оплата труда'!I12 -> 0 | O61: ='Оплата труда'!J12 -> 0 | P61: ='Оплата труда'!K12 -> 0 | Q61: 0
A62: 2.4.2 | B62: отчисления на социальные нужды ремонтного персонала, в том числе налоги и сборы | C62: тыс. руб. | G62: 0 | H62: =D62*'Текущие расходы'!$D$70*(1-'Расчет тарифа методом индексаци'!$G$10)*(1+'Расчет тарифа методом индексаци'!$G$11%)*(1+'Расчет тарифа методом индексаци'!$G$12)/'Текущие расходы'!$H$70 -> 0 | I62: =I61*'Оплата труда'!E87% -> 0 | J62: =J61*'Оплата труда'!F87% -> 0 | K62: 0 | L62: =H62*'Текущие расходы'!$H$70*(1-'Расчет тарифа методом индексаци'!$J$10)*(1+'Расчет тарифа методом индексаци'!$J$11%)*(1+'Расчет тарифа методом индексаци'!$J$12)/'Текущие расходы'!$L$70 -> 0 | M62: =M61*'Оплата труда'!H87% -> 0 | N62: =N61*'Оплата труда'!I87% -> 0 | O62: =O61*'Оплата труда'!J87% -> 0 | P62: =P61*'Оплата труда'!K87% -> 0 | Q62: 0
A63: 2.4.3 | B63: численность ремонтного персонала, распределяемого на регулируемый вид деятельности | C63: чел. | G63: 0 | H63: =D63 -> 0 | I63: ='Оплата труда'!E61 -> 0 | J63: ='Оплата труда'!F61 -> 0 | K63: 0 | L63: ='Оплата труда'!G61 -> 0 | M63: ='Оплата труда'!H61 -> 0 | N63: ='Оплата труда'!I61 -> 0 | O63: ='Оплата труда'!J61 -> 0 | P63: ='Оплата труда'!K61 -> 0 | Q63: 0
A64: 2.4.4 | B64: среднемесячная оплата труда РП | C64: руб./чел. в мес. | D64: =D61/D63/12*1000 ->  | E64: =E61/E63/12*1000 ->  | F64: =F61/F63/12*1000 ->  | H64: =H61/H63/12*1000 ->  | I64: =I61/I63/12*1000 -> 
A65: 2.5 | B65: Расходы на АВР | C65: тыс. руб. | G65: 0 | H65: =D65*'Текущие расходы'!$D$70*(1-'Расчет тарифа методом индексаци'!$G$10)*(1+'Расчет тарифа методом индексаци'!$G$11%)*(1+'Расчет тарифа методом индексаци'!$G$12)/'Текущие расходы'!$H$70 -> 0 | K65: 0 | L65: =H65*'Текущие расходы'!$H$70*(1-'Расчет тарифа методом индексаци'!$J$10)*(1+'Расчет тарифа методом индексаци'!$J$11%)*(1+'Расчет тарифа методом индексаци'!$J$12)/'Текущие расходы'!$L$70 -> 0 | O65: 110.36 | Q65: -110.36
A66: 3 | B66: Административные расходы | C66: тыс. руб. | D66: =D67+D74+D79+D80+D81+D82+D83 -> 220.84 | E66: =E67+E74+E79+E80+E81+E82+E83 -> 0 | F66: =F67+F74+F79+F80+F81+F82+F83 -> 0 | G66: -220.84 | H66: =H67+H74+H79+H80+H81+H82+H83 -> 228.9072852 | I66: =I67+I74+I79+I80+I81+I82+I83 -> 652.0290124 | J66: =J67+J74+J79+J80+J81+J82+J83 ->  | L66: =L67+L74+L79+L80+L81+L82+L83 -> 235.0030862 | M66: =M67+M74+M79+M80+M81+M82+M83 -> 774.2257545 | N66: =N67+N74+N79+N80+N81+N82+N83 -> 0 | O66: =O67+O74+O79+O80+O81+O82+O83 -> 589.4446192 | P66: =P67+P74+P79+P80+P81+P82+P83 -> 
A67: 3.1 | B67: Расходы на оплату работ и услуг, выполняемых сторонними организациями | C67: тыс. руб. | D67: =SUM(D68:D73) -> 0 | E67: =SUM(E68:E73) -> 0 | F67: =SUM(F68:F73) -> 0 | G67: 0 | H67: =H68+H69+H70+H71+H72+H73 -> 0 | I67: =I68+I69+I70+I71+I72+I73 -> 57.17033382 | J67: =J68+J69+J70+J71+J72+J73 -> 0 | K67: 0 | L67: =L68+L69+L70+L71+L72+L73 -> 0 | M67: =M68+M69+M70+M71+M72+M73 -> 60.66600015 | N67: =N68+N69+N70+N71+N72+N73 -> 0 | O67: =O68+O69+O70+O71+O72+O73 -> 0 | P67: =P68+P69+P70+P71+P72+P73 -> 
A68: 3.1.1 | B68: услуги связи и интернет | C68: тыс. руб. | G68: 0 | H68: =D68*'Текущие расходы'!$D$70*(1-'Расчет тарифа методом индексаци'!$G$10)*(1+'Расчет тарифа методом индексаци'!$G$11%)*(1+'Расчет тарифа методом индексаци'!$G$12)/'Текущие расходы'!$H$70 -> 0 | I68: ='Цех и Администр расх'!E28*'Цех и Администр расх'!$I$82% -> 0 | K68: 0 | L68: =H68*'Текущие расходы'!$H$70*(1-'Расчет тарифа методом индексаци'!$J$10)*(1+'Расчет тарифа методом индексаци'!$J$11%)*(1+'Расчет тарифа методом индексаци'!$J$12)/'Текущие расходы'!$L$70 -> 0 | M68: ='Цех и Администр расх'!H28*'Цех и Администр расх'!$L$82% -> 0 | O68: ='Цех и Администр расх'!K28 -> 0 | P68: ='Цех и Администр расх'!M28 -> 
A69: 3.1.2 | B69: юридические услуги | C69: тыс. руб. | G69: 0 | H69: =D69*'Текущие расходы'!$D$70*(1-'Расчет тарифа методом индексаци'!$G$10)*(1+'Расчет тарифа методом индексаци'!$G$11%)*(1+'Расчет тарифа методом индексаци'!$G$12)/'Текущие расходы'!$H$70 -> 0 | I69: ='Цех и Администр расх'!E29*'Цех и Администр расх'!$I$82% -> 0 | K69: 0 | L69: =H69*'Текущие расходы'!$H$70*(1-'Расчет тарифа методом индексаци'!$J$10)*(1+'Расчет тарифа методом индексаци'!$J$11%)*(1+'Расчет тарифа методом индексаци'!$J$12)/'Текущие расходы'!$L$70 -> 0 | M69: ='Цех и Администр расх'!H29*'Цех и Администр расх'!$L$82% -> 0 | O69: ='Цех и Администр расх'!K29 -> 0 | P69: ='Цех и Администр расх'!M29 -> 
A70: 3.1.3 | B70: аудиторские услуги | C70: тыс. руб. | G70: 0 | H70: =D70*'Текущие расходы'!$D$70*(1-'Расчет тарифа методом индексаци'!$G$10)*(1+'Расчет тарифа методом индексаци'!$G$11%)*(1+'Расчет тарифа методом индексаци'!$G$12)/'Текущие расходы'!$H$70 -> 0 | I70: ='Цех и Администр расх'!E30*'Цех и Администр расх'!$I$82% -> 0 | K70: 0 | L70: =H70*'Текущие расходы'!$H$70*(1-'Расчет тарифа методом индексаци'!$J$10)*(1+'Расчет тарифа методом индексаци'!$J$11%)*(1+'Расчет тарифа методом индексаци'!$J$12)/'Текущие расходы'!$L$70 -> 0 | M70: ='Цех и Администр расх'!H30*'Цех и Администр расх'!$L$82% -> 0 | O70: ='Цех и Администр расх'!K30 -> 0 | P70: ='Цех и Администр расх'!M30 -> 
A71: 3.1.4 | B71: консультационные услуги | C71: тыс. руб. | G71: 0 | H71: =D71*'Текущие расходы'!$D$70*(1-'Расчет тарифа методом индексаци'!$G$10)*(1+'Расчет тарифа методом индексаци'!$G$11%)*(1+'Расчет тарифа методом индексаци'!$G$12)/'Текущие расходы'!$H$70 -> 0 | I71: ='Цех и Администр расх'!E31*'Цех и Администр расх'!$I$82% -> 43.39434977 | K71: 0 | L71: =H71*'Текущие расходы'!$H$70*(1-'Расчет тарифа методом индексаци'!$J$10)*(1+'Расчет тарифа методом индексаци'!$J$11%)*(1+'Расчет тарифа методом индексаци'!$J$12)/'Текущие расходы'!$L$70 -> 0 | M71: ='Цех и Администр расх'!H31*'Цех и Администр расх'!$L$82% -> 41.89105064 | O71: ='Цех и Администр расх'!K31 -> 0 | P71: ='Цех и Администр расх'!M31 -> 
A72: 3.1.5 | B72: услуги по вневедомственной охране объектов и территорий | C72: тыс. руб. | G72: =F72-D72 -> 0 | H72: =D72*'Текущие расходы'!$D$70*(1-'Расчет тарифа методом индексаци'!$G$10)*(1+'Расчет тарифа методом индексаци'!$G$11%)*(1+'Расчет тарифа методом индексаци'!$G$12)/'Текущие расходы'!$H$70 -> 0 | I72: ='Цех и Администр расх'!E32*'Цех и Администр расх'!$I$82% -> 0 | K72: =J72-H72 -> 0 | L72: =H72*'Текущие расходы'!$H$70*(1-'Расчет тарифа методом индексаци'!$J$10)*(1+'Расчет тарифа методом индексаци'!$J$11%)*(1+'Расчет тарифа методом индексаци'!$J$12)/'Текущие расходы'!$L$70 -> 0 | M72: ='Цех и Администр расх'!H32*'Цех и Администр расх'!$L$82% -> 0 | O72: ='Цех и Администр расх'!K32 -> 0 | P72: ='Цех и Администр расх'!M32 -> 
A73: 3.1.6 | B73: информационные услуги | C73: тыс. руб. | G73: 0 | H73: =D73*'Текущие расходы'!$D$70*(1-'Расчет тарифа методом индексаци'!$G$10)*(1+'Расчет тарифа методом индексаци'!$G$11%)*(1+'Расчет тарифа методом индексаци'!$G$12)/'Текущие расходы'!$H$70 -> 0 | I73: ='Цех и Администр расх'!E33*'Цех и Администр расх'!$I$82% -> 13.77598405 | K73: 0 | L73: =H73*'Текущие расходы'!$H$70*(1-'Расчет тарифа методом индексаци'!$J$10)*(1+'Расчет тарифа методом индексаци'!$J$11%)*(1+'Расчет тарифа методом индексаци'!$J$12)/'Текущие расходы'!$L$70 -> 0 | M73: ='Цех и Администр расх'!H33*'Цех и Администр расх'!$L$82% -> 18.77494951 | O73: ='Цех и Администр расх'!K33 -> 0 | P73: ='Цех и Администр расх'!M33 -> 
A74: 3.2 | B74: Расходы на оплату труда и отчисления на социальные нужды АУП, в том числе налоги и сборы | C74: тыс. руб. | D74: =D75+D76 -> 220.84 | E74: =E75+E76 -> 0 | F74: =F75+F76 -> 0 | G74: -220.84 | H74: =H75+H76 -> 228.9072852 | I74: =I75+I76 -> 497.0922418 | L74: 235.0030862 | M74: 510.8857393 | N74: 0 | O74: 589.4446192
A75: 3.2.1 | B75: расходы на оплату труда АУП | C75: тыс. руб. | D75: 169.62 | G75: -169.62 | H75: =D75*'Текущие расходы'!$D$70*(1-'Расчет тарифа методом индексаци'!$G$10)*(1+'Расчет тарифа методом индексаци'!$G$11%)*(1+'Расчет тарифа методом индексаци'!$G$12)/'Текущие расходы'!$H$70 -> 175.8162186 | I75: ='Оплата труда'!E16 -> 381.7912763 | J75: ='Оплата труда'!F16 ->  | L75: =H75*'Текущие расходы'!$H$70*(1-'Расчет тарифа методом индексаци'!$J$10)*(1+'Расчет тарифа методом индексаци'!$J$11%)*(1+'Расчет тарифа методом индексаци'!$J$12)/'Текущие расходы'!$L$70 -> 180.4982045 | M75: ='Оплата труда'!H16 -> 394.1715449 | O75: ='Цех и Администр расх'!K35 -> 452.7224418 | P75: ='Оплата труда'!K16 -> 
A76: 3.2.2 | B76: отчисления на социальные нужды АУП, в том числе налоги и сборы | C76: тыс. руб. | D76: 51.22 | G76: -51.22 | H76: =D76*'Текущие расходы'!$D$70*(1-'Расчет тарифа методом индексаци'!$G$10)*(1+'Расчет тарифа методом индексаци'!$G$11%)*(1+'Расчет тарифа методом индексаци'!$G$12)/'Текущие расходы'!$H$70 -> 53.0910666 | I76: =I75*'Оплата труда'!E116% -> 115.3009654 | J76: =J75*'Оплата труда'!F116% ->  | L76: =H76*'Текущие расходы'!$H$70*(1-'Расчет тарифа методом индексаци'!$J$10)*(1+'Расчет тарифа методом индексаци'!$J$11%)*(1+'Расчет тарифа методом индексаци'!$J$12)/'Текущие расходы'!$L$70 -> 54.5048817 | M76: =M75*'Оплата труда'!H116% -> 116.7141944 | O76: ='Цех и Администр расх'!K36 -> 136.7221774 | P76: =P75*'Оплата труда'!K116% -> 
A77: 3.2.3 | B77: численность АУП, распределяемого на регулируемый вид деятельности | C77: чел. | D77: 1 | G77: -1 | H77: ='Цех и Администр расх'!D37*'Цех и Администр расх'!H82% -> 1.721998007 | I77: ='Цех и Администр расх'!E37*'Цех и Администр расх'!I82% -> 2.58299701 | J77: ='Цех и Администр расх'!F37*'Цех и Администр расх'!J82% ->  | L77: ='Цех и Администр расх'!G37*'Цех и Администр расх'!K82% -> 1.505370157 | M77: ='Цех и Администр расх'!H37*'Цех и Администр расх'!L82% -> 1.931976693 | O77: ='Цех и Администр расх'!K37 -> 2.455427509 | P77: ='Цех и Администр расх'!M37 -> 
A78: 3.2.4 | B78: среднемесячная оплата труда АУП | C78: руб./чел. в мес. | D78: =D75/D77/12*1000 -> 14135 | E78: =E75/E77/12*1000 ->  | F78: =F75/F77/12*1000 ->  | H78: =H75/H77/12*1000 -> 8508.344083 | I78: =I75/I77/12*1000 -> 12317.45123 | L78: 9991.905957 | M78: 17002.08333 | O78: 15364.68497 | P78: =P75/P77/12*1000 -> 
A79: 3.3 | B79: Арендная плата, лизинговые платежи, не связанные с арендой (лизингом) централизованных систем водоснабжения либо объектов, входящих в состав таких систем | C79: тыс. руб. | G79: 0 | H79: =D79*'Текущие расходы'!$D$70*(1-'Расчет тарифа методом индексаци'!$G$10)*(1+'Расчет тарифа методом индексаци'!$G$11%)*(1+'Расчет тарифа методом индексаци'!$G$12)/'Текущие расходы'!$H$70 -> 0 | I79: ='Цех и Администр расх'!E39*'Цех и Администр расх'!I82% -> 0 | J79: ='Цех и Администр расх'!F39*'Цех и Администр расх'!J82% ->  | L79: =H79*'Текущие расходы'!$H$70*(1-'Расчет тарифа методом индексаци'!$J$10)*(1+'Расчет тарифа методом индексаци'!$J$11%)*(1+'Расчет тарифа методом индексаци'!$J$12)/'Текущие расходы'!$L$70 -> 0 | M79: ='Цех и Администр расх'!H39*'Цех и Администр расх'!L82% -> 0 | O79: ='Цех и Администр расх'!K39 -> 0 | P79: ='Цех и Администр расх'!M39 -> 
A80: 3.4 | B80: Служебные командировки | C80: тыс. руб. | G80: 0 | H80: =D80*'Текущие расходы'!$D$70*(1-'Расчет тарифа методом индексаци'!$G$10)*(1+'Расчет тарифа методом индексаци'!$G$11%)*(1+'Расчет тарифа методом индексаци'!$G$12)/'Текущие расходы'!$H$70 -> 0 | I80: ='Цех и Администр расх'!E40*'Цех и Администр расх'!I82% -> 0 | J80: ='Цех и Администр расх'!F40*'Цех и Администр расх'!J82% ->  | L80: =H80*'Текущие расходы'!$H$70*(1-'Расчет тарифа методом индексаци'!$J$10)*(1+'Расчет тарифа методом индексаци'!$J$11%)*(1+'Расчет тарифа методом индексаци'!$J$12)/'Текущие расходы'!$L$70 -> 0 | M80: ='Цех и Администр расх'!H40*'Цех и Администр расх'!L82% -> 0 | O80: ='Цех и Администр расх'!K40 -> 0 | P80: ='Цех и Администр расх'!M40 -> 
A81: 3.5 | B81: Обучение персонала | C81: тыс. руб. | G81: 0 | H81: =D81*'Текущие расходы'!$D$70*(1-'Расчет тарифа методом индексаци'!$G$10)*(1+'Расчет тарифа методом индексаци'!$G$11%)*(1+'Расчет тарифа методом индексаци'!$G$12)/'Текущие расходы'!$H$70 -> 0 | I81: ='Цех и Администр расх'!E41*'Цех и Администр расх'!I82% -> 3.443996013 | J81: ='Цех и Администр расх'!F41*'Цех и Администр расх'!J82% ->  | L81: =H81*'Текущие расходы'!$H$70*(1-'Расчет тарифа методом индексаци'!$J$10)*(1+'Расчет тарифа методом индексаци'!$J$11%)*(1+'Расчет тарифа методом индексаци'!$J$12)/'Текущие расходы'!$L$70 -> 0 | M81: ='Цех и Администр расх'!H41*'Цех и Администр расх'!L82% -> 3.863953387 | O81: ='Цех и Администр расх'!K41 -> 0 | P81: ='Цех и Администр расх'!M41 -> 
A82: 3.6 | B82: Страхование производственных объектов | C82: тыс. руб. | G82: 0 | H82: =D82*'Текущие расходы'!$D$70*(1-'Расчет тарифа методом индексаци'!$G$10)*(1+'Расчет тарифа методом индексаци'!$G$11%)*(1+'Расчет тарифа методом индексаци'!$G$12)/'Текущие расходы'!$H$70 -> 0 | I82: ='Цех и Администр расх'!E42*'Цех и Администр расх'!I82% -> 0 | J82: ='Цех и Администр расх'!F42*'Цех и Администр расх'!J82% ->  | L82: =H82*'Текущие расходы'!$H$70*(1-'Расчет тарифа методом индексаци'!$J$10)*(1+'Расчет тарифа методом индексаци'!$J$11%)*(1+'Расчет тарифа методом индексаци'!$J$12)/'Текущие расходы'!$L$70 -> 0 | M82: ='Цех и Администр расх'!H42*'Цех и Администр расх'!L82% -> 0 | O82: ='Цех и Администр расх'!K42 -> 0 | P82: ='Цех и Администр расх'!M42 -> 
A83: 3.7 | B83: Прочие административные расходы | C83: тыс. руб. | G83: 0 | H83: =D83*'Текущие расходы'!$D$70*(1-'Расчет тарифа методом индексаци'!$G$10)*(1+'Расчет тарифа методом индексаци'!$G$11%)*(1+'Расчет тарифа методом индексаци'!$G$12)/'Текущие расходы'!$H$70 -> 0 | I83: ='Цех и Администр расх'!E43*'Цех и Администр расх'!I82% -> 94.32244081 | J83: ='Цех и Администр расх'!F43*'Цех и Администр расх'!J82% ->  | L83: =H83*'Текущие расходы'!$H$70*(1-'Расчет тарифа методом индексаци'!$J$10)*(1+'Расчет тарифа методом индексаци'!$J$11%)*(1+'Расчет тарифа методом индексаци'!$J$12)/'Текущие расходы'!$L$70 -> 0 | M83: ='Цех и Администр расх'!H43*'Цех и Администр расх'!L82% -> 198.8100616 | O83: ='Цех и Администр расх'!K43 -> 0 | P83: ='Цех и Администр расх'!M43 -> 
A84: 4 | B84: Сбытовые расходы гарантирующих организаций | C84: тыс. руб. | D84: =D85 -> 0 | E84: =E85 -> 0 | F84: =F85 -> 0 | G84: 0 | H84: =H85 -> 0 | I84: =I85 -> 0 | J84: 0 | K84: 0 | L84: 0 | M84: 0 | N84: 0 | O84: 0 | P84: 0 | Q84: 0 | R84: 0 | S84: 0 | T84: 0 | U84: 0 | V84: 0 | W84: 0 | X84: 0 | Y84: 0
A85: 4.1 | B85: Расходы по сомнительным долгам, в размере не более 2% НВВ | C85: тыс. руб. | G85: 0 | J85: 0 | K85: 0 | N85: 0 | O85: ='Сомнительные долги'!C8 -> 0 | P85: ='Сомнительные долги'!D8 -> 0 | Q85: 0
A86: 5 | B86: Амортизация | C86: тыс. руб. | D86: =D87 -> 24.3 | E86: =E87 -> 0 | F86: =F87 -> 0 | G86: -24.3 | H86: =H87 -> 24.3 | I86: =I87 -> 39.2 | J86: 0 | K86: -24.3 | L86: 0 | M86: 0 | N86: 0 | O86: 0 | P86: 0 | Q86: 0 | R86: 0 | S86: 0 | T86: 0 | U86: 0 | V86: 0 | W86: 0 | X86: 0 | Y86: 0
A87: 5.1 | B87: Амортизация основных средств и нематериальных активов, относимых к объектам централизованной системы водоснабжения | C87: тыс. руб. | D87: 24.3 | G87: -24.3 | H87: 24.3 | I87: 39.2 | K87: -24.3 | O87: ='Амор-ция и налог на им-во'!V35/1000 -> 0 | P87: ='Амор-ция и налог на им-во'!AU35/1000 -> 0 | Q87: 0 | R87: ='Амор-ция и налог на им-во'!X35/1000 -> 0 | S87: ='Амор-ция и налог на им-во'!AW35/1000 -> 0 | T87: ='Амор-ция и налог на им-во'!Z35/1000 -> 0 | U87: ='Амор-ция и налог на им-во'!AY35/1000 -> 0 | V87: ='Амор-ция и налог на им-во'!AB35/1000 -> 0 | W87: ='Амор-ция и налог на им-во'!BA35/1000 -> 0 | X87: ='Амор-ция и налог на им-во'!AD35/1000 -> 0 | Y87: ='Амор-ция и налог на им-во'!BC35/1000 -> 0
A88: 6 | B88: Расходы на арендную плату, лизинговые платежи, концессионную плату | C88: тыс. руб. | D88: =D89+D90+D91+D92 -> 0 | E88: =E89+E90+E91+E92 -> 0 | F88: =F89+F90+F91+F92 -> 0 | G88: 0 | H88: =H89+H90+H91+H92 -> 0 | I88: =I89+I90+I91+I92 -> 0 | J88: 0 | K88: 0 | L88: 0 | M88: 0 | N88: 0 | O88: 0 | P88: 0 | Q88: 0 | R88: 0 | S88: 0 | T88: 0 | U88: 0 | V88: =V89+V90+V91+V92 -> 0 | W88: =W89+W90+W91+W92 -> 0 | X88: =X89+X90+X91+X92 -> 0 | Y88: =Y89+Y90+Y91+Y92 -> 0
A89: 6.1 | B89: Аренда имущества | C89: тыс. руб. | G89: 0 | H89: ='Аренда, лизинг, концессия'!H9 -> 0 | I89: ='Аренда, лизинг, концессия'!I9 -> 0 | J89: ='Аренда, лизинг, концессия'!J9 -> 0 | K89: 0 | L89: ='Аренда, лизинг, концессия'!K9 -> 0 | M89: ='Аренда, лизинг, концессия'!L9 -> 0 | N89: ='Аренда, лизинг, концессия'!M9 -> 0 | O89: ='Аренда, лизинг, концессия'!N9 -> 0 | P89: ='Аренда, лизинг, концессия'!O9 -> 0 | Q89: 0
A90: 6.2 | B90: Концессионная плата | C90: тыс. руб. | G90: 0 | H90: ='Аренда, лизинг, концессия'!H13 -> 0 | I90: ='Аренда, лизинг, концессия'!I13 -> 0 | J90: ='Аренда, лизинг, концессия'!J13 -> 0 | K90: 0 | L90: ='Аренда, лизинг, концессия'!K13 -> 0 | M90: ='Аренда, лизинг, концессия'!L13 -> 0 | N90: ='Аренда, лизинг, концессия'!M13 -> 0 | O90: ='Аренда, лизинг, концессия'!N13 -> 0 | P90: ='Аренда, лизинг, концессия'!O11 -> 0 | Q90: =P90-O90 -> 0
A91: 6.3 | B91: Лизинговые платежи | C91: тыс. руб. | G91: 0 | H91: ='Аренда, лизинг, концессия'!H17 -> 0 | I91: ='Аренда, лизинг, концессия'!I17 -> 0 | J91: ='Аренда, лизинг, концессия'!J17 -> 0 | K91: 0 | L91: ='Аренда, лизинг, концессия'!K17 -> 0 | M91: ='Аренда, лизинг, концессия'!L17 -> 0 | N91: ='Аренда, лизинг, концессия'!M17 -> 0 | O91: ='Аренда, лизинг, концессия'!N17 -> 0 | P91: ='Аренда, лизинг, концессия'!O15 -> 0 | Q91: 0
A92: 6.4 | B92: Аренда земельных участков | C92: тыс. руб. | G92: 0 | H92: ='Аренда, лизинг, концессия'!H21 -> 0 | I92: ='Аренда, лизинг, концессия'!I21 -> 0 | J92: ='Аренда, лизинг, концессия'!J21 -> 0 | K92: 0 | L92: ='Аренда, лизинг, концессия'!K21 -> 0 | M92: ='Аренда, лизинг, концессия'!L21 -> 0 | N92: ='Аренда, лизинг, концессия'!M21 -> 0 | O92: ='Аренда, лизинг, концессия'!N21 -> 0 | P92: ='Аренда, лизинг, концессия'!O19 -> 0 | Q92: 0
A93: 7 | B93: Расходы, связанные с уплатой налогов и сборов | C93: тыс. руб. | D93: =SUM(D94:D99) -> 54.95 | E93: =SUM(E94:E99) -> 0 | F93: =SUM(F94:F99) -> 0 | G93: -54.95 | H93: =SUM(H94:H99) -> 51.13677892 | I93: =SUM(I94:I99) -> 56.838 | J93: 0 | K93: -51.13677892 | L93: 58.68501824 | M93: 82.189 | N93: 0 | O93: 60.555 | R93: 67.972 | T93: 77.37 | V93: =SUM(V94:V99) -> 88.202 | W93: =SUM(W94:W99) ->  | X93: =SUM(X94:X99) -> 100.64 | Y93: =SUM(Y94:Y99) -> 
A94: 7.1 | B94: Налог на имущество организаций | C94: тыс. руб. | D94: 10.53 | G94: -10.53 | H94: =Налоги!D8 -> 0 | I94: =Налоги!E8 -> 25.27 | J94: =Налоги!F8 -> 0 | K94: 0 | L94: =Налоги!G8 -> 0 | M94: =Налоги!H8 -> 20.071 | N94: =Налоги!I8 -> 0 | O94: =Налоги!J8 -> 0 | P94: =Налоги!K8 -> 0 | Q94: 0 | R94: ='Амор-ция и налог на им-во'!X36 -> 0 | S94: ='Амор-ция и налог на им-во'!AW36 -> 0 | T94: ='Амор-ция и налог на им-во'!Z36 -> 0 | U94: ='Амор-ция и налог на им-во'!AY36 -> 0 | V94: ='Амор-ция и налог на им-во'!AB36 -> 0 | W94: ='Амор-ция и налог на им-во'!BA36 -> 0 | X94: ='Амор-ция и налог на им-во'!AD36 -> 0 | Y94: ='Амор-ция и налог на им-во'!BC36 -> 0
A95: 7.2 | B95: Плата за негативное воздействие на окружающую среду | C95: тыс. руб. | G95: 0 | H95: =Налоги!D9 -> 0 | I95: =Налоги!E9 -> 5.28 | J95: =Налоги!F9 -> 0 | K95: 0 | L95: =Налоги!G9 -> 0 | M95: =Налоги!H9 -> 1.452 | N95: =Налоги!I9 -> 0 | O95: =Налоги!J9 -> 0 | P95: =Налоги!K9 -> 0 | Q95: 0 | R95: 5.28 | T95: 5.28 | V95: 5.28 | X95: 5.28
A96: 7.3 | B96: Водный налог и плата за пользование водным объектом | C96: тыс. руб. | D96: 44.42 | G96: -44.42 | H96: =Налоги!D10 -> 51.13677892 | I96: =Налоги!E10 -> 26.288 | J96: =Налоги!F10 -> 0 | K96: -51.13677892 | L96: =Налоги!G10 -> 58.68501824 | M96: =Налоги!H10 -> 60.666 | N96: =Налоги!I10 -> 0 | O96: =Налоги!J10 -> 60.555 | P96: =Налоги!K10 ->  | R96: ='Водный налог'!N31/1000 -> 62.692 | S96: ='Водный налог'!F31 ->  | T96: ='Водный налог'!N37/1000 -> 72.09 | U96: ='Водный налог'!F37 ->  | V96: ='Водный налог'!N43/1000 -> 82.922 | W96: ='Водный налог'!F43 ->  | X96: ='Водный налог'!N49/1000 -> 95.36 | Y96: ='Водный налог'!F49 -> 
A97: 7.4 | B97: Земельный налог | C97: тыс. руб. | G97: 0 | H97: =Налоги!D11 -> 0 | I97: =Налоги!E11 -> 0 | J97: =Налоги!F11 -> 0 | K97: 0 | L97: =Налоги!G11 -> 0 | M97: =Налоги!H11 -> 0 | N97: =Налоги!I11 -> 0 | O97: =Налоги!J11 -> 0 | P97: =Налоги!K11 -> 0 | Q97: 0
A98: 7.5 | B98: Транспортный налог | C98: тыс. руб. | G98: 0 | H98: =Налоги!D12 -> 0 | I98: =Налоги!E12 -> 0 | J98: =Налоги!F12 -> 0 | K98: 0 | L98: =Налоги!G12 -> 0 | M98: =Налоги!H12 -> 0 | N98: =Налоги!I12 -> 0 | O98: =Налоги!J12 -> 0 | P98: =Налоги!K12 -> 0 | Q98: 0
A99: 7.6 | B99: Прочие налоги и сборы, за исключением налогов и сборов с ФОТ, учитываемых в составе производственных, ремонтных и административных расходов | C99: тыс. руб. | G99: 0 | K99: 0 | Q99: 0
B100: Итого производственная себестоимость | C100: тыс. руб. | D100: =D7+D56+D66+D84+D86+D88+D93 -> 2361.235 | E100: =E7+E56+E66+E84+E86+E88+E93 -> 2052.69 | F100: =F7+F56+F66+F84+F86+F88+F93 -> 0 | G100: -2361.235 | H100: =H7+H56+H66+H84+H86+H88+H93 -> 2584.36639 | I100: =I7+I56+I66+I84+I86+I88+I93 -> 3093.054183 | J100: =J7+J56+J66+J84+J86+J88+J93 ->  | L100: =L7+L56+L66+L84+L86+L88+L93 -> 2707.216348 | M100: =M7+M56+M66+M84+M86+M88+M93 -> 3990.618044 | N100: =N7+N56+N66+N84+N86+N88+N93 -> 0 | O100: =O7+O56+O66+O84+O86+O88+O93 -> 2673.491359 | P100: =P7+P56+P66+P84+P86+P88+P93 -> 
B101: Производственная себестоимость | C101: руб./куб.м. | D101: =D100/D133 -> 17.2147072 | E101: =E100/E133 -> 30.68080832 | F101: =F100/F133 ->  | H101: =H100/H133 -> 18.84145827 | I101: =I100/I133 -> 47.56267743 | J101: =J100/J133 ->  | L101: =L100/L133 -> 19.7371023 | M101: =M100/M133 -> 54.19114131 | N101: =N100/N133 ->  | O101: =O100/O133 -> 19.49170343 | P101: =P100/P133 -> 
B102: НВВ на реализацию | C102: тыс. руб. | D102: =D101*D135 -> 2361.235 | E102: =E101*E135 -> 2052.69 | F102: =F101*F135 ->  | H102: =H101*H135 -> 2584.36639 | I102: =I101*I135 -> 3093.054183 | J102: =J101*J135 ->  | L102: =L101*L135 -> 2707.216348 | M102: =M101*M135 -> 3990.618044 | N102: =N101*N135 ->  | O102: =O101*O135 -> 2673.491359 | P102: =P101*P135 -> 
A103: 8 | B103: Нормативная прибыль | C103: тыс. руб. | D103: =D104+D107+D108 -> 0 | E103: =E104+E107+E108 -> 0 | F103: =F104+F107+F108 -> 0 | G103: 0 | H103: =H104+H107+H108 -> 0 | I103: =I104+I107+I108 -> 0 | J103: =J104+J107+J108 -> 0 | K103: 0 | L103: =L104+L107+L108 -> 0 | M103: 0 | N103: 0 | O103: 0 | P103: 0 | Q103: 0 | R103: 0 | S103: 0 | T103: 0 | U103: 0 | V103: =V104+V107+V108 -> 0 | W103: =W104+W107+W108 -> 0 | X103: =X104+X107+X108 -> 0 | Y103: =Y104+Y107+Y108 -> 0
A104: 8.1 | B104: Средства на возврат займов и кредитов и процентов по ним | C104: тыс. руб. | D104: =D105+D106 -> 0 | E104: =E105+E106 -> 0 | F104: =F105+F106 -> 0 | G104: 0 | H104: =H105+H106 -> 0 | I104: =I105+I106 -> 0 | J104: =J105+J106 -> 0 | K104: 0 | L104: =L105+L106 -> 0 | M104: =M105+M106 -> 0 | N104: =N105+N106 -> 0 | O104: =O105+O106 -> 0 | P104: =P105+P106 -> 0 | Q104: 0 | R104: =R105+R106 -> 0 | S104: 0 | T104: 0 | U104: 0 | V104: 0 | W104: 0 | X104: 0 | Y104: 0
A105: 8.1.1 | B105: Возврат займов и кредитов | C105: тыс. руб. | G105: 0 | H105: ='Нормативная прибыль'!D7 -> 0 | K105: 0 | L105: ='Нормативная прибыль'!G7 -> 0 | O105: ='Нормативная прибыль'!J7 -> 0 | P105: ='Нормативная прибыль'!K7 -> 0 | Q105: 0
A106: 8.1.2 | B106: Проценты по займам и кредитам | C106: тыс. руб. | G106: 0 | H106: ='Нормативная прибыль'!D8 -> 0 | K106: 0 | L106: ='Нормативная прибыль'!G8 -> 0 | O106: ='Нормативная прибыль'!J8 -> 0 | P106: ='Нормативная прибыль'!K8 -> 0 | Q106: 0
A107: 8.2 | B107: Расходы на капитальные вложения | C107: тыс. руб. | G107: 0 | H107: ='Нормативная прибыль'!D9 -> 0 | K107: 0 | L107: ='Нормативная прибыль'!G9 -> 0 | O107: ='Нормативная прибыль'!J9 -> 0 | P107: ='Нормативная прибыль'!K9 -> 0 | Q107: 0
A108: 8.3 | B108: Расходы на социальные нужды, предусмотренные коллективными договорами, в соответствии с подпунктом 3 пункта 31 Методических указаний | C108: тыс. руб. | G108: 0 | H108: ='Нормативная прибыль'!D10 -> 0 | K108: 0 | L108: ='Нормативная прибыль'!G10 -> 0 | O108: ='Нормативная прибыль'!J10 -> 0 | P108: ='Нормативная прибыль'!K10 -> 0 | Q108: 0
A109: 9 | B109: Расчетная предпринимательская прибыль гарантирующей организации | C109: тыс. руб. | D109: 0 | E109: 0 | G109: 0 | H109: ='Нормативная прибыль'!D13 -> 0 | I109: ='Нормативная прибыль'!E13 -> 0 | J109: ='Нормативная прибыль'!F13 -> 0 | K109: 0 | L109: ='Нормативная прибыль'!G13 -> 0 | M109: ='Нормативная прибыль'!H13 -> 0 | N109: ='Нормативная прибыль'!I13 -> 0 | O109: ='Нормативная прибыль'!J13 -> 0 | P109: ='Нормативная прибыль'!K13 -> 0 | Q109: 0 | R109: 0 | T109: 0 | V109: 0 | X109: 0
A110: 10 | B110: Фактическая прибыль/убыток | C110: тыс. руб. | E110: =E115-E102-E103-E109-E111-E112+E114 -> -900.69 | F110: =F115-F102-F103-F109-F111-F112+F114 ->  | I110: =I115-I102-I103-I109-I111-I112+I114 -> -1923.654183 | J110: =J115-J102-J103-J109-J111-J112+J114 ->  | M110: ='Нормативная прибыль'!H15 -> 0 | N110: ='Нормативная прибыль'!I15 -> 0 | Q110: 0
A111: 11 | B111: Налог на прибыль | C111: тыс. руб. | G111: 0 | K111: 0 | Q111: 0
A112: 12 | B112: Налог, уплачиваемый в связи с применением упрощенной системы налогообложения | C112: тыс. руб. | G112: 0 | K112: 0 | Q112: 0
A113: 13 | B113: Расходы, связанные с приобретением регулируемой организацией товаров (работ, услуг), используемых при осуществлении регулируемых видов деятельности, по завышенным ценам и в завышенных объемах | C113: тыс. руб. | G113: 0 | K113: 0 | L113: -278.24 | Q113: 0
A114: 14 | B114: Субсидии из бюджета | C114: тыс. руб. | G114: 0 | K114: 0 | Q114: 0
B115: ИТОГО НВВ (выручка) | C115: тыс. руб. | D115: =D102+D103+D109+D111+D112+D113-D114 -> 2361.235 | E115: 1152 | G115: -2361.235 | H115: =H102+H103+H109+H111+H112+H113-H114 -> 2584.36639 | I115: 1169.4 | K115: -2584.36639 | L115: =L102+L103+L109+L111+L112+L113-L114 -> 2428.976348 | M115: =M102+M103+M109+M110+M111+M112+M113-M114 -> 3990.618044 | N115: =N102+N103+N109+N110+N111+N112+N113-N114 ->  | O115: =O102+O103+O109+O111+O112+O113-O114 -> 2673.491359 | P115: =P102+P103+P109+P111+P112+P113-P114 -> 
B117: Нормативная прибыль, не более 7% от НВВ
A118: Руководитель организации ____________________________________
A120: Ответственный за составление формы ______________________________________
B121: МП
A123: Натуральные показатели по водоснабжению
A125: № п/п | B125: Наименование | C125: Ед. изм. | D125: 2016 | F125: 2016 факт РЭК | G125: Отклонение | H125: 2017 | J125: 2017 факт РЭК | K125: Отклонение | L125: 2018 | N125: 2018 ожид РЭК | O125: 2019 | P125: 2019 план РЭК | Q125: Отклонение | R125: 2020 | S125: 2020 план РЭК | T125: 2021 | U125: 2021 план РЭК | V125: 2022 | W125: 2022 план РЭК | X125: 2023 | Y125: 2023 план РЭК
D126: утверждено РЭК | E126: факт ОКК | H126: утверждено РЭК | I126: факт ОКК | L126: утверждено РЭК | M126: ожид ОКК | O126: план ОКК | R126: план ОКК | T126: план ОКК | V126: план ОКК | X126: план ОКК
A127: 1 | B127: 2 | C127: 3
A128: 1 | B128: Подъем воды | C128: тыс. куб.м. | D128: 207.95 | E128: 209.93 | G128: =F128-D128 -> -207.95 | H128: 207.95 | I128: 212.52 | K128: =J128-H128 -> -207.95 | L128: 207.95 | M128: 256.62 | O128: 186.41 | Q128: =P128-O128 -> -186.41 | R128: 207.95 | T128: 207.95 | V128: 207.95 | X128: 207.95
A129: 2 | B129: Объем покупной воды | C129: тыс. куб.м. | E129: =Объемы!H59 -> 0 | G129: =F129-D129 -> 0 | I129: =Объемы!K59 -> 0 | K129: =J129-H129 -> 0 | M129: =Объемы!N59 -> 0 | O129: =Объемы!Q59 -> 0 | Q129: =P129-O129 -> 0 | R129: =Объемы!T59 -> 0 | T129: =Объемы!W59 -> 0 | V129: =Объемы!Z59 -> 0 | X129: =Объемы!AC59 -> 0
A130: 3 | B130: Подано воды в сеть | C130: тыс. куб.м. | D130: =D128+D129 -> 207.95 | E130: =E128+E129 -> 209.93 | F130: =F128+F129 -> 0 | G130: -207.95 | H130: =H128+H129 -> 207.95 | I130: =I128+I129 -> 212.52 | J130: 0 | K130: -207.95 | L130: 207.95 | M130: 256.62 | N130: 0 | O130: 186.41 | P130: 0 | Q130: -186.41 | R130: 207.95 | S130: 0 | T130: 207.95 | U130: 0 | V130: =V128+V129 -> 207.95 | W130: =W128+W129 -> 0 | X130: =X128+X129 -> 207.95 | Y130: =Y128+Y129 -> 0
A131: 4 | B131: Потери | C131: тыс. куб.м. | D131: =D130*D132% -> 70.78618 | E131: =E130*E132% -> 143.025309 | F131: =F130*F132% -> 0 | G131: -70.78618 | H131: =H130*H132% -> 70.78618 | I131: =I130*I132% -> 147.48888 | J131: 0 | K131: -70.78618 | L131: 70.78618 | M131: 182.9803248 | N131: 0 | O131: 49.249522 | P131: 0 | Q131: -49.249522 | R131: 70.78618 | S131: 0 | T131: 70.78618 | U131: 0 | V131: =V130*V132% -> 70.78618 | W131: =W130*W132% -> 0 | X131: =X130*X132% -> 70.78618 | Y131: =Y130*Y132% -> 0
C132: % | D132: 34.04 | E132: 68.13 | G132: -34.04 | H132: 34.04 | I132: 69.4 | K132: -34.04 | L132: 34.04 | M132: 71.304 | O132: 26.42 | Q132: -26.42 | R132: 34.04 | T132: 34.04 | V132: 34.04 | X132: 34.04
A133: 5 | B133: Полезный отпуск | C133: тыс. куб.м. | D133: =D130-D131 -> 137.16382 | E133: =E130-E131 -> 66.904691 | F133: =F130-F131 -> 0 | G133: -137.16382 | H133: =H130-H131 -> 137.16382 | I133: =I130-I131 -> 65.03112 | J133: 0 | K133: -137.16382 | L133: 137.16382 | M133: 73.6396752 | N133: 0 | O133: 137.160478 | P133: 0 | Q133: -137.160478 | R133: 137.16382 | S133: 0 | T133: 137.16382 | U133: 0 | V133: =V130-V131 -> 137.16382 | W133: =W130-W131 -> 0 | X133: =X130-X131 -> 137.16382 | Y133: =Y130-Y131 -> 0
A134: 6 | B134: Внутрихозяйственный оборот | C134: тыс. куб.м. | E134: =Объемы!H56 -> 0 | G134: 0 | I134: =Объемы!K56 -> 0 | K134: 0 | M134: =Объемы!N56 -> 0 | O134: =Объемы!Q56 -> 0 | Q134: 0 | R134: =Объемы!T56 -> 0 | T134: =Объемы!W56 -> 0 | V134: =Объемы!Z56 -> 0 | X134: =Объемы!AC56 -> 0
A135: 7 | B135: Реализация услуг, в т.ч. | C135: тыс. куб.м. | D135: =D133-D134 -> 137.16382 | E135: =E133-E134 -> 66.904691 | F135: =F133-F134 -> 0 | G135: -137.16382 | H135: =H133-H134 -> 137.16382 | I135: =I133-I134 -> 65.03112 | J135: 0 | K135: -137.16382 | L135: 137.16382 | M135: 73.6396752 | N135: 0 | O135: 137.160478 | P135: 0 | Q135: -137.160478 | R135: 137.16382 | S135: 0 | T135: 137.16382 | U135: 0 | V135: =V133-V134 -> 137.16382 | W135: =W133-W134 -> 0 | X135: =X133-X134 -> 137.16382 | Y135: =Y133-Y134 -> 0
A136: 7.1 | B136: - население | C136: тыс. куб.м. | D136: 115.68 | E136: =Объемы!H46 -> 52.63 | G136: -115.68 | H136: 115.68 | I136: =Объемы!K46 -> 54.67 | K136: -115.68 | L136: 115.68 | M136: =Объемы!N46 -> 61.56 | O136: =Объемы!Q46 -> 115.68 | Q136: -115.68 | R136: =Объемы!T46 -> 115.68 | T136: =Объемы!W46 -> 115.68 | V136: =Объемы!Z46 -> 115.68 | X136: =Объемы!AC46 -> 115.68
A137: 7.2 | B137: - специализированные организации (ВКХ), в т.ч. | C137: тыс. куб.м. | D137: =D138+D139 -> 0 | E137: =E138+E139 -> 0 | F137: =F138+F139 -> 0 | G137: 0 | H137: =H138+H139 -> 0 | I137: =I138+I139 -> 0 | J137: 0 | K137: 0 | L137: 0 | M137: 0 | N137: 0 | O137: 0 | P137: 0 | Q137: 0 | R137: 0 | S137: 0 | T137: 0 | U137: 0 | V137: =V138+V139 -> 0 | W137: =W138+W139 -> 0 | X137: =X138+X139 -> 0 | Y137: =Y138+Y139 -> 0 | AA137: Итого | AB137: =AB138+AB139 -> 0
A138: 7.2.1 | B138: в доле реализации населению | C138: тыс. куб.м. | E138: =Объемы!H49 -> 0 | G138: 0 | I138: =Объемы!K49 -> 0 | K138: 0 | M138: =Объемы!N49 -> 0 | O138: =Объемы!Q49 -> 0 | Q138: 0 | R138: =Объемы!T49 -> 0 | T138: =Объемы!W49 -> 0 | V138: =Объемы!Z49 -> 0 | X138: =Объемы!AC49 -> 0 | AA138: население
A139: 7.2.2 | B139: в доле реализации прочим и бюджетным потребителям | C139: тыс. куб.м. | E139: =Объемы!H50 -> 0 | G139: 0 | I139: =Объемы!K50 -> 0 | K139: 0 | M139: =Объемы!N50 -> 0 | O139: =Объемы!Q50 -> 0 | Q139: 0 | R139: =Объемы!T50 -> 0 | T139: =Объемы!W50 -> 0 | V139: =Объемы!Z50 -> 0 | X139: =Объемы!AC50 -> 0 | AA139: прочие
A140: 7.3 | B140: - бюджетные, в т.ч. | C140: тыс. куб.м. | D140: =SUM(D141:D143) -> 1.53 | E140: =SUM(E141:E143) -> 2.51 | F140: =SUM(F141:F143) -> 0 | G140: -1.53 | H140: =SUM(H141:H143) -> 1.53 | I140: =SUM(I141:I143) -> 1.8 | J140: 0 | K140: -1.53 | L140: 1.53 | M140: 2.22 | N140: 0 | O140: 1.53 | P140: 0 | Q140: -1.53 | R140: 1.53 | S140: 0 | T140: 1.53 | U140: 0 | V140: =SUM(V141:V143) -> 1.53 | W140: =SUM(W141:W143) -> 0 | X140: =SUM(X141:X143) -> 1.53 | Y140: =SUM(Y141:Y143) -> 0
A141: 7.3.1 | B141: федеральный бюджет | C141: тыс. куб.м. | E141: =Объемы!H52 -> 0 | G141: 0 | I141: =Объемы!K52 -> 0 | K141: 0 | M141: =Объемы!N52 -> 0 | O141: =Объемы!Q52 -> 0 | Q141: 0 | R141: =Объемы!T52 -> 0 | T141: =Объемы!W52 -> 0 | V141: =Объемы!Z52 -> 0 | X141: =Объемы!AC52 -> 0
A142: 7.3.2 | B142: региональный бюджет | C142: тыс. куб.м. | E142: =Объемы!H53 -> 0 | G142: 0 | I142: =Объемы!K53 -> 0 | K142: 0 | M142: =Объемы!N53 -> 0 | O142: =Объемы!Q53 -> 0 | Q142: 0 | R142: =Объемы!T53 -> 0 | T142: =Объемы!W53 -> 0 | V142: =Объемы!Z53 -> 0 | X142: =Объемы!AC53 -> 0
A143: 7.3.3 | B143: местный бюджет | C143: тыс. куб.м. | D143: 1.53 | E143: =Объемы!H54 -> 2.51 | G143: -1.53 | H143: 1.53 | I143: =Объемы!K54 -> 1.8 | K143: -1.53 | L143: 1.53 | M143: =Объемы!N54 -> 2.22 | O143: =Объемы!Q54 -> 1.53 | Q143: -1.53 | R143: =Объемы!T54 -> 1.53 | T143: =Объемы!W54 -> 1.53 | V143: =Объемы!Z54 -> 1.53 | X143: =Объемы!AC54 -> 1.53
A144: 7.4 | B144: - прочие потребители | C144: тыс. куб.м. | D144: 19.95 | E144: =E135-E136-E137-E140 -> 11.764691 | F144: =F135-F136-F137-F140 -> 0 | G144: -19.95 | H144: 19.95 | I144: =I135-I136-I137-I140 -> 8.56112 | J144: =J135-J136-J137-J140 -> 0 | K144: -19.95 | L144: 19.95 | M144: =M135-M136-M137-M140 -> 9.8596752 | N144: =N135-N136-N137-N140 -> 0 | O144: =O135-O136-O137-O140 -> 19.950478 | P144: =P135-P136-P137-P140 -> 0 | Q144: -19.950478 | R144: =R135-R136-R137-R140 -> 19.95382 | S144: 0 | T144: 19.95382 | U144: 0 | V144: 19.95382 | W144: 0 | X144: 19.95382 | Y144: 0
A145: 8 | B145: Распередление расходов пропорционально объемам реализации | C145: % | D145: =D135/D133*100 -> 100 | E145: =E135/E133*100 -> 100 | F145: =F135/F133*100 ->  | H145: =H135/H133*100 -> 100 | I145: =I135/I133*100 -> 100 | L145: 100 | M145: 100 | O145: 100 | R145: 100 | T145: 100 | V145: =V135/V133*100 -> 100 | W145: =W135/W133*100 ->  | X145: =X135/X133*100 -> 100 | Y145: =Y135/Y133*100 -> 
A147: Руководитель организации ____________________________________
A149: Ответственный за составление формы ______________________________________
B150: МП

Sheet Нат. показатели по МО
L1: Приложение Г
A2: Натуральные показатели ПЛАНОВЫХ объемов водоснабжения на 2019 год (в разрезе муниципальных образований)*
A4: Наименование показателей | B4: Ед. изм. | C4: ВСЕГО по предприятию, в т.ч. по МО | D4: _____________ городское поселение | E4: Новоивановское сельское поселение | F4: ______________ сельское поселение | G4: ______________ сельское поселение | H4: ______________ сельское поселение | I4: ______________ сельское поселение | J4: ______________ сельское поселение | K4: ______________ сельское поселение | L4: ______________ сельское поселение | M4: ______________ сельское поселение
A5: подъем | B5: тыс. куб.м. | C5: ='Смета расходов'!O128 -> 186.41 | E5: 207.95 | N5: =IF(C5=SUM(D5:M5),"верно","не верно") -> не верно
A6: покупная вода | B6: тыс. куб.м. | C6: ='Смета расходов'!O129 -> 0 | N6: верно
A7: Итого подъем и покупная вода | B7: тыс. куб.м. | C7: =C5+C6 -> 186.41 | D7: =D5+D6 -> 0 | E7: 207.95 | F7: =F5+F6 -> 0 | G7: =G5+G6 -> 0 | H7: 0 | I7: 0 | J7: 0 | K7: 0 | L7: 0 | M7: 0 | N7: не верно
A8: потери | B8: тыс. куб.м. | C8: =C7*C9% -> 49.249522 | D8: =D7*D9% -> 0 | E8: 114.3725 | F8: =F7*F9% -> 0 | G8: =G7*G9% -> 0 | H8: 0 | I8: 0 | J8: 0 | K8: 0 | L8: 0 | M8: 0 | N8: не верно
B9: % | C9: ='Смета расходов'!O132 -> 26.42 | E9: 55 | N9: не верно
A10: полезный отпуск | B10: тыс. куб.м. | C10: =C7-C8 -> 137.160478 | D10: =D7-D8 -> 0 | E10: 93.5775 | F10: =F7-F8 -> 0 | G10: =G7-G8 -> 0 | H10: 0 | I10: 0 | J10: 0 | K10: 0 | L10: 0 | M10: 0 | N10: не верно
A11: Внутрихозяйственный оборот | B11: тыс. куб.м. | C11: ='Смета расходов'!O134 -> 0 | N11: верно
A12: реализация услуг, в т.ч. | B12: тыс. куб.м. | C12: =C10-C11 -> 137.160478 | D12: =D10-D11 -> 0 | E12: 93.5775 | F12: =F10-F11 -> 0 | G12: =G10-G11 -> 0 | H12: 0 | I12: 0 | J12: 0 | K12: 0 | L12: 0 | M12: 0 | N12: не верно
A13: - население | B13: тыс. куб.м. | C13: ='Смета расходов'!O136 -> 115.68 | E13: 73.92 | N13: не верно
A14: - специализированные организации (ВКХ) | B14: тыс. куб.м. | C14: ='Смета расходов'!O137 -> 0 | N14: верно
A15: - бюджетные, в т.ч. | B15: тыс. куб.м. | C15: =SUM(C16:C18) -> 1.53 | D15: =SUM(D16:D18) -> 0 | E15: 2.37 | F15: =SUM(F16:F18) -> 0 | G15: =SUM(G16:G18) -> 0 | H15: 0 | I15: 0 | J15: 0 | K15: 0 | L15: 0 | M15: 0 | N15: не верно
A16: федеральный бюджет | B16: тыс. куб.м. | C16: ='Смета расходов'!O141 -> 0 | N16: верно
A17: краевой бюджет | B17: тыс. куб.м. | C17: ='Смета расходов'!O142 -> 0 | N17: верно
A18: местный бюджет | B18: тыс. куб.м. | C18: ='Смета расходов'!O143 -> 1.53 | E18: 2.37 | N18: не верно
A19: - прочие потребители | B19: тыс. куб.м. | C19: ='Смета расходов'!O144 -> 19.950478 | E19: 17.29 | N19: не верно
A20: прверка | C20: =IF(C12=SUM(C13,C14,C15,C19),"верно","не верно") -> верно | D20: =IF(D12=SUM(D13,D14,D15,D19),"верно","не верно") -> верно | E20: не верно | H20: верно | I20: верно | J20: верно | K20: верно | L20: верно | M20: верно
A23: Натуральные показатели ФАКТИЧЕСКИХ объемов водоснабжения за 2017 год (в разрезе муниципальных образований)*
A25: Наименование показателей | B25: Ед. изм. | C25: ВСЕГО по предприятию, в т.ч. по МО | D25: _____________ городское поселение | E25: Новоивановское сельское поселение | F25: _____________ сельское поселение | G25: _____________ сельское поселение | H25: _____________ сельское поселение | I25: _____________ сельское поселение | J25: _____________ сельское поселение | K25: _____________ сельское поселение | L25: _____________ сельское поселение | M25: _____________ сельское поселение
A26: подъем | B26: тыс. куб.м. | C26: ='Смета расходов'!I128 -> 212.52 | E26: 212.52 | N26: =IF(C26=SUM(D26:M26),"верно","не верно") -> верно
A27: покупная вода | B27: тыс. куб.м. | C27: ='Смета расходов'!I129 -> 0 | E27: 0 | N27: верно
A28: Итого подъем и покупная вода | B28: тыс. куб.м. | C28: =C26+C27 -> 212.52 | D28: 0 | E28: 212.52 | F28: =F26+F27 -> 0 | G28: =G26+G27 -> 0 | H28: 0 | I28: 0 | J28: 0 | K28: 0 | L28: 0 | M28: 0 | N28: верно
A29: потери | B29: тыс. куб.м. | C29: =C28*C30% -> 147.48888 | D29: 0 | E29: 147.48888 | F29: =F28*F30% -> 0 | G29: =G28*G30% -> 0 | H29: 0 | I29: 0 | J29: 0 | K29: 0 | L29: 0 | M29: 0 | N29: верно
B30: % | C30: ='Смета расходов'!I132 -> 69.4 | E30: 69.4 | N30: верно
A31: полезный отпуск | B31: тыс. куб.м. | C31: =C28-C29 -> 65.03112 | D31: =D28-D29 -> 0 | E31: 65.03112 | F31: =F28-F29 -> 0 | G31: =G28-G29 -> 0 | H31: 0 | I31: 0 | J31: 0 | K31: 0 | L31: 0 | M31: 0 | N31: верно
A32: Внутрихозяйственный оборот | B32: тыс. куб.м. | C32: ='Смета расходов'!I134 -> 0 | N32: верно
A33: реализация услуг, в т.ч. | B33: тыс. куб.м. | C33: =C31-C32 -> 65.03112 | D33: 0 | E33: 65.03112 | F33: =F31-F32 -> 0 | G33: =G31-G32 -> 0 | H33: 0 | I33: 0 | J33: 0 | K33: 0 | L33: 0 | M33: 0 | N33: верно
A34: - население | B34: тыс. куб.м. | C34: ='Смета расходов'!I136 -> 54.67 | E34: 54.67 | N34: верно
A35: - специализированные организации (ВКХ) | B35: тыс. куб.м. | C35: ='Смета расходов'!I137 -> 0 | E35: 0 | N35: верно
A36: - бюджетные, в т.ч. | B36: тыс. куб.м. | C36: =SUM(C37:C39) -> 1.8 | D36: 0 | E36: 1.8 | F36: =SUM(F37:F39) -> 0 | G36: =SUM(G37:G39) -> 0 | H36: 0 | I36: 0 | J36: 0 | K36: 0 | L36: 0 | M36: 0 | N36: верно
A37: федеральный бюджет | B37: тыс. куб.м. | C37: ='Смета расходов'!I141 -> 0 | N37: верно
A38: краевой бюджет | B38: тыс. куб.м. | C38: ='Смета расходов'!I142 -> 0 | N38: верно
A39: местный бюджет | B39: тыс. куб.м. | C39: ='Смета расходов'!I143 -> 1.8 | E39: 1.8 | N39: верно
A40: - прочие потребители | B40: тыс. куб.м. | C40: ='Смета расходов'!I144 -> 8.56112 | E40: 8.56 | N40: не верно
A41: проверка | C41: =IF(C33=SUM(C34:C36,C40),"верно","не верно") -> верно | D41: =IF(D33=SUM(D34:D36,D40),"верно","не верно") -> верно | E41: не верно | H41: верно | I41: верно | J41: верно | K41: верно | L41: верно | M41: верно
A43: Руководитель организации | B43: ______________________________________
A45: Ответственный за составление формы | B45: ______________________________________
B46: МП
A47: * в случае утверждения дифференцированных тарифов по системам коммунальной инфраструктуры таблицу представлять по системам (станицы, хутора, улицы)

Sheet Экономия ОР (hidden)
H1: Приложение 6.6
A2: Расчет экономии операционных расходов
A4: № п/п | B4: Показатели | C4: Единица измерения | D4: Истекший год (i1-4) | E4: по данным РЭК | F4: Истекший год (i-3) | G4: по данным РЭК | H4: Истекший год (i-2) | I4: по данным РЭК | J4: Текущий год (i1-1) | K4: по данным РЭК | L4: Год i1 | M4: по данным РЭК
C5: год | D5: - | E5: - | F5: - | G5: - | H5: 2016 | I5: 2016 | J5: 2017 | K5: 2017 | L5: 2018 | M5: 2018
A6: 1 | B6: 1 | C6: 2 | D6: 3 | E6: 3* | F6: 4 | G6: 4* | H6: 5 | I6: 5* | J6: 6 | K6: 6* | L6: 7 | M6: 7*
A7: 1 | B7: Скорректированные операционные расходы | C7: тыс. руб.
A8: 2 | B8: Фактические операционные расходы | C8: тыс. руб.
A9: 3 | B9: Экономия операционных расходов | C9: тыс. руб. | D9: =D7-D8 -> 0 | E9: =E7-E8 -> 0 | F9: =F7-F8 -> 0 | G9: 0 | H9: 0 | I9: 0 | J9: 0 | K9: 0 | L9: 0 | M9: 0
A10: 4 | B10: Прирост экономии операционных расходов | C10: тыс. руб. | D10: =D9 -> 0 | E10: =E9 -> 0 | F10: =F9-D9*(1+F11) -> 0 | G10: 0 | H10: 0 | I10: 0 | J10: 0 | K10: 0 | L10: 0 | M10: 0
A11: 5 | B11: Индекс потребительских цен
A12: 6 | B12: Кумулятивное значение индекса потребительских цен | D12: - | E12: - | F12: =(1+H11)*(1+J11)*(1+L11) -> 1 | G12: =(1+I11)*(1+K11)*(1+M11) -> 1 | H12: =(1+J11)*(1+L11) -> 1 | I12: =(1+K11)*(1+M11) -> 1 | J12: =(1+L11) -> 1 | K12: =(1+M11) -> 1 | L12: - | M12: -
A13: 7 | B13: Прирост экономии операционных расходов в ценах года i1 | D13: - | E13: - | F13: =F10*F12 -> 0 | G13: 0 | H13: 0 | I13: 0 | J13: 0 | K13: 0 | L13: =L10 -> 0 | M13: =M10 -> 0
A14: 8 | B14: Экономия операционных расходов, учитываемая в очередном долгосрочном периоде регулирования | C14: тыс. руб. | D14: - | E14: - | F14: - | G14: - | H14: - | I14: - | J14: - | K14: - | L14: =4/5*L13+3/5*J13+2/5*H13+1/5*F13 -> 0 | M14: =4/5*M13+3/5*K13+2/5*I13+1/5*G13 -> 0
A16: Руководитель организации ____________________________________
A18: Ответственный за составление формы ______________________________________
B19: МП
B20: Примечания:
B21: 1. Приложение заполняется за предшествующий долгосрочный период регулирования.
B22: 2. i1 - последний год текущего долгосрочного периода регулирования;
B23: 3. Стр. 3 = стр. 1 - стр. 2
B24: 4. В строке 4: гр. 3 = гр. 3 стр. 3;
B25: гр. 4 = гр. 4 стр. 3 - гр. 3 стр. 3 * (1 + гр. 4 стр. 5)
B26: гр. 5 = гр. 5 стр. 3 - гр. 4 стр. 3 * (1 + гр. 5 стр. 5)
B27: гр. 6 = гр. 6 стр. 3 - гр. 5 стр. 3 * (1 + гр. 6 стр. 5)
B28: гр. 7 = гр. 7 стр. 3 - гр. 6 стр. 3 * (1 + гр. 7 стр. 5)
B29: 5. В строке 6: гр. 4 = (1 + гр. 5 стр. 5) * (1 + гр. 6 стр. 5) * (1 + гр. 7 стр. 5)
B30: гр. 5 = (1 + гр. 6 стр. 5) * (1 + гр. 7 стр. 5)
B31: гр. 6 = (1 + гр. 7 стр. 5)
B32: 6. В строке 7: гр. стр. 7 = гр. стр. 4 * гр. стр. 6, кроме гр. 7
B33: гр. 7 стр. 7 = гр. стр. 4
B34: 7. Строка 8 заполняется только в графе 8.
B35: Если предшествующий долгосрочный период регулирования составляет 3 года:
B36: гр. 8 = (4/5 * гр. 7 + 3/5 * гр. 6 + 2/5 * гр. 5)|стр. 7
B37: Если предшествующий долгосрочный период регулирования составляет более 3 лет:
B38: гр. 8 = (4/5 * гр. 7 + 3/5 * гр. 6 + 2/5 * гр. 5 + 1/5 * гр. 4)|стр. 7

Sheet Экономия ЭЭ (hidden)
J1: Приложение 6.7
A2: Расчет экономии от снижения потребления электрической энергии (мощности), учитываемой в очередном долгосрочном периоде регулирования
A4: № п/п | B4: Показатели | C4: Единица измерения | D4: Истекший год (i1-4) | E4: по данным РЭК | F4: Истекший год (i-3) | G4: по данным РЭК | H4: Истекший год (i-2) | I4: по данным РЭК | J4: Текущий год (i1-1) | K4: по данным РЭК | L4: Год i1 | M4: по данным РЭК
C5: год | D5: - | E5: - | F5: - | G5: - | H5: 2016 | I5: 2016 | J5: 2017 | K5: 2017 | L5: 2018 | M5: 2018
A6: 1 | B6: 2 | C6: 3 | D6: 4 | E6: 4* | F6: 5 | G6: 5* | H6: 6 | I6: 6* | J6: 7 | K6: 7* | L6: 8 | M6: 8*
A7: 1 | B7: Удельный расход электрической энергии (мощности), учтенный при расчете тарифов | C7: тыс. кВтч/куб. м
A8: 2 | B8: Фактический объем отпуска воды (приема сточных вод) | C8: куб. м
A9: 3 | B9: Фактическая (расчетная) цена на электрическую энергию (мощность) | C9: руб./тыс. кВтч
A10: 4 | B10: Экономия от снижения потребления электрической энергии (мощности) | C10: тыс. кВтч/куб. м
A11: 5 | B11: Прирост экономии от снижения потребления электрической энергии (мощности) | C11: тыс. руб.
A12: 6 | B12: Значение индекса потребительских цен
A13: 7 | B13: Кумулятивное значение индекса потребительских цен | D13: - | E13: - | L13: - | M13: -
A14: 8 | B14: Прирост экономии от снижения потребления энергетических ресурсов в ценах года i1 | D14: - | E14: -
A15: 9 | B15: Экономия от снижения потребления электрической энергии (мощности), учитываемая в очередном долгосрочном периоде регулирования | C15: тыс. руб. | D15: - | E15: - | F15: - | G15: - | H15: - | I15: - | J15: - | K15: -
A17: Руководитель организации ____________________________________
A19: Ответственный за составление формы ______________________________________
B20: МП
B21: _____Примечания:
B22: _____1._Приложение заполняется за предшествующий долгосрочный период регулирования.
B23: _____2._Приложение заполняется для каждого источника тепловой энергии.
B24: _____3._Фактическая (расчетная) цена на топливо - с учетом затрат на его доставку и хранение, определяемая в соответствии с приложением 4.5 к настоящим Методическим указаниям с учетом остатков топлива и структуры используемого топлива, учтенной при расчете удельного расхода топлива.
B25: _____4._Графы строки 5 заполняются расчетным способом: гр. стр. 5 = (гр. стр. 2 - гр. стр. 1) * гр. стр. 3.
B26: _____5._Графы строки 6 заполняются расчетным способом: гр. стр. 6 = (гр. стр. 5 - гр. стр. 5|предыдущий год) * гр. стр. 4 / 103. Для первого года регулирования: гр. стр. 6 = гр. стр. 5 * гр. стр. 4 / 103.
B27: _____6._В строке 8: гр. 5 = (1 + гр. 6) * (1 + гр. 7) * (1 + гр. 8) строки 7;
B28: _____гр. 6 = (1 + гр. 7) * (1 + гр. 8) строки 7;
B29: _____гр. 7 = (1 + гр. 8) строки 7.
B30: _____7. Гр. стр. 9 = гр. стр. 6 * гр. стр. 8, кроме гр. 8
B31: _____гр. 8 стр. 9 = гр. стр. 6.
B32: _____8._Строка 10 заполняется только в графе 8.
B33: _____Если предшествующий долгосрочный период регулирования составляет 3 года:
B34: _____гр. 8 = (4/5 * гр. 8 + 3/5 * гр. 7 + 2/5 * гр. 6)|стр. 9
B35: _____Если предшествующий долгосрочный период регулирования составляет более 3 лет:
B36: _____гр. 8 = (4/5 * гр. 8 + 3/5 * гр. 7 + 2/5 * гр. 6 + 1/5 * гр. 5)|стр. 9

Sheet Экономия прЭР (hidden)
J1: Приложение 6.8
A2: Расчет экономии от снижения потребления прочих энергетических ресурсов, холодной воды,теплоносителя (далее в настоящем приложении - ресурсы), учитываемой в очередном долгосрочном периоде регулирования
A4: № п/п | B4: Показатели | C4: Единица измерения | D4: Истекший год (i1-4) | E4: по данным РЭК | F4: Истекший год (i-3) | G4: по данным РЭК | H4: Истекший год (i-2) | I4: по данным РЭК | J4: Текущий год (i1-1) | K4: по данным РЭК | L4: Год i1 | M4: по данным РЭК
C5: год | D5: - | E5: - | F5: - | G5: - | H5: 2016 | I5: 2016 | J5: 2017 | K5: 2017 | L5: 2018 | M5: 2018
A6: 1 | B6: 2 | C6: 3 | D6: 4 | E6: 4* | F6: 5 | G6: 5* | H6: 6 | I6: 6* | J6: 7 | K6: 7* | L6: 8 | M6: 8*
A7: 1 | B7: Фактический объем воды (сточных вод), отпущенных или принятых в водопроводную и канализационную сеть | C7: тыс. куб. м
A8: 2 | B8: Расчетный объем воды (сточных вод), отпущенных или принятых в водопроводную и канализационную сеть соответственно, учтенный при установлении тарифов | C8: тыс. куб. м
A9: 3 | B9: Объем потребления ресурса, учтенный при установлении тарифов
A10: 4 | B10: Фактический объем потребления ресурса
A11: 5 | B11: Фактическая стоимость приобретения (производства) единицы ресурса
A12: 6 | B12: Экономия от снижения потребления ресурсов | C12: тыс. руб. | D12: =D7/D8*D9-D10 ->  | E12: =E7/E8*E9-E10 -> 
A13: 7 | B13: Прирост экономии от снижения потребления ресурсов | C13: тыс. руб. | D13: =D12*D11 ->  | E13: =E12*E11 ->  | F13: =(F12-D12)*F11 -> 
A14: 8 | B14: Значение индекса потребительских цен
A15: 9 | B15: Кумулятивное значение индекса потребительских цен | D15: - | E15: - | F15: =(1+H14)*(1+J14)*(1+L14) -> 1 | G15: =(1+I14)*(1+K14)*(1+M14) -> 1 | H15: =(1+J14)*(1+L14) -> 1 | I15: =(1+K14)*(1+M14) -> 1 | J15: =(1+L14) -> 1 | K15: =(1+M14) -> 1 | L15: - | M15: -
A16: 10 | B16: Прирост экономии от снижения потребления ресурсов в ценах года il | C16: тыс. руб. | F16: =F13*F15 ->  | L16: =L13 ->  | M16: =M13 -> 
A17: 11 | B17: Экономия от снижения потребления ресурсов, учитываемая в очередном долгосрочном периоде регулирования | C17: тыс. руб. | D17: - | E17: - | F17: - | G17: - | H17: - | I17: - | J17: - | K17: - | L17: =4/5*L16+3/5*J16+2/5*H16+1/5*F16 ->  | M17: =4/5*M16+3/5*K16+2/5*I16+1/5*G16 -> 
A19: Руководитель организации ____________________________________
A21: Ответственный за составление формы ______________________________________
B22: МП
B23: Примечания:
B24: 1._Приложение заполняется за предшествующий долгосрочный период регулирования.
B25: 2._Приложение заполняется для каждого вида ресурсов.
B26: 3._Графы строки 6 заполняются расчетным способом: гр. стр. 6 = гр. стр. 1 / гр. стр. 2 * гр. стр. 3 - гр. стр. 4.
B27: 4._Графы строки 7 заполняются расчетным способом: гр. стр. 7 = (гр. стр. 6 - гр. стр. 6|предыдущий год) * гр. стр. 5. Для первого года регулирования: стр. 7 = гр. стр. 6 * гр. стр. 5. Необходимо согласовать единицы измерения всех показателей для того, чтобы выразить прирост экономии от снижения потребления ресурсов в тыс. руб.
B28: 5._В строке 9: гр. 5 = (1 + гр. 6) * (1 + гр. 7) * (1 + гр. 8) строки 8;
B29: _____гр. 6 = (1 + гр. 7) * (1 + гр. 8) строки 8;
B30: _____гр. 7 = (1 + гр. 8) строки 8.
B31: 6._Гр. стр. 10 = гр. стр. 7 * гр. стр. 9, кроме гр. 8
B32: _____гр. 8 стр. 10 = гр. стр. 7.
B33: 7._Строка 11 заполняется только в графе 8.
B34: _____Если предшествующий долгосрочный период регулирования составляет 3 года:
B35: _____гр. 8 = (4/5 * гр. 8 + 3/5 * гр. 7 + 2/5 * гр. 6)|стр. 10
B36: _____Если предшествующий долгосрочный период регулирования составляет более 3 лет:
B37: _____гр. 8 = (4/5 * гр. 8 + 3/5 * гр. 7 + 2/5 * гр. 6 + 1/5 * гр. 5)|стр. 10

Sheet Баланс ВС (hidden)
I1: Приложение 1
A2: Баланс водоснабжения
A4: № п/п | B4: Наименование | C4: Ед. изм. | D4: 2013 | F4: 2014 | H4: 2014 факт РЭК | I4: 2015 | K4: 2015 ожид РЭК | L4: 2016 | M4: 2016 план РЭК
D5: план | E5: факт | F5: план | G5: факт | I5: план | J5: ожид | L5: план
A6: 1 | B6: 2 | C6: 3 | D6: 4 | E6: 5 | F6: 6 | G6: 7 | H6: 7* | I6: 8 | J6: 9 | K6: 9* | L6: 10 | M6: 10*
A7: 1 | B7: Водоподготовка
A8: 1.1 | B8: Объем воды из источников водоснабжения: | C8: тыс. куб. м | D8: =D9+D10+D11 -> 0 | E8: =E9+E10+E11 -> 0 | F8: 0 | G8: 0 | H8: 0 | I8: 0 | J8: 0 | K8: 0 | L8: 0 | M8: 0
A9: 1.1.1 | B9: из поверхностных источников | C9: тыс. куб. м
A10: 1.1.2 | B10: из подземных источников | C10: тыс. куб. м
A11: 1.1.3 | B11: доочищенная сточная вода для нужд технического водоснабжения | C11: тыс. куб. м
A12: 1.2 | B12: Объем воды, прошедшей водоподготовку | C12: тыс. куб. м
A13: 1.3 | B13: Объем технической воды, поданной в сеть | C13: тыс. куб. м
A14: 1.4 | B14: Объем питьевой воды, поданной в сеть | C14: тыс. куб. м
A15: 2 | B15: Приготовление горячей воды
A16: 2.1 | B16: Объем воды из собственных источников | C16: тыс. куб. м
A17: 2.2 | B17: Объем приобретенной питьевой воды | C17: тыс. куб. м
A18: 2.3 | B18: Объем горячей воды, поданной в сеть | C18: тыс. куб. м
A19: 3 | B19: Транспортировка питьевой воды
A20: 3.1 | B20: Объем воды, поступившей в сеть: | C20: тыс. куб. м | D20: =D21+D22+D23 -> 0 | E20: =E21+E22+E23 -> 0 | F20: 0 | G20: 0 | H20: 0 | I20: 0 | J20: 0 | K20: 0 | L20: 0 | M20: 0
A21: 3.1.1 | B21: из собственных источников | C21: тыс. куб. м
A22: 3.1.2 | B22: от других операторов | C22: тыс. куб. м
A23: 3.1.3 | B23: получено от других территорий, дифференцированных по тарифу | C23: тыс. куб. м
A24: 3.2 | B24: Потери воды | C24: тыс. куб. м
A25: 3.3 | B25: Потребление на собственные нужды | C25: тыс. куб. м
A26: 3.4 | B26: Объем воды, отпущенной из сети | C26: тыс. куб. м
A27: 3.5 | B27: Передано на другие территории, дифференцированные по тарифу | C27: тыс. куб. м
A28: 4 | B28: Транспортировка технической воды
A29: 4.1 | B29: Объем воды, поступившей в сеть | C29: тыс. куб. м
A30: 4.2 | B30: Потери воды | C30: тыс. куб. м
A31: 4.3 | B31: Потребление на собственные нужды | C31: тыс. куб. м
A32: 4.4 | B32: Объем воды, отпущенной из сети | C32: тыс. куб. м
A33: 5 | B33: Транспортировка горячей воды
A34: 5.1 | B34: Объем воды, поступившей в сеть | C34: тыс. куб. м
A35: 5.2 | B35: Потери воды | C35: тыс. куб. м
A36: 5.3 | B36: Потребление на собственные нужды | C36: тыс. куб. м
A37: 5.4 | B37: Объем воды, отпущенной из сети | C37: тыс. куб. м
A38: 6 | B38: Отпуск питьевой воды
A39: 6.1 | B39: Объем воды, отпущенной абонентам: | C39: тыс. куб. м | D39: =D40+D41 -> 0 | E39: =E40+E41 -> 0 | F39: 0 | G39: 0 | H39: 0 | I39: 0 | J39: 0 | K39: 0 | L39: 0 | M39: 0
A40: 6.1.1 | B40: по приборам учета | C40: тыс. куб. м
A41: 6.1.2 | B41: по нормативам | C41: тыс. куб. м
A42: 6.2 | B42: для приготовления горячей воды | C42: тыс. куб. м
A43: 6.3 | B43: при дифференциации тарифов по объему | C43: тыс. куб. м | D43: =SUM(D44:D45) -> 0 | E43: 0 | F43: 0 | G43: 0 | H43: 0 | I43: 0 | J43: 0 | K43: 0 | L43: 0 | M43: 0
A44: 6.3.1 | B44: в пределах i-го объема | C44: тыс. куб. м
B45: Добавить
A46: 6.4 | B46: По абонентам | C46: тыс. куб. м | D46: =D47+D50 -> 0 | E46: 0 | F46: 0 | G46: 0 | H46: 0 | I46: 0 | J46: 0 | K46: 0 | L46: 0 | M46: 0
A47: 6.4.1 | B47: другим организациям, осуществляющим водоснабжение | C47: тыс. куб. м | D47: =SUM(D48:D49) -> 0 | E47: 0 | F47: 0 | G47: 0 | H47: 0 | I47: 0 | J47: 0 | K47: 0 | L47: 0 | M47: 0
A48: 6.4.1.1 | B48: (организация 1) | C48: тыс. куб. м
B49: Добавить
A50: 6.4.2 | B50: собственным абонентам | C50: тыс. куб. м
A51: 7 | B51: Отпуск технической воды
A52: 7.1 | B52: Объем воды, отпущенной абонентам | C52: тыс. куб. м
A53: 7.2 | B53: при дифференциации тарифов по объему | C53: тыс. куб. м | D53: =SUM(D54:D55) -> 0 | E53: 0 | F53: 0 | G53: 0 | H53: 0 | I53: 0 | J53: 0 | K53: 0 | L53: 0 | M53: 0
A54: 7.2.1 | B54: в пределах i-го объема | C54: тыс. куб. м
B55: Добавить
A56: 7.3 | B56: По абонентам | C56: тыс. куб. м | D56: =D57+D60 -> 0 | E56: 0 | F56: 0 | G56: 0 | H56: 0 | I56: 0 | J56: 0 | K56: 0 | L56: 0 | M56: 0
A57: 7.3.1 | B57: другим организациям, осуществляющим водоснабжение | C57: тыс. куб. м | D57: =SUM(D58:D59) -> 0 | E57: 0 | F57: 0 | G57: 0 | H57: 0 | I57: 0 | J57: 0 | K57: 0 | L57: 0 | M57: 0
A58: 7.3.1.1 | B58: (организация 1) | C58: тыс. куб. м
B59: Добавить
A60: 7.3.2 | B60: собственным абонентам | C60: тыс. куб. м
A61: 8 | B61: Отпуск горячей воды
A62: 8.1 | B62: Объем воды, отпущенной абонентам: | C62: тыс. куб. м | D62: =D63+D64 -> 0 | E62: =E63+E64 -> 0 | F62: 0 | G62: 0 | H62: 0 | I62: 0 | J62: 0 | K62: 0 | L62: 0 | M62: 0
A63: 8.1.1 | B63: по приборам учета | C63: тыс. куб. м
A64: 8.1.2 | B64: по нормативам | C64: тыс. куб. м
B65: в соответствии с санитарными нормами | C65: тыс. куб. м
B66: с нарушением санитарных норм | C66: тыс. куб. м
B67: по температуре | C67: тыс. куб. м
B68: по качеству воды | C68: тыс. куб. м
A69: 8.2 | B69: при дифференциации тарифов по объему | C69: тыс. куб. м | D69: =SUM(D70:D71) -> 0 | E69: 0 | F69: 0 | G69: 0 | H69: 0 | I69: 0 | J69: 0 | K69: 0 | L69: 0 | M69: 0
A70: 8.2.1 | B70: в пределах i-го объема | C70: тыс. куб. м
B71: Добавить
A72: 8.3 | B72: По абонентам | C72: тыс. куб. м | D72: =D73+D76 -> 0 | E72: 0 | F72: 0 | G72: 0 | H72: 0 | I72: 0 | J72: 0 | K72: 0 | L72: 0 | M72: 0
A73: 8.3.1 | B73: другим организациям, осуществляющим водоснабжение | C73: тыс. куб. м | D73: =SUM(D74:D75) -> 0 | E73: 0 | F73: 0 | G73: 0 | H73: 0 | I73: 0 | J73: 0 | K73: 0 | L73: 0 | M73: 0
A74: 8.3.1.1 | B74: (организация 1) | C74: тыс. куб. м
B75: Добавить
A76: 8.3.2 | B76: собственным абонентам | C76: тыс. куб. м
A77: 9 | B77: Объем воды, отпускаемой новым абонентам
A78: 9.1 | B78: Увеличение отпуска питьевой воды в связи с подключением новых абонентов | C78: тыс. куб. м
A79: 9.2 | B79: Снижение отпуска питьевой воды в связи с прекращением водоснабжения | C79: тыс. куб. м
A80: 10 | B80: Изменение объема отпуска питьевой воды
A81: 10.1 | B81: в связи с изменением нормативов потребления и установкой приборов учета | C81: тыс. куб. м
A82: 11 | B82: Темп изменения потребления воды | C82: %
A85: Руководитель организации ____________________________________
A87: Ответственный за составление формы ______________________________________
B88: МП

Sheet modServiceModule (hidden)

Sheet et_union (hidden)
A12: add_01
B13: договор № от | L13: О
A16: add_02
K17: О
A21: add_03
A22: =O22 -> 0 | B22: Поставщик | N22: О
A23: =A22&"."&P23 -> 0.1 | B23: Объем покупной энергии | C23: млн. кВт-ч | J23: =H23/E23*100 ->  | M23: =K23/H23*100 ->  | P23: 1
A24: =A22&"."&P24 -> 0.1.1 | B24: Объем покупной энергии по одноставочному тарифу | C24: млн. кВт-ч | J24: =H24/E24*100 ->  | M24: =K24/H24*100 ->  | P24: 1.1
A25: =A22&"."&P25 -> 0.1.1.1 | B25: низкое напряжение (НН) | C25: млн. кВт-ч | P25: 1.1.1
A26: =A22&"."&P26 -> 0.1.1.2 | B26: среднее напряжение 1 (СН1) | C26: млн. кВт-ч | P26: 1.1.2
A27: =A22&"."&P27 -> 0.1.1.3 | B27: среднее напряжение 2 (СН2) | C27: млн. кВт-ч | P27: 1.1.3
A28: =A22&"."&P28 -> 0.1.1.4 | B28: высокое напряжение (ВН) | C28: млн. кВт-ч | P28: 1.1.4
A29: =A22&"."&P29 -> 0.1.1.5 | B29: Без разбивки по напряжению | C29: млн. кВт-ч | P29: 1.1.5
A30: =A22&"."&P30 -> 0.1.2 | B30: Объем покупной энергии по двухставочному тарифу | C30: млн. кВт-ч | P30: 1.2
A31: =A22&"."&P31 -> 0.1.2.1 | B31: Мощность | C31: МВт в мес. | P31: 1.2.1
A32: =A22&"."&P32 -> 0.1.2.1.1 | B32: низкое напряжение (НН) | C32: МВт в мес. | P32: 1.2.1.1
A33: =A22&"."&P33 -> 0.1.2.1.2 | B33: среднее напряжение 1 (СН1) | C33: МВт в мес. | P33: 1.2.1.2
A34: =A22&"."&P34 -> 0.1.2.1.3 | B34: среднее напряжение 2 (СН2) | C34: МВт в мес. | P34: 1.2.1.3
A35: =A22&"."&P35 -> 0.1.2.1.4 | B35: высокое напряжение (ВН) | C35: МВт в мес. | P35: 1.2.1.4
A36: =A22&"."&P36 -> 0.1.2.1.5 | B36: генерация напряжения | C36: МВт в мес. | P36: 1.2.1.5
A37: =A22&"."&P37 -> 0.1.2.2 | B37: Активная электроэнергия | C37: млн. кВт-ч | P37: 1.2.2
A38: =A22&"."&P38 -> 0.1.2.2.1 | B38: низкое напряжение (НН) | C38: млн. кВт-ч | P38: 1.2.2.1
A39: =A22&"."&P39 -> 0.1.2.2.2 | B39: среднее напряжение 1 (СН1) | C39: млн. кВт-ч | P39: 1.2.2.2
A40: =A22&"."&P40 -> 0.1.2.2.3 | B40: среднее напряжение 2 (СН2) | C40: млн. кВт-ч | P40: 1.2.2.3
A41: =A22&"."&P41 -> 0.1.2.2.4 | B41: высокое напряжение (ВН) | C41: млн. кВт-ч | P41: 1.2.2.4
A42: =A22&"."&P42 -> 0.1.2.2.5 | B42: генерация напряжения | C42: млн. кВт-ч | P42: 1.2.2.5
A43: =A22&"."&P43 -> 0.2 | B43: Тариф на электроэнергию и мощность | P43: 2
A44: =A22&"."&P44 -> 0.2.1 | B44: по одноставочному тарифу | C44: руб./кВт-ч | P44: 2.1
A45: =A22&"."&P45 -> 0.2.1.1 | B45: низкое напряжение (НН) | C45: руб./кВт-ч | P45: 2.1.1
A46: =A22&"."&P46 -> 0.2.1.2 | B46: среднее напряжение 1 (СН1) | C46: руб./кВт-ч | P46: 2.1.2
A47: =A22&"."&P47 -> 0.2.1.3 | B47: среднее напряжение 2 (СН2) | C47: руб./кВт-ч | P47: 2.1.3
A48: =A22&"."&P48 -> 0.2.1.4 | B48: высокое напряжение (ВН) | C48: руб./кВт-ч | P48: 2.1.4
A49: =A22&"."&P49 -> 0.2.1.5 | B49: Тариф на активную электроэнергию без разбивки по напряжению | C49: руб./кВт-ч | P49: 2.1.5
A50: =A22&"."&P50 -> 0.2.1.6 | B50: Средний одноставочный тариф на электрическую энергию | C50: руб./кВт-ч | P50: 2.1.6
A51: =A22&"."&P51 -> 0.2.2 | B51: по двухставочному тарифу | P51: 2.2
A52: =A22&"."&P52 -> 0.2.2.1 | B52: ставка за мощность | C52: руб./МВт в мес. | P52: 2.2.1
A53: =A22&"."&P53 -> 0.2.2.1.1 | B53: низкое напряжение (НН) | C53: руб./МВт в мес. | P53: 2.2.1.1
A54: =A22&"."&P54 -> 0.2.2.1.2 | B54: среднее напряжение 1 (СН1) | C54: руб./МВт в мес. | P54: 2.2.1.2
A55: =A22&"."&P55 -> 0.2.2.1.3 | B55: среднее напряжение 2 (СН2) | C55: руб./МВт в мес. | P55: 2.2.1.3
A56: =A22&"."&P56 -> 0.2.2.1.4 | B56: высокое напряжение (ВН) | C56: руб./МВт в мес. | P56: 2.2.1.4
A57: =A22&"."&P57 -> 0.2.2.1.5 | B57: генерация напряжения | C57: руб./МВт в мес. | P57: 2.2.1.5
A58: =A22&"."&P58 -> 0.2.2.2 | B58: Тариф на электроэнергию по двухставочному тарифу | C58: руб./кВт-ч | P58: 2.2.2
A59: =A22&"."&P59 -> 0.2.2.2.1 | B59: низкое напряжение (НН) | C59: руб./кВт-ч | P59: 2.2.2.1
A60: =A22&"."&P60 -> 0.2.2.2.2 | B60: среднее напряжение 1 (СН1) | C60: руб./кВт-ч | P60: 2.2.2.2
A61: =A22&"."&P61 -> 0.2.2.2.3 | B61: среднее напряжение 2 (СН2) | C61: руб./кВт-ч | P61: 2.2.2.3
A62: =A22&"."&P62 -> 0.2.2.2.4 | B62: высокое напряжение (ВН) | C62: руб./кВт-ч | P62: 2.2.2.4
A63: =A22&"."&P63 -> 0.2.2.2.5 | B63: генерация напряжения | C63: руб./кВт-ч | P63: 2.2.2.5
A64: =A22&"."&P64 -> 0.3 | B64: Затраты на покупку энергии | C64: тыс. руб. | P64: 3
A65: =A22&"."&P65 -> 0.4 | B65: Затраты на покупку мощности | C65: тыс. руб. | P65: 4
A66: =A22&"."&P66 -> 0.5 | B66: Затраты на электроэнергию всего | C66: тыс. руб. | P66: 5 | Q66: Sum
A68: add_04
A69: =O69 -> 0 | B69: Поставщик | N69: О
A70: =A69&"."&P70 -> 0.1 | B70: Объем покупной энергии | C70: тыс. Гкал | J70: =H70/E70*100 ->  | M70: =K70/H70*100 ->  | P70: 1
A71: =A69&"."&P71 -> 0.2 | B71: Мощность | C71: Гкал/ч | J71: =H71/E71*100 ->  | M71: =K71/H71*100 ->  | P71: 2
A72: =A69&"."&P72 -> 0.3 | B72: Ставка за энергию | C72: руб./Гкал | P72: 3
A73: =A69&"."&P73 -> 0.4 | B73: Ставка за мощность | C73: тыс. руб./ Гкал/ч | P73: 4
A74: =A69&"."&P74 -> 0.5 | B74: Затраты на покупку энергии | C74: тыс. руб. | D74: =D70*D72 -> 0 | E74: 0 | F74: 0 | G74: 0 | H74: 0 | I74: 0 | K74: =K70*K72 -> 0 | L74: =L70*L72 -> 0 | P74: 5
A75: =A69&"."&P75 -> 0.6 | B75: Затраты на покупку мощности | C75: тыс. руб. | D75: 0 | E75: 0 | F75: 0 | G75: 0 | H75: 0 | I75: 0 | K75: =K71*K73 -> 0 | L75: =L71*L73 -> 0 | P75: 6
A76: =A69&"."&P76 -> 0.7 | B76: Затраты на теплоэнергию, всего | C76: тыс. руб. | D76: =D74+D75 -> 0 | E76: 0 | F76: 0 | G76: 0 | H76: 0 | I76: 0 | K76: =K74+K75 -> 0 | L76: =L74+L75 -> 0 | P76: 7 | Q76: Sum
A79: add_05
A80: =O80 -> 0 | B80: Поставщик | N80: О
A81: =A80&"."&P81 -> 0.1 | B81: Объем теплоносителя | C81: тыс. куб. м | J81: =H81/E81*100 ->  | M81: =K81/H81*100 ->  | P81: 1
A82: =A80&"."&P82 -> 0.2 | B82: Цена теплоносителя | C82: руб./куб. м | J82: =H82/E82*100 ->  | M82: =K82/H82*100 ->  | P82: 2
A83: =A80&"."&P83 -> 0.3 | B83: Затраты на теплоноситель | C83: тыс. руб. | D83: =D81*D82 -> 0 | E83: 0 | F83: 0 | G83: 0 | H83: 0 | I83: 0 | J83: =H83/E83*100 ->  | K83: =K81*K82 -> 0 | L83: =L81*L82 -> 0 | M83: =K83/H83*100 ->  | P83: 3
A86: add_06
M87: О
A90: add_07
A91: =O91 -> 0 | B91: Поставщик | N91: О
A92: =A91 & ".1" -> 0.1 | B92: Объем холодной воды | C92: тыс. куб. м | J92: =H92/E92*100 ->  | M92: =K92/H92*100 -> 
A93: =A91 & ".2" -> 0.2 | B93: Тариф на холодную воду | C93: руб./куб. м | J93: =H93/E93*100 ->  | M93: =K93/H93*100 -> 
A94: =A91 & ".3" -> 0.3 | B94: Затраты на холодную воду | C94: тыс. руб. | D94: =D92*D93 -> 0 | E94: =E92*E93 -> 0 | F94: 0 | G94: 0 | H94: 0 | I94: 0 | J94: =H94/E94*100 ->  | K94: 0 | L94: 0 | M94: =K94/H94*100 ->  | Q94: Sum
A96: add_08
B97: Регулируемый вид деятельности | C97: тыс. руб. | L97: О
A99: add_09
C100: тыс. куб. м | N100: О
A103: add_02_1
H104: =F104-E104 -> 0 | I104: О
A107: add_02_2
A108: ="1." &O108 -> 1. | B108: Вид реагента | N108: О
A109: =A108 & ".1" -> 1..1 | B109: Расход | J109: =H109/E109*100 ->  | M109: =K109/H109*100 -> 
A110: =A108 & ".2" -> 1..2 | B110: Цена за единицу | C110: тыс. руб. | J110: =H110/E110*100 ->  | M110: =K110/H110*100 -> 
A111: =A108 & ".3" -> 1..3 | B111: Суммарные затраты | C111: тыс. руб. | D111: =D109*D110 -> 0 | E111: 0 | F111: 0 | G111: 0 | H111: 0 | I111: 0 | J111: =H111/E111*100 ->  | K111: =K109*K110 -> 0 | L111: =L109*L110 -> 0 | M111: =K111/H111*100 ->  | P111: Sum
A116: add_02_3
A117: ="2." & O117 -> 2. | B117: Вид ГСМ | N117: О
A118: =A117 & ".1" -> 2..1 | B118: Расход | C118: литр | J118: =H118/E118*100 ->  | M118: =K118/H118*100 -> 
A119: =A117 & ".2" -> 2..2 | B119: Цена за единицу | C119: руб. | J119: =H119/E119*100 ->  | M119: =K119/H119*100 -> 
A120: =A117 & ".3" -> 2..3 | B120: Суммарные затраты | C120: тыс. руб. | D120: =D118*D119/1000 -> 0 | E120: 0 | F120: 0 | G120: 0 | H120: 0 | I120: 0 | J120: =H120/E120*100 ->  | K120: =K118*K119/1000 -> 0 | L120: =L118*L119/1000 -> 0 | M120: =K120/H120*100 ->  | P120: Sum
A123: add_02_4
A124: ="3." & O124 -> 3. | B124: Вид | N124: О
A125: =A124 & ".1" -> 3..1 | B125: Расход | J125: =H125/E125*100 ->  | M125: =K125/H125*100 -> 
A126: =A124 & ".2" -> 3..2 | B126: Цена за единицу | C126: тыс. руб. | J126: =H126/E126*100 ->  | M126: =K126/H126*100 -> 
A127: =A124 & ".3" -> 3..3 | B127: Суммарные затраты | C127: тыс. руб. | D127: =D125*D126 -> 0 | E127: 0 | F127: 0 | G127: 0 | H127: 0 | I127: 0 | J127: =H127/E127*100 ->  | K127: =K125*K126 -> 0 | L127: =L125*L126 -> 0 | M127: =K127/H127*100 ->  | P127: Sum
A131: add_06_1
A132: =O132 -> 0 | N132: О
A133: =A132 & ".1" -> 0.1 | B133: Кол-во (объем) топлива | J133: =H133/E133*100 ->  | M133: =K133/H133*100 -> 
A134: =A132 & ".2" -> 0.2 | B134: Цена топлива | C134: тыс. руб. | J134: =H134/E134*100 ->  | M134: =K134/H134*100 -> 
A135: =A132 & ".3" -> 0.3 | B135: Затраты на топливо | C135: тыс. руб. | D135: =D133*D134 -> 0 | E135: =E133*E134 -> 0 | F135: 0 | G135: 0 | H135: 0 | I135: 0 | J135: =H135/E135*100 ->  | K135: 0 | L135: 0 | M135: =K135/H135*100 ->  | Q135: Sum
A141: add_08_2
A142: 5.2 | E142: =D142*C142 -> 0 | F142: =D142/$F$50 ->  | G142: О
A145: add_08_3
A146: 2 | H146: О
A152: add_20
A153: 1.2.1 | B153: объект | Q153: О
A155: add_21
A156: 1 | E156: тыс. руб. | N156: О
A159: add_22
A160: прочие расходы | B160: тыс. руб. | K160: =I160*'Цех и Администр расх'!$N$82% -> 0 | M160: =J160*'Цех и Администр расх'!$O$82% ->  | N160: О
A162: add_22_1_1
A163: наименование расходов | B163: тыс. руб. | K163: =I163*'Цех и Администр расх'!$N$63% -> 0 | M163: =J163*'Цех и Администр расх'!$O$63% ->  | N163: О
A166: add_23
A167: 1.1 | F167: тыс. руб. | P167: О
A171: add_24
C172: тыс. руб. | L172: О
A174: add_25
A175: прочие (расшифровать) | K175: О
A177: add_26
B178: наимаенование | J178: О
A180: 3.1 | B180: наимаенование | L180: О

Sheet Объемы
R1: Приложение 2.1
B2: Расчет объемов холодного водоснабжения
C4: 2015 год (факт) | F4: 2016 год (факт) | I4: 2017 год (факт) | L4: 2018 год (ожид) | O4: 2019 год (план) | R4: 2020 год (план) | U4: 2021 год (план) | X4: 2022 год (план) | AA4: 2023 год (план)
A5: 1 | B5: Степень благоустройства жилищного фонда | C5: Нормативы водопотребления на 1 чел в месяц (куб. м.) | D5: Общее кол-во потребителей (чел.) | E5: Годовой объем водопотребления (тыс. куб. м.) | F5: Нормативы водопотребления на 1 чел в месяц (куб. м.) | G5: Общее кол-во потребителей (чел.) | H5: Годовой объем водопотребления (тыс. куб. м.) | I5: Нормативы водопотребления на 1 чел в месяц (куб. м.) | J5: Общее кол-во потребителей (чел.) | K5: Годовой объем водопотребления (тыс. куб. м.) | L5: Нормативы водопотребления на 1 чел в месяц (куб. м.) | M5: Общее кол-во потребителей (чел.) | N5: Годовой объем водопотребления (тыс. куб. м.) | O5: Нормативы водопотребления на 1 чел в месяц (куб. м.) | P5: Общее кол-во потребителей (чел.) | Q5: Годовой объем водопотребления (тыс. куб. м.) | R5: Нормативы водопотребления на 1 чел в месяц (куб. м.) | S5: Общее кол-во потребителей (чел.) | T5: Годовой объем водопотребления (тыс. куб. м.) | U5: Нормативы водопотребления на 1 чел в месяц (куб. м.) | V5: Общее кол-во потребителей (чел.) | W5: Годовой объем водопотребления (тыс. куб. м.) | X5: Нормативы водопотребления на 1 чел в месяц (куб. м.) | Y5: Общее кол-во потребителей (чел.) | Z5: Годовой объем водопотребления (тыс. куб. м.) | AA5: Нормативы водопотребления на 1 чел в месяц (куб. м.) | AB5: Общее кол-во потребителей (чел.) | AC5: Годовой объем водопотребления (тыс. куб. м.)
A6: 1.1. | B6: Многоквартирные дома и жилые дома с централизованным холодным и горячим водоснабжением, канализацией
A7: 1.2. | B7: Многоквартирные дома и жилые дома с централизованным холодным водоснабжением, канализацией, без централизованного горячего водоснабжения с водонагревателями различного типа
A8: 1.3. | B8: Многоквартирные дома и жилые дома с централизованным холодным водоснабжением, канализацией, без централизованного горячего водоснабжения и водонагревателей различного типа
A9: 1.4. | B9: Многоквартирные дома и жилые дома с централизованным холодным водоснабжением, без централизованного горячего водоснабжения, канализации с водонагревателями различного типа | C9: 5.63 | D9: 47 | E9: 3.7 | F9: 5.63 | G9: 221 | H9: 14.97 | I9: 5.63 | J9: 193 | K9: 13.04 | L9: 5.63 | M9: 199 | N9: 13.44 | O9: 5.63 | P9: 193 | Q9: 13.04 | R9: 5.63 | S9: 193 | T9: 13.04 | U9: 5.63 | V9: 193 | W9: 13.04 | X9: 5.63 | Y9: 193 | Z9: 13.04 | AA9: 5.63 | AB9: 193 | AC9: 13.04
A10: 1.5. | B10: Многоквартирные дома и жилые дома с централизованным холодным водоснабжением, без централизованного горячего водоснабжения, канализации и водонагревателей различного типа | C10: 1.96 | D10: 150 | E10: 4.82 | F10: 1.96 | G10: 47 | H10: 1.11 | I10: 1.96 | J10: 45 | K10: 1.04 | L10: 1.96 | M10: 46 | N10: 1.08 | O10: 1.96 | P10: 45 | Q10: 1.04 | R10: 1.96 | S10: 45 | T10: 1.04 | U10: 1.96 | V10: 45 | W10: 1.04 | X10: 1.96 | Y10: 45 | Z10: 1.04 | AA10: 1.96 | AB10: 45 | AC10: 1.04
A11: 1.6. | B11: Многоквартирные дома и жилые дома, не оборудованные внутридомовыми системами водоснабжения, с водопользованием из водоразборных колонок
B12: при наличии технической возможности установки коллективных (общедомовых), индивидуальных или общих (квартирных) приборов учета
A13: 1.7. | B13: Многоквартирные дома и жилые дома с централизованным холодным и горячим водоснабжением, канализацией
A14: 1.8. | B14: Многоквартирные дома и жилые дома с централизованным холодным водоснабжением, канализацией, без централизованного горячего водоснабжения с водонагревателями различного типа
A15: 1.9. | B15: Многоквартирные дома и жилые дома с централизованным холодным водоснабжением, канализацией, без централизованного горячего водоснабжения и водонагревателей различного типа
A16: 1.10. | B16: Многоквартирные дома и жилые дома с централизованным холодным водоснабжением, без централизованного горячего водоснабжения, канализации с водонагревателями различного типа
A17: 1.11. | B17: Многоквартирные дома и жилые дома с централизованным холодным водоснабжением, без централизованного горячего водоснабжения, канализации и водонагревателей различного типа
A18: 1.12. | B18: Многоквартирные дома и жилые дома, не оборудованные внутридомовыми системами водоснабжения, с водопользованием из водоразборных колонок
B19: итого | E19: =SUM(E6:E11)+SUM(E13:E18) -> 8.52 | H19: =SUM(H6:H11)+SUM(H13:H18) -> 16.08 | K19: =SUM(K6:K11)+SUM(K13:K18) -> 14.08 | N19: =SUM(N6:N11)+SUM(N13:N18) -> 14.52 | Q19: =SUM(Q6:Q11)+SUM(Q13:Q18) -> 14.08 | T19: =SUM(T6:T11)+SUM(T13:T18) -> 14.08 | W19: =SUM(W6:W11)+SUM(W13:W18) -> 14.08 | Z19: =SUM(Z6:Z11)+SUM(Z13:Z18) -> 14.08 | AC19: =SUM(AC6:AC11)+SUM(AC13:AC18) -> 14.08
A20: 2 | B20: Дополнтельные начисления объемов в соответствии с Правилами оказания услуг
A21: 3 | B21: Водомерный учет | D21: 1477 | E21: 65.4 | G21: 1476 | H21: 36.55 | J21: 1325 | K21: 40.59 | M21: 1325 | N21: 47.04 | P21: 1325 | Q21: 101.6 | S21: 1325 | T21: 101.6 | V21: 1325 | W21: 101.6 | Y21: 1325 | Z21: 101.6 | AB21: 1325 | AC21: 101.6
A22: 4 | B22: Полив приусадебных участков | C22: норматив | D22: общее кол-во кв.м. | E22: Годовой объем водопотребления (тыс. куб. м.) | F22: норматив | G22: общее кол-во кв.м. | H22: Годовой объем водопотребления (тыс. куб. м.) | I22: норматив | J22: общее кол-во кв.м. | K22: Годовой объем водопотребления (тыс. куб. м.) | L22: норматив | M22: общее кол-во кв.м. | N22: Годовой объем водопотребления (тыс. куб. м.) | O22: норматив | P22: общее кол-во кв.м. | Q22: Годовой объем водопотребления (тыс. куб. м.) | R22: норматив | S22: общее кол-во кв.м. | T22: Годовой объем водопотребления (тыс. куб. м.) | U22: норматив | V22: общее кол-во кв.м. | W22: Годовой объем водопотребления (тыс. куб. м.) | X22: норматив | Y22: общее кол-во кв.м. | Z22: Годовой объем водопотребления (тыс. куб. м.) | AA22: норматив | AB22: общее кол-во кв.м. | AC22: Годовой объем водопотребления (тыс. куб. м.)
A23: 4.1. | B23: Полив сельскохозяйственных культур, зеленых насаждений, газонов и цветников
A24: 4.2. | B24: Полив усовершенствованных покрытий и тротуаров
A25: 4.3. | B25: Полив посадок в теплицах и парниках всех типов
B26: итого | E26: =SUM(E23:E25) -> 0 | H26: =SUM(H23:H25) -> 0 | K26: =SUM(K23:K25) -> 0 | N26: =SUM(N23:N25) -> 0 | Q26: =SUM(Q23:Q25) -> 0 | T26: =SUM(T23:T25) -> 0 | W26: =SUM(W23:W25) -> 0 | Z26: =SUM(Z23:Z25) -> 0 | AC26: =SUM(AC23:AC25) -> 0
A27: 5 | B27: Водоснабжение и приготовление пищи для сельскохозяйственных животных | C27: норматив | D27: общее кол-во голов | E27: Годовой объем водопотребления (тыс. куб. м.) | F27: норматив | G27: общее кол-во голов | H27: Годовой объем водопотребления (тыс. куб. м.) | I27: норматив | J27: общее кол-во голов | K27: Годовой объем водопотребления (тыс. куб. м.) | L27: норматив | M27: общее кол-во голов | N27: Годовой объем водопотребления (тыс. куб. м.) | O27: норматив | P27: общее кол-во голов | Q27: Годовой объем водопотребления (тыс. куб. м.) | R27: норматив | S27: общее кол-во голов | T27: Годовой объем водопотребления (тыс. куб. м.) | U27: норматив | V27: общее кол-во голов | W27: Годовой объем водопотребления (тыс. куб. м.) | X27: норматив | Y27: общее кол-во голов | Z27: Годовой объем водопотребления (тыс. куб. м.) | AA27: норматив | AB27: общее кол-во голов | AC27: Годовой объем водопотребления (тыс. куб. м.)
A28: 5.1. | B28: Крупный рогатый скот
A29: 5.2. | B29: Свиньи
A30: 5.3. | B30: Овцы
A31: 5.4. | B31: Лошади
A32: 5.5. | B32: Козы
A33: 5.6. | B33: Куры
A34: 5.7. | B34: Индейки
A35: 5.8. | B35: Утки
A36: 5.9. | B36: Гуси
B37: итого | E37: =SUM(E28:E36) -> 0 | H37: =SUM(H28:H36) -> 0 | K37: =SUM(K28:K36) -> 0 | N37: =SUM(N28:N36) -> 0 | Q37: =SUM(Q28:Q36) -> 0 | T37: =SUM(T28:T36) -> 0 | W37: =SUM(W28:W36) -> 0 | Z37: =SUM(Z28:Z36) -> 0 | AC37: =SUM(AC28:AC36) -> 0
A38: 6 | B38: Потребление на общедомовые нужды | C38: норматив | D38: общее кол-во кв.м. общего имущества | E38: Годовой объем водопотребления (тыс. куб. м.) | F38: норматив | G38: общее кол-во кв.м. общего имущества | H38: Годовой объем водопотребления (тыс. куб. м.) | I38: норматив | J38: общее кол-во кв.м. общего имущества | K38: Годовой объем водопотребления (тыс. куб. м.) | L38: норматив | M38: общее кол-во кв.м. общего имущества | N38: Годовой объем водопотребления (тыс. куб. м.) | O38: норматив | P38: общее кол-во кв.м. общего имущества | Q38: Годовой объем водопотребления (тыс. куб. м.) | R38: норматив | S38: общее кол-во кв.м. общего имущества | T38: Годовой объем водопотребления (тыс. куб. м.) | U38: норматив | V38: общее кол-во кв.м. общего имущества | W38: Годовой объем водопотребления (тыс. куб. м.) | X38: норматив | Y38: общее кол-во кв.м. общего имущества | Z38: Годовой объем водопотребления (тыс. куб. м.) | AA38: норматив | AB38: общее кол-во кв.м. общего имущества | AC38: Годовой объем водопотребления (тыс. куб. м.)
A39: 6.1. | B39: Многоквартирные дома с централизованным холодным и горячим водоснабжением
A40: 6.2. | B40: Многоквартирные дома с централизованным холодным водоснабжением
B41: при наличии технической возможности установки коллективных (общедомовых) приборов учета
A42: 6.3. | B42: Многоквартирные дома с централизованным холодным и горячим водоснабжением
A43: 6.4. | B43: Многоквартирные дома с централизованным холодным водоснабжением
B44: итого | E44: =E39+E40+E42+E43 -> 0 | H44: =H39+H40+H42+H43 -> 0 | K44: =K39+K40+K42+K43 -> 0 | N44: =N39+N40+N42+N43 -> 0 | Q44: =Q39+Q40+Q42+Q43 -> 0 | T44: =T39+T40+T42+T43 -> 0 | W44: =W39+W40+W42+W43 -> 0 | Z44: =Z39+Z40+Z42+Z43 -> 0 | AC44: =AC39+AC40+AC42+AC43 -> 0
A45: 7 | B45: ОДН по общедомовому прибору учета
A46: 8 | B46: ИТОГО по населению | E46: =E19+E20+E21+E26+E37+E44+E45 -> 73.92 | H46: =H19+H20+H21+H26+H37+H44+H45 -> 52.63 | K46: =K19+K20+K21+K26+K37+K44+K45 -> 54.67 | N46: =N19+N20+N21+N26+N37+N44+N45 -> 61.56 | Q46: =Q19+Q20+Q21+Q26+Q37+Q44+Q45 -> 115.68 | T46: =T19+T20+T21+T26+T37+T44+T45 -> 115.68 | W46: =W19+W20+W21+W26+W37+W44+W45 -> 115.68 | Z46: =Z19+Z20+Z21+Z26+Z37+Z44+Z45 -> 115.68 | AC46: =AC19+AC20+AC21+AC26+AC37+AC44+AC45 -> 115.68
A47: 9 | B47: Прочие потребители | E47: 14.85 | H47: 11.76 | K47: 8.56 | N47: 9.86 | Q47: 19.95 | T47: 19.95 | W47: 19.95 | Z47: 19.95 | AC47: 19.95
A48: 10 | B48: Специализированные предприятия ВКХ | E48: =E49+E50 -> 0 | H48: =H49+H50 -> 0 | K48: =K49+K50 -> 0 | N48: =N49+N50 -> 0 | Q48: =Q49+Q50 -> 0 | T48: =T49+T50 -> 0 | W48: =W49+W50 -> 0 | Z48: =Z49+Z50 -> 0 | AC48: =AC49+AC50 -> 0
A49: 10.1. | B49: в доле реализации населению
A50: 10.2. | B50: в доле реализации прочим и бюджетным потребителям
A51: 11 | B51: Бюджетные организации | E51: =E52+E53+E54 -> 2.37 | H51: =H52+H53+H54 -> 2.51 | K51: =K52+K53+K54 -> 1.8 | N51: =N52+N53+N54 -> 2.22 | Q51: =Q52+Q53+Q54 -> 1.53 | T51: =T52+T53+T54 -> 1.53 | W51: =W52+W53+W54 -> 1.53 | Z51: =Z52+Z53+Z54 -> 1.53 | AC51: =AC52+AC53+AC54 -> 1.53
A52: 11.1. | B52: федеральный
A53: 11.2. | B53: региональный
A54: 11.3. | B54: местный | E54: 2.37 | H54: 2.51 | K54: 1.8 | N54: 2.22 | Q54: 1.53 | T54: 1.53 | W54: 1.53 | Z54: 1.53 | AC54: 1.53
A55: 12 | B55: ВСЕГО годовой объем водопотребления | E55: =E46+E47+E48+E51 -> 91.14 | H55: =H46+H47+H48+H51 -> 66.9 | K55: =K46+K47+K48+K51 -> 65.03 | N55: =N46+N47+N48+N51 -> 73.64 | Q55: =Q46+Q47+Q48+Q51 -> 137.16 | T55: =T46+T47+T48+T51 -> 137.16 | W55: =W46+W47+W48+W51 -> 137.16 | Z55: =Z46+Z47+Z48+Z51 -> 137.16 | AC55: =AC46+AC47+AC48+AC51 -> 137.16
A56: 13 | B56: Внутрихозяйственный оборот
A57: 14 | B57: Потери в сетях | E57: 123.36 | H57: 143.03 | K57: 147.49 | N57: 51.42 | Q57: 70.79 | T57: 70.79 | W57: 70.79 | Z57: 70.79 | AC57: 70.79
B58: % | E58: 57.51 | H58: 68.14 | K58: 69.4 | N58: 34.04 | Q58: 34.04 | T58: 34.04 | W58: 34.04 | Z58: 34.04 | AC58: 34.04
A59: 15 | B59: Покупная вода
A60: 16 | B60: Всего подано воды в сеть | E60: =E59+E55+E56+E57 -> 214.5 | H60: =H59+H55+H56+H57 -> 209.93 | K60: =K59+K55+K56+K57 -> 212.52 | N60: =N59+N55+N56+N57 -> 125.06 | Q60: =Q59+Q55+Q56+Q57 -> 207.95 | T60: =T59+T55+T56+T57 -> 207.95 | W60: =W59+W55+W56+W57 -> 207.95 | Z60: =Z59+Z55+Z56+Z57 -> 207.95 | AC60: =AC59+AC55+AC56+AC57 -> 207.95
B62: Руководитель организации | C62: ______________________________________
B64: Ответственный за составление формы | C64: ______________________________________

Sheet Сырье и материалы
K1: Приложение 2.1
A2: Расходы на сырье и материалы на услуги холодного водоснабжения
A4: № п/п | B4: Наименование | C4: ед. изм. | D4: 2017 год | F4: 2017 факт РЭК | G4: 2018 год | I4: 2018 ожид РЭК | J4: Темп роста, текущий (7)/ истекший (5), % | K4: 2019 год | L4: 2019 план РЭК | M4: Темп роста, очередной (9)/ текущий (7), %
D5: план | E5: факт | G5: план | H5: ожидаемое
A6: 1 | B6: 2 | C6: 3 | D6: 4 | E6: 5 | F6: 5* | G6: 6 | H6: 7 | I6: 7* | J6: 8 | K6: 9 | L6: 9* | M6: 10
A7: 1 | B7: Реагенты | C7: тыс. руб. | D7: =D25 -> 0 | E7: 0 | F7: 0 | G7: 0 | H7: 4.37 | I7: 0 | J7: =H7/E7*100 ->  | K7: =K25 -> 0 | L7: =L25 -> 0 | M7: =K7/H7*100 -> 0
A8: 2 | B8: Горюче-смазочные материалы | C8: тыс. руб. | D8: =D33 -> 0 | E8: 20.623725 | F8: 0 | G8: 0 | H8: 28.68145 | I8: 0 | J8: =H8/E8*100 -> 139.0701728 | K8: =K33 -> 22.1616 | L8: =L33 -> 0 | M8: =K8/H8*100 -> 77.26806002
A9: 3 | B9: Материалы и малоценные основные средства | C9: тыс. руб. | D9: =D41 -> 0 | E9: 0 | F9: 0 | G9: 0 | H9: 0 | I9: 0 | J9: =H9/E9*100 ->  | K9: =K41 -> 0 | L9: =L41 -> 0 | M9: =K9/H9*100 -> 
K12: Приложение 2.1.1
A13: Расходы на сырье и материалы на услуги холодного водоснабжения * (прямые производственные расходы)
A15: № п/п | B15: Наименование | C15: ед. изм. | D15: 2017 год | F15: 2017 факт РЭК | G15: 2018 год | I15: 2018 ожид РЭК | J15: Темп роста, текущий (7)/ истекший (5), % | K15: 2019 год | L15: 2019 план РЭК | M15: Темп роста, очередной (9)/ текущий (7), % | V15: кг
D16: план | E16: факт | G16: план | H16: ожидаемое | V16: литр
A17: 1 | B17: 2 | C17: 3 | D17: 4 | E17: 5 | F17: 5* | G17: 6 | H17: 7 | I17: 7* | J17: 8 | K17: 9 | L17: 9* | M17: 10 | V17: тонна
A18: 1 | B18: Реагенты | V18: грамм
A19: 1.1 | B19: Хлорная известь | O19: 1
A20: 1.1.1 | B20: Расход | H20: 38 | J20: =H20/E20*100 ->  | K20: 0 | M20: =K20/H20*100 -> 0
A21: 1.1.2 | B21: Цена за единицу | C21: тыс. руб. | H21: 0.115 | J21: =H21/E21*100 ->  | K21: 0 | M21: =K21/H21*100 -> 0
A22: 1.1.3 | B22: Суммарные затраты | C22: тыс. руб. | D22: =D20*D21 -> 0 | E22: 0 | F22: 0 | G22: 0 | H22: 4.37 | I22: 0 | K22: =K20*K21 -> 0 | L22: =L20*L21 -> 0 | M22: 0 | P22: Sum
B23: Добавить
B24: прочие, до 5% | C24: тыс. руб. | P24: Sum
B25: Итого реагенты: | C25: тыс. руб. | D25: =SUMIF($P18:$P24,"sum",D18:D24) -> 0 | E25: 0 | F25: 0 | G25: 0 | H25: 4.37 | I25: 0 | K25: 0 | L25: 0 | M25: 0
A26: 2 | B26: Горюче-смазочные материалы
A27: 2.1 | B27: ДТ | O27: 1
A28: 2.1.1 | B28: Расход | C28: литр | E28: 532.5 | H28: 665 | J28: 124.8826291 | K28: 480 | M28: 72.18045113
A29: 2.1.2 | B29: Цена за единицу | C29: руб. | E29: 38.73 | H29: 43.13 | J29: 111.3607023 | K29: 46.17 | M29: 107.0484581
A30: 2.1.3 | B30: Суммарные затраты | C30: тыс. руб. | D30: =D28*D29/1000 -> 0 | E30: 20.623725 | F30: 0 | G30: 0 | H30: 28.68145 | I30: 0 | J30: 139.0701728 | K30: =K28*K29/1000 -> 22.1616 | L30: =L28*L29/1000 -> 0 | M30: 77.26806002 | P30: Sum
B31: Добавить
B32: прочие, до 5% | C32: тыс. руб. | P32: Sum
B33: Итого ГСМ: | C33: тыс. руб. | D33: =SUMIF($P26:$P32,"sum",D26:D32) -> 0 | E33: 20.623725 | F33: 0 | G33: 0 | H33: 28.68145 | I33: 0 | J33: 139.0701728 | K33: =SUMIF($P26:$P32,"sum",K26:K32) -> 22.1616 | L33: =SUMIF($P26:$P32,"sum",L26:L32) -> 0 | M33: 77.26806002
A34: 3 | B34: Материалы и малоценные основные средства
A35: 3.1 | B35: Вид | O35: 1
A36: 3.1.1 | B36: Расход
A37: 3.1.2 | B37: Цена за единицу | C37: тыс. руб.
A38: 3.1.3 | B38: Суммарные затраты | C38: тыс. руб. | D38: =D36*D37 -> 0 | E38: 0 | F38: 0 | G38: 0 | H38: 0 | I38: 0 | K38: =K36*K37 -> 0 | L38: =L36*L37 -> 0 | P38: Sum
B39: Добавить
B40: прочие, до 5% | C40: тыс. руб. | P40: Sum
B41: Итого материалы: | C41: тыс. руб. | D41: =SUMIF($P34:$P40,"sum",D34:D40) -> 0 | E41: 0 | F41: 0 | G41: 0 | H41: 0 | I41: 0 | K41: =SUMIF($P34:$P40,"sum",K34:K40) -> 0 | L41: =SUMIF($P34:$P40,"sum",L34:L40) -> 0
A43: * Вносятся данные по прямым расходам (включенным непосредственно в себестоимость холодного водоснабжения). Заполняется отдельно по участкам, в случае утверждения различных тарифов по системам
A45: Руководитель организации ____________________________________
A47: Ответственный за составление формы ______________________________________
B48: МП
E49: Приложение Д
A50: Фактический расход ГСМ за 2017 (при отсутсвии - 2018) год** | G50: год
A52: № п/п | B52: машина, гос. номер | C52: Вид ГСМ (марка) | D52: Фактический расход, л | E52: Пробег, км
E53: на начало года | F53: на конец года | H53: за год
A54: 1 | B54: Цех водоснабжения
A55: 1.1 | H55: =F55-E55 -> 0
B56: Добавить
A57: 2 | B57: Цех водоотведения
A58: 2.1 | H58: =F58-E58 -> 0
B59: Добавить
A60: 3 | B60: Транспортный цех
A61: 3.1 | H61: =F61-E61 -> 0
B62: Добавить
A63: 4 | B63: АУП
A64: 4.1 | H64: =F64-E64 -> 0
B65: Добавить
A66: 5 | B66: Прочие виды деятельности
A67: 5.1 | H67: =F67-E67 -> 0
B68: Добавить
A70: ** Вносятся расходы в целом по предприятию в соответствии с данными бухгалтерского учета по всем видам деятельности
A72: Руководитель организации ____________________________________
A74: Ответственный за составление формы ______________________________________
B75: МП

Sheet СИ Реагенты (hidden)
A2: кг | B2: коагулянт | C2: № | D2: Тип реагента | E2: Наименование реагента
A3: литр | B3: флокулянт
A4: тонна | B4: флокулянт с анионной активностью
A5: грамм | B5: флокулянт с катионной активностью | C5: 1 | D5: коагулянт | E5: алюминат натрия
B6: реагент | C6: 2 | D6: коагулянт | E6: гидроксохлоросульфат алюминия
C7: 3 | D7: коагулянт | E7: железный купорос
C8: 4 | D8: коагулянт | E8: неочищенный сернокислый алюминий
C9: 5 | D9: коагулянт | E9: оксихлорид алюминия
C10: 6 | D10: коагулянт | E10: полиоксихлорид алюминия
C11: 7 | D11: коагулянт | E11: сульфат алюминия
C12: 8 | D12: коагулянт | E12: хлорное железо
C14: 1 | D14: флокулянт | E14: Магнафлок
C15: 2 | D15: флокулянт | E15: Праестол
C17: 1 | D17: флокулянт с анионной активностью | E17: К-4
C18: 2 | D18: флокулянт с анионной активностью | E18: К-6
C19: 3 | D19: флокулянт с анионной активностью | E19: кислота кремниевая активированная
C20: 4 | D20: флокулянт с анионной активностью | E20: полиакриламид
C21: 5 | D21: флокулянт с анионной активностью | E21: полиакриламид гель
C23: 1 | D23: флокулянт с катионной активностью | E23: ВА-2
C25: 1 | D25: реагент | E25: агар питательный
C26: 2 | D26: реагент | E26: агар Эндо
C27: 3 | D27: реагент | E27: азот
C28: 4 | D28: реагент | E28: аква-аурат
C29: 5 | D29: реагент | E29: АКВАТАБС таблетки
C30: 6 | D30: реагент | E30: акватекс-30
C31: 7 | D31: реагент | E31: активированный уголь
C32: 8 | D32: реагент | E32: алюминий сернокислый
C33: 9 | D33: реагент | E33: альгитин непенящийся
C34: 10 | D34: реагент | E34: аммиак
C35: 11 | D35: реагент | E35: аммиачная вода
C36: 12 | D36: реагент | E36: аммоний
C37: 13 | D37: реагент | E37: аммоний хлористый
C38: 14 | D38: реагент | E38: аммофос
C39: 15 | D39: реагент | E39: антисакалант VITEK-3000
C40: 16 | D40: реагент | E40: барий хлористый
C41: 17 | D41: реагент | E41: биоксимин
C42: 18 | D42: реагент | E42: биостер
C43: 19 | D43: реагент | E43: бифлок
C44: 20 | D44: реагент | E44: бромфеноловый синий
C45: 21 | D45: реагент | E45: водорода перекись
C46: 22 | D46: реагент | E46: гексан
C47: 23 | D47: реагент | E47: гидразингидрат
C48: 24 | D48: реагент | E48: гидроантрацит
C49: 25 | D49: реагент | E49: гидроксиламин солянокислый
C50: 26 | D50: реагент | E50: гидрохлорид кальция
C51: 27 | D51: реагент | E51: гидроокись натрия
C52: 28 | D52: реагент | E52: гидроокись калия
C53: 29 | D53: реагент | E53: гипохлорит кальция
C54: 30 | D54: реагент | E54: гипохлорит натрия
C55: 31 | D55: реагент | E55: глицерин
C56: 32 | D56: реагент | E56: глюкоза
C57: 33 | D57: реагент | E57: дефлок
C58: 34 | D58: реагент | E58: динатрийфосфат
C59: 35 | D59: реагент | E59: дифенилкарбазид
C60: 36 | D60: реагент | E60: дифенилкарбазон
C61: 37 | D61: реагент | E61: железо сернокислое
C62: 38 | D62: реагент | E62: железо треххлористое
C63: 39 | D63: реагент | E63: известковая паста
C64: 40 | D64: реагент | E64: известковое молоко
C65: 41 | D65: реагент | E65: известь гашеная
C66: 42 | D66: реагент | E66: известь негашеная (порошок)
C67: 43 | D67: реагент | E67: известь негашеная гидратная
C68: 44 | D68: реагент | E68: известь хлорная
C69: 45 | D69: реагент | E69: калий азотнокислый
C70: 46 | D70: реагент | E70: калий иодистый
C71: 47 | D71: реагент | E71: калий двуххромовокислый
C72: 48 | D72: реагент | E72: калий марганцевокислый
C73: 49 | D73: реагент | E73: калий фосфорнокислый
C74: 50 | D74: реагент | E74: калий хлористый
C75: 51 | D75: реагент | E75: калий хромовокислый
C76: 52 | D76: реагент | E76: калий-натрий виннокислый
C77: 53 | D77: реагент | E77: калия сульфат
C78: 54 | D78: реагент | E78: кальция гипохлорит
C79: 55 | D79: реагент | E79: кальций углекислый
C80: 56 | D80: реагент | E80: кальций хлористый
C81: 57 | D81: реагент | E81: кварцевый песок
C82: 58 | D82: реагент | E82: кислота аскорбиновая
C83: 59 | D83: реагент | E83: кислота азотная
C84: 60 | D84: реагент | E84: кислота розоловая (аурин)
C85: 61 | D85: реагент | E85: кислота лимонная
C86: 62 | D86: реагент | E86: кислота серная
C87: 63 | D87: реагент | E87: кислота соляная
C88: 64 | D88: реагент | E88: кислота соляная ингибированная
C89: 65 | D89: реагент | E89: кислота сульфосалициловая
C90: 66 | D90: реагент | E90: кислота фосфорная
C91: 67 | D91: реагент | E91: кислота угольная сжиженная
C92: 68 | D92: реагент | E92: кислота уксусная
C93: 69 | D93: реагент | E93: кислота хлороводородная
C94: 70 | D94: реагент | E94: кислота щавелевая
C95: 71 | D95: реагент | E95: крахмал
C96: 72 | D96: реагент | E96: кремнефтористый натрий
C97: 73 | D97: реагент | E97: лантан азотнокислый
C98: 74 | D98: реагент | E98: магний сернокислый
C99: 75 | D99: реагент | E99: натр едкий
C100: 76 | D100: реагент | E100: натрий салициловокислый
C101: 77 | D101: реагент | E101: натрий сернокислый
C102: 78 | D102: реагент | E102: натрий углекислый
C103: 79 | D103: реагент | E103: натрий уксуснокислый
C104: 80 | D104: реагент | E104: натрий хлористый
C105: 81 | D105: реагент | E105: нафтол
C106: 82 | D106: реагент | E106: нафтиламин альфа
C107: 83 | D107: реагент | E107: Нитрофлок-215
C108: 84 | D108: реагент | E108: овицидный препарат "ПУРОЛАТ-БИНГСТИ"
C109: 85 | D109: реагент | E109: пюржавель
C110: 86 | D110: реагент | E110: реактив Грисса
C111: 87 | D111: реагент | E111: реактив Несслера
C112: 88 | D112: реагент | E112: свинец уксуснокислый
C113: 89 | D113: реагент | E113: серебро азотнокислое
C114: 90 | D114: реагент | E114: серебро сернокислое
C115: 91 | D115: реагент | E115: сернистый газ
C116: 92 | D116: реагент | E116: сликагель
C117: 93 | D117: реагент | E117: сода кальцинированная
C118: 94 | D118: реагент | E118: сода каустическая
C119: 95 | D119: реагент | E119: соль 1-й сорт
C120: 96 | D120: реагент | E120: соль пищевая поваренная
C121: 97 | D121: реагент | E121: соль таблетированная
C122: 98 | D122: реагент | E122: соль техническая
C123: 99 | D123: реагент | E123: соль экстра
C124: 100 | D124: реагент | E124: спирт
C125: 101 | D125: реагент | E125: спирт изопропиловый
C126: 102 | D126: реагент | E126: сталь ассорти
C127: 103 | D127: реагент | E127: сульфат алюминия 1 сорт
C128: 104 | D128: реагент | E128: сульфат алюминия жидкий
C129: 105 | D129: реагент | E129: сульфат алюминия технический
C130: 106 | D130: реагент | E130: сульфат аммония
C131: 107 | D131: реагент | E131: суперфлок
C132: 108 | D132: реагент | E132: тиосульфат натрия
C133: 109 | D133: реагент | E133: трилон Б
C134: 110 | D134: реагент | E134: тринатрийфосфат
C135: 111 | D135: реагент | E135: трихлометан
C136: 112 | D136: реагент | E136: углерод четыреххлористый
C137: 113 | D137: реагент | E137: фенолфталеин
C138: 114 | D138: реагент | E138: хлор
C139: 115 | D139: реагент | E139: хлор жидкий
C140: 116 | D140: реагент | E140: хлорамин
C141: 117 | D141: реагент | E141: хлороформ
C142: 118 | D142: реагент | E142: этиленгликоль
C143: 119 | D143: реагент | E143: эквитал жидкий
C144: 120 | D144: реагент | E144: эки-минус жидкий

Sheet Реагенты
A2: Реагенты
A4: № п/п | B4: Тип реагента | C4: Наименование реагента | D4: Место использования (резервуары, башни, сети, лаборатория, хлораторная,...) | E4: ед. измерения | F4: Остаток на 01.01.2017 | G4: Преобретено за 2017 год | H4: Поставщик | I4: Использовано за 2017 год | J4: Остаток на 01.01.2018 | K4: Расчет потребности
A5: 1 | J5: =F5+G5-I5 -> 0
E6: руб. (ср.цена)
E7: всего, руб | F7: =F5*F6 -> 0 | G7: =G5*G6 -> 0 | I7: =I5*I6 -> 0 | J7: =J5*J6 -> 0
J8: =F8+G8-I8 -> 0
E9: руб. (ср.цена)
E10: всего, руб | F10: =F8*F9 -> 0 | G10: =G8*G9 -> 0 | I10: =I8*I9 -> 0 | J10: =J8*J9 -> 0
J11: =F11+G11-I11 -> 0
E12: руб. (ср.цена)
E13: всего, руб | F13: =F11*F12 -> 0 | G13: =G11*G12 -> 0 | I13: =I11*I12 -> 0 | J13: =J11*J12 -> 0
J14: =F14+G14-I14 -> 0
E15: руб. (ср.цена)
E16: всего, руб | F16: =F14*F15 -> 0 | G16: =G14*G15 -> 0 | I16: =I14*I15 -> 0 | J16: =J14*J15 -> 0
J17: =F17+G17-I17 -> 0
E18: руб. (ср.цена)
E19: всего, руб | F19: =F17*F18 -> 0 | G19: =G17*G18 -> 0 | I19: =I17*I18 -> 0 | J19: =J17*J18 -> 0
J20: =F20+G20-I20 -> 0
E21: руб. (ср.цена)
E22: всего, руб | F22: =F20*F21 -> 0 | G22: =G20*G21 -> 0 | I22: =I20*I21 -> 0 | J22: =J20*J21 -> 0
B23: * при необходимости добавления строк (блоков) - обратитесь к куратору
A25: Руководитель организации ____________________________________
A27: Ответственный за составление формы ______________________________________
B28: МП

Sheet Транспорт
A1: Характеристика | AA1: Бенз АИ98 | AB1: собственность
B2: Марка транспортного средства/самоходной машины (в соответствии с ПТС/ПСМ) | C2: гос. номер (Х 000 ХХ 123 / 23 ХХ 0000 ) | D2: кат-я | E2: VIN/№ машины (рамы) | F2: право использования | G2: год изготовления ТС | H2: цвет | I2: мощность двигателя, л.с. | J2: мощность двигателя, кВт | K2: объем двигателя, куб. см | L2: конструкционная масса, кг | M2: эколог класс | N2: вид топлива | O2: собственник (в соответствии с ПТС/ПСМ) | P2: ПТС/ПСМ (номер) | Q2: св-во о рег ТС (номер) | R2: приказ о закреплении за подразделением (дата, номер) | AA2: Бенз АИ95 | AB2: аренда
B3: Водоснабжение | AA3: Бенз АИ92 | AB3: хоз. ведение
A4: 1 | B4: эксковатор ЭО 2621 | C4: 14-37 км | D4: С | E4: 000792/808111754 | F4: опер. управление | G4: 2010 | H4: сине-черно-желтый | I4: 81 | J4: 59 | L4: 5870 | N4: ДТ | O4: Администрация Новоивановского сельского поселения Новопокровского района | P4: ВЕ 622786 | Q4: 23 УС №4482 | R4: №32-р от 05.04.2013г. | AA4: Бенз АИ76/80 | AB4: опер. управление
A5: 2 | AA5: ДТ | AB5: концессия
AA6: ГБО (пропан-бутан) | AB6: бесхоз
AA7: ГБО (метан)
B14: Водоотведение
A15: 1
A16: 2
B25: Цех
A26: 1
A27: 2
B36: АУП
A37: 1 | B37: УАЗ-3962 | C37: х276ер93 | D37: В | E37: XTT3962OOYOO45637 | F37: опер. управление | G37: 2000 | H37: белая ночь | I37: 76 | J37: 55.9 | K37: 2445 | L37: 1825 | N37: Бенз АИ92 | O37: Администрация Новоивановского сельского поселения Новопокровского района | P37: 73 ЕТ 974506 | Q37: 23РВ №246448 | R37: №32-р от 05.04.2013г.
A38: 2
A48: 1
A49: 2
B58: * при необходимости добавления строк - правой кнопкой мыши на серое поле номера строки (в середине нужного блока желтых строк) и выбираем пункт меню "вставить"
B60: Руководитель организации ____________________________________
B62: Ответственный за составление формы ______________________________________
C63: МП

Sheet ГСМ факт
A2: РАСЧЕТ ГСМ по ФАКТУ 2017 года | F2: ПО ДАННЫМ ОКК | AQ2: ПО ДАННЫМ РЭК
B4: Марка транспортного средства/самоходной машины/установки (в соответствии с ПТС/ПСМ/паспортом) | C4: гос. номер (Х 000 ХХ 123 / 23 ХХ 0000 ) | D4: право использования | E4: вид топлива | F4: Пробег (км), работа машин (м/ч), установок (ч) | G4: Норма расхода топлива, л | T4: Средняя стоимость 1 литра, руб. | U4: Стоимость топлива, руб. | V4: Моторные масла | Z4: Транссм смазки и гидравл масла | AD4: Спец масла и жидкости | AH4: Пластичные смазки | AL4: Итого, руб | AM4: Итого, л | AN4: Расход масел от топлива в % | AO4: Средн стоимость масла, руб | AQ4: Пробег (км), работа машин (м/ч), установок (ч) | AR4: Норма расхода топлива, л | BE4: Средняя стоимость 1 литра, руб. | BF4: Стоимость топлива, руб. | BG4: Моторные масла | BK4: Транссм смазки и гидравл масла | BO4: Спец масла и жидкости | BS4: Пластичные смазки | BW4: Итого, руб | BX4: Итого, л | BY4: Расход масел от топлива в % | BZ4: Средн стоимость масла, руб
G5: на ед. (100 км, м/ч, ч) | H5: на годовой пробег | I5: в летний период | L5: в зимний период | O5: на технологический процесс за 1 рейс/ операцию | P5: кол-во рейсов/операций за год | Q5: на технологический процесс за год | R5: кол-во топлива на прогрев ДВС | S5: ВСЕГО, л. | V5: Норма на 100л | W5: Кол-во, л | X5: Средняя цена, руб | Y5: Сумма, руб | Z5: Норма на 100л | AA5: Кол-во, л | AB5: Средняя цена, руб | AC5: Сумма, руб | AD5: Норма на 100л | AE5: Кол-во, л | AF5: Средняя цена, руб | AG5: Сумма, руб | AH5: Норма на 100л | AI5: Кол-во, кг | AJ5: Средняя цена, руб | AK5: Сумма, руб | AR5: на ед. (100 км, м/ч, ч) | AS5: на годовой пробег | AT5: в летний период | AW5: в зимний период | AZ5: на технологический процесс за 1 рейс/ операцию | BA5: кол-во рейсов/операций за год | BB5: на технологический процесс за год | BC5: кол-во топлива на прогрев ДВС | BD5: ВСЕГО, л. | BG5: Норма на 100л | BH5: Кол-во, л | BI5: Средняя цена, руб | BJ5: Сумма, руб | BK5: Норма на 100л | BL5: Кол-во, л | BM5: Средняя цена, руб | BN5: Сумма, руб | BO5: Норма на 100л | BP5: Кол-во, л | BQ5: Средняя цена, руб | BR5: Сумма, руб | BS5: Норма на 100л | BT5: Кол-во, кг | BU5: Средняя цена, руб | BV5: Сумма, руб
I6: норма расхода на 100 км | J6: побег, км | K6: расход топлива, л | L6: норма расхода на 100 км | M6: побег, км | N6: расход топлива, л | AT6: норма расхода на 100 км | AU6: побег, км | AV6: расход топлива, л | AW6: норма расхода на 100 км | AX6: побег, км | AY6: расход топлива, л
B7: Водоснабжение
A8: 1 | B8: эксковатор ЭО 2621 | C8: 14-37 км | D8: опер. управление | E8: ДТ | F8: 71ч | G8: 7.5 | H8: 532.5 | K8: =J8/100*I8 -> 0 | N8: =M8/100*L8 -> 0 | S8: =H8+Q8+R8 -> 532.5 | T8: 38.731 | U8: =S8*T8 -> 20624.2575 | Y8: =W8*X8 -> 0 | AC8: =AA8*AB8 -> 0 | AG8: =AE8*AF8 -> 0 | AK8: =AI8*AJ8 -> 0 | AL8: =Y8+AC8+AG8+AK8 -> 0 | AM8: =W8+AA8+AE8+AI8 -> 0 | AN8: =AM8/S8 -> 0 | AO8: =AL8/AM8 ->  | AV8: =AU8/100*AT8 -> 0 | AY8: =AX8/100*AW8 -> 0 | BD8: =AS8+BB8+BC8 -> 0 | BF8: =BD8*BE8 -> 0 | BJ8: =BH8*BI8 -> 0 | BN8: =BL8*BM8 -> 0 | BR8: =BP8*BQ8 -> 0 | BV8: =BT8*BU8 -> 0 | BW8: =BJ8+BN8+BR8+BV8 -> 0 | BX8: =BH8+BL8+BP8+BT8 -> 0 | BY8: =BX8/BD8 ->  | BZ8: =BW8/BX8 -> 
K9: =J9/100*I9 -> 0 | N9: =M9/100*L9 -> 0 | S9: =H9+Q9+R9 -> 0 | U9: =S9*T9 -> 0 | Y9: =W9*X9 -> 0 | AC9: =AA9*AB9 -> 0 | AG9: =AE9*AF9 -> 0 | AK9: =AI9*AJ9 -> 0 | AL9: =Y9+AC9+AG9+AK9 -> 0 | AM9: =W9+AA9+AE9+AI9 -> 0 | AN9: =AM9/S9 ->  | AO9: =AL9/AM9 ->  | AV9: =AU9/100*AT9 -> 0 | AY9: =AX9/100*AW9 -> 0 | BD9: =AS9+BB9+BC9 -> 0 | BF9: =BD9*BE9 -> 0 | BJ9: =BH9*BI9 -> 0 | BN9: =BL9*BM9 -> 0 | BR9: =BP9*BQ9 -> 0 | BV9: =BT9*BU9 -> 0 | BW9: =BJ9+BN9+BR9+BV9 -> 0 | BX9: =BH9+BL9+BP9+BT9 -> 0 | BY9: =BX9/BD9 ->  | BZ9: =BW9/BX9 -> 
K10: 0 | N10: 0 | S10: 0 | U10: 0 | Y10: 0 | AC10: 0 | AG10: 0 | AK10: 0 | AL10: 0 | AM10: 0 | AV10: 0 | AY10: 0 | BD10: 0 | BF10: 0 | BJ10: 0 | BN10: 0 | BR10: 0 | BV10: 0 | BW10: 0 | BX10: 0
K11: 0 | N11: 0 | S11: 0 | U11: 0 | Y11: 0 | AC11: 0 | AG11: 0 | AK11: 0 | AL11: 0 | AM11: 0 | AV11: 0 | AY11: 0 | BD11: 0 | BF11: 0 | BJ11: 0 | BN11: 0 | BR11: 0 | BV11: 0 | BW11: 0 | BX11: 0
K12: 0 | N12: 0 | S12: 0 | U12: 0 | Y12: 0 | AC12: 0 | AG12: 0 | AK12: 0 | AL12: 0 | AM12: 0 | AV12: 0 | AY12: 0 | BD12: 0 | BF12: 0 | BJ12: 0 | BN12: 0 | BR12: 0 | BV12: 0 | BW12: 0 | BX12: 0
K13: 0 | N13: 0 | S13: 0 | U13: 0 | Y13: 0 | AC13: 0 | AG13: 0 | AK13: 0 | AL13: 0 | AM13: 0 | AV13: 0 | AY13: 0 | BD13: 0 | BF13: 0 | BJ13: 0 | BN13: 0 | BR13: 0 | BV13: 0 | BW13: 0 | BX13: 0
K14: 0 | N14: 0 | S14: 0 | U14: 0 | Y14: 0 | AC14: 0 | AG14: 0 | AK14: 0 | AL14: 0 | AM14: 0 | AV14: 0 | AY14: 0 | BD14: 0 | BF14: 0 | BJ14: 0 | BN14: 0 | BR14: 0 | BV14: 0 | BW14: 0 | BX14: 0
K15: 0 | N15: 0 | S15: 0 | U15: 0 | Y15: 0 | AC15: 0 | AG15: 0 | AK15: 0 | AL15: 0 | AM15: 0 | AV15: 0 | AY15: 0 | BD15: 0 | BF15: 0 | BJ15: 0 | BN15: 0 | BR15: 0 | BV15: 0 | BW15: 0 | BX15: 0
K16: 0 | N16: 0 | S16: 0 | U16: 0 | Y16: 0 | AC16: 0 | AG16: 0 | AK16: 0 | AL16: 0 | AM16: 0 | AV16: 0 | AY16: 0 | BD16: 0 | BF16: 0 | BJ16: 0 | BN16: 0 | BR16: 0 | BV16: 0 | BW16: 0 | BX16: 0
K17: 0 | N17: 0 | S17: 0 | U17: 0 | Y17: 0 | AC17: 0 | AG17: 0 | AK17: 0 | AL17: 0 | AM17: 0 | AV17: 0 | AY17: 0 | BD17: 0 | BF17: 0 | BJ17: 0 | BN17: 0 | BR17: 0 | BV17: 0 | BW17: 0 | BX17: 0
B18: Цех
A19: 1 | K19: =J19/100*I19 -> 0 | N19: =M19/100*L19 -> 0 | S19: =H19+Q19+R19 -> 0 | U19: =S19*T19 -> 0 | Y19: =W19*X19 -> 0 | AC19: =AA19*AB19 -> 0 | AG19: =AE19*AF19 -> 0 | AK19: =AI19*AJ19 -> 0 | AL19: =Y19+AC19+AG19+AK19 -> 0 | AM19: =W19+AA19+AE19+AI19 -> 0 | AN19: =AM19/S19 ->  | AO19: =AL19/AM19 ->  | AV19: =AU19/100*AT19 -> 0 | AY19: =AX19/100*AW19 -> 0 | BD19: =AS19+BB19+BC19 -> 0 | BF19: =BD19*BE19 -> 0 | BJ19: =BH19*BI19 -> 0 | BN19: =BL19*BM19 -> 0 | BR19: =BP19*BQ19 -> 0 | BV19: =BT19*BU19 -> 0 | BW19: =BJ19+BN19+BR19+BV19 -> 0 | BX19: =BH19+BL19+BP19+BT19 -> 0 | BY19: =BX19/BD19 ->  | BZ19: =BW19/BX19 -> 
K20: =J20/100*I20 -> 0 | N20: =M20/100*L20 -> 0 | S20: =H20+Q20+R20 -> 0 | U20: =S20*T20 -> 0 | Y20: =W20*X20 -> 0 | AC20: =AA20*AB20 -> 0 | AG20: =AE20*AF20 -> 0 | AK20: =AI20*AJ20 -> 0 | AL20: =Y20+AC20+AG20+AK20 -> 0 | AM20: =W20+AA20+AE20+AI20 -> 0 | AN20: =AM20/S20 ->  | AO20: =AL20/AM20 ->  | AV20: =AU20/100*AT20 -> 0 | AY20: =AX20/100*AW20 -> 0 | BD20: =AS20+BB20+BC20 -> 0 | BF20: =BD20*BE20 -> 0 | BJ20: =BH20*BI20 -> 0 | BN20: =BL20*BM20 -> 0 | BR20: =BP20*BQ20 -> 0 | BV20: =BT20*BU20 -> 0 | BW20: =BJ20+BN20+BR20+BV20 -> 0 | BX20: =BH20+BL20+BP20+BT20 -> 0 | BY20: =BX20/BD20 ->  | BZ20: =BW20/BX20 -> 
K21: 0 | N21: 0 | S21: 0 | U21: 0 | Y21: 0 | AC21: 0 | AG21: 0 | AK21: 0 | AL21: 0 | AM21: 0 | AV21: 0 | AY21: 0 | BD21: 0 | BF21: 0 | BJ21: 0 | BN21: 0 | BR21: 0 | BV21: 0 | BW21: 0 | BX21: 0
K22: 0 | N22: 0 | S22: 0 | U22: 0 | Y22: 0 | AC22: 0 | AG22: 0 | AK22: 0 | AL22: 0 | AM22: 0 | AV22: 0 | AY22: 0 | BD22: 0 | BF22: 0 | BJ22: 0 | BN22: 0 | BR22: 0 | BV22: 0 | BW22: 0 | BX22: 0
K23: 0 | N23: 0 | S23: 0 | U23: 0 | Y23: 0 | AC23: 0 | AG23: 0 | AK23: 0 | AL23: 0 | AM23: 0 | AV23: 0 | AY23: 0 | BD23: 0 | BF23: 0 | BJ23: 0 | BN23: 0 | BR23: 0 | BV23: 0 | BW23: 0 | BX23: 0
K24: 0 | N24: 0 | S24: 0 | U24: 0 | Y24: 0 | AC24: 0 | AG24: 0 | AK24: 0 | AL24: 0 | AM24: 0 | AV24: 0 | AY24: 0 | BD24: 0 | BF24: 0 | BJ24: 0 | BN24: 0 | BR24: 0 | BV24: 0 | BW24: 0 | BX24: 0
K25: 0 | N25: 0 | S25: 0 | U25: 0 | Y25: 0 | AC25: 0 | AG25: 0 | AK25: 0 | AL25: 0 | AM25: 0 | AV25: 0 | AY25: 0 | BD25: 0 | BF25: 0 | BJ25: 0 | BN25: 0 | BR25: 0 | BV25: 0 | BW25: 0 | BX25: 0
K26: 0 | N26: 0 | S26: 0 | U26: 0 | Y26: 0 | AC26: 0 | AG26: 0 | AK26: 0 | AL26: 0 | AM26: 0 | AV26: 0 | AY26: 0 | BD26: 0 | BF26: 0 | BJ26: 0 | BN26: 0 | BR26: 0 | BV26: 0 | BW26: 0 | BX26: 0
K27: 0 | N27: 0 | S27: 0 | U27: 0 | Y27: 0 | AC27: 0 | AG27: 0 | AK27: 0 | AL27: 0 | AM27: 0 | AV27: 0 | AY27: 0 | BD27: 0 | BF27: 0 | BJ27: 0 | BN27: 0 | BR27: 0 | BV27: 0 | BW27: 0 | BX27: 0
K28: 0 | N28: 0 | S28: 0 | U28: 0 | Y28: 0 | AC28: 0 | AG28: 0 | AK28: 0 | AL28: 0 | AM28: 0 | AV28: 0 | AY28: 0 | BD28: 0 | BF28: 0 | BJ28: 0 | BN28: 0 | BR28: 0 | BV28: 0 | BW28: 0 | BX28: 0
B29: АУП
A30: 1 | B30: УАЗ-3962 | C30: х276ер93 | D30: опер. управление | E30: Бенз АИ92 | F30: 3308 | G30: 18 | H30: 590 | K30: =J30/100*I30 -> 0 | N30: =M30/100*L30 -> 0 | S30: =H30+Q30+R30 -> 590 | T30: 38.4 | U30: =S30*T30 -> 22656 | Y30: =W30*X30 -> 0 | AC30: =AA30*AB30 -> 0 | AG30: =AE30*AF30 -> 0 | AK30: =AI30*AJ30 -> 0 | AL30: =Y30+AC30+AG30+AK30 -> 0 | AM30: =W30+AA30+AE30+AI30 -> 0 | AN30: =AM30/S30 -> 0 | AO30: =AL30/AM30 ->  | AV30: =AU30/100*AT30 -> 0 | AY30: =AX30/100*AW30 -> 0 | BD30: =AS30+BB30+BC30 -> 0 | BF30: =BD30*BE30 -> 0 | BJ30: =BH30*BI30 -> 0 | BN30: =BL30*BM30 -> 0 | BR30: =BP30*BQ30 -> 0 | BV30: =BT30*BU30 -> 0 | BW30: =BJ30+BN30+BR30+BV30 -> 0 | BX30: =BH30+BL30+BP30+BT30 -> 0 | BY30: =BX30/BD30 ->  | BZ30: =BW30/BX30 -> 
K31: =J31/100*I31 -> 0 | N31: =M31/100*L31 -> 0 | S31: =H31+Q31+R31 -> 0 | U31: =S31*T31 -> 0 | Y31: =W31*X31 -> 0 | AC31: =AA31*AB31 -> 0 | AG31: =AE31*AF31 -> 0 | AK31: =AI31*AJ31 -> 0 | AL31: =Y31+AC31+AG31+AK31 -> 0 | AM31: =W31+AA31+AE31+AI31 -> 0 | AN31: =AM31/S31 ->  | AO31: =AL31/AM31 ->  | AV31: =AU31/100*AT31 -> 0 | AY31: =AX31/100*AW31 -> 0 | BD31: =AS31+BB31+BC31 -> 0 | BF31: =BD31*BE31 -> 0 | BJ31: =BH31*BI31 -> 0 | BN31: =BL31*BM31 -> 0 | BR31: =BP31*BQ31 -> 0 | BV31: =BT31*BU31 -> 0 | BW31: =BJ31+BN31+BR31+BV31 -> 0 | BX31: =BH31+BL31+BP31+BT31 -> 0 | BY31: =BX31/BD31 ->  | BZ31: =BW31/BX31 -> 
K32: 0 | N32: 0 | S32: 0 | U32: 0 | Y32: 0 | AC32: 0 | AG32: 0 | AK32: 0 | AL32: 0 | AM32: 0 | AV32: 0 | AY32: 0 | BD32: 0 | BF32: 0 | BJ32: 0 | BN32: 0 | BR32: 0 | BV32: 0 | BW32: 0 | BX32: 0
K33: 0 | N33: 0 | S33: 0 | U33: 0 | Y33: 0 | AC33: 0 | AG33: 0 | AK33: 0 | AL33: 0 | AM33: 0 | AV33: 0 | AY33: 0 | BD33: 0 | BF33: 0 | BJ33: 0 | BN33: 0 | BR33: 0 | BV33: 0 | BW33: 0 | BX33: 0
K34: 0 | N34: 0 | S34: 0 | U34: 0 | Y34: 0 | AC34: 0 | AG34: 0 | AK34: 0 | AL34: 0 | AM34: 0 | AV34: 0 | AY34: 0 | BD34: 0 | BF34: 0 | BJ34: 0 | BN34: 0 | BR34: 0 | BV34: 0 | BW34: 0 | BX34: 0
K35: 0 | N35: 0 | S35: 0 | U35: 0 | Y35: 0 | AC35: 0 | AG35: 0 | AK35: 0 | AL35: 0 | AM35: 0 | AV35: 0 | AY35: 0 | BD35: 0 | BF35: 0 | BJ35: 0 | BN35: 0 | BR35: 0 | BV35: 0 | BW35: 0 | BX35: 0
K36: 0 | N36: 0 | S36: 0 | U36: 0 | Y36: 0 | AC36: 0 | AG36: 0 | AK36: 0 | AL36: 0 | AM36: 0 | AV36: 0 | AY36: 0 | BD36: 0 | BF36: 0 | BJ36: 0 | BN36: 0 | BR36: 0 | BV36: 0 | BW36: 0 | BX36: 0
K37: 0 | N37: 0 | S37: 0 | U37: 0 | Y37: 0 | AC37: 0 | AG37: 0 | AK37: 0 | AL37: 0 | AM37: 0 | AV37: 0 | AY37: 0 | BD37: 0 | BF37: 0 | BJ37: 0 | BN37: 0 | BR37: 0 | BV37: 0 | BW37: 0 | BX37: 0
K38: 0 | N38: 0 | S38: 0 | U38: 0 | Y38: 0 | AC38: 0 | AG38: 0 | AK38: 0 | AL38: 0 | AM38: 0 | AV38: 0 | AY38: 0 | BD38: 0 | BF38: 0 | BJ38: 0 | BN38: 0 | BR38: 0 | BV38: 0 | BW38: 0 | BX38: 0
K39: 0 | N39: 0 | S39: 0 | U39: 0 | Y39: 0 | AC39: 0 | AG39: 0 | AK39: 0 | AL39: 0 | AM39: 0 | AV39: 0 | AY39: 0 | BD39: 0 | BF39: 0 | BJ39: 0 | BN39: 0 | BR39: 0 | BV39: 0 | BW39: 0 | BX39: 0
B40: * при необходимости добавления строк (блоков) - обратитесь к куратору
B42: Руководитель организации ____________________________________
B44: Ответственный за составление формы ______________________________________
C45: МП

Sheet ГСМ план
A2: РАСЧЕТ ГСМ ПЛАН 2019 года | F2: ПО ДАННЫМ ОКК | AQ2: ПО ДАННЫМ РЭК
B4: Марка транспортного средства/самоходной машины/установки (в соответствии с ПТС/ПСМ/паспортом) | C4: гос. номер (Х 000 ХХ 123 / 23 ХХ 0000 ) | D4: право использования | E4: вид топлива | F4: Пробег (км), работа машин (м/ч), установок (ч) | G4: Норма расхода топлива, л | T4: Средняя стоимость 1 литра, руб. | U4: Стоимость топлива, руб. | V4: Моторные масла | Z4: Транссм смазки и гидравл масла | AD4: Спец масла и жидкости | AH4: Пластичные смазки | AL4: Итого, руб | AM4: Итого, л | AN4: Расход масел от топлива в % | AO4: Средн стоимость масла, руб | AQ4: Пробег (км), работа машин (м/ч), установок (ч) | AR4: Норма расхода топлива, л | BE4: Средняя стоимость 1 литра, руб. | BF4: Стоимость топлива, руб. | BG4: Моторные масла | BK4: Транссм смазки и гидравл масла | BO4: Спец масла и жидкости | BS4: Пластичные смазки | BW4: Итого, руб | BX4: Итого, л | BY4: Расход масел от топлива в % | BZ4: Средн стоимость масла, руб
G5: на ед. (100 км, м/ч, ч) | H5: на годовой пробег | I5: в летний период | L5: в зимний период | O5: на технологический процесс за 1 рейс/ операцию | P5: кол-во рейсов/операций за год | Q5: на технологический процесс за год | R5: кол-во топлива на прогрев ДВС | S5: ВСЕГО, л. | V5: Норма на 100л | W5: Кол-во, л | X5: Средняя цена, руб | Y5: Сумма, руб | Z5: Норма на 100л | AA5: Кол-во, л | AB5: Средняя цена, руб | AC5: Сумма, руб | AD5: Норма на 100л | AE5: Кол-во, л | AF5: Средняя цена, руб | AG5: Сумма, руб | AH5: Норма на 100л | AI5: Кол-во, кг | AJ5: Средняя цена, руб | AK5: Сумма, руб | AR5: на ед. (100 км, м/ч, ч) | AS5: на годовой пробег | AT5: в летний период | AW5: в зимний период | AZ5: на технологический процесс за 1 рейс/ операцию | BA5: кол-во рейсов/операций за год | BB5: на технологический процесс за год | BC5: кол-во топлива на прогрев ДВС | BD5: ВСЕГО, л. | BG5: Норма на 100л | BH5: Кол-во, л | BI5: Средняя цена, руб | BJ5: Сумма, руб | BK5: Норма на 100л | BL5: Кол-во, л | BM5: Средняя цена, руб | BN5: Сумма, руб | BO5: Норма на 100л | BP5: Кол-во, л | BQ5: Средняя цена, руб | BR5: Сумма, руб | BS5: Норма на 100л | BT5: Кол-во, кг | BU5: Средняя цена, руб | BV5: Сумма, руб
I6: норма расхода на 100 км | J6: побег, км | K6: расход топлива, л | L6: норма расхода на 100 км | M6: побег, км | N6: расход топлива, л | AT6: норма расхода на 100 км | AU6: побег, км | AV6: расход топлива, л | AW6: норма расхода на 100 км | AX6: побег, км | AY6: расход топлива, л
B7: Водоснабжение
A8: 1 | B8: эксковатор ЭО 2621 | C8: 14-37 км | D8: опер. управление | E8: ДТ | F8: 71ч | G8: 7.5 | H8: 532.5 | K8: =J8/100*I8 -> 0 | N8: =M8/100*L8 -> 0 | S8: =H8+Q8+R8 -> 532.5 | T8: 41.69 | U8: =S8*T8 -> 22199.925 | Y8: =W8*X8 -> 0 | AC8: =AA8*AB8 -> 0 | AG8: =AE8*AF8 -> 0 | AK8: =AI8*AJ8 -> 0 | AL8: =Y8+AC8+AG8+AK8 -> 0 | AM8: =W8+AA8+AE8+AI8 -> 0 | AN8: =AM8/S8 -> 0 | AO8: =AL8/AM8 ->  | AV8: =AU8/100*AT8 -> 0 | AY8: =AX8/100*AW8 -> 0 | BD8: =AS8+BB8+BC8 -> 0 | BF8: =BD8*BE8 -> 0 | BJ8: =BH8*BI8 -> 0 | BN8: =BL8*BM8 -> 0 | BR8: =BP8*BQ8 -> 0 | BV8: =BT8*BU8 -> 0 | BW8: =BJ8+BN8+BR8+BV8 -> 0 | BX8: =BH8+BL8+BP8+BT8 -> 0 | BY8: =BX8/BD8 ->  | BZ8: =BW8/BX8 -> 
K9: =J9/100*I9 -> 0 | N9: =M9/100*L9 -> 0 | S9: =H9+Q9+R9 -> 0 | U9: =S9*T9 -> 0 | Y9: =W9*X9 -> 0 | AC9: =AA9*AB9 -> 0 | AG9: =AE9*AF9 -> 0 | AK9: =AI9*AJ9 -> 0 | AL9: =Y9+AC9+AG9+AK9 -> 0 | AM9: =W9+AA9+AE9+AI9 -> 0 | AN9: =AM9/S9 ->  | AO9: =AL9/AM9 ->  | AV9: =AU9/100*AT9 -> 0 | AY9: =AX9/100*AW9 -> 0 | BD9: =AS9+BB9+BC9 -> 0 | BF9: =BD9*BE9 -> 0 | BJ9: =BH9*BI9 -> 0 | BN9: =BL9*BM9 -> 0 | BR9: =BP9*BQ9 -> 0 | BV9: =BT9*BU9 -> 0 | BW9: =BJ9+BN9+BR9+BV9 -> 0 | BX9: =BH9+BL9+BP9+BT9 -> 0 | BY9: =BX9/BD9 ->  | BZ9: =BW9/BX9 -> 
K10: 0 | N10: 0 | S10: 0 | U10: 0 | Y10: 0 | AC10: 0 | AG10: 0 | AK10: 0 | AL10: 0 | AM10: 0 | AV10: 0 | AY10: 0 | BD10: 0 | BF10: 0 | BJ10: 0 | BN10: 0 | BR10: 0 | BV10: 0 | BW10: 0 | BX10: 0
K11: 0 | N11: 0 | S11: 0 | U11: 0 | Y11: 0 | AC11: 0 | AG11: 0 | AK11: 0 | AL11: 0 | AM11: 0 | AV11: 0 | AY11: 0 | BD11: 0 | BF11: 0 | BJ11: 0 | BN11: 0 | BR11: 0 | BV11: 0 | BW11: 0 | BX11: 0
K12: 0 | N12: 0 | S12: 0 | U12: 0 | Y12: 0 | AC12: 0 | AG12: 0 | AK12: 0 | AL12: 0 | AM12: 0 | AV12: 0 | AY12: 0 | BD12: 0 | BF12: 0 | BJ12: 0 | BN12: 0 | BR12: 0 | BV12: 0 | BW12: 0 | BX12: 0
K13: 0 | N13: 0 | S13: 0 | U13: 0 | Y13: 0 | AC13: 0 | AG13: 0 | AK13: 0 | AL13: 0 | AM13: 0 | AV13: 0 | AY13: 0 | BD13: 0 | BF13: 0 | BJ13: 0 | BN13: 0 | BR13: 0 | BV13: 0 | BW13: 0 | BX13: 0
K14: 0 | N14: 0 | S14: 0 | U14: 0 | Y14: 0 | AC14: 0 | AG14: 0 | AK14: 0 | AL14: 0 | AM14: 0 | AV14: 0 | AY14: 0 | BD14: 0 | BF14: 0 | BJ14: 0 | BN14: 0 | BR14: 0 | BV14: 0 | BW14: 0 | BX14: 0
K15: 0 | N15: 0 | S15: 0 | U15: 0 | Y15: 0 | AC15: 0 | AG15: 0 | AK15: 0 | AL15: 0 | AM15: 0 | AV15: 0 | AY15: 0 | BD15: 0 | BF15: 0 | BJ15: 0 | BN15: 0 | BR15: 0 | BV15: 0 | BW15: 0 | BX15: 0
K16: 0 | N16: 0 | S16: 0 | U16: 0 | Y16: 0 | AC16: 0 | AG16: 0 | AK16: 0 | AL16: 0 | AM16: 0 | AV16: 0 | AY16: 0 | BD16: 0 | BF16: 0 | BJ16: 0 | BN16: 0 | BR16: 0 | BV16: 0 | BW16: 0 | BX16: 0
K17: 0 | N17: 0 | S17: 0 | U17: 0 | Y17: 0 | AC17: 0 | AG17: 0 | AK17: 0 | AL17: 0 | AM17: 0 | AV17: 0 | AY17: 0 | BD17: 0 | BF17: 0 | BJ17: 0 | BN17: 0 | BR17: 0 | BV17: 0 | BW17: 0 | BX17: 0
B18: Цех
A19: 1 | K19: =J19/100*I19 -> 0 | N19: =M19/100*L19 -> 0 | S19: =H19+Q19+R19 -> 0 | U19: =S19*T19 -> 0 | Y19: =W19*X19 -> 0 | AC19: =AA19*AB19 -> 0 | AG19: =AE19*AF19 -> 0 | AK19: =AI19*AJ19 -> 0 | AL19: =Y19+AC19+AG19+AK19 -> 0 | AM19: =W19+AA19+AE19+AI19 -> 0 | AN19: =AM19/S19 ->  | AO19: =AL19/AM19 ->  | AV19: =AU19/100*AT19 -> 0 | AY19: =AX19/100*AW19 -> 0 | BD19: =AS19+BB19+BC19 -> 0 | BF19: =BD19*BE19 -> 0 | BJ19: =BH19*BI19 -> 0 | BN19: =BL19*BM19 -> 0 | BR19: =BP19*BQ19 -> 0 | BV19: =BT19*BU19 -> 0 | BW19: =BJ19+BN19+BR19+BV19 -> 0 | BX19: =BH19+BL19+BP19+BT19 -> 0 | BY19: =BX19/BD19 ->  | BZ19: =BW19/BX19 -> 
K20: =J20/100*I20 -> 0 | N20: =M20/100*L20 -> 0 | S20: =H20+Q20+R20 -> 0 | U20: =S20*T20 -> 0 | Y20: =W20*X20 -> 0 | AC20: =AA20*AB20 -> 0 | AG20: =AE20*AF20 -> 0 | AK20: =AI20*AJ20 -> 0 | AL20: =Y20+AC20+AG20+AK20 -> 0 | AM20: =W20+AA20+AE20+AI20 -> 0 | AN20: =AM20/S20 ->  | AO20: =AL20/AM20 ->  | AV20: =AU20/100*AT20 -> 0 | AY20: =AX20/100*AW20 -> 0 | BD20: =AS20+BB20+BC20 -> 0 | BF20: =BD20*BE20 -> 0 | BJ20: =BH20*BI20 -> 0 | BN20: =BL20*BM20 -> 0 | BR20: =BP20*BQ20 -> 0 | BV20: =BT20*BU20 -> 0 | BW20: =BJ20+BN20+BR20+BV20 -> 0 | BX20: =BH20+BL20+BP20+BT20 -> 0 | BY20: =BX20/BD20 ->  | BZ20: =BW20/BX20 -> 
K21: 0 | N21: 0 | S21: 0 | U21: 0 | Y21: 0 | AC21: 0 | AG21: 0 | AK21: 0 | AL21: 0 | AM21: 0 | AV21: 0 | AY21: 0 | BD21: 0 | BF21: 0 | BJ21: 0 | BN21: 0 | BR21: 0 | BV21: 0 | BW21: 0 | BX21: 0
K22: 0 | N22: 0 | S22: 0 | U22: 0 | Y22: 0 | AC22: 0 | AG22: 0 | AK22: 0 | AL22: 0 | AM22: 0 | AV22: 0 | AY22: 0 | BD22: 0 | BF22: 0 | BJ22: 0 | BN22: 0 | BR22: 0 | BV22: 0 | BW22: 0 | BX22: 0
K23: 0 | N23: 0 | S23: 0 | U23: 0 | Y23: 0 | AC23: 0 | AG23: 0 | AK23: 0 | AL23: 0 | AM23: 0 | AV23: 0 | AY23: 0 | BD23: 0 | BF23: 0 | BJ23: 0 | BN23: 0 | BR23: 0 | BV23: 0 | BW23: 0 | BX23: 0
K24: 0 | N24: 0 | S24: 0 | U24: 0 | Y24: 0 | AC24: 0 | AG24: 0 | AK24: 0 | AL24: 0 | AM24: 0 | AV24: 0 | AY24: 0 | BD24: 0 | BF24: 0 | BJ24: 0 | BN24: 0 | BR24: 0 | BV24: 0 | BW24: 0 | BX24: 0
K25: 0 | N25: 0 | S25: 0 | U25: 0 | Y25: 0 | AC25: 0 | AG25: 0 | AK25: 0 | AL25: 0 | AM25: 0 | AV25: 0 | AY25: 0 | BD25: 0 | BF25: 0 | BJ25: 0 | BN25: 0 | BR25: 0 | BV25: 0 | BW25: 0 | BX25: 0
K26: 0 | N26: 0 | S26: 0 | U26: 0 | Y26: 0 | AC26: 0 | AG26: 0 | AK26: 0 | AL26: 0 | AM26: 0 | AV26: 0 | AY26: 0 | BD26: 0 | BF26: 0 | BJ26: 0 | BN26: 0 | BR26: 0 | BV26: 0 | BW26: 0 | BX26: 0
K27: 0 | N27: 0 | S27: 0 | U27: 0 | Y27: 0 | AC27: 0 | AG27: 0 | AK27: 0 | AL27: 0 | AM27: 0 | AV27: 0 | AY27: 0 | BD27: 0 | BF27: 0 | BJ27: 0 | BN27: 0 | BR27: 0 | BV27: 0 | BW27: 0 | BX27: 0
K28: 0 | N28: 0 | S28: 0 | U28: 0 | Y28: 0 | AC28: 0 | AG28: 0 | AK28: 0 | AL28: 0 | AM28: 0 | AV28: 0 | AY28: 0 | BD28: 0 | BF28: 0 | BJ28: 0 | BN28: 0 | BR28: 0 | BV28: 0 | BW28: 0 | BX28: 0
B29: АУП
A30: 1 | B30: УАЗ-3962 | C30: х276ер93 | D30: опер. управление | E30: Бенз АИ92 | F30: 3308 | G30: 18 | H30: 595.4 | K30: =J30/100*I30 -> 0 | N30: =M30/100*L30 -> 0 | S30: =H30+Q30+R30 -> 595.4 | T30: 41.33 | U30: =S30*T30 -> 24607.882 | Y30: =W30*X30 -> 0 | AC30: =AA30*AB30 -> 0 | AG30: =AE30*AF30 -> 0 | AK30: =AI30*AJ30 -> 0 | AL30: =Y30+AC30+AG30+AK30 -> 0 | AM30: =W30+AA30+AE30+AI30 -> 0 | AN30: =AM30/S30 -> 0 | AO30: =AL30/AM30 ->  | AV30: =AU30/100*AT30 -> 0 | AY30: =AX30/100*AW30 -> 0 | BD30: =AS30+BB30+BC30 -> 0 | BF30: =BD30*BE30 -> 0 | BJ30: =BH30*BI30 -> 0 | BN30: =BL30*BM30 -> 0 | BR30: =BP30*BQ30 -> 0 | BV30: =BT30*BU30 -> 0 | BW30: =BJ30+BN30+BR30+BV30 -> 0 | BX30: =BH30+BL30+BP30+BT30 -> 0 | BY30: =BX30/BD30 ->  | BZ30: =BW30/BX30 -> 
K31: =J31/100*I31 -> 0 | N31: =M31/100*L31 -> 0 | S31: =H31+Q31+R31 -> 0 | U31: =S31*T31 -> 0 | Y31: =W31*X31 -> 0 | AC31: =AA31*AB31 -> 0 | AG31: =AE31*AF31 -> 0 | AK31: =AI31*AJ31 -> 0 | AL31: =Y31+AC31+AG31+AK31 -> 0 | AM31: =W31+AA31+AE31+AI31 -> 0 | AN31: =AM31/S31 ->  | AO31: =AL31/AM31 ->  | AV31: =AU31/100*AT31 -> 0 | AY31: =AX31/100*AW31 -> 0 | BD31: =AS31+BB31+BC31 -> 0 | BF31: =BD31*BE31 -> 0 | BJ31: =BH31*BI31 -> 0 | BN31: =BL31*BM31 -> 0 | BR31: =BP31*BQ31 -> 0 | BV31: =BT31*BU31 -> 0 | BW31: =BJ31+BN31+BR31+BV31 -> 0 | BX31: =BH31+BL31+BP31+BT31 -> 0 | BY31: =BX31/BD31 ->  | BZ31: =BW31/BX31 -> 
K32: 0 | N32: 0 | S32: 0 | U32: 0 | Y32: 0 | AC32: 0 | AG32: 0 | AK32: 0 | AL32: 0 | AM32: 0 | AV32: 0 | AY32: 0 | BD32: 0 | BF32: 0 | BJ32: 0 | BN32: 0 | BR32: 0 | BV32: 0 | BW32: 0 | BX32: 0
K33: 0 | N33: 0 | S33: 0 | U33: 0 | Y33: 0 | AC33: 0 | AG33: 0 | AK33: 0 | AL33: 0 | AM33: 0 | AV33: 0 | AY33: 0 | BD33: 0 | BF33: 0 | BJ33: 0 | BN33: 0 | BR33: 0 | BV33: 0 | BW33: 0 | BX33: 0
K34: 0 | N34: 0 | S34: 0 | U34: 0 | Y34: 0 | AC34: 0 | AG34: 0 | AK34: 0 | AL34: 0 | AM34: 0 | AV34: 0 | AY34: 0 | BD34: 0 | BF34: 0 | BJ34: 0 | BN34: 0 | BR34: 0 | BV34: 0 | BW34: 0 | BX34: 0
K35: 0 | N35: 0 | S35: 0 | U35: 0 | Y35: 0 | AC35: 0 | AG35: 0 | AK35: 0 | AL35: 0 | AM35: 0 | AV35: 0 | AY35: 0 | BD35: 0 | BF35: 0 | BJ35: 0 | BN35: 0 | BR35: 0 | BV35: 0 | BW35: 0 | BX35: 0
K36: 0 | N36: 0 | S36: 0 | U36: 0 | Y36: 0 | AC36: 0 | AG36: 0 | AK36: 0 | AL36: 0 | AM36: 0 | AV36: 0 | AY36: 0 | BD36: 0 | BF36: 0 | BJ36: 0 | BN36: 0 | BR36: 0 | BV36: 0 | BW36: 0 | BX36: 0
K37: 0 | N37: 0 | S37: 0 | U37: 0 | Y37: 0 | AC37: 0 | AG37: 0 | AK37: 0 | AL37: 0 | AM37: 0 | AV37: 0 | AY37: 0 | BD37: 0 | BF37: 0 | BJ37: 0 | BN37: 0 | BR37: 0 | BV37: 0 | BW37: 0 | BX37: 0
K38: 0 | N38: 0 | S38: 0 | U38: 0 | Y38: 0 | AC38: 0 | AG38: 0 | AK38: 0 | AL38: 0 | AM38: 0 | AV38: 0 | AY38: 0 | BD38: 0 | BF38: 0 | BJ38: 0 | BN38: 0 | BR38: 0 | BV38: 0 | BW38: 0 | BX38: 0
K39: 0 | N39: 0 | S39: 0 | U39: 0 | Y39: 0 | AC39: 0 | AG39: 0 | AK39: 0 | AL39: 0 | AM39: 0 | AV39: 0 | AY39: 0 | BD39: 0 | BF39: 0 | BJ39: 0 | BN39: 0 | BR39: 0 | BV39: 0 | BW39: 0 | BX39: 0
B40: * при необходимости добавления строк (блоков) - обратитесь к куратору
B42: Руководитель организации ____________________________________
B44: Ответственный за составление формы ______________________________________
C45: МП

Sheet ЭЭ (hidden)
G1: Приложение 2.1.2
A2: Расходы на приобретение электрической энергии
A4: № п/п | B4: Наименование | C4: Ед. изм. | D4: 2017 | F4: 2017 факт РЭК | G4: 2018 | I4: 2018 ожид РЭК | J4: Темп роста, текущий (7)/ истекший (5), % | K4: 2019 | L4: 2019 план РЭК | M4: Темп роста, очередной (9)/ текущий (7), %
D5: план | E5: факт | G5: план | H5: ожид | K5: план
A6: 1 | B6: 2 | C6: 3 | D6: 4 | E6: 5 | F6: 5* | G6: 6 | H6: 7 | I6: 7* | J6: 8 | K6: 9 | L6: 9* | M6: 10
A7: 1 | B7: Поставщик
A8: 1.1 | B8: Объем покупной энергии | C8: млн. кВт-ч | J8: =H8/E8*100 ->  | M8: =K8/H8*100 ->  | O8: 1
A9: 1.1.1 | B9: Объем покупной энергии по одноставочному тарифу | C9: млн. кВт-ч | J9: =H9/E9*100 ->  | M9: =K9/H9*100 -> 
A10: 1.1.1.1 | B10: низкое напряжение (НН) | C10: млн. кВт-ч
A11: 1.1.1.2 | B11: среднее напряжение 1 (СН1) | C11: млн. кВт-ч
A12: 1.1.1.3 | B12: среднее напряжение 2 (СН2) | C12: млн. кВт-ч
A13: 1.1.1.4 | B13: высокое напряжение (ВН) | C13: млн. кВт-ч
A14: 1.1.1.5 | B14: Без разбивки по напряжению | C14: млн. кВт-ч
A15: 1.1.2 | B15: Объем покупной энергии по двухставочному тарифу | C15: млн. кВт-ч
A16: 1.1.2.1 | B16: Мощность | C16: МВт в мес.
A17: 1.1.2.1.1 | B17: низкое напряжение (НН) | C17: МВт в мес.
A18: 1.1.2.1.2 | B18: среднее напряжение 1 (СН1) | C18: МВт в мес.
A19: 1.1.2.1.3 | B19: среднее напряжение 2 (СН2) | C19: МВт в мес.
A20: 1.1.2.1.4 | B20: высокое напряжение (ВН) | C20: МВт в мес.
A21: 1.1.2.1.5 | B21: генерация напряжения | C21: МВт в мес.
A22: 1.1.2.2 | B22: Активная электроэнергия | C22: млн. кВт-ч
A23: 1.1.2.2.1 | B23: низкое напряжение (НН) | C23: млн. кВт-ч
A24: 1.1.2.2.2 | B24: среднее напряжение 1 (СН1) | C24: млн. кВт-ч
A25: 1.1.2.2.3 | B25: среднее напряжение 2 (СН2) | C25: млн. кВт-ч
A26: 1.1.2.2.4 | B26: высокое напряжение (ВН) | C26: млн. кВт-ч
A27: 1.1.2.2.5 | B27: генерация напряжения | C27: млн. кВт-ч
A28: 1.2 | B28: Тариф на электроэнергию и мощность
A29: 1.2.1 | B29: по одноставочному тарифу | C29: руб./кВт-ч
A30: 1.2.1.1 | B30: низкое напряжение (НН) | C30: руб./кВт-ч
A31: 1.2.1.2 | B31: среднее напряжение 1 (СН1) | C31: руб./кВт-ч
A32: 1.2.1.3 | B32: среднее напряжение 2 (СН2) | C32: руб./кВт-ч
A33: 1.2.1.4 | B33: высокое напряжение (ВН) | C33: руб./кВт-ч
A34: 1.2.1.5 | B34: Тариф на активную электроэнергию без разбивки по напряжению | C34: руб./кВт-ч
A35: 1.2.1.6 | B35: Средний одноставочный тариф на электрическую энергию | C35: руб./кВт-ч
A36: 1.2.2 | B36: по двухставочному тарифу
A37: 1.2.2.1 | B37: ставка за мощность | C37: руб./МВт в мес.
A38: 1.2.2.1.1 | B38: низкое напряжение (НН) | C38: руб./МВт в мес.
A39: 1.2.2.1.2 | B39: среднее напряжение 1 (СН1) | C39: руб./МВт в мес.
A40: 1.2.2.1.3 | B40: среднее напряжение 2 (СН2) | C40: руб./МВт в мес.
A41: 1.2.2.1.4 | B41: высокое напряжение (ВН) | C41: руб./МВт в мес.
A42: 1.2.2.1.5 | B42: генерация напряжения | C42: руб./МВт в мес.
A43: 1.2.2.2 | B43: Тариф на электроэнергию по двухставочному тарифу | C43: руб./кВт-ч
A44: 1.2.2.2.1 | B44: низкое напряжение (НН) | C44: руб./кВт-ч
A45: 1.2.2.2.2 | B45: среднее напряжение 1 (СН1) | C45: руб./кВт-ч
A46: 1.2.2.2.3 | B46: среднее напряжение 2 (СН2) | C46: руб./кВт-ч
A47: 1.2.2.2.4 | B47: высокое напряжение (ВН) | C47: руб./кВт-ч
A48: 1.2.2.2.5 | B48: генерация напряжения | C48: руб./кВт-ч
A49: 1.3 | B49: Затраты на покупку энергии | C49: тыс. руб.
A50: 1.4 | B50: Затраты на покупку мощности | C50: тыс. руб.
A51: 1.5 | B51: Затраты на электроэнергию всего | C51: тыс. руб. | Q51: Sum
B52: Добавить
B53: Итого | C53: тыс. руб. | D53: =SUMIF($Q$7:$Q$53,"sum",D7:D53) -> 0 | E53: 0 | F53: 0 | G53: 0 | H53: 0 | I53: 0 | K53: =SUMIF($Q$7:$Q$53,"sum",K7:K53) -> 0 | L53: =SUMIF($Q$7:$Q$53,"sum",L7:L53) -> 0
A56: Руководитель организации ____________________________________
A58: Ответственный за составление формы ______________________________________
B59: МП

Sheet ЭЭ служ (hidden)
A2: Стоимость электроэнергии
A3: Период | C3: 2018 | E3: 2019 | G3: 2020
A4: (по служебке от 12.07.2017) | C4: без НДС | D4: с НДС | E4: без НДС | F4: с НДС | G4: без НДС | H4: с НДС
A5: Высокое напряжение | B5: ВН | C5: 4.8535 | D5: =ROUND(C5*1.18, 4) -> 5.7271 | E5: 5.1253 | F5: =ROUND(E5*1.18, 4) -> 6.0479 | G5: 5.3701 | H5: =ROUND(G5*1.18, 4) -> 6.3367
A6: Среднее первое напряжение | B6: СН1 | C6: 5.1566 | D6: =ROUND(C6*1.18, 4) -> 6.0848 | E6: 5.4406 | F6: =ROUND(E6*1.18, 4) -> 6.4199 | G6: 5.6952 | H6: =ROUND(G6*1.18, 4) -> 6.7203
A7: Среднее второе напряжение | B7: СН2 | C7: 6.3397 | D7: =ROUND(C7*1.18, 4) -> 7.4808 | E7: 6.6713 | F7: =ROUND(E7*1.18, 4) -> 7.8721 | G7: 6.964 | H7: =ROUND(G7*1.18, 4) -> 8.2175
A8: Низкое напряжение | B8: НН | C8: 7.4686 | D8: =ROUND(C8*1.18, 4) -> 8.8129 | E8: 7.8456 | F8: =ROUND(E8*1.18, 4) -> 9.2578 | G8: 8.1747 | H8: =ROUND(G8*1.18, 4) -> 9.6461

Sheet коррЭЭ (hidden)
A2: РАСЧЕТ КОРРЕКТИРОВКИ ЭЭ | C2: 2017
C3: утверждено | D3: факт ОКК | E3: факт РЭК
A5: Объем подъема | B5: тыс. куб. м | E5: =E8*100/(100-E7) -> 0
A6: потери | B6: тыс. куб. м | C6: =ROUND(C5*C7%,2) -> 0 | D6: =ROUND(D5*D7%,2) -> 0 | E6: =ROUND(E5*E7%,2) -> 0
B7: % | E7: =C7 -> 0
A8: реализация | C8: =C5-C6 -> 0 | D8: =D5-D6 -> 0 | E8: =D8 -> 0
A10: ЭЭ | B10: тыс. кВтч | E10: =ROUND(E5*E13,2) -> 
B11: тыс. руб. | E11: =ROUND(E10*E15,2) -> 
A13: удельная | C13: =ROUND(C10/C5,4) ->  | D13: =ROUND(D10/D5,4) ->  | E13: =C13 -> 
A15: средняя цена | B15: руб./квтч | C15: =ROUND(C11/C10,4) ->  | D15: =ROUND(D11/D10,4) ->  | E15: =D15 -> 
A17: корректировка | B17: =A11 -> 0 | E17: =D11-E11 -> 
A19: корректировка с разницей цены | B19: =A11 -> 0 | E19: =ROUND(E17-((E15-C15)*E10),2) -> 
A20: с + к снятию, с - к добавлению
B23: без НДС
B24: с НДС

Sheet ВС ЭЭ (hidden)
F1: Приложение 5
A2: Расчёт объёмов потребления электрической энергии и расходов на покупку электроэнергии по объектам на 2016-2023 годы | N2: водоснабжение
N3: водоотведение
F4: водоснабжение | N4: общехозяйственные расходы
A5: Наименование показателя | B5: Предложение РЭК-ДЦ и Т КК на 2016 год
A7: Плановый объём добычи воды в целом по предприятию на 2016 год, м³
A9: Расчётная удельная норма расхода электрической энергии, кВтч/м³
A11: Расчётный объём электропотребления на 2016 год, кВтч | B11: =B7*B9 -> 0
A13: в том числе по уровням напряжения: | B13: Объём электропотребления, кВтч | C13: Доля в % | D13: Тариф на электроэнергию, руб/кВтч (без НДС) | E13: Тариф на электроэнергию, руб/кВтч (с НДС) | F13: Затраты на покупку электроэнергии, руб., (без НДС) | G13: Затраты на покупку электроэнергии, руб., (с НДС)
A15: На высоком напряжении (ВН) - 110 кВ и выше | B15: =B11*C15% -> 0 | C15: 0 | D15: 3.9395 | E15: =D15*1.18 -> 4.64861 | F15: =B15*D15 -> 0 | G15: =B15*E15 -> 0
A17: На среднем первом напряжении (СН 1) - 35 кв | B17: =B11*C17% -> 0 | C17: 0 | D17: 4.1821 | E17: =D17*1.18 -> 4.934878 | F17: =B17*D17 -> 0 | G17: =B17*E17 -> 0
A19: На среднем втором напряжении (СН 2) - 20-1 кВ | B19: =B11*C19% -> 0 | C19: 0 | D19: 5.1329 | E19: =D19*1.18 -> 6.056822 | F19: =B19*D19 -> 0 | G19: =B19*E19 -> 0
A21: На низком напряжении (НН) - 0,4 кВ и ниже | B21: =B11*C21% -> 0 | C21: 0 | D21: 6.129 | E21: =D21*1.18 -> 7.23222 | F21: =B21*D21 -> 0 | G21: =B21*E21 -> 0
A23: ИТОГО: | B23: =SUM(B15:B22) -> 0 | C23: =SUM(C15:C22) -> 0 | F23: =SUM(F15:F22) -> 0 | G23: =SUM(G15:G22) -> 0
I24: =F23*1.18 -> 0
A26: Наименование показателя | B26: Предложение РЭК-ДЦ и Т КК на 2017 год
A28: Плановый объём добычи воды в целом по предприятию на 2017 год, м³ | B28: =B7 -> 0
A30: Расчётная удельная норма расхода электрической энергии, кВтч/м³ | B30: =B9 -> 0
A32: Расчётный объём электропотребления на 2017 год, кВтч | B32: =B28*B30 -> 0
A34: в том числе по уровням напряжения: | B34: Объём электропотребления, кВтч | C34: Доля в % | D34: Тариф на электроэнергию, руб/кВтч (без НДС) | E34: Тариф на электроэнергию, руб/кВтч (с НДС) | F34: Затраты на покупку электроэнергии, руб., (без НДС) | G34: Затраты на покупку электроэнергии, руб., (с НДС)
A36: На высоком напряжении (ВН) - 110 кВ и выше | B36: =B32*C36% -> 0 | C36: =C15 -> 0 | D36: 4.466 | E36: =D36*1.18 -> 5.26988 | F36: =B36*D36 -> 0 | G36: =B36*E36 -> 0
A38: На среднем первом напряжении (СН 1) - 35 кв | B38: =B32*C38% -> 0 | C38: =C17 -> 0 | D38: 4.7617 | E38: =D38*1.18 -> 5.618806 | F38: =B38*D38 -> 0 | G38: =B38*E38 -> 0
A40: На среднем втором напряжении (СН 2) - 20-1 кВ | B40: =B32*C40% -> 0 | C40: =C19 -> 0 | D40: 5.9107 | E40: =D40*1.18 -> 6.974626 | F40: =B40*D40 -> 0 | G40: =B40*E40 -> 0
A42: На низком напряжении (НН) - 0,4 кВ и ниже | B42: =B32*C42% -> 0 | C42: =C21 -> 0 | D42: 6.9701 | E42: =D42*1.18 -> 8.224718 | F42: =B42*D42 -> 0 | G42: =B42*E42 -> 0
A44: ИТОГО: | B44: =SUM(B36:B43) -> 0 | C44: =SUM(C36:C43) -> 0 | F44: =SUM(F36:F43) -> 0 | G44: =SUM(G36:G43) -> 0
I45: =F44*1.18 -> 0
A47: Наименование показателя | B47: Предложение РЭК-ДЦ и Т КК на 2018 год
A49: Плановый объём добычи воды в целом по предприятию на 2018 год, м³ | B49: =B7 -> 0
A51: Расчётная удельная норма расхода электрической энергии, кВтч/м³ | B51: =B9 -> 0
A53: Расчётный объём электропотребления на 2018 год, кВтч | B53: =B49*B51 -> 0
A55: в том числе по уровням напряжения: | B55: Объём электропотребления, кВтч | C55: Доля в % | D55: Тариф на электроэнергию, руб/кВтч (без НДС) | E55: Тариф на электроэнергию, руб/кВтч (с НДС) | F55: Затраты на покупку электроэнергии, руб., (без НДС) | G55: Затраты на покупку электроэнергии, руб., (с НДС)
A57: На высоком напряжении (ВН) - 110 кВ и выше | B57: =B53*C57% -> 0 | C57: =C15 -> 0 | D57: 4.8535 | E57: =D57*1.18 -> 5.72713 | F57: =B57*D57 -> 0 | G57: =B57*E57 -> 0
A59: На среднем первом напряжении (СН 1) - 35 кв | B59: =B53*C59% -> 0 | C59: =C17 -> 0 | D59: 5.1566 | E59: =D59*1.18 -> 6.084788 | F59: =B59*D59 -> 0 | G59: =B59*E59 -> 0
A61: На среднем втором напряжении (СН 2) - 20-1 кВ | B61: =B53*C61% -> 0 | C61: =C19 -> 0 | D61: 6.3397 | E61: =D61*1.18 -> 7.480846 | F61: =B61*D61 -> 0 | G61: =B61*E61 -> 0
A63: На низком напряжении (НН) - 0,4 кВ и ниже | B63: =B53*C63% -> 0 | C63: =C21 -> 0 | D63: 7.4686 | E63: =D63*1.18 -> 8.812948 | F63: =B63*D63 -> 0 | G63: =B63*E63 -> 0
A65: ИТОГО: | B65: =SUM(B57:B64) -> 0 | C65: =SUM(C57:C64) -> 0 | F65: =SUM(F57:F64) -> 0 | G65: =SUM(G57:G64) -> 0
I66: =F65*1.18 -> 0
A68: Наименование показателя | B68: Предложение РЭК-ДЦ и Т КК на 2019 год
A70: Плановый объём добычи воды в целом по предприятию на 2019 год, м³ | B70: =B28 -> 0
A72: Расчётная удельная норма расхода электрической энергии, кВтч/м³ | B72: =B30 -> 0
A74: Расчётный объём электропотребления на 2019 год, кВтч | B74: =B70*B72 -> 0
A76: в том числе по уровням напряжения: | B76: Объём электропотребления, кВтч | C76: Доля в % | D76: Тариф на электроэнергию, руб/кВтч (без НДС) | E76: Тариф на электроэнергию, руб/кВтч (с НДС) | F76: Затраты на покупку электроэнергии, руб., (без НДС) | G76: Затраты на покупку электроэнергии, руб., (с НДС)
A78: На высоком напряжении (ВН) - 110 кВ и выше | B78: =B74*C78% -> 0 | C78: =C36 -> 0 | D78: 5.1253 | E78: =D78*1.18 -> 6.047854 | F78: =B78*D78 -> 0 | G78: =B78*E78 -> 0
A80: На среднем первом напряжении (СН 1) - 35 кв | B80: =B74*C80% -> 0 | C80: =C38 -> 0 | D80: 5.4406 | E80: =D80*1.18 -> 6.419908 | F80: =B80*D80 -> 0 | G80: =B80*E80 -> 0
A82: На среднем втором напряжении (СН 2) - 20-1 кВ | B82: =B74*C82% -> 0 | C82: =C40 -> 0 | D82: 6.6713 | E82: =D82*1.18 -> 7.872134 | F82: =B82*D82 -> 0 | G82: =B82*E82 -> 0
A84: На низком напряжении (НН) - 0,4 кВ и ниже | B84: =B74*C84% -> 0 | C84: =C42 -> 0 | D84: 7.8456 | E84: =D84*1.18 -> 9.257808 | F84: =B84*D84 -> 0 | G84: =B84*E84 -> 0
A86: ИТОГО: | B86: =SUM(B78:B85) -> 0 | C86: =SUM(C78:C85) -> 0 | F86: =SUM(F78:F85) -> 0 | G86: =SUM(G78:G85) -> 0
I87: =F86*1.18 -> 0
A89: Наименование показателя | B89: Предложение РЭК-ДЦ и Т КК на 2020 год
A91: Плановый объём добычи воды в целом по предприятию на 2020 год, м³ | B91: =B49 -> 0
A93: Расчётная удельная норма расхода электрической энергии, кВтч/м³ | B93: =B51 -> 0
A95: Расчётный объём электропотребления на 2020 год, кВтч | B95: =B91*B93 -> 0
A97: в том числе по уровням напряжения: | B97: Объём электропотребления, кВтч | C97: Доля в % | D97: Тариф на электроэнергию, руб/кВтч (без НДС) | E97: Тариф на электроэнергию, руб/кВтч (с НДС) | F97: Затраты на покупку электроэнергии, руб., (без НДС) | G97: Затраты на покупку электроэнергии, руб., (с НДС)
A99: На высоком напряжении (ВН) - 110 кВ и выше | B99: =B95*C99% -> 0 | C99: =C57 -> 0 | D99: 5.3701 | E99: =D99*1.18 -> 6.336718 | F99: =B99*D99 -> 0 | G99: =B99*E99 -> 0
A101: На среднем первом напряжении (СН 1) - 35 кв | B101: =B95*C101% -> 0 | C101: =C59 -> 0 | D101: 5.6952 | E101: =D101*1.18 -> 6.720336 | F101: =B101*D101 -> 0 | G101: =B101*E101 -> 0
A103: На среднем втором напряжении (СН 2) - 20-1 кВ | B103: =B95*C103% -> 0 | C103: =C61 -> 0 | D103: 6.964 | E103: =D103*1.18 -> 8.21752 | F103: =B103*D103 -> 0 | G103: =B103*E103 -> 0
A105: На низком напряжении (НН) - 0,4 кВ и ниже | B105: =B95*C105% -> 0 | C105: =C63 -> 0 | D105: 8.1747 | E105: =D105*1.18 -> 9.646146 | F105: =B105*D105 -> 0 | G105: =B105*E105 -> 0
A107: ИТОГО: | B107: =SUM(B99:B106) -> 0 | C107: =SUM(C99:C106) -> 0 | F107: =SUM(F99:F106) -> 0 | G107: =SUM(G99:G106) -> 0
I108: =F107*1.18 -> 0
A110: Наименование показателя | B110: Предложение РЭК-ДЦ и Т КК на 2021 год
A112: Плановый объём добычи воды в целом по предприятию на 2021 год, м³ | B112: =B70 -> 0
A114: Расчётная удельная норма расхода электрической энергии, кВтч/м³ | B114: =B72 -> 0
A116: Расчётный объём электропотребления на 2021 год, кВтч | B116: =B112*B114 -> 0
A118: в том числе по уровням напряжения: | B118: Объём электропотребления, кВтч | C118: Доля в % | D118: Тариф на электроэнергию, руб/кВтч (без НДС) | E118: Тариф на электроэнергию, руб/кВтч (с НДС) | F118: Затраты на покупку электроэнергии, руб., (без НДС) | G118: Затраты на покупку электроэнергии, руб., (с НДС)
A120: На высоком напряжении (ВН) - 110 кВ и выше | B120: =B116*C120% -> 0 | C120: =C78 -> 0 | E120: =D120*1.18 -> 0 | F120: =B120*D120 -> 0 | G120: =B120*E120 -> 0
A122: На среднем первом напряжении (СН 1) - 35 кв | B122: =B116*C122% -> 0 | C122: =C80 -> 0 | E122: =D122*1.18 -> 0 | F122: =B122*D122 -> 0 | G122: =B122*E122 -> 0
A124: На среднем втором напряжении (СН 2) - 20-1 кВ | B124: =B116*C124% -> 0 | C124: =C82 -> 0 | E124: =D124*1.18 -> 0 | F124: =B124*D124 -> 0 | G124: =B124*E124 -> 0
A126: На низком напряжении (НН) - 0,4 кВ и ниже | B126: =B116*C126% -> 0 | C126: =C84 -> 0 | E126: =D126*1.18 -> 0 | F126: =B126*D126 -> 0 | G126: =B126*E126 -> 0
A128: ИТОГО: | B128: =SUM(B120:B127) -> 0 | C128: =SUM(C120:C127) -> 0 | F128: =SUM(F120:F127) -> 0 | G128: =SUM(G120:G127) -> 0
I129: =F128*1.18 -> 0
A131: Наименование показателя | B131: Предложение РЭК-ДЦ и Т КК на 2022 год
A133: Плановый объём добычи воды в целом по предприятию на 2022 год, м³ | B133: =B91 -> 0
A135: Расчётная удельная норма расхода электрической энергии, кВтч/м³ | B135: =B93 -> 0
A137: Расчётный объём электропотребления на 2022 год, кВтч | B137: =B133*B135 -> 0
A139: в том числе по уровням напряжения: | B139: Объём электропотребления, кВтч | C139: Доля в % | D139: Тариф на электроэнергию, руб/кВтч (без НДС) | E139: Тариф на электроэнергию, руб/кВтч (с НДС) | F139: Затраты на покупку электроэнергии, руб., (без НДС) | G139: Затраты на покупку электроэнергии, руб., (с НДС)
A141: На высоком напряжении (ВН) - 110 кВ и выше | B141: =B137*C141% -> 0 | C141: =C99 -> 0 | E141: =D141*1.18 -> 0 | F141: =B141*D141 -> 0 | G141: =B141*E141 -> 0
A143: На среднем первом напряжении (СН 1) - 35 кв | B143: =B137*C143% -> 0 | C143: =C101 -> 0 | E143: =D143*1.18 -> 0 | F143: =B143*D143 -> 0 | G143: =B143*E143 -> 0
A145: На среднем втором напряжении (СН 2) - 20-1 кВ | B145: =B137*C145% -> 0 | C145: =C103 -> 0 | E145: =D145*1.18 -> 0 | F145: =B145*D145 -> 0 | G145: =B145*E145 -> 0
A147: На низком напряжении (НН) - 0,4 кВ и ниже | B147: =B137*C147% -> 0 | C147: =C105 -> 0 | E147: =D147*1.18 -> 0 | F147: =B147*D147 -> 0 | G147: =B147*E147 -> 0
A149: ИТОГО: | B149: =SUM(B141:B148) -> 0 | C149: =SUM(C141:C148) -> 0 | F149: =SUM(F141:F148) -> 0 | G149: =SUM(G141:G148) -> 0
I150: =F149*1.18 -> 0
A152: Наименование показателя | B152: Предложение РЭК-ДЦ и Т КК на 2023 год
A154: Плановый объём добычи воды в целом по предприятию на 2023 год, м³ | B154: =B112 -> 0
A156: Расчётная удельная норма расхода электрической энергии, кВтч/м³ | B156: =B114 -> 0
A158: Расчётный объём электропотребления на 2023 год, кВтч | B158: =B154*B156 -> 0
A160: в том числе по уровням напряжения: | B160: Объём электропотребления, кВтч | C160: Доля в % | D160: Тариф на электроэнергию, руб/кВтч (без НДС) | E160: Тариф на электроэнергию, руб/кВтч (с НДС) | F160: Затраты на покупку электроэнергии, руб., (без НДС) | G160: Затраты на покупку электроэнергии, руб., (с НДС)
A162: На высоком напряжении (ВН) - 110 кВ и выше | B162: =B158*C162% -> 0 | C162: =C120 -> 0 | E162: =D162*1.18 -> 0 | F162: =B162*D162 -> 0 | G162: =B162*E162 -> 0
A164: На среднем первом напряжении (СН 1) - 35 кв | B164: =B158*C164% -> 0 | C164: =C122 -> 0 | E164: =D164*1.18 -> 0 | F164: =B164*D164 -> 0 | G164: =B164*E164 -> 0
A166: На среднем втором напряжении (СН 2) - 20-1 кВ | B166: =B158*C166% -> 0 | C166: =C124 -> 0 | E166: =D166*1.18 -> 0 | F166: =B166*D166 -> 0 | G166: =B166*E166 -> 0
A168: На низком напряжении (НН) - 0,4 кВ и ниже | B168: =B158*C168% -> 0 | C168: =C126 -> 0 | E168: =D168*1.18 -> 0 | F168: =B168*D168 -> 0 | G168: =B168*E168 -> 0
A170: ИТОГО: | B170: =SUM(B162:B169) -> 0 | C170: =SUM(C162:C169) -> 0 | F170: =SUM(F162:F169) -> 0 | G170: =SUM(G162:G169) -> 0
I171: =F170*1.18 -> 0

Sheet ТЭ
B1: 2 | G1: Приложение 2.1.3
A2: Расходы на приобретение тепловой энергии
A4: № п/п | B4: Наименование | C4: Ед. изм. | D4: 2017 | F4: 2017 факт РЭК | G4: 2018 | I4: 2018 ожид РЭК | J4: Темп роста, текущий (7)/ истекший (5), % | K4: 2019 | L4: 2019 план РЭК | M4: Темп роста, очередной (9)/ текущий (7), %
D5: план | E5: факт | G5: план | H5: ожид | K5: план
A6: 1 | B6: 2 | C6: 3 | D6: 4 | E6: 5 | F6: 5* | G6: 6 | H6: 7 | I6: 7* | J6: 8 | K6: 9 | L6: 9* | M6: 10
A7: 1 | B7: Поставщик | O7: 1
A8: 1.1 | B8: Объем покупной энергии | C8: тыс. Гкал | J8: =H8/E8*100 ->  | M8: =K8/H8*100 -> 
A9: 1.2 | B9: Мощность | C9: Гкал/ч | J9: =H9/E9*100 ->  | M9: =K9/H9*100 -> 
A10: 1.3 | B10: Ставка за энергию | C10: руб./Гкал
A11: 1.4 | B11: Ставка за мощность | C11: тыс. руб./ Гкал/ч
A12: 1.5 | B12: Затраты на покупку энергии | C12: тыс. руб. | D12: =D8*D10 -> 0 | E12: 0 | F12: 0 | G12: 0 | H12: 0 | I12: 0 | K12: =K8*K10 -> 0 | L12: =L8*L10 -> 0
A13: 1.6 | B13: Затраты на покупку мощности | C13: тыс. руб. | D13: 0 | E13: 0 | F13: 0 | G13: 0 | H13: 0 | I13: 0 | K13: =K9*K11 -> 0 | L13: =L9*L11 -> 0
A14: 1.7 | B14: Затраты на теплоэнергию, всего | C14: тыс. руб. | D14: =D12+D13 -> 0 | E14: 0 | F14: 0 | G14: 0 | H14: 0 | I14: 0 | K14: =K12+K13 -> 0 | L14: =L12+L13 -> 0 | Q14: Sum
B15: Добавить
B16: Итого | C16: тыс. руб. | D16: =SUMIF($Q$7:$Q$16,"sum",D7:D16) -> 0 | E16: 0 | F16: 0 | G16: 0 | H16: 0 | I16: 0 | K16: =SUMIF($Q$7:$Q$16,"sum",K7:K16) -> 0 | L16: =SUMIF($Q$7:$Q$16,"sum",L7:L16) -> 0
A19: Руководитель организации ____________________________________
A21: Ответственный за составление формы ______________________________________
C22: МП

Sheet ТН
G1: Приложение 2.1.4
A2: Расходы на приобретение теплоносителя
A4: № п/п | B4: Наименование | C4: Ед. изм. | D4: 2017 | F4: 2017 факт РЭК | G4: 2018 | I4: 2018 ожид РЭК | J4: Темп роста, текущий (7)/ истекший (5), % | K4: 2019 | L4: 2019 план РЭК | M4: Темп роста, очередной (9)/ текущий (7), %
D5: план | E5: факт | G5: план | H5: ожид | K5: план
A6: 1 | B6: 2 | C6: 3 | D6: 4 | E6: 5 | F6: 5* | G6: 6 | H6: 7 | I6: 7* | J6: 8 | K6: 9 | L6: 9* | M6: 10
A7: 1 | B7: Поставщик | O7: 1
A8: 1.1 | B8: Объем теплоносителя | C8: тыс. куб. м | J8: =H8/E8*100 ->  | M8: =K8/H8*100 -> 
A9: 1.2 | B9: Цена теплоносителя | C9: руб./куб. м | J9: =H9/E9*100 ->  | M9: =K9/H9*100 -> 
A10: 1.3 | B10: Затраты на теплоноситель | C10: тыс. руб. | D10: =D8*D9 -> 0 | E10: 0 | F10: 0 | G10: 0 | H10: 0 | I10: 0 | J10: =H10/E10*100 ->  | K10: =K8*K9 -> 0 | L10: =L8*L9 -> 0 | M10: =K10/H10*100 ->  | Q10: Sum
B11: Добавить
B12: Итого | C12: тыс. руб. | D12: =SUMIF($Q$7:$Q$11,"sum",D7:D11) -> 0 | E12: 0 | F12: 0 | G12: 0 | H12: 0 | I12: 0 | J12: =H12/E12*100 ->  | K12: =SUMIF($Q$7:$Q$11,"sum",K7:K11) -> 0 | L12: =SUMIF($Q$7:$Q$11,"sum",L7:L11) -> 0 | M12: =K12/H12*100 -> 
A15: Руководитель организации ____________________________________
A17: Ответственный за составление формы ______________________________________
C18: МП

Sheet Топливо
G1: Приложение 2.1.5
A2: Расходы на приобретение топлива
A4: № п/п | B4: Наименование | C4: Ед. изм. | D4: 2017 | F4: 2017 факт РЭК | G4: 2018 | I4: 2018 ожид РЭК | J4: Темп роста, текущий (7)/ истекший (5), % | K4: 2019 | L4: 2019 план РЭК | M4: Темп роста, очередной (9)/ текущий (7), %
D5: план | E5: факт | G5: план | H5: ожид | K5: план
A6: 1 | B6: 2 | C6: 3 | D6: 4 | E6: 5 | F6: 5* | G6: 6 | H6: 7 | I6: 7* | J6: 8 | K6: 9 | L6: 9* | M6: 10
A7: 1 | B7: Уголь
A8: 1.1 | B8: Кол-во (объем) топлива | J8: =H8/E8*100 ->  | M8: =K8/H8*100 -> 
A9: 1.2 | B9: Цена топлива | C9: тыс. руб. | J9: =H9/E9*100 ->  | M9: =K9/H9*100 -> 
A10: 1.3 | B10: Затраты на топливо | C10: тыс. руб. | D10: =D8*D9 -> 0 | E10: 0 | F10: 0 | G10: 0 | H10: 0 | I10: 0 | K10: =K8*K9 -> 0 | L10: =L8*L9 -> 0 | Q10: Sum
A11: 2 | B11: Газ
A12: 2.1 | B12: Кол-во (объем) топлива
A13: 2.2 | B13: Цена топлива | C13: тыс. руб.
A14: 2.3 | B14: Затраты на топливо | C14: тыс. руб. | D14: =D12*D13 -> 0 | E14: =E12*E13 -> 0 | F14: 0 | G14: 0 | H14: 0 | I14: 0 | K14: 0 | L14: 0 | Q14: Sum
A15: 3 | B15: Мазут | O15: 3
A16: 3.1 | B16: Кол-во (объем) топлива
A17: 3.2 | B17: Цена топлива | C17: тыс. руб.
A18: 3.3 | B18: Затраты на топливо | C18: тыс. руб. | D18: =D16*D17 -> 0 | E18: =E16*E17 -> 0 | F18: 0 | G18: 0 | H18: 0 | I18: 0 | K18: 0 | L18: 0 | Q18: Sum
B19: Добавить
B20: Итого | C20: тыс. руб. | D20: =SUMIF($Q$7:$Q$19,"sum",D7:D19) -> 0 | E20: 0 | F20: 0 | G20: 0 | H20: 0 | I20: 0 | K20: =SUMIF($Q$7:$Q$19,"sum",K7:K19) -> 0 | L20: =SUMIF($Q$7:$Q$19,"sum",L7:L19) -> 0
A23: Руководитель организации ____________________________________
A25: Ответственный за составление формы ______________________________________
D26: МП

Sheet Покупная вода
G1: Приложение 2.1.6
A2: Расходы на приобретение холодной воды
A4: № п/п | B4: Наименование | C4: Ед. изм. | D4: 2017 | F4: 2017 факт РЭК | G4: 2018 | I4: 2018 ожид РЭК | J4: Темп роста, текущий (7)/ истекший (5), % | K4: 2019 | L4: 2019 план РЭК | M4: Темп роста, очередной (9)/ текущий (7), %
D5: план | E5: факт | G5: план | H5: ожид | K5: план
A6: 1 | B6: 2 | C6: 3 | D6: 4 | E6: 5 | F6: 5* | G6: 6 | H6: 7 | I6: 7* | J6: 8 | K6: 9 | L6: 9* | M6: 10
A7: 1 | B7: Поставщик | O7: 1
A8: 1.1 | B8: Объем холодной воды | C8: тыс. куб. м | J8: =H8/E8*100 ->  | M8: =K8/H8*100 -> 
A9: 1.2 | B9: Тариф на холодную воду | C9: руб./куб. м | J9: =H9/E9*100 ->  | M9: =K9/H9*100 -> 
A10: 1.3 | B10: Затраты на холодную воду | C10: тыс. руб. | D10: =D8*D9 -> 0 | E10: =E8*E9 -> 0 | F10: 0 | G10: 0 | H10: 0 | I10: 0 | J10: =H10/E10*100 ->  | K10: 0 | L10: 0 | M10: =K10/H10*100 ->  | Q10: Sum
B11: Добавить
B12: Итого | C12: тыс. руб. | D12: =SUMIF($Q$7:$Q$11,"sum",D7:D11) -> 0 | E12: 0 | F12: 0 | G12: 0 | H12: 0 | I12: 0 | J12: =H12/E12*100 ->  | K12: =SUMIF($Q$7:$Q$11,"sum",K7:K11) -> 0 | L12: =SUMIF($Q$7:$Q$11,"sum",L7:L11) -> 0 | M12: =K12/H12*100 -> 
A15: Руководитель организации ____________________________________
A17: Ответственный за составление формы ______________________________________
C18: МП

Sheet Покупная вода (расчет)
C1: по данным РЭК | F1: по данным РЭК | J1: по данным РЭК
A2: Поставщик 1
A3: покупка воды (по счетам-фактурам) | D3: без НДС | F3: без НДС | H3: с НДС | J3: с НДС
A4: 2017 | B4: объем | C4: объем | D4: тариф | E4: сумма | F4: тариф | G4: сумма | H4: тариф | I4: сумма | J4: тариф | K4: сумма
A5: янв | E5: =B5*D5 -> 0 | G5: =C5*F5 -> 0 | I5: =B5*H5 -> 0 | K5: =C5*J5 -> 0
A6: фев | D6: =D5 -> 0 | E6: 0 | F6: =F5 -> 0 | G6: =C6*F6 -> 0 | H6: =H5 -> 0 | I6: =B6*H6 -> 0 | J6: =J5 -> 0 | K6: =C6*J6 -> 0
A7: мар | D7: =D5 -> 0 | E7: 0 | F7: =F5 -> 0 | G7: 0 | H7: =H5 -> 0 | I7: 0 | J7: =J5 -> 0 | K7: 0
A8: апр | D8: =D5 -> 0 | E8: 0 | F8: =F5 -> 0 | G8: 0 | H8: =H5 -> 0 | I8: 0 | J8: =J5 -> 0 | K8: 0
A9: май | D9: =D5 -> 0 | E9: 0 | F9: =F5 -> 0 | G9: 0 | H9: =H5 -> 0 | I9: 0 | J9: =J5 -> 0 | K9: 0
A10: июн | D10: =D5 -> 0 | E10: 0 | F10: =F5 -> 0 | G10: 0 | H10: =H5 -> 0 | I10: 0 | J10: =J5 -> 0 | K10: 0
A11: 1 полуг | B11: =SUM(B5:B10) -> 0 | C11: =SUM(C5:C10) -> 0
A12: июл | E12: =B12*D12 -> 0 | G12: 0 | I12: 0 | K12: 0
A13: авг | D13: =D12 -> 0 | E13: 0 | F13: =F12 -> 0 | G13: 0 | H13: =H12 -> 0 | I13: 0 | J13: =J12 -> 0 | K13: 0
A14: сен | D14: =D12 -> 0 | E14: 0 | F14: =F12 -> 0 | G14: 0 | H14: =H12 -> 0 | I14: 0 | J14: =J12 -> 0 | K14: 0
A15: окт | D15: =D12 -> 0 | E15: 0 | F15: =F12 -> 0 | G15: 0 | H15: =H12 -> 0 | I15: 0 | J15: =J12 -> 0 | K15: 0
A16: ноя | D16: =D12 -> 0 | E16: 0 | F16: =F12 -> 0 | G16: 0 | H16: =H12 -> 0 | I16: 0 | J16: =J12 -> 0 | K16: 0
A17: дек | D17: =D12 -> 0 | E17: 0 | F17: =F12 -> 0 | G17: 0 | H17: =H12 -> 0 | I17: 0 | J17: =J12 -> 0 | K17: 0
A18: 2 полуг | B18: =SUM(B12:B17) -> 0 | C18: =SUM(C12:C17) -> 0
A19: ИТОГО | B19: =B11+B18 -> 0 | C19: =C11+C18 -> 0 | E19: =SUM(E5:E17) -> 0 | G19: =SUM(G5:G17) -> 0 | I19: =SUM(I5:I17) -> 0 | K19: =SUM(K5:K17) -> 0
C20: по данным РЭК | F20: по данным РЭК | J20: по данным РЭК
A21: Поставщик 2
A22: покупка воды (по счетам-фактурам) | D22: без НДС | F22: без НДС | H22: с НДС | J22: с НДС
A23: 2017 | B23: объем | C23: объем | D23: тариф | E23: сумма | F23: тариф | G23: сумма | H23: тариф | I23: сумма | J23: тариф | K23: сумма
A24: янв | E24: =B24*D24 -> 0 | G24: =C24*F24 -> 0 | I24: =B24*H24 -> 0 | K24: =C24*J24 -> 0
A25: фев | D25: =D24 -> 0 | E25: 0 | F25: =F24 -> 0 | G25: 0 | H25: =H24 -> 0 | I25: 0 | J25: =J24 -> 0 | K25: 0
A26: мар | D26: =D24 -> 0 | E26: 0 | F26: =F24 -> 0 | G26: 0 | H26: =H24 -> 0 | I26: 0 | J26: =J24 -> 0 | K26: 0
A27: апр | D27: =D24 -> 0 | E27: 0 | F27: =F24 -> 0 | G27: 0 | H27: =H24 -> 0 | I27: 0 | J27: =J24 -> 0 | K27: 0
A28: май | D28: =D24 -> 0 | E28: 0 | F28: =F24 -> 0 | G28: 0 | H28: =H24 -> 0 | I28: 0 | J28: =J24 -> 0 | K28: 0
A29: июн | D29: =D24 -> 0 | E29: 0 | F29: =F24 -> 0 | G29: 0 | H29: =H24 -> 0 | I29: 0 | J29: =J24 -> 0 | K29: 0
A30: 1 полуг | B30: =SUM(B24:B29) -> 0 | C30: =SUM(C24:C29) -> 0
A31: июл | E31: =B31*D31 -> 0 | G31: =C31*F31 -> 0 | I31: =B31*H31 -> 0 | K31: =C31*J31 -> 0
A32: авг | D32: =D31 -> 0 | E32: 0 | F32: =F31 -> 0 | G32: 0 | H32: =H31 -> 0 | I32: 0 | J32: =J31 -> 0 | K32: 0
A33: сен | D33: =D31 -> 0 | E33: 0 | F33: =F31 -> 0 | G33: 0 | H33: =H31 -> 0 | I33: 0 | J33: =J31 -> 0 | K33: 0
A34: окт | D34: =D31 -> 0 | E34: 0 | F34: =F31 -> 0 | G34: 0 | H34: =H31 -> 0 | I34: 0 | J34: =J31 -> 0 | K34: 0
A35: ноя | D35: =D31 -> 0 | E35: 0 | F35: =F31 -> 0 | G35: 0 | H35: =H31 -> 0 | I35: 0 | J35: =J31 -> 0 | K35: 0
A36: дек | D36: =D31 -> 0 | E36: 0 | F36: =F31 -> 0 | G36: 0 | H36: =H31 -> 0 | I36: 0 | J36: =J31 -> 0 | K36: 0
A37: 2 полуг | B37: =SUM(B31:B36) -> 0 | C37: =SUM(C31:C36) -> 0
A38: ИТОГО | B38: =B30+B37 -> 0 | C38: =C30+C37 -> 0 | E38: =SUM(E24:E36) -> 0 | G38: =SUM(G24:G36) -> 0 | I38: =SUM(I24:I36) -> 0 | K38: =SUM(K24:K36) -> 0
C39: по данным РЭК | F39: по данным РЭК | J39: по данным РЭК
A40: Поставщик 3
A41: покупка воды (по счетам-фактурам) | D41: без НДС | F41: без НДС | H41: с НДС | J41: с НДС
A42: 2017 | B42: объем | C42: объем | D42: тариф | E42: сумма | F42: тариф | G42: сумма | H42: тариф | I42: сумма | J42: тариф | K42: сумма
A43: янв | E43: =B43*D43 -> 0 | G43: =C43*F43 -> 0 | I43: =B43*H43 -> 0 | K43: =C43*J43 -> 0
A44: фев | D44: =D43 -> 0 | E44: 0 | F44: =F43 -> 0 | G44: 0 | H44: =H43 -> 0 | I44: 0 | J44: =J43 -> 0 | K44: 0
A45: мар | D45: =D43 -> 0 | E45: 0 | F45: =F43 -> 0 | G45: 0 | H45: =H43 -> 0 | I45: 0 | J45: =J43 -> 0 | K45: 0
A46: апр | D46: =D43 -> 0 | E46: 0 | F46: =F43 -> 0 | G46: 0 | H46: =H43 -> 0 | I46: 0 | J46: =J43 -> 0 | K46: 0
A47: май | D47: =D43 -> 0 | E47: 0 | F47: =F43 -> 0 | G47: 0 | H47: =H43 -> 0 | I47: 0 | J47: =J43 -> 0 | K47: 0
A48: июн | D48: =D43 -> 0 | E48: 0 | F48: =F43 -> 0 | G48: 0 | H48: =H43 -> 0 | I48: 0 | J48: =J43 -> 0 | K48: 0
A49: 1 полуг | B49: =SUM(B43:B48) -> 0 | C49: =SUM(C43:C48) -> 0
A50: июл | E50: =B50*D50 -> 0 | G50: =C50*F50 -> 0 | I50: =B50*H50 -> 0 | K50: =C50*J50 -> 0
A51: авг | D51: =D50 -> 0 | E51: 0 | F51: =F50 -> 0 | G51: 0 | H51: =H50 -> 0 | I51: 0 | J51: =J50 -> 0 | K51: 0
A52: сен | D52: =D50 -> 0 | E52: 0 | F52: =F50 -> 0 | G52: 0 | H52: =H50 -> 0 | I52: 0 | J52: =J50 -> 0 | K52: 0
A53: окт | D53: =D50 -> 0 | E53: 0 | F53: =F50 -> 0 | G53: 0 | H53: =H50 -> 0 | I53: 0 | J53: =J50 -> 0 | K53: 0
A54: ноя | D54: =D50 -> 0 | E54: 0 | F54: =F50 -> 0 | G54: 0 | H54: =H50 -> 0 | I54: 0 | J54: =J50 -> 0 | K54: 0
A55: дек | D55: =D50 -> 0 | E55: 0 | F55: =F50 -> 0 | G55: 0 | H55: =H50 -> 0 | I55: 0 | J55: =J50 -> 0 | K55: 0
A56: 2 полуг | B56: =SUM(B50:B55) -> 0 | C56: =SUM(C50:C55) -> 0
A57: ИТОГО | B57: =B49+B56 -> 0 | C57: =C49+C56 -> 0 | E57: =SUM(E43:E55) -> 0 | G57: =SUM(G43:G55) -> 0 | I57: =SUM(I43:I55) -> 0 | K57: =SUM(K43:K55) -> 0
A58: * при необходимости добавления строк (блоков) - обратитесь к куратору
A60: Руководитель организации ____________________________________
A62: Ответственный за составление формы ______________________________________
C63: МП

Sheet Оплата труда
G1: Приложение 2.2.1
A2: Расходы на оплату труда в разрезе регулируемых видов деятельности
A4: № п/п | B4: Наименование | C4: Ед. изм. | D4: 2017 | F4: 2017 факт РЭК | G4: 2018 | I4: 2018 ожид РЭК | J4: 2019 | K4: 2019 план РЭК
D5: план | E5: факт | G5: план | H5: ожид | J5: план
A6: 1 | B6: 2 | C6: 3 | D6: 4 | E6: 5 | F6: 5* | G6: 6 | H6: 7 | I6: 7* | J6: 8 | K6: 8*
A7: 1 | B7: Производственный персонал
A8: 1.1 | B8: Холодное водоснабжение | C8: тыс. руб. | D8: =D57 -> 380.08 | E8: =E57 -> 232.5748433 | F8: 0 | G8: 542.37 | H8: 434.36 | I8: 0 | J8: 418.1091703 | K8: 0
A9: 1.2 | B9: Регулируемый вид деятельности | C9: тыс. руб. | E9: 344.16 | G9: 542.37 | H9: 542.37 | J9: 546.01
B10: Добавить
A11: 2 | B11: Ремонтный персонал
A12: 2.1 | B12: Холодное водоснабжение | C12: тыс. руб. | D12: =D86 -> 0 | E12: =E86 -> 0 | F12: 0 | G12: 0 | H12: 0 | I12: 0 | J12: 0 | K12: 0
A13: 2.2 | B13: Регулируемый вид деятельности | C13: тыс. руб.
B14: Добавить
A15: 3 | B15: Административный персонал
A16: 3.1 | B16: Холодное водоснабжение | C16: тыс. руб. | D16: ='Цех и Администр расх'!D35*'Цех и Администр расх'!H82% -> 285.7139092 | E16: ='Цех и Администр расх'!E35*'Цех и Администр расх'!I82% -> 381.7912763 | F16: ='Цех и Администр расх'!F35*'Цех и Администр расх'!J82% ->  | G16: ='Цех и Администр расх'!G35*'Цех и Администр расх'!K82% -> 307.8256166 | H16: ='Цех и Администр расх'!H35*'Цех и Администр расх'!L82% -> 394.1715449 | J16: ='Цех и Администр расх'!I35*'Цех и Администр расх'!N82% -> 452.7224418 | K16: ='Цех и Администр расх'!M35 -> 
A17: 3.2 | B17: Регулируемый вид деятельности | C17: тыс. руб. | E17: 285.72 | G17: 307.83 | H17: 307.83 | J17: 288.69
B18: Добавить
A19: 4 | B19: Общецеховый персонал
A20: 4.1 | B20: Холодное водоснабжение | C20: тыс. руб. | D20: ='Цех и Администр расх'!D7*'Цех и Администр расх'!H63% -> 0 | E20: ='Цех и Администр расх'!E7*'Цех и Администр расх'!I63% -> 0 | F20: ='Цех и Администр расх'!F7*'Цех и Администр расх'!J63% -> 0 | G20: ='Цех и Администр расх'!G7*'Цех и Администр расх'!K63% -> 0 | H20: ='Цех и Администр расх'!H7*'Цех и Администр расх'!L63% -> 0 | J20: ='Цех и Администр расх'!I7*'Цех и Администр расх'!N63% -> 0 | K20: ='Цех и Администр расх'!M7 -> 
A21: 4.2 | B21: Регулируемый вид деятельности | C21: тыс. руб.
B22: Добавить
G25: Приложение 2.2
A26: Расходы на оплату труда по регулируемым видам деятельности и в целом по предприятию
A28: № п/п | B28: Наименование | C28: Ед. изм. | D28: 2017 | F28: 2017 факт РЭК | G28: 2018 | I28: 2018 ожид РЭК | J28: 2019 | K28: 2019 план РЭК
D29: план | E29: факт | G29: план | H29: ожид | J29: план
A30: 1 | B30: 2 | C30: 3 | D30: 4 | E30: 5 | F30: 5* | G30: 6 | H30: 7 | I30: 7* | J30: 8 | K30: 8*
B31: Производственный персонал (водоснабжение)
A32: 1 | B32: Численность (среднесписочная), принятая для расчета | C32: чел. | D32: 4 | E32: ='ФОТ факт'!C25 -> 3 | F32: ='ФОТ факт'!D25 -> 0 | G32: 4 | H32: 3 | J32: ='ФОТ план'!C23 -> 2 | K32: ='ФОТ план'!D23 -> 0
A33: 2 | B33: Средняя оплата труда
A34: 2.1 | B34: Тарифная ставка рабочего 1 разряда | C34: руб. | D34: 4096 | E34: 4301 | G34: 5161 | H34: 5161 | J34: 5161
A35: 2.2 | B35: Индекс роста номинальной заработной платы
A36: 2.3 | B36: Тарифная ставка рабочего 1 разряда с учетом дефлятора | C36: руб. | D36: 4096 | E36: 4301 | G36: 5161 | H36: 5161 | J36: 5161
A37: 2.4 | B37: Средний тарифный коэффициент
A38: 2.5 | B38: Среднемесячная тарифная ставка | C38: руб.
A39: 2.6 | B39: Минимальный размер оплаты труда по отраслевому тарифному соглашению | C39: руб. | D39: 8435.24 | E39: 8435.24 | F39: 8435.24 | G39: 8747.4 | H39: 8747.4 | I39: 8747.4 | J39: 8747.4
A40: 2.7 | B40: Выплаты, связанные с режимом работы и условиями труда на 1 работника в месяц
A41: 2.7.1 | B41: процент | C41: %
A42: 2.7.2 | B42: сумма выплат | C42: руб.
A43: 2.8 | B43: Текущее премирование
A44: 2.8.1 | B44: процент | C44: %
A45: 2.8.2 | B45: сумма выплат | C45: руб.
A46: 2.9 | B46: Доп. премирование, включая вознаграждение за выслугу лет
A47: 2.9.1 | B47: процент | C47: %
A48: 2.9.2 | B48: сумма выплат | C48: руб.
A49: 2.9.3 | B49: прочее | C49: руб.
A50: 2.9.4 | B50: северные надбавки | C50: руб.
A51: 2.10 | B51: ИТОГО среднемесячная оплата труда на 1 работника | C51: руб.
A52: 2.11 | B52: Фонд оплаты труда | C52: тыс. руб.
A53: 3 | B53: Расчет средств на оплату труда (прибыль) | C53: тыс. руб.
A54: 3.1 | B54: Льготный проезд к месту отдыха | C54: тыс. руб.
A55: 3.2 | B55: По постановлению Правительства РФ от 03.11.1994 № 1206* | C55: тыс. руб.
A56: 3.3 | B56: Компенсационные и социальные выплаты | C56: тыс. руб.
A57: 4 | B57: ИТОГО средств на оплату труда производственного персонала | C57: тыс. руб. | D57: 380.08 | E57: ='ФОТ факт'!AB25 -> 232.5748433 | F57: ='ФОТ факт'!AC25 -> 0 | G57: 542.37 | H57: 434.36 | J57: ='ФОТ план'!AB23 -> 418.1091703 | K57: ='ФОТ план'!AC23 -> 0
A58: 5 | B58: Страховые взносы, процент | C58: % | D58: 30.2 | E58: 30.2 | G58: 30.2 | H58: 29.4 | J58: 30.2
A59: 5.1 | B59: Страховые взносы | C59: тыс. руб. | D59: =D57*D58% -> 114.78416 | E59: 103.94 | G59: =G57*G58% -> 163.79574 | H59: 127.55 | J59: =J57*J58% -> 126.2689694 | K59: =K57*K58% -> 0
B60: Ремонтный персонал (водоснабжение)
A61: 1 | B61: Численность (среднесписочная), принятая для расчета | C61: чел. | E61: ='ФОТ факт'!C59 -> 0 | F61: ='ФОТ факт'!D59 -> 0 | J61: ='ФОТ план'!C57 -> 0 | K61: ='ФОТ план'!D57 -> 0
A62: 2 | B62: Средняя оплата труда
A63: 2.1 | B63: Тарифная ставка рабочего 1 разряда | C63: руб.
A64: 2.2 | B64: Индекс роста номинальной заработной платы
A65: 2.3 | B65: Тарифная ставка рабочего 1 разряда с учетом дефлятора | C65: руб.
A66: 2.4 | B66: Средний тарифный коэффициент
A67: 2.5 | B67: Среднемесячная тарифная ставка | C67: руб.
A68: 2.6 | B68: Минимальный размер оплаты труда по отраслевому тарифному соглашению | C68: руб. | D68: 8435.24 | E68: 8435.24 | F68: 8435.24 | G68: 8747.4 | H68: 8747.4 | I68: 8747.4 | J68: 8747.4
A69: 2.7 | B69: Выплаты, связанные с режимом работы и условиями труда на 1 работника в месяц
A70: 2.7.1 | B70: процент | C70: %
A71: 2.7.2 | B71: сумма выплат | C71: руб.
A72: 2.8 | B72: Текущее премирование
A73: 2.8.1 | B73: процент | C73: %
A74: 2.8.2 | B74: сумма выплат | C74: руб.
A75: 2.9 | B75: Доп. премирование, включая вознаграждение за выслугу лет
A76: 2.9.1 | B76: процент | C76: %
A77: 2.9.2 | B77: сумма выплат | C77: руб.
A78: 2.9.3 | B78: прочее | C78: руб.
A79: 2.9.4 | B79: северные надбавки | C79: руб.
A80: 2.10 | B80: ИТОГО среднемесячная оплата труда на 1 работника | C80: руб.
A81: 2.11 | B81: Фонд оплаты труда | C81: тыс. руб.
A82: 3 | B82: Расчет средств на оплату труда (прибыль) | C82: тыс. руб.
A83: 3.1 | B83: Льготный проезд к месту отдыха | C83: тыс. руб.
A84: 3.2 | B84: По постановлению Правительства РФ от 03.11.1994 № 1206* | C84: тыс. руб.
A85: 3.3 | B85: Компенсационные и социальные выплаты | C85: тыс. руб.
A86: 4 | B86: ИТОГО средств на оплату труда ремонтного персонала | C86: тыс. руб. | E86: ='ФОТ факт'!AB59 -> 0 | F86: ='ФОТ факт'!AC59 -> 0 | J86: ='ФОТ план'!AB57 -> 0 | K86: ='ФОТ план'!AC57 -> 0
A87: 5 | B87: Страховые взносы, процент | C87: %
A88: 5.1 | B88: Страховые взносы | C88: тыс. руб. | D88: =D86*D87% -> 0 | G88: =G86*G87% -> 0 | J88: =J86*J87% -> 0 | K88: =K86*K87% -> 0
B89: Административный персонал
A90: 1 | B90: Численность (среднесписочная), принятая для расчета | C90: чел. | D90: 2 | E90: ='ФОТ факт'!C76 -> 3 | F90: ='ФОТ факт'!D76 -> 0 | G90: 2 | H90: 2 | J90: ='ФОТ план'!C74 -> 3 | K90: ='ФОТ план'!D74 -> 0
A91: 2 | B91: Средняя оплата труда
A92: 2.1 | B92: Тарифная ставка рабочего 1 разряда | C92: руб.
A93: 2.2 | B93: Индекс роста номинальной заработной платы
A94: 2.3 | B94: Тарифная ставка рабочего 1 разряда с учетом дефлятора | C94: руб.
A95: 2.4 | B95: Средний тарифный коэффициент
A96: 2.5 | B96: Среднемесячная тарифная ставка | C96: руб.
A97: 2.6 | B97: Минимальный размер оплаты труда по отраслевому тарифному соглашению | C97: руб. | D97: 8435.24 | E97: 8435.24 | F97: 8435.24 | G97: 8747.4 | H97: 8747.4 | I97: 8747.4 | J97: 8747.4
A98: 2.7 | B98: Выплаты, связанные с режимом работы и условиями труда на 1 работника в месяц
A99: 2.7.1 | B99: процент | C99: %
A100: 2.7.2 | B100: сумма выплат | C100: руб.
A101: 2.8 | B101: Текущее премирование
A102: 2.8.1 | B102: процент | C102: %
A103: 2.8.2 | B103: сумма выплат | C103: руб.
A104: 2.9 | B104: Доп. премирование, включая вознаграждение за выслугу лет
A105: 2.9.1 | B105: процент | C105: %
A106: 2.9.2 | B106: сумма выплат | C106: руб.
A107: 2.9.3 | B107: прочее | C107: руб.
A108: 2.9.4 | B108: северные надбавки | C108: руб.
A109: 2.10 | B109: ИТОГО среднемесячная оплата труда на 1 работника | C109: руб.
A110: 2.11 | B110: Фонд оплаты труда | C110: тыс. руб.
A111: 3 | B111: Расчет средств на оплату труда (прибыль) | C111: тыс. руб.
A112: 3.1 | B112: Льготный проезд к месту отдыха | C112: тыс. руб.
A113: 3.2 | B113: По постановлению Правительства РФ от 03.11.1994 № 1206* | C113: тыс. руб.
A114: 3.3 | B114: Компенсационные и социальные выплаты | C114: тыс. руб.
A115: 4 | B115: ИТОГО средств на оплату труда административного персонала | C115: тыс. руб. | D115: 331.84 | E115: ='ФОТ факт'!AB76 -> 443.4282442 | F115: ='ФОТ факт'!AC76 -> 0 | G115: 408.97 | H115: 408.05 | J115: ='ФОТ план'!AB74 -> 553.1286589 | K115: ='ФОТ план'!AC74 -> 0
A116: 5 | B116: Страховые взносы, процент | C116: % | D116: 30.2 | E116: 30.2 | G116: 30.2 | H116: 29.61 | J116: 30.2
A117: 5.1 | B117: Страховые взносы | C117: тыс. руб. | D117: =D115*D116% -> 100.21568 | E117: 100.22 | G117: =G115*G116% -> 123.50894 | H117: 120.82 | J117: =J115*J116% -> 167.044855 | K117: =K115*K116% -> 0
B118: Общецеховый персонал
A119: 1 | B119: Численность (среднесписочная), принятая для расчета | C119: чел. | E119: ='ФОТ факт'!C42 -> 0 | F119: ='ФОТ факт'!D42 -> 0 | J119: ='ФОТ план'!C40 -> 0 | K119: ='ФОТ план'!D40 -> 0
A120: 2 | B120: Средняя оплата труда
A121: 2.1 | B121: Тарифная ставка рабочего 1 разряда | C121: руб.
A122: 2.2 | B122: Индекс роста номинальной заработной платы
A123: 2.3 | B123: Тарифная ставка рабочего 1 разряда с учетом дефлятора | C123: руб.
A124: 2.4 | B124: Средний тарифный коэффициент
A125: 2.5 | B125: Среднемесячная тарифная ставка | C125: руб.
A126: 2.6 | B126: Минимальный размер оплаты труда по отраслевому тарифному соглашению | C126: руб. | D126: 8435.24 | E126: 8435.24 | F126: 8435.24 | G126: 8747.4 | H126: 8747.4 | I126: 8747.4 | J126: 8747.4
A127: 2.7 | B127: Выплаты, связанные с режимом работы и условиями труда на 1 работника в месяц | C127: руб.
A128: 2.7.1 | B128: процент | C128: %
A129: 2.7.2 | B129: сумма выплат | C129: руб.
A130: 2.8 | B130: Текущее премирование
A131: 2.8.1 | B131: процент | C131: %
A132: 2.8.2 | B132: сумма выплат | C132: руб.
A133: 2.9 | B133: Доп. премирование, включая вознаграждение за выслугу лет
A134: 2.9.1 | B134: процент | C134: %
A135: 2.9.2 | B135: сумма выплат | C135: руб.
A136: 2.9.3 | B136: прочее | C136: руб.
A137: 2.9.4 | B137: северные надбавки | C137: руб.
A138: 2.10 | B138: ИТОГО среднемесячная оплата труда на 1 работника | C138: руб.
A139: 2.11 | B139: Фонд оплаты труда | C139: тыс. руб.
A140: 3 | B140: Расчет средств на оплату труда (прибыль) | C140: тыс. руб.
A141: 3.1 | B141: Льготный проезд к месту отдыха | C141: тыс. руб.
A142: 3.2 | B142: По постановлению Правительства РФ от 03.11.1994 № 1206* | C142: тыс. руб.
A143: 3.3 | B143: Компенсационные и социальные выплаты | C143: тыс. руб.
A144: 4 | B144: ИТОГО средств на оплату труда общецехового персонала | C144: тыс. руб. | E144: ='ФОТ факт'!AB42 -> 0 | F144: ='ФОТ факт'!AC42 -> 0 | J144: ='ФОТ план'!AB40 -> 0 | K144: ='ФОТ план'!AC40 -> 0
A145: 5 | B145: Страховые взносы, процент | C145: %
A146: 5.1 | B146: Страховые взносы | C146: тыс. руб. | D146: =D144*D145% -> 0 | G146: =G144*G145% -> 0 | J146: =J144*J145% -> 0 | K146: =K144*K145% -> 0
A148: * Постановление Правительства Российской Федерации от 3 ноября 1994 г. № 1206 (Собрание законодательства Российской Федерации, 1994, № 29, ст. 3035; 2003, № 33, ст. 3269; 2006, № 33, ст. 3633; 2012, № 22, ст. 2867; 2013, № 13, ст. 1559; 2013, № 22, ст. 2809)
A151: Руководитель организации ____________________________________
A153: Ответственный за составление формы ______________________________________
C154: МП

Sheet Оплата труда 2
D1: Приложение Е
A3: Расчет выплат, связанных с режимом работы и условиями труда основного производственного персонала
A5: № п/п | B5: Наименование | C5: ед. изм. | D5: факт 2017 | E5: ожид 2018 | F5: план 2019
A6: 1 | B6: Выплаты, связанные с режимом работы всего, в том числе: | C6: руб. | D6: =SUM(D7:D12) -> 49953 | E6: =SUM(E7:E12) -> 58756 | F6: =SUM(F7:F12) -> 53664
A7: 1.1 | B7: Ночные | C7: руб.
A8: 1.2 | B8: Праздничные | C8: руб.
A9: 1.3 | B9: Доплата за классность | C9: руб.
A10: 1.4 | B10: Выслуга лет | C10: руб. | D10: 16408 | E10: 19421 | F10: 18090
A11: 1.5 | B11: Почетное звание | C11: руб.
A12: 1.6 | B12: Прочие выплаты (за сложность и напряженность) | C12: руб. | D12: 33545 | E12: 39335 | F12: 35574
A13: 2 | B13: ФОТ | C13: руб. | D13: 344160 | E13: 434356 | F13: 546010
A14: 2.1 | B14: процент от ФОТ | C14: % | D14: 14.52 | E14: 13.53 | F14: 9.83
A16: Расчет выплат, связанных с режимом работы и условиями труда ремонтного персонала
A18: № п/п | B18: Наименование | C18: ед. изм. | D18: факт 2017 | E18: ожид 2018 | F18: план 2019
A19: 1 | B19: Выплаты, связанные с режимом работы всего, в том числе: | C19: руб. | D19: =SUM(D20:D25) -> 0 | E19: =SUM(E20:E25) -> 0 | F19: =SUM(F20:F25) -> 0
A20: 1.1 | B20: Ночные | C20: руб.
A21: 1.2 | B21: Праздничные | C21: руб.
A22: 1.3 | B22: Доплата за классность | C22: руб.
A23: 1.4 | B23: Выслуга лет | C23: руб.
A24: 1.5 | B24: Почетное звание | C24: руб.
A25: 1.6 | B25: Прочие выплаты (расшифровать) | C25: руб.
A26: 2 | B26: ФОТ | C26: руб.
A27: 2.1 | B27: процент от ФОТ | C27: %
A29: Расчет выплат, связанных с режимом работы и условиями труда общецехового персонала
A31: № п/п | B31: Наименование | C31: ед. изм. | D31: факт 2017 | E31: ожид 2018 | F31: план 2019
A32: 1 | B32: Выплаты, связанные с режимом работы всего, в том числе: | C32: руб. | D32: =SUM(D33:D38) -> 0 | E32: =SUM(E33:E38) -> 0 | F32: =SUM(F33:F38) -> 0
A33: 1.1 | B33: Ночные | C33: руб.
A34: 1.2 | B34: Праздничные | C34: руб.
A35: 1.3 | B35: Доплата за классность | C35: руб.
A36: 1.4 | B36: Выслуга лет | C36: руб.
A37: 1.5 | B37: Почетное звание | C37: руб.
A38: 1.6 | B38: Прочие выплаты (расшифровать) | C38: руб.
A39: 2 | B39: ФОТ | C39: руб.
A40: 2.1 | B40: процент от ФОТ | C40: %
A42: Руководитель организации ____________________________________
A44: Ответственный за составление формы ______________________________________
C45: МП
E46: Приложение Ж
A47: Расчет среднего тарифного коэффициента
C49: месячная тарифная ставка рабочего 1 разряда, руб. | F49: на 2019
F50: 5161
A52: № п/п | B52: Должность (специальность, профессия), разряд, класс (категория) квалификация | C52: кол-во штатных единиц | D52: оклад, руб. | E52: ФОТ в месяц | F52: коэффициент, применяемый к базовой месячной тарифной ставке рабочего первого разряда
A54: 1 | B54: АУП
A55: 1.1 | E55: =D55*C55 -> 0 | F55: =D55/$F$50 -> 0
A56: 1.2 | E56: =D56*C56 -> 0 | F56: =D56/$F$50 -> 0
B57: Добавить
B58: Итого | C58: =SUM(C54:C57) -> 0 | D58: =SUM(D54:D57) -> 0 | E58: =SUM(E54:E57) -> 0 | F58: =E58/$F$50/C58 -> 
A59: 2 | B59: Общецеховый персонал
A60: 2.1 | E60: =D60*C60 -> 0 | F60: =D60/$F$50 -> 0
A61: 2.2 | E61: =D61*C61 -> 0 | F61: =D61/$F$50 -> 0
A62: 2.3 | E62: =D62*C62 -> 0 | F62: =D62/$F$50 -> 0 | G62: О
B63: Добавить
B64: Итого | C64: =SUM(C59:C63) -> 0 | D64: =SUM(D59:D63) -> 0 | E64: =SUM(E59:E63) -> 0 | F64: =E64/$F$50/C64 -> 
A65: 3 | B65: Ремонтный цех
A66: 3.1 | E66: =D66*C66 -> 0 | F66: =D66/$F$50 -> 0
A67: 3.2 | E67: =D67*C67 -> 0 | F67: =D67/$F$50 -> 0
B68: Добавить
B69: Итого | C69: =SUM(C65:C68) -> 0 | D69: =SUM(D65:D68) -> 0 | E69: =SUM(E65:E68) -> 0 | F69: =E69/$F$50/C69 -> 
A70: 4 | B70: Цех водоснабжения
A71: 4.1 | B71: слесарь-ремонтник | C71: 2 | D71: 6049 | E71: =D71*C71 -> 12098 | F71: =D71/$F$50 -> 1.172059678
A72: 4.2 | B72: слесарь-электрик по ремонту электрооборудования | C72: 1 | D72: 5872 | E72: =D72*C72 -> 5872 | F72: =D72/$F$50 -> 1.137763999
A73: 4.3 | B73: бухгалтер-кассир | C73: 1 | D73: 5872 | E73: =D73*C73 -> 5872 | F73: =D73/$F$50 -> 1.137763999 | G73: О
B74: Добавить
B75: Итого | C75: =SUM(C70:C74) -> 4 | D75: =SUM(D70:D74) -> 17793 | E75: =SUM(E70:E74) -> 23842 | F75: =E75/$F$50/C75 -> 1.154911839
A76: 5 | B76: Цех водоотведения
A77: 5.1 | E77: =D77*C77 -> 0 | F77: =D77/$F$50 -> 0
A78: 5.2 | E78: =D78*C78 -> 0 | F78: =D78/$F$50 -> 0
B79: Добавить
B80: Итого | C80: =SUM(C76:C79) -> 0 | D80: =SUM(D76:D79) -> 0 | E80: =SUM(E76:E79) -> 0 | F80: =E80/$F$50/C80 -> 
A82: Руководитель организации ____________________________________
A84: Ответственный за составление формы ______________________________________
C85: МП
E87: Приложение И
A88: Расчет нормативной численности *
A90: № п/п | B90: наименование функций (отделы, участки) | C90: на предпри-ятии | D90: перечень должностей, професиий | E90: норматив, диапазон | F90: нормативная численность | G90: фактическая численность
A91: 1
A92: 2
B93: Добавить
A94: *заполняется в соответствии с Приказом Гос. Комитета РФ по строительной, архитектурной и жилищной политике от 23.03.1999 № 66
A96: Руководитель организации ____________________________________
A98: Ответственный за составление формы ______________________________________
C99: МП

Sheet ФОТ план
B2: Расчет ФОТ план 2019
B3: Минимальный размер месячной тарифной ставки рабочего 1 разряда (нормальные условия труда) с 01.01.2019 г. , руб. | AB3: 5161
B4: минимальная ежемесячная премия по положению о премировании | AC4: 40% от оклада
B5: Профессия (должность) | C5: Численность по расчету ОКК | D5: Численность по расчету РЭК | E5: Фактическая численность | F5: Фактическая численность по данным РЭК | G5: Тарифный коэффициент | H5: Тарифный коэффициент по данным РЭК | I5: Месячная тарифная ставка, руб. | J5: Месячная тарифная ставка, руб. по данным РЭК | K5: Доплаты % | P5: Доплаты, % | Q5: Доплаты по данным РЭК, % | R5: Доплаты, руб. | S5: Доплаты по данным РЭК, руб. | T5: Премия | V5: Премия по данным РЭК | X5: ВСЕГО в месяц на ед., руб. | Y5: ВСЕГО в месяц на ед. по данным РЭК, руб. | Z5: ВСЕГО за месяц, руб. | AA5: ВСЕГО за месяц по данным РЭК, руб. | AB5: ИТОГО ФЗП за год, тыс.руб. | AC5: ИТОГО ФЗП за год по данным РЭК, тыс.руб.
K6: вред-ность | L6: клас-сность | M6: празд-ничные | N6: ночные | O6: иные | T6: % | U6: сумма, руб. | V6: % | W6: сумма, руб.
B7: Основной производственный персонал
